Workbook

Sheet Sample Report (hidden)
A2: Date
A3: Hen
A4: Program
A5: Start at 999999
A6: Sequence component 1 | B6: Time 1 | C6: Seqeunce Component 2 | D6: Time 2 | E6: Seqeunce Component 3 | F6: Time 3 | G6: Correct 0 = No 1=Yes | J6: Seqeunce | K6: Time
A7: 12 | B7: 7 | C7: 12 | D7: 42 | E7: 13 | F7: 18 | G7: if 77 new line, if 31 or 41 = yes new line on 77, | J7: =string of Seqeunce compponent 1, 2 & 3 | K7: =time 3
A8: This continues until ther is a 1 on its own to indicate start of summary data
J9: 10-19 =1
A10: Summary Data | J10: 20-29 =2
A11: Correct | B11: Incorrect | C11: Rft | D11: total | E11: Av Correct | F11: Av Incorrect | G11: Percent correct | H11: Time | J11: in this example the seqeunce would be 111
A12: 40 | B12: 33 | C12: 40 | D12: 73 | E12: 23.95 | F12: 15 | G12: 54 | H12: 806

Sheet Summary
A2: Day | B2: Date | C2: Average Response Rate | D2: Target % | E2: RF for non correct sequence | F2: U Value | K2: Block 1 | L2: Block 2 | M2: Block 3 | N2: Block 4 | O2: Block 5 | P2: Block 6
A3: 1 | B3: ='!2011-06-26_09h15m.Subject 53'!B2:C2 -> 2011-06-26 | C3: =('!2011-06-26_09h15m.Subject 53'!F178/60)/'!2011-06-26_09h15m.Subject 53'!Q3 -> 2.324321705 | D3: ='!2011-06-26_09h15m.Subject 53'!N20/'!2011-06-26_09h15m.Subject 53'!Q3 -> 0.02906976744 | E3: =SUM('!2011-06-26_09h15m.Subject 53'!L20:Q20)/'!2011-06-26_09h15m.Subject 53'!Q3 -> 1.063953488 | F3: ='!2011-06-26_09h15m.Subject 53'!Q16 -> 0.303743578 | J3: Average Response Rate | K3: =AVERAGE(C3:C7) -> 2.371020458 | L3: =AVERAGE(C8:C12) -> 2.128574391 | M3: =AVERAGE(C13:C17) -> 2.047607664 | N3: =AVERAGE(C18:C22) -> 1.939037736 | O3: =AVERAGE(C23:C27) -> 1.829234234 | P3: =AVERAGE(C28:C32) -> 1.850535786
A4: 2 | B4: ='!2011-06-27_09h18m.Subject 53'!B2:C2 -> 2011-06-27 | C4: =('!2011-06-27_09h18m.Subject 53'!F176/60)/'!2011-06-27_09h18m.Subject 53'!Q3 -> 2.349117647 | D4: ='!2011-06-27_09h18m.Subject 53'!N20/'!2011-06-27_09h18m.Subject 53'!Q3 -> 0.08235294118 | E4: =SUM('!2011-06-27_09h18m.Subject 53'!L20:Q20)/'!2011-06-27_09h18m.Subject 53'!Q3 -> 1.658823529 | F4: ='!2011-06-27_09h18m.Subject 53'!Q16 -> 0.3448955063 | J4: Target % | K4: =AVERAGE(D3:D7) -> 0.1539731349 | L4: =AVERAGE(D8:D12) -> 0.1424893155 | M4: =AVERAGE(D13:D17) -> 0.1805348408 | N4: =AVERAGE(D18:D22) -> 0.07104411717 | O4: =AVERAGE(D23:D27) -> 0.05978674547 | P4: =AVERAGE(D28:D32) -> 0.131793923
A5: 3 | B5: ='!2011-06-28_08h09m.Subject 53'!B2:C2 -> 2011-06-28 | C5: =('!2011-06-28_08h09m.Subject 53'!F165/60)/'!2011-06-28_08h09m.Subject 53'!Q3 -> 2.511006289 | D5: ='!2011-06-28_08h09m.Subject 53'!N20/'!2011-06-28_08h09m.Subject 53'!Q3 -> 0.251572327 | E5: =SUM('!2011-06-28_08h09m.Subject 53'!L20:Q20)/'!2011-06-28_08h09m.Subject 53'!Q3 -> 1.981132075 | F5: ='!2011-06-28_08h09m.Subject 53'!Q16 -> 0.3890458058 | J5: CCRF | K5: =AVERAGE(E3:E7) -> 1.59435133 | L5: =AVERAGE(E8:E12) -> 1.860118745 | M5: =AVERAGE(E13:E17) -> 2.247382637 | N5: =AVERAGE(E18:E22) -> 2.238997454 | O5: =AVERAGE(E23:E27) -> 2.660716369 | P5: =AVERAGE(E28:E32) -> 2.737340527
A6: 4 | B6: ='!2011-06-29_10h57m.Subject 53'!B2:C2 -> 2011-06-29 | C6: =('!2011-06-29_10h57m.Subject 53'!F144/60)/'!2011-06-29_10h57m.Subject 53'!Q3 -> 2.396376812 | D6: ='!2011-06-29_10h57m.Subject 53'!N20/'!2011-06-29_10h57m.Subject 53'!Q3 -> 0.2463768116 | E6: =SUM('!2011-06-29_10h57m.Subject 53'!L20:Q20)/'!2011-06-29_10h57m.Subject 53'!Q3 -> 1.391304348 | F6: ='!2011-06-29_10h57m.Subject 53'!Q16 -> 0.3559568243 | J6: U Value | K6: =AVERAGE(F3:F7) -> 0.3477333026 | L6: =AVERAGE(F8:F12) -> 0.3441957026 | M6: =AVERAGE(F13:F17) -> 0.3306429754 | N6: =AVERAGE(F18:F22) -> 0.2647925486 | O6: =AVERAGE(F23:F27) -> 0.1806090306 | P6: =AVERAGE(F28:F32) -> 0.1658526538
A7: 5 | B7: ='!2011-06-30_09h15m.Subject 53'!B2:C2 -> 2011-06-30 | C7: =('!2011-06-30_09h15m.Subject 53'!F87/60)/'!2011-06-30_09h15m.Subject 53'!Q3 -> 2.274279835 | D7: ='!2011-06-30_09h15m.Subject 53'!N20/'!2011-06-30_09h15m.Subject 53'!Q3 -> 0.1604938272 | E7: =SUM('!2011-06-30_09h15m.Subject 53'!L20:Q20)/'!2011-06-30_09h15m.Subject 53'!Q3 -> 1.87654321 | F7: ='!2011-06-30_09h15m.Subject 53'!Q16 -> 0.3450247987
A8: 6 | B8: ='!2011-07-01_09h45m.Subject 53'!B2:C2 -> 2011-07-01 | C8: =('!2011-07-01_09h45m.Subject 53'!F83/60)/'!2011-07-01_09h45m.Subject 53'!Q3 -> 2.272510823 | D8: ='!2011-07-01_09h45m.Subject 53'!N20/'!2011-07-01_09h45m.Subject 53'!Q3 -> 0.1168831169 | E8: =SUM('!2011-07-01_09h45m.Subject 53'!L20:Q20)/'!2011-07-01_09h45m.Subject 53'!Q3 -> 1.909090909 | F8: ='!2011-07-01_09h45m.Subject 53'!Q16 -> 0.3823399676
A9: 7 | B9: ='!2011-07-02_09h15m.Subject 53'!B2:C2 -> 2011-07-02 | C9: =('!2011-07-02_09h15m.Subject 53'!F87/60)/'!2011-07-02_09h15m.Subject 53'!Q3 -> 2.097325103 | D9: ='!2011-07-02_09h15m.Subject 53'!N20/'!2011-07-02_09h15m.Subject 53'!Q3 -> 0.1604938272 | E9: =SUM('!2011-07-02_09h15m.Subject 53'!L20:Q20)/'!2011-07-02_09h15m.Subject 53'!Q3 -> 2 | F9: ='!2011-07-02_09h15m.Subject 53'!Q16 -> 0.3158860743 | G9: =K3 -> 2.371020458 | H9: =L3 -> 2.128574391 | I9: =M3 -> 2.047607664 | J9: =N3 -> 1.939037736 | K9: =O3 -> 1.829234234 | L9: =P3 -> 1.850535786 | M9: =K4 -> 0.1539731349 | N9: =L4 -> 0.1424893155 | O9: =M4 -> 0.1805348408 | P9: =N4 -> 0.07104411717 | Q9: =O4 -> 0.05978674547 | R9: =P4 -> 0.131793923 | S9: =K6 -> 0.3477333026 | T9: =L6 -> 0.3441957026 | U9: =M6 -> 0.3306429754 | V9: =N6 -> 0.2647925486 | W9: =O6 -> 0.1806090306 | X9: =P6 -> 0.1658526538
A10: 8 | B10: ='!2011-07-03_09h29m.Subject 53'!B2:C2 -> 2011-07-03 | C10: =('!2011-07-03_09h29m.Subject 53'!F84/60)/'!2011-07-03_09h29m.Subject 53'!Q3 -> 2.15042735 | D10: ='!2011-07-03_09h29m.Subject 53'!N20/'!2011-07-03_09h29m.Subject 53'!Q3 -> 0.07692307692 | E10: =SUM('!2011-07-03_09h29m.Subject 53'!L20:Q20)/'!2011-07-03_09h29m.Subject 53'!Q3 -> 1.846153846 | F10: ='!2011-07-03_09h29m.Subject 53'!Q16 -> 0.3813670735
A11: 9 | B11: ='!2011-07-04_09h23m.Subject 52'!B2:C2 -> 2011-07-04 | C11: =('!2011-07-04_09h23m.Subject 52'!F85/60)/'!2011-07-04_09h23m.Subject 52'!Q3 -> 2.016033755 | D11: ='!2011-07-04_09h23m.Subject 52'!N20/'!2011-07-04_09h23m.Subject 52'!Q3 -> 0.1012658228 | E11: =SUM('!2011-07-04_09h23m.Subject 52'!L20:Q20)/'!2011-07-04_09h23m.Subject 52'!Q3 -> 1.848101266 | F11: ='!2011-07-04_09h23m.Subject 52'!Q16 -> 0.2938312368
A12: 10 | B12: ='!2011-07-05_09h36m.Subject 53'!B2:C2 -> 2011-07-05 | C12: =('!2011-07-05_09h36m.Subject 53'!F115/60)/'!2011-07-05_09h36m.Subject 53'!Q3 -> 2.106574924 | D12: ='!2011-07-05_09h36m.Subject 53'!N20/'!2011-07-05_09h36m.Subject 53'!Q3 -> 0.2568807339 | E12: =SUM('!2011-07-05_09h36m.Subject 53'!L20:Q20)/'!2011-07-05_09h36m.Subject 53'!Q3 -> 1.697247706 | F12: ='!2011-07-05_09h36m.Subject 53'!Q16 -> 0.3475541611
A13: 11 | B13: ='!2011-07-06_09h41m.Subject 53'!B2:C2 -> 2011-07-06 | C13: =('!2011-07-06_09h41m.Subject 53'!F80/60)/'!2011-07-06_09h41m.Subject 53'!Q3 -> 2.013963964 | D13: ='!2011-07-06_09h41m.Subject 53'!N20/'!2011-07-06_09h41m.Subject 53'!Q3 -> 0.2027027027 | E13: =SUM('!2011-07-06_09h41m.Subject 53'!L20:Q20)/'!2011-07-06_09h41m.Subject 53'!Q3 -> 2.175675676 | F13: ='!2011-07-06_09h41m.Subject 53'!Q16 -> 0.3262051856
A14: 12 | B14: ='!2011-07-07_10h13m.Subject 53'!B2:C2 -> 2011-07-07 | C14: =('!2011-07-07_10h13m.Subject 53'!F86/60)/'!2011-07-07_10h13m.Subject 53'!Q3 -> 2.0575 | D14: ='!2011-07-07_10h13m.Subject 53'!N20/'!2011-07-07_10h13m.Subject 53'!Q3 -> 0.175 | E14: =SUM('!2011-07-07_10h13m.Subject 53'!L20:Q20)/'!2011-07-07_10h13m.Subject 53'!Q3 -> 2.0375 | F14: ='!2011-07-07_10h13m.Subject 53'!Q16 -> 0.3443997307
A15: 13 | B15: ='!2011-07-08_10h27m.Subject 53'!B2:C2 -> 2011-07-08 | C15: =('!2011-07-08_10h27m.Subject 53'!F89/60)/'!2011-07-08_10h27m.Subject 53'!Q3 -> 2.095983936 | D15: ='!2011-07-08_10h27m.Subject 53'!N20/'!2011-07-08_10h27m.Subject 53'!Q3 -> 0.2409638554 | E15: =SUM('!2011-07-08_10h27m.Subject 53'!L20:Q20)/'!2011-07-08_10h27m.Subject 53'!Q3 -> 3.13253012 | F15: ='!2011-07-08_10h27m.Subject 53'!Q16 -> 0.3064889271
A16: 14 | B16: ='!2011-07-09_11h07m.Subject 53'!B2:C2 -> 2011-07-09 | C16: =('!2011-07-09_11h07m.Subject 53'!F79/60)/'!2011-07-09_11h07m.Subject 53'!Q3 -> 2.06826484 | D16: ='!2011-07-09_11h07m.Subject 53'!N20/'!2011-07-09_11h07m.Subject 53'!Q3 -> 0.1095890411 | E16: =SUM('!2011-07-09_11h07m.Subject 53'!L20:Q20)/'!2011-07-09_11h07m.Subject 53'!Q3 -> 1.97260274 | F16: ='!2011-07-09_11h07m.Subject 53'!Q16 -> 0.333387155
A17: 15 | B17: ='!2011-07-10_11h23m.Subject 53'!B2:C2 -> 2011-07-10 | C17: =('!2011-07-10_11h23m.Subject 53'!F92/60)/'!2011-07-10_11h23m.Subject 53'!Q3 -> 2.002325581 | D17: ='!2011-07-10_11h23m.Subject 53'!N20/'!2011-07-10_11h23m.Subject 53'!Q3 -> 0.1744186047 | E17: =SUM('!2011-07-10_11h23m.Subject 53'!L20:Q20)/'!2011-07-10_11h23m.Subject 53'!Q3 -> 1.918604651 | F17: ='!2011-07-10_11h23m.Subject 53'!Q16 -> 0.3427338788
A18: 16 | B18: ='!2011-07-11_09h58m.Subject 53'!B2:C2 -> 2011-07-11 | C18: =('!2011-07-11_09h58m.Subject 53'!F83/60)/'!2011-07-11_09h58m.Subject 53'!Q3 -> 1.997835498 | D18: ='!2011-07-11_09h58m.Subject 53'!N20/'!2011-07-11_09h58m.Subject 53'!Q3 -> 0.1168831169 | E18: =SUM('!2011-07-11_09h58m.Subject 53'!L20:Q20)/'!2011-07-11_09h58m.Subject 53'!Q3 -> 1.896103896 | F18: ='!2011-07-11_09h58m.Subject 53'!Q16 -> 0.3515635824
A19: 17 | B19: ='!2011-07-12_10h40m.Subject 53'!B2:C2 -> 2011-07-12 | C19: =('!2011-07-12_10h40m.Subject 53'!F68/60)/'!2011-07-12_10h40m.Subject 53'!Q3 -> 1.962096774 | D19: ='!2011-07-12_10h40m.Subject 53'!N20/'!2011-07-12_10h40m.Subject 53'!Q3 -> 0.08064516129 | E19: =SUM('!2011-07-12_10h40m.Subject 53'!L20:Q20)/'!2011-07-12_10h40m.Subject 53'!Q3 -> 2.225806452 | F19: ='!2011-07-12_10h40m.Subject 53'!Q16 -> 0.2919284586
A20: 18 | B20: ='!2011-07-13_09h04m.Subject 53'!B2:C2 -> 2011-07-13 | C20: =('!2011-07-13_09h04m.Subject 53'!F58/60)/'!2011-07-13_09h04m.Subject 53'!Q3 -> 1.846794872 | D20: ='!2011-07-13_09h04m.Subject 53'!N20/'!2011-07-13_09h04m.Subject 53'!Q3 -> 0.01923076923 | E20: =SUM('!2011-07-13_09h04m.Subject 53'!L20:Q20)/'!2011-07-13_09h04m.Subject 53'!Q3 -> 2.673076923 | F20: ='!2011-07-13_09h04m.Subject 53'!Q16 -> 0.2113220729
A21: 19 | B21: ='!2011-07-14_09h59m.Subject 53'!B2:C2 -> 2011-07-14 | C21: =('!2011-07-14_09h59m.Subject 53'!F71/60)/'!2011-07-14_09h59m.Subject 53'!Q3 -> 1.946410256 | D21: ='!2011-07-14_09h59m.Subject 53'!N20/'!2011-07-14_09h59m.Subject 53'!Q3 -> 0.1076923077 | E21: =SUM('!2011-07-14_09h59m.Subject 53'!L20:Q20)/'!2011-07-14_09h59m.Subject 53'!Q3 -> 2.169230769 | F21: ='!2011-07-14_09h59m.Subject 53'!Q16 -> 0.2666182809
A22: 20 | B22: ='!2011-07-15_10h33m.Subject 53'!B2:C2 -> 2011-07-15 | C22: =('!2011-07-15_10h33m.Subject 53'!F71/60)/'!2011-07-15_10h33m.Subject 53'!Q3 -> 1.942051282 | D22: ='!2011-07-15_10h33m.Subject 53'!N20/'!2011-07-15_10h33m.Subject 53'!Q3 -> 0.03076923077 | E22: =SUM('!2011-07-15_10h33m.Subject 53'!L20:Q20)/'!2011-07-15_10h33m.Subject 53'!Q3 -> 2.230769231 | F22: ='!2011-07-15_10h33m.Subject 53'!Q16 -> 0.2025303484
A23: 21 | B23: ='!2011-07-16_09h59m.Subject 53'!B2:C2 -> 2011-07-16 | C23: =('!2011-07-16_09h59m.Subject 53'!F51/60)/'!2011-07-16_09h59m.Subject 53'!Q3 -> 1.814814815 | D23: ='!2011-07-16_09h59m.Subject 53'!N20/'!2011-07-16_09h59m.Subject 53'!Q3 -> 0 | E23: =SUM('!2011-07-16_09h59m.Subject 53'!L20:Q20)/'!2011-07-16_09h59m.Subject 53'!Q3 -> 2.822222222 | F23: ='!2011-07-16_09h59m.Subject 53'!Q16 -> 0.125449268
A24: 22 | B24: ='!2011-07-17_10h43m.Subject 53'!B2:C2 -> 2011-07-17 | C24: =('!2011-07-17_10h43m.Subject 53'!F56/60)/'!2011-07-17_10h43m.Subject 53'!Q3 -> 1.860666667 | D24: ='!2011-07-17_10h43m.Subject 53'!N20/'!2011-07-17_10h43m.Subject 53'!Q3 -> 0.08 | E24: =SUM('!2011-07-17_10h43m.Subject 53'!L20:Q20)/'!2011-07-17_10h43m.Subject 53'!Q3 -> 2.64 | F24: ='!2011-07-17_10h43m.Subject 53'!Q16 -> 0.205753375
A25: 23 | B25: ='!2011-07-18_10h17m.Subject 53'!B2:C2 -> 2011-07-18 | C25: =('!2011-07-18_10h17m.Subject 53'!F58/60)/'!2011-07-18_10h17m.Subject 53'!Q3 -> 1.856730769 | D25: ='!2011-07-18_10h17m.Subject 53'!N20/'!2011-07-18_10h17m.Subject 53'!Q3 -> 0.03846153846 | E25: =SUM('!2011-07-18_10h17m.Subject 53'!L20:Q20)/'!2011-07-18_10h17m.Subject 53'!Q3 -> 2.519230769 | F25: ='!2011-07-18_10h17m.Subject 53'!Q16 -> 0.1857916655
A26: 24 | B26: ='!2011-07-19_10h41m.Subject 53'!B2:C2 -> 2011-07-19 | C26: =('!2011-07-19_10h41m.Subject 53'!F57/60)/'!2011-07-19_10h41m.Subject 53'!Q3 -> 1.799673203 | D26: ='!2011-07-19_10h41m.Subject 53'!N20/'!2011-07-19_10h41m.Subject 53'!Q3 -> 0.07843137255 | E26: =SUM('!2011-07-19_10h41m.Subject 53'!L20:Q20)/'!2011-07-19_10h41m.Subject 53'!Q3 -> 2.607843137 | F26: ='!2011-07-19_10h41m.Subject 53'!Q16 -> 0.2196845873
A27: 25 | B27: ='!2011-07-20_11h50m.Subject 53'!B2:C2 -> 2011-07-20 | C27: =('!2011-07-20_11h50m.Subject 53'!F55/60)/'!2011-07-20_11h50m.Subject 53'!Q3 -> 1.814285714 | D27: ='!2011-07-20_11h50m.Subject 53'!N20/'!2011-07-20_11h50m.Subject 53'!Q3 -> 0.1020408163 | E27: =SUM('!2011-07-20_11h50m.Subject 53'!L20:Q20)/'!2011-07-20_11h50m.Subject 53'!Q3 -> 2.714285714 | F27: ='!2011-07-20_11h50m.Subject 53'!Q16 -> 0.1663662573
A28: 26 | B28: ='!2011-07-21_09h42m.Subject 53'!B2:C2 -> 2011-07-21 | C28: =('!2011-07-21_09h42m.Subject 53'!F53/60)/'!2011-07-21_09h42m.Subject 53'!Q3 -> 1.820212766 | D28: ='!2011-07-21_09h42m.Subject 53'!N20/'!2011-07-21_09h42m.Subject 53'!Q3 -> 0.06382978723 | E28: =SUM('!2011-07-21_09h42m.Subject 53'!L20:Q20)/'!2011-07-21_09h42m.Subject 53'!Q3 -> 2.787234043 | F28: ='!2011-07-21_09h42m.Subject 53'!Q16 -> 0.1477423693
A29: 27 | B29: ='!2011-07-23_09h57m.Subject 53'!B2:C2 -> 2011-07-23 | C29: =('!2011-07-23_09h57m.Subject 53'!F62/60)/'!2011-07-23_09h57m.Subject 53'!Q3 -> 1.898214286 | D29: ='!2011-07-23_09h57m.Subject 53'!N20/'!2011-07-23_09h57m.Subject 53'!Q3 -> 0.25 | E29: =SUM('!2011-07-23_09h57m.Subject 53'!L20:Q20)/'!2011-07-23_09h57m.Subject 53'!Q3 -> 2.589285714 | F29: ='!2011-07-23_09h57m.Subject 53'!Q16 -> 0.1753680822
A30: 28 | B30: ='!2011-07-24_10h41m.Subject 53'!B2:C2 -> 2011-07-24 | C30: =('!2011-07-24_10h41m.Subject 53'!F58/60)/'!2011-07-24_10h41m.Subject 53'!Q3 -> 1.850641026 | D30: ='!2011-07-24_10h41m.Subject 53'!N20/'!2011-07-24_10h41m.Subject 53'!Q3 -> 0.1730769231 | E30: =SUM('!2011-07-24_10h41m.Subject 53'!L20:Q20)/'!2011-07-24_10h41m.Subject 53'!Q3 -> 2.653846154 | F30: ='!2011-07-24_10h41m.Subject 53'!Q16 -> 0.1923197329
A31: 29 | B31: ='!2011-07-25_10h03m.Subject 53'!B2:C2 -> 2011-07-25 | C31: =('!2011-07-25_10h03m.Subject 53'!F53/60)/'!2011-07-25_10h03m.Subject 53'!Q3 -> 1.837234043 | D31: ='!2011-07-25_10h03m.Subject 53'!N20/'!2011-07-25_10h03m.Subject 53'!Q3 -> 0.08510638298 | E31: =SUM('!2011-07-25_10h03m.Subject 53'!L20:Q20)/'!2011-07-25_10h03m.Subject 53'!Q3 -> 2.808510638 | F31: ='!2011-07-25_10h03m.Subject 53'!Q16 -> 0.1644604919
A32: 30 | B32: ='!2011-07-26_09h50m.Subject 53'!B2:C2 -> 2011-07-26 | C32: =('!2011-07-26_09h50m.Subject 53'!F52/60)/'!2011-07-26_09h50m.Subject 53'!Q3 -> 1.846376812 | D32: ='!2011-07-26_09h50m.Subject 53'!N20/'!2011-07-26_09h50m.Subject 53'!Q3 -> 0.08695652174 | E32: =SUM('!2011-07-26_09h50m.Subject 53'!L20:Q20)/'!2011-07-26_09h50m.Subject 53'!Q3 -> 2.847826087 | F32: ='!2011-07-26_09h50m.Subject 53'!Q16 -> 0.1493725927
B33: ='!2011-07-27_11h14m.Subject 53'!B2:C2 -> 2011-07-27 | C33: =('!2011-07-27_11h14m.Subject 53'!F57/60)/'!2011-07-27_11h14m.Subject 53'!Q3 -> 1.856862745 | D33: ='!2011-07-27_11h14m.Subject 53'!N20/'!2011-07-27_11h14m.Subject 53'!Q3 -> 0.1764705882 | E33: =SUM('!2011-07-27_11h14m.Subject 53'!L20:Q20)/'!2011-07-27_11h14m.Subject 53'!Q3 -> 2.705882353 | F33: ='!2011-07-27_11h14m.Subject 53'!Q16 -> 0.1843908917

Sheet Start
F1: Use Folder 51 | H1: Auto Clean Up | J1: Correct sequence
F2: FALSE | H2: TRUE | J2: 122
A4: Working with Folder | G4: Process All/Or Pick A number: ALL or an integer
A5: E:\Hen Data\Raw Data\53\Phase 2 VAR\ | G5: ALL
A6: Filenames:
A7: !2011-06-26_09h15m.Subject 53 | G7: Paint Cells
A8: !2011-06-27_09h18m.Subject 53 | G8: FALSE
A9: !2011-06-28_08h09m.Subject 53
A10: !2011-06-29_10h57m.Subject 53
A11: !2011-06-30_09h15m.Subject 53
A12: !2011-07-01_09h45m.Subject 53
A13: !2011-07-02_09h15m.Subject 53
A14: !2011-07-03_09h29m.Subject 53
A15: !2011-07-05_09h36m.Subject 53
A16: !2011-07-06_09h41m.Subject 53
A17: !2011-07-07_10h13m.Subject 53
A18: !2011-07-08_10h27m.Subject 53
A19: !2011-07-09_11h07m.Subject 53
A20: !2011-07-10_11h23m.Subject 53
A21: !2011-07-11_09h58m.Subject 53
A22: !2011-07-12_10h40m.Subject 53
A23: !2011-07-13_09h04m.Subject 53
A24: !2011-07-14_09h59m.Subject 53
A25: !2011-07-15_10h33m.Subject 53
A26: !2011-07-16_09h59m.Subject 53
A27: !2011-07-17_10h43m.Subject 53
A28: !2011-07-18_10h17m.Subject 53
A29: !2011-07-19_10h41m.Subject 53
A30: !2011-07-20_11h50m.Subject 53
A31: !2011-07-21_09h42m.Subject 53
A32: !2011-07-23_09h57m.Subject 53
A33: !2011-07-24_10h41m.Subject 53
A34: !2011-07-25_10h03m.Subject 53
A35: !2011-07-26_09h50m.Subject 53
A36: !2011-07-27_11h14m.Subject 53
A37: !2011-07-04_09h23m.Subject 52

Sheet !2011-06-26_09h15m.Subject 53
A1: Report for:!2011-06-26_09h15m.Subject 53
A2: Date | B2: 2011-06-26 | F2: Group | G2: var phase 2
A3: Hen | B3: 53 | F3: Correct Sequence | G3: =Start!J2 -> 122 | P3: Total Sequences in Data | Q3: =4994-COUNTBLANK(L7:L5000) -> 172 | V3: Total Sequences in Block Data | W3: =COUNTA(L7:L35) -> 29 | AA3: Total Sequences in Block Data | AB3: =COUNTA(L36:L63) -> 28 | AF3: Total Sequences in Block Data | AG3: =COUNTA(L64:L92) -> 29 | AK3: Total Sequences in Block Data | AL3: =COUNTA(L93:L121) -> 29 | AP3: Total Sequences in Block Data | AQ3: =COUNTA(L122:L149) -> 28 | AU3: Total Sequences in Block Data | AV3: =COUNTA(L150:L178) -> 29
A4: Program | B4: one | P4: Total Sequences in Summary | Q4: =SUM(O7:O14) -> 172 | V4: Total Sequences in Block Summary | W4: =SUM(U7:U14) -> 29 | AA4: Total Sequences in Block Summary | AB4: =SUM(Z7:Z14) -> 28 | AF4: Total Sequences in Block Summary | AG4: =SUM(AE7:AE14) -> 29 | AK4: Total Sequences in Block Summary | AL4: =SUM(AJ7:AJ14) -> 29 | AP4: Total Sequences in Block Summary | AQ4: =SUM(AO7:AO14) -> 28 | AU4: Total Sequences in Block Summary | AV4: =SUM(AT7:AT14) -> 29
T5: Block 1 | Y5: Block 2 | AD5: Block 3 | AI5: Block 4 | AN5: Block 5 | AS5: Block 6
A6: Sequence Component 1 | B6: Time 1 | C6: Sequence Component 2 | D6: Time 2 | E6: Sequence Component 3 | F6: Time 3 | G6: Sequence Component 4 | H6: Time 4 | I6: Sequence Component 5 | J6: Time 5 | K6: Correct? 0=No 1=Yes | L6: Sequence | N6: Frequency | P6: Relative Frequency | Q6: Variability | T6: Frequency | V6: Relative Frequency | W6: Variability | Y6: Frequency | AA6: Relative Frequency | AB6: Variability | AD6: Frequency | AF6: Relative Frequency | AG6: Variability | AI6: Frequency | AK6: Relative Frequency | AL6: Variability | AN6: Frequency | AP6: Relative Frequency | AQ6: Variability | AS6: Frequency | AU6: Relative Frequency | AV6: Variability
A7: 22 | B7: 10 | C7: 24 | D7: 34 | E7: 23 | F7: 56 | K7: 0 | L7: 222 | N7: 111 | O7: =COUNTIF($L$7:$L$500,N7) -> 14 | P7: =O7/$Q$4 -> 0.08139534884 | Q7: =IF(P7=0,0,(P7*((LOG(P7))/LOG(2)))) -> -0.2945624282 | T7: =N7 -> 111 | U7: =COUNTIF(L7:L35,T7) -> 0 | V7: =U7/(W4-U10) -> 0 | W7: =IF(V7=0,0,(V7*((LOG(V7))/LOG(2)))) -> 0 | Y7: =N7 -> 111 | Z7: =COUNTIF(L36:L63,Y7) -> 1 | AA7: =Z7/(AB4-Z10) -> 0.03846153846 | AB7: =IF(AA7=0,0,(AA7*((LOG(AA7))/LOG(2)))) -> -0.180786143 | AD7: =N7 -> 111 | AE7: =COUNTIF(L64:L92,AD7) -> 4 | AF7: =AE7/(AG4-AE10) -> 0.1428571429 | AG7: =IF(AF7=0,0,(AF7*((LOG(AF7))/LOG(2)))) -> -0.4010507032 | AI7: =N7 -> 111 | AJ7: =COUNTIF(L93:L121,AI7) -> 7 | AK7: =AJ7/(AL4-AJ10) -> 0.25 | AL7: =IF(AK7=0,0,(AK7*((LOG(AK7))/LOG(2)))) -> -0.5 | AN7: =N7 -> 111 | AO7: =COUNTIF(L122:L149,AN7) -> 0 | AP7: =AO7/(AQ4-AO10) -> 0 | AQ7: =IF(AP7=0,0,(AP7*((LOG(AP7))/LOG(2)))) -> 0 | AS7: =N7 -> 111 | AT7: =COUNTIF(L150:L178,AS7) -> 2 | AU7: =AT7/(AV4-AT10) -> 0.07142857143 | AV7: =IF(AU7=0,0,(AU7*((LOG(AU7))/LOG(2)))) -> -0.271953923
A8: 22 | B8: 158 | C8: 24 | D8: 166 | E8: 23 | F8: 171 | K8: 0 | L8: 222 | N8: 112 | O8: =COUNTIF($L$7:$L$500,N8) -> 3 | P8: =O8/$Q$4 -> 0.01744186047 | Q8: =IF(P8=0,0,(P8*((LOG(P8))/LOG(2)))) -> -0.1018831788 | T8: =N8 -> 112 | U8: =COUNTIF(L7:L35,T8) -> 0 | V8: =U8/(W4-U10) -> 0 | W8: =IF(V8=0,0,(V8*((LOG(V8))/LOG(2)))) -> 0 | Y8: =N8 -> 112 | Z8: =COUNTIF(L36:L63,Y8) -> 0 | AA8: =Z8/(AB4-Z10) -> 0 | AB8: =IF(AA8=0,0,(AA8*((LOG(AA8))/LOG(2)))) -> 0 | AD8: =N8 -> 112 | AE8: =COUNTIF(L64:L92,AD8) -> 0 | AF8: =AE8/(AG4-AE10) -> 0 | AG8: =IF(AF8=0,0,(AF8*((LOG(AF8))/LOG(2)))) -> 0 | AI8: =N8 -> 112 | AJ8: =COUNTIF(L93:L121,AI8) -> 1 | AK8: =AJ8/(AL4-AJ10) -> 0.03571428571 | AL8: =IF(AK8=0,0,(AK8*((LOG(AK8))/LOG(2)))) -> -0.1716912472 | AN8: =N8 -> 112 | AO8: =COUNTIF(L122:L149,AN8) -> 1 | AP8: =AO8/(AQ4-AO10) -> 0.03571428571 | AQ8: =IF(AP8=0,0,(AP8*((LOG(AP8))/LOG(2)))) -> -0.1716912472 | AS8: =N8 -> 112 | AT8: =COUNTIF(L150:L178,AS8) -> 1 | AU8: =AT8/(AV4-AT10) -> 0.03571428571 | AV8: =IF(AU8=0,0,(AU8*((LOG(AU8))/LOG(2)))) -> -0.1716912472
A9: 22 | B9: 273 | C9: 24 | D9: 288 | E9: 14 | F9: 305 | K9: 0 | L9: 221 | N9: 121 | O9: =COUNTIF($L$7:$L$500,N9) -> 2 | P9: =O9/$Q$4 -> 0.01162790698 | Q9: =IF(P9=0,0,(P9*((LOG(P9))/LOG(2)))) -> -0.07472400878 | T9: =N9 -> 121 | U9: =COUNTIF(L7:L35,T9) -> 1 | V9: =U9/(W4-U10) -> 0.03448275862 | W9: =IF(V9=0,0,(V9*((LOG(V9))/LOG(2)))) -> -0.167516586 | Y9: =N9 -> 121 | Z9: =COUNTIF(L36:L63,Y9) -> 0 | AA9: =Z9/(AB4-Z10) -> 0 | AB9: =IF(AA9=0,0,(AA9*((LOG(AA9))/LOG(2)))) -> 0 | AD9: =N9 -> 121 | AE9: =COUNTIF(L64:L92,AD9) -> 0 | AF9: =AE9/(AG4-AE10) -> 0 | AG9: =IF(AF9=0,0,(AF9*((LOG(AF9))/LOG(2)))) -> 0 | AI9: =N9 -> 121 | AJ9: =COUNTIF(L93:L121,AI9) -> 0 | AK9: =AJ9/(AL4-AJ10) -> 0 | AL9: =IF(AK9=0,0,(AK9*((LOG(AK9))/LOG(2)))) -> 0 | AN9: =N9 -> 121 | AO9: =COUNTIF(L122:L149,AN9) -> 0 | AP9: =AO9/(AQ4-AO10) -> 0 | AQ9: =IF(AP9=0,0,(AP9*((LOG(AP9))/LOG(2)))) -> 0 | AS9: =N9 -> 121 | AT9: =COUNTIF(L150:L178,AS9) -> 1 | AU9: =AT9/(AV4-AT10) -> 0.03571428571 | AV9: =IF(AU9=0,0,(AU9*((LOG(AU9))/LOG(2)))) -> -0.1716912472
A10: 22 | B10: 419 | C10: 24 | D10: 433 | E10: 14 | F10: 445 | K10: 0 | L10: 221 | N10: 122 | O10: =COUNTIF($L$7:$L$500,N10) -> 5 | P10: =O10/$Q$4 -> 0.02906976744 | Q10: =IF(P10=0,0,(P10*((LOG(P10))/LOG(2)))) -> -0.1483818796 | T10: =N10 -> 122 | U10: =COUNTIF(L7:L35,T10) -> 0 | Y10: =N10 -> 122 | Z10: =COUNTIF(L36:L63,Y10) -> 2 | AD10: =N10 -> 122 | AE10: =COUNTIF(L64:L92,AD10) -> 1 | AI10: =N10 -> 122 | AJ10: =COUNTIF(L93:L121,AI10) -> 1 | AN10: =N10 -> 122 | AO10: =COUNTIF(L122:L149,AN10) -> 0 | AS10: =N10 -> 122 | AT10: =COUNTIF(L150:L178,AS10) -> 1
A11: 22 | B11: 546 | C11: 24 | D11: 554 | E11: 14 | F11: 566 | K11: 0 | L11: 221 | N11: 211 | O11: =COUNTIF($L$7:$L$500,N11) -> 66 | P11: =O11/$Q$4 -> 0.3837209302 | Q11: =IF(P11=0,0,(P11*((LOG(P11))/LOG(2)))) -> -0.5302526857 | T11: =N11 -> 211 | U11: =COUNTIF(L7:L35,T11) -> 8 | V11: =U11/(W4-U10) -> 0.275862069 | W11: =IF(V11=0,0,(V11*((LOG(V11))/LOG(2)))) -> -0.5125464814 | Y11: =N11 -> 211 | Z11: =COUNTIF(L36:L63,Y11) -> 9 | AA11: =Z11/(AB4-Z10) -> 0.3461538462 | AB11: =IF(AA11=0,0,(AA11*((LOG(AA11))/LOG(2)))) -> -0.5297935558 | AD11: =N11 -> 211 | AE11: =COUNTIF(L64:L92,AD11) -> 14 | AF11: =AE11/(AG4-AE10) -> 0.5 | AG11: =IF(AF11=0,0,(AF11*((LOG(AF11))/LOG(2)))) -> -0.5 | AI11: =N11 -> 211 | AJ11: =COUNTIF(L93:L121,AI11) -> 9 | AK11: =AJ11/(AL4-AJ10) -> 0.3214285714 | AL11: =IF(AK11=0,0,(AK11*((LOG(AK11))/LOG(2)))) -> -0.5263167602 | AN11: =N11 -> 211 | AO11: =COUNTIF(L122:L149,AN11) -> 8 | AP11: =AO11/(AQ4-AO10) -> 0.2857142857 | AQ11: =IF(AP11=0,0,(AP11*((LOG(AP11))/LOG(2)))) -> -0.5163871206 | AS11: =N11 -> 211 | AT11: =COUNTIF(L150:L178,AS11) -> 18 | AU11: =AT11/(AV4-AT10) -> 0.6428571429 | AV11: =IF(AU11=0,0,(AU11*((LOG(AU11))/LOG(2)))) -> -0.4097763775
A12: 22 | B12: 671 | C12: 24 | D12: 688 | E12: 23 | F12: 693 | K12: 0 | L12: 222 | N12: 212 | O12: =COUNTIF($L$7:$L$500,N12) -> 5 | P12: =O12/$Q$4 -> 0.02906976744 | Q12: =IF(P12=0,0,(P12*((LOG(P12))/LOG(2)))) -> -0.1483818796 | T12: =N12 -> 212 | U12: =COUNTIF(L7:L35,T12) -> 2 | V12: =U12/(W4-U10) -> 0.06896551724 | W12: =IF(V12=0,0,(V12*((LOG(V12))/LOG(2)))) -> -0.2660676548 | Y12: =N12 -> 212 | Z12: =COUNTIF(L36:L63,Y12) -> 1 | AA12: =Z12/(AB4-Z10) -> 0.03846153846 | AB12: =IF(AA12=0,0,(AA12*((LOG(AA12))/LOG(2)))) -> -0.180786143 | AD12: =N12 -> 212 | AE12: =COUNTIF(L64:L92,AD12) -> 1 | AF12: =AE12/(AG4-AE10) -> 0.03571428571 | AG12: =IF(AF12=0,0,(AF12*((LOG(AF12))/LOG(2)))) -> -0.1716912472 | AI12: =N12 -> 212 | AJ12: =COUNTIF(L93:L121,AI12) -> 0 | AK12: =AJ12/(AL4-AJ10) -> 0 | AL12: =IF(AK12=0,0,(AK12*((LOG(AK12))/LOG(2)))) -> 0 | AN12: =N12 -> 212 | AO12: =COUNTIF(L122:L149,AN12) -> 0 | AP12: =AO12/(AQ4-AO10) -> 0 | AQ12: =IF(AP12=0,0,(AP12*((LOG(AP12))/LOG(2)))) -> 0 | AS12: =N12 -> 212 | AT12: =COUNTIF(L150:L178,AS12) -> 1 | AU12: =AT12/(AV4-AT10) -> 0.03571428571 | AV12: =IF(AU12=0,0,(AU12*((LOG(AU12))/LOG(2)))) -> -0.1716912472
A13: 22 | B13: 792 | C13: 24 | D13: 809 | E13: 14 | F13: 820 | K13: 0 | L13: 221 | N13: 221 | O13: =COUNTIF($L$7:$L$500,N13) -> 45 | P13: =O13/$Q$4 -> 0.261627907 | Q13: =IF(P13=0,0,(P13*((LOG(P13))/LOG(2)))) -> -0.5060960734 | T13: =N13 -> 221 | U13: =COUNTIF(L7:L35,T13) -> 13 | V13: =U13/(W4-U10) -> 0.4482758621 | W13: =IF(V13=0,0,(V13*((LOG(V13))/LOG(2)))) -> -0.5188978138 | Y13: =N13 -> 221 | Z13: =COUNTIF(L36:L63,Y13) -> 8 | AA13: =Z13/(AB4-Z10) -> 0.3076923077 | AB13: =IF(AA13=0,0,(AA13*((LOG(AA13))/LOG(2)))) -> -0.523212221 | AD13: =N13 -> 221 | AE13: =COUNTIF(L64:L92,AD13) -> 6 | AF13: =AE13/(AG4-AE10) -> 0.2142857143 | AG13: =IF(AF13=0,0,(AF13*((LOG(AF13))/LOG(2)))) -> -0.4762269474 | AI13: =N13 -> 221 | AJ13: =COUNTIF(L93:L121,AI13) -> 8 | AK13: =AJ13/(AL4-AJ10) -> 0.2857142857 | AL13: =IF(AK13=0,0,(AK13*((LOG(AK13))/LOG(2)))) -> -0.5163871206 | AN13: =N13 -> 221 | AO13: =COUNTIF(L122:L149,AN13) -> 8 | AP13: =AO13/(AQ4-AO10) -> 0.2857142857 | AQ13: =IF(AP13=0,0,(AP13*((LOG(AP13))/LOG(2)))) -> -0.5163871206 | AS13: =N13 -> 221 | AT13: =COUNTIF(L150:L178,AS13) -> 2 | AU13: =AT13/(AV4-AT10) -> 0.07142857143 | AV13: =IF(AU13=0,0,(AU13*((LOG(AU13))/LOG(2)))) -> -0.271953923
A14: 22 | B14: 989 | C14: 24 | D14: 998 | E14: 23 | F14: 1005 | K14: 0 | L14: 222 | N14: 222 | O14: =COUNTIF($L$7:$L$500,N14) -> 32 | P14: =O14/$Q$4 -> 0.1860465116 | Q14: =IF(P14=0,0,(P14*((LOG(P14))/LOG(2)))) -> -0.4513980939 | T14: =N14 -> 222 | U14: =COUNTIF(L7:L35,T14) -> 5 | V14: =U14/(W4-U10) -> 0.1724137931 | W14: =IF(V14=0,0,(V14*((LOG(V14))/LOG(2)))) -> -0.4372505 | Y14: =N14 -> 222 | Z14: =COUNTIF(L36:L63,Y14) -> 7 | AA14: =Z14/(AB4-Z10) -> 0.2692307692 | AB14: =IF(AA14=0,0,(AA14*((LOG(AA14))/LOG(2)))) -> -0.5096766759 | AD14: =N14 -> 222 | AE14: =COUNTIF(L64:L92,AD14) -> 3 | AF14: =AE14/(AG4-AE10) -> 0.1071428571 | AG14: =IF(AF14=0,0,(AF14*((LOG(AF14))/LOG(2)))) -> -0.3452563309 | AI14: =N14 -> 222 | AJ14: =COUNTIF(L93:L121,AI14) -> 3 | AK14: =AJ14/(AL4-AJ10) -> 0.1071428571 | AL14: =IF(AK14=0,0,(AK14*((LOG(AK14))/LOG(2)))) -> -0.3452563309 | AN14: =N14 -> 222 | AO14: =COUNTIF(L122:L149,AN14) -> 11 | AP14: =AO14/(AQ4-AO10) -> 0.3928571429 | AQ14: =IF(AP14=0,0,(AP14*((LOG(AP14))/LOG(2)))) -> -0.5295412978 | AS14: =N14 -> 222 | AT14: =COUNTIF(L150:L178,AS14) -> 3 | AU14: =AT14/(AV4-AT10) -> 0.1071428571 | AV14: =IF(AU14=0,0,(AU14*((LOG(AU14))/LOG(2)))) -> -0.3452563309
A15: 22 | B15: 1111 | C15: 13 | D15: 1123 | E15: 23 | F15: 1135 | K15: 0 | L15: 212 | P15: =SUM(P7:P14) -> 1 | Q15: =-SUM(Q7:Q14) -> 2.255680228 | V15: =SUM(V7:V14) -> 1 | W15: =-SUM(W7:W14) -> 1.902279036 | AA15: =SUM(AA7:AA14) -> 1 | AB15: =-SUM(AB7:AB14) -> 1.924254739 | AF15: =SUM(AF7:AF14) -> 1 | AG15: =-SUM(AG7:AG14) -> 1.894225229 | AK15: =SUM(AK7:AK14) -> 1 | AL15: =-SUM(AL7:AL14) -> 2.059651459 | AP15: =SUM(AP7:AP14) -> 1 | AQ15: =-SUM(AQ7:AQ14) -> 1.734006786 | AU15: =SUM(AU7:AU14) -> 1 | AV15: =-SUM(AV7:AV14) -> 1.814014296
A16: 22 | B16: 1232 | C16: 13 | D16: 1244 | E16: 14 | F16: 1255 | K16: 0 | L16: 211 | P16: U= | Q16: =Q15/(LOG(Q4)/LOG(2)) -> 0.303743578 | V16: U1= | W16: =W15/(LOG(W4)/LOG(2)) -> 0.391578114 | AA16: U2= | AB16: =AB15/(LOG(AB4)/LOG(2)) -> 0.4002730753 | AF16: U3= | AG16: =AG15/(LOG(AG4)/LOG(2)) -> 0.3899202633 | AK16: U4= | AL16: =AL15/(LOG(AL4)/LOG(2)) -> 0.4239727288 | AP16: U5= | AQ16: =AQ15/(LOG(AQ4)/LOG(2)) -> 0.360698724 | AU16: U6= | AV16: =AV15/(LOG(AV4)/LOG(2)) -> 0.3734090969
A17: 22 | B17: 1358 | C17: 13 | D17: 1368 | E17: 14 | F17: 1373 | K17: 0 | L17: 211
A18: 22 | B18: 1496 | C18: 24 | D18: 1504 | E18: 14 | F18: 1517 | K18: 0 | L18: 221
A19: 22 | B19: 1619 | C19: 13 | D19: 1628 | E19: 14 | F19: 1632 | K19: 0 | L19: 211 | N19: Total Target Seq
A20: 11 | B20: 1758 | C20: 22 | D20: 1768 | E20: 14 | F20: 1787 | K20: 0 | L20: 121 | N20: =COUNTIF(L7:L178,G3) -> 5 | P20: 29 | Q20: 28 | R20: 29 | S20: 29 | T20: 28 | U20: 29
A21: 22 | B21: 1897 | C21: 13 | D21: 1914 | E21: 14 | F21: 1923 | K21: 0 | L21: 211 | P21: % of reinforcement given in 6 equal intervals based on number of trials
A22: 22 | B22: 2035 | C22: 13 | D22: 2047 | E22: 14 | F22: 2057 | K22: 0 | L22: 211 | P22: %_1 | Q22: %_2 | R22: %_3 | S22: %_4 | T22: %_5 | U22: %_6
A23: 22 | B23: 2159 | C23: 13 | D23: 2171 | E23: 14 | F23: 2179 | K23: 0 | L23: 211 | O23: target sequence | P23: =$G$3 -> 122 | Q23: =$G$3 -> 122 | R23: =$G$3 -> 122 | S23: =$G$3 -> 122 | T23: =$G$3 -> 122 | U23: =$G$3 -> 122
A24: 22 | B24: 2291 | C24: 24 | D24: 2293 | E24: 14 | F24: 2305 | K24: 0 | L24: 221 | O24: total reinforcement | P24: =U10 -> 0 | Q24: =Z10 -> 2 | R24: =AE10 -> 1 | S24: =AJ10 -> 1 | T24: =AO10 -> 0 | U24: =AT10 -> 1
A25: 22 | B25: 2408 | C25: 24 | D25: 2416 | E25: 23 | F25: 2424 | K25: 0 | L25: 222 | O25: % target
A26: 22 | B26: 2532 | C26: 24 | D26: 2543 | E26: 14 | F26: 2553 | K26: 0 | L26: 221 | O26: CCRF
A27: 22 | B27: 2670 | C27: 24 | D27: 2679 | E27: 14 | F27: 2692 | K27: 0 | L27: 221 | O27: % CCRf
A28: 22 | B28: 2803 | C28: 24 | D28: 2815 | E28: 14 | F28: 2825 | K28: 0 | L28: 221 | O28: average response rate | P28: =F35/P20 -> 131.8275862 | Q28: =(F63-F35)/Q20 -> 139.9642857 | R28: =(F92-F63)/R20 -> 147.9310345 | S28: =(F121-F92)/S20 -> 157.4482759 | T28: =(F149-F121)/T20 -> 130.8571429 | U28: =(F178-F149)/U20 -> 128.4482759
A29: 22 | B29: 2969 | C29: 24 | D29: 2974 | E29: 14 | F29: 2985 | K29: 0 | L29: 221
A30: 22 | B30: 3116 | C30: 13 | D30: 3129 | E30: 14 | F30: 3134 | K30: 0 | L30: 211
A31: 22 | B31: 3281 | C31: 24 | D31: 3287 | E31: 14 | F31: 3298 | K31: 0 | L31: 221
A32: 22 | B32: 3418 | C32: 13 | D32: 3430 | E32: 14 | F32: 3439 | K32: 0 | L32: 211
A33: 22 | B33: 3544 | C33: 13 | D33: 3555 | E33: 23 | F33: 3568 | K33: 0 | L33: 212
A34: 22 | B34: 3678 | C34: 24 | D34: 3696 | E34: 14 | F34: 3705 | K34: 0 | L34: 221
A35: 22 | B35: 3809 | C35: 24 | D35: 3814 | E35: 14 | F35: 3823 | K35: 0 | L35: 221
A36: 22 | B36: 3938 | C36: 13 | D36: 3947 | E36: 23 | F36: 3956 | K36: 0 | L36: 212
A37: 22 | B37: 4083 | C37: 24 | D37: 4088 | E37: 23 | F37: 4096 | K37: 0 | L37: 222
A38: 22 | B38: 4221 | C38: 24 | D38: 4226 | E38: 14 | F38: 4237 | K38: 0 | L38: 221
A39: 22 | B39: 4384 | C39: 13 | D39: 4396 | E39: 14 | F39: 4404 | K39: 0 | L39: 211
A40: 22 | B40: 4513 | C40: 24 | D40: 4518 | E40: 14 | F40: 4527 | K40: 0 | L40: 221
A41: 22 | B41: 4629 | C41: 13 | D41: 4648 | E41: 14 | F41: 4655 | K41: 0 | L41: 211
A42: 22 | B42: 4765 | C42: 13 | D42: 4776 | E42: 14 | F42: 4781 | K42: 0 | L42: 211
A43: 11 | B43: 4889 | C43: 22 | D43: 4898 | E43: 23 | F43: 4903 | K43: 0 | L43: 122
A44: 11 | B44: 5039 | C44: 11 | D44: 5056 | E44: 12 | F44: 5074 | K44: 0 | L44: 111
A45: 22 | B45: 5173 | C45: 13 | D45: 5184 | E45: 14 | F45: 5186 | K45: 0 | L45: 211
A46: 22 | B46: 5287 | C46: 24 | D46: 5305 | E46: 14 | F46: 5318 | K46: 0 | L46: 221
A47: 22 | B47: 5422 | C47: 24 | D47: 5435 | E47: 14 | F47: 5447 | K47: 0 | L47: 221
A48: 22 | B48: 5556 | C48: 13 | D48: 5565 | E48: 14 | F48: 5569 | K48: 0 | L48: 211
A49: 22 | B49: 5677 | C49: 13 | D49: 5687 | E49: 14 | F49: 5692 | K49: 0 | L49: 211
A50: 22 | B50: 5795 | C50: 24 | D50: 5801 | E50: 23 | F50: 5810 | K50: 0 | L50: 222
A51: 22 | B51: 5947 | C51: 24 | D51: 5951 | E51: 14 | F51: 5961 | K51: 0 | L51: 221
A52: 22 | B52: 6065 | C52: 24 | D52: 6074 | E52: 23 | F52: 6083 | K52: 0 | L52: 222
A53: 22 | B53: 6223 | C53: 13 | D53: 6241 | E53: 14 | F53: 6246 | K53: 0 | L53: 211
A54: 22 | B54: 6356 | C54: 24 | D54: 6361 | E54: 23 | F54: 6370 | K54: 0 | L54: 222
A55: 22 | B55: 6479 | C55: 24 | D55: 6489 | E55: 14 | F55: 6497 | K55: 0 | L55: 221
A56: 22 | B56: 6641 | C56: 24 | D56: 6646 | E56: 23 | F56: 6655 | K56: 0 | L56: 222
A57: 22 | B57: 6763 | C57: 24 | D57: 6769 | E57: 14 | F57: 6782 | K57: 0 | L57: 221
A58: 11 | B58: 6886 | C58: 22 | D58: 6897 | E58: 23 | F58: 6902 | K58: 0 | L58: 122
A59: 22 | B59: 7069 | C59: 13 | D59: 7092 | E59: 14 | F59: 7103 | K59: 0 | L59: 211
A60: 22 | B60: 7208 | C60: 13 | D60: 7219 | E60: 14 | F60: 7224 | K60: 0 | L60: 211
A61: 22 | B61: 7390 | C61: 24 | D61: 7398 | E61: 23 | F61: 7403 | K61: 0 | L61: 222
A62: 22 | B62: 7549 | C62: 24 | D62: 7554 | E62: 14 | F62: 7580 | K62: 0 | L62: 221
A63: 22 | B63: 7723 | C63: 24 | D63: 7737 | E63: 23 | F63: 7742 | K63: 0 | L63: 222
A64: 11 | B64: 7916 | C64: 11 | D64: 7924 | E64: 12 | F64: 7932 | K64: 0 | L64: 111
A65: 22 | B65: 8158 | C65: 13 | D65: 8171 | E65: 23 | F65: 8184 | K65: 0 | L65: 212
A66: 22 | B66: 8305 | C66: 13 | D66: 8321 | E66: 14 | F66: 8328 | K66: 0 | L66: 211
A67: 22 | B67: 8436 | C67: 13 | D67: 8446 | E67: 14 | F67: 8451 | K67: 0 | L67: 211
A68: 11 | B68: 8625 | C68: 11 | D68: 8637 | E68: 12 | F68: 8642 | K68: 0 | L68: 111
A69: 22 | B69: 8752 | C69: 13 | D69: 8761 | E69: 14 | F69: 8766 | K69: 0 | L69: 211
A70: 22 | B70: 8964 | C70: 24 | D70: 8969 | E70: 14 | F70: 8982 | K70: 0 | L70: 221
A71: 22 | B71: 9090 | C71: 13 | D71: 9102 | E71: 14 | F71: 9109 | K71: 0 | L71: 211
A72: 22 | B72: 9241 | C72: 24 | D72: 9248 | E72: 14 | F72: 9259 | K72: 0 | L72: 221
A73: 22 | B73: 9365 | C73: 24 | D73: 9371 | E73: 14 | F73: 9383 | K73: 0 | L73: 221
A74: 22 | B74: 9488 | C74: 13 | D74: 9499 | E74: 14 | F74: 9506 | K74: 0 | L74: 211
A75: 11 | B75: 9661 | C75: 11 | D75: 9669 | E75: 12 | F75: 9686 | K75: 0 | L75: 111
A76: 22 | B76: 9792 | C76: 13 | D76: 9804 | E76: 14 | F76: 9828 | K76: 0 | L76: 211
A77: 22 | B77: 9930 | C77: 24 | D77: 9938 | E77: 14 | F77: 9947 | K77: 0 | L77: 221
A78: 22 | B78: 10052 | C78: 13 | D78: 10062 | E78: 14 | F78: 10067 | K78: 0 | L78: 211
A79: 22 | B79: 10190 | C79: 13 | D79: 10207 | E79: 14 | F79: 10215 | K79: 0 | L79: 211
A80: 22 | B80: 10340 | C80: 13 | D80: 10354 | E80: 14 | F80: 10359 | K80: 0 | L80: 211
A81: 22 | B81: 10465 | C81: 13 | D81: 10474 | E81: 14 | F81: 10479 | K81: 0 | L81: 211
A82: 22 | B82: 10662 | C82: 24 | D82: 10667 | E82: 23 | F82: 10672 | K82: 0 | L82: 222
A83: 22 | B83: 10779 | C83: 24 | D83: 10784 | E83: 23 | F83: 10792 | K83: 0 | L83: 222
A84: 22 | B84: 10908 | C84: 24 | D84: 10928 | E84: 14 | F84: 10941 | K84: 0 | L84: 221
A85: 22 | B85: 11056 | C85: 13 | D85: 11066 | E85: 14 | F85: 11071 | K85: 0 | L85: 211
A86: 22 | B86: 11177 | C86: 13 | D86: 11189 | E86: 14 | F86: 11193 | K86: 0 | L86: 211
A87: 11 | B87: 11327 | C87: 11 | D87: 11335 | E87: 12 | F87: 11344 | K87: 0 | L87: 111
A88: 11 | B88: 11446 | C88: 22 | D88: 11455 | E88: 23 | F88: 11460 | K88: 0 | L88: 122
A89: 22 | B89: 11578 | C89: 24 | D89: 11603 | E89: 14 | F89: 11615 | K89: 0 | L89: 221
A90: 22 | B90: 11757 | C90: 24 | D90: 11762 | E90: 23 | F90: 11768 | K90: 0 | L90: 222
A91: 22 | B91: 11889 | C91: 13 | D91: 11902 | E91: 14 | F91: 11910 | K91: 0 | L91: 211
A92: 22 | B92: 12012 | C92: 13 | D92: 12026 | E92: 14 | F92: 12032 | K92: 0 | L92: 211
A93: 11 | B93: 12306 | C93: 11 | D93: 12315 | E93: 12 | F93: 12326 | K93: 0 | L93: 111
A94: 22 | B94: 12441 | C94: 13 | D94: 12453 | E94: 14 | F94: 12460 | K94: 0 | L94: 211
A95: 11 | B95: 12563 | C95: 22 | D95: 12575 | E95: 23 | F95: 12581 | K95: 0 | L95: 122
A96: 22 | B96: 12702 | C96: 13 | D96: 12715 | E96: 14 | F96: 12722 | K96: 0 | L96: 211
A97: 22 | B97: 12873 | C97: 24 | D97: 12882 | E97: 14 | F97: 12902 | K97: 0 | L97: 221
A98: 11 | B98: 13021 | C98: 11 | D98: 13032 | E98: 12 | F98: 13039 | K98: 0 | L98: 111
A99: 22 | B99: 13143 | C99: 13 | D99: 13153 | E99: 14 | F99: 13158 | K99: 0 | L99: 211
A100: 22 | B100: 13741 | C100: 24 | D100: 13747 | E100: 23 | F100: 13753 | K100: 0 | L100: 222
A101: 22 | B101: 13861 | C101: 24 | D101: 13867 | E101: 23 | F101: 13875 | K101: 0 | L101: 222
A102: 11 | B102: 14026 | C102: 11 | D102: 14035 | E102: 12 | F102: 14045 | K102: 0 | L102: 111
A103: 11 | B103: 14173 | C103: 11 | D103: 14180 | E103: 12 | F103: 14188 | K103: 0 | L103: 111
A104: 22 | B104: 14378 | C104: 24 | D104: 14383 | E104: 23 | F104: 14389 | K104: 0 | L104: 222
A105: 22 | B105: 14500 | C105: 13 | D105: 14511 | E105: 14 | F105: 14516 | K105: 0 | L105: 211
A106: 11 | B106: 14620 | C106: 11 | D106: 14625 | E106: 12 | F106: 14631 | K106: 0 | L106: 111
A107: 11 | B107: 14763 | C107: 11 | D107: 14768 | E107: 12 | F107: 14776 | K107: 0 | L107: 111
A108: 22 | B108: 14879 | C108: 24 | D108: 14887 | E108: 14 | F108: 14901 | K108: 0 | L108: 221
A109: 22 | B109: 15008 | C109: 13 | D109: 15020 | E109: 14 | F109: 15028 | K109: 0 | L109: 211
A110: 22 | B110: 15131 | C110: 13 | D110: 15141 | E110: 14 | F110: 15146 | K110: 0 | L110: 211
A111: 22 | B111: 15269 | C111: 24 | D111: 15281 | E111: 14 | F111: 15291 | K111: 0 | L111: 221
A112: 11 | B112: 15413 | C112: 11 | D112: 15421 | E112: 12 | F112: 15426 | K112: 0 | L112: 111
A113: 22 | B113: 15534 | C113: 13 | D113: 15547 | E113: 14 | F113: 15555 | K113: 0 | L113: 211
A114: 11 | B114: 15664 | C114: 11 | D114: 15671 | E114: 21 | F114: 15681 | K114: 0 | L114: 112
A115: 22 | B115: 15783 | C115: 24 | D115: 15790 | E115: 14 | F115: 15802 | K115: 0 | L115: 221
A116: 22 | B116: 15904 | C116: 13 | D116: 15915 | E116: 14 | F116: 15919 | K116: 0 | L116: 211
A117: 22 | B117: 16022 | C117: 13 | D117: 16034 | E117: 14 | F117: 16039 | K117: 0 | L117: 211
A118: 22 | B118: 16164 | C118: 24 | D118: 16177 | E118: 14 | F118: 16187 | K118: 0 | L118: 221
A119: 22 | B119: 16289 | C119: 24 | D119: 16298 | E119: 14 | F119: 16308 | K119: 0 | L119: 221
A120: 22 | B120: 16411 | C120: 24 | D120: 16428 | E120: 14 | F120: 16438 | K120: 0 | L120: 221
A121: 22 | B121: 16567 | C121: 24 | D121: 16583 | E121: 14 | F121: 16598 | K121: 0 | L121: 221
A122: 22 | B122: 16705 | C122: 24 | D122: 16715 | E122: 14 | F122: 16730 | K122: 0 | L122: 221
A123: 22 | B123: 16835 | C123: 13 | D123: 16847 | E123: 14 | F123: 16852 | K123: 0 | L123: 211
A124: 22 | B124: 16955 | C124: 24 | D124: 16967 | E124: 14 | F124: 16976 | K124: 0 | L124: 221
A125: 22 | B125: 17124 | C125: 24 | D125: 17132 | E125: 14 | F125: 17145 | K125: 0 | L125: 221
A126: 22 | B126: 17270 | C126: 13 | D126: 17282 | E126: 14 | F126: 17287 | K126: 0 | L126: 211
A127: 11 | B127: 17448 | C127: 11 | D127: 17455 | E127: 21 | F127: 17468 | K127: 0 | L127: 112
A128: 22 | B128: 17569 | C128: 13 | D128: 17580 | E128: 14 | F128: 17587 | K128: 0 | L128: 211
A129: 22 | B129: 17693 | C129: 24 | D129: 17703 | E129: 23 | F129: 17708 | K129: 0 | L129: 222
A130: 22 | B130: 17813 | C130: 24 | D130: 17821 | E130: 23 | F130: 17826 | K130: 0 | L130: 222
A131: 22 | B131: 17927 | C131: 13 | D131: 17945 | E131: 14 | F131: 17950 | K131: 0 | L131: 211
A132: 22 | B132: 18054 | C132: 13 | D132: 18070 | E132: 14 | F132: 18075 | K132: 0 | L132: 211
A133: 22 | B133: 18183 | C133: 24 | D133: 18197 | E133: 23 | F133: 18202 | K133: 0 | L133: 222
A134: 22 | B134: 18312 | C134: 24 | D134: 18318 | E134: 14 | F134: 18332 | K134: 0 | L134: 221
A135: 22 | B135: 18441 | C135: 24 | D135: 18446 | E135: 14 | F135: 18459 | K135: 0 | L135: 221
A136: 22 | B136: 18568 | C136: 24 | D136: 18573 | E136: 23 | F136: 18578 | K136: 0 | L136: 222
A137: 22 | B137: 18690 | C137: 24 | D137: 18697 | E137: 23 | F137: 18702 | K137: 0 | L137: 222
A138: 22 | B138: 18809 | C138: 24 | D138: 18818 | E138: 14 | F138: 18832 | K138: 0 | L138: 221
A139: 22 | B139: 18955 | C139: 24 | D139: 18960 | E139: 23 | F139: 18965 | K139: 0 | L139: 222
A140: 22 | B140: 19076 | C140: 24 | D140: 19080 | E140: 14 | F140: 19095 | K140: 0 | L140: 221
A141: 22 | B141: 19203 | C141: 24 | D141: 19209 | E141: 23 | F141: 19216 | K141: 0 | L141: 222
A142: 22 | B142: 19325 | C142: 13 | D142: 19340 | E142: 14 | F142: 19350 | K142: 0 | L142: 211
A143: 22 | B143: 19467 | C143: 24 | D143: 19472 | E143: 14 | F143: 19483 | K143: 0 | L143: 221
A144: 22 | B144: 19591 | C144: 24 | D144: 19597 | E144: 23 | F144: 19602 | K144: 0 | L144: 222
A145: 22 | B145: 19707 | C145: 24 | D145: 19712 | E145: 23 | F145: 19717 | K145: 0 | L145: 222
A146: 22 | B146: 19856 | C146: 24 | D146: 19861 | E146: 23 | F146: 19869 | K146: 0 | L146: 222
A147: 22 | B147: 19975 | C147: 13 | D147: 19988 | E147: 14 | F147: 19996 | K147: 0 | L147: 211
A148: 22 | B148: 20112 | C148: 24 | D148: 20117 | E148: 23 | F148: 20122 | K148: 0 | L148: 222
A149: 22 | B149: 20242 | C149: 13 | D149: 20253 | E149: 14 | F149: 20262 | K149: 0 | L149: 211
A150: 22 | B150: 20377 | C150: 13 | D150: 20396 | E150: 14 | F150: 20404 | K150: 0 | L150: 211
A151: 22 | B151: 20514 | C151: 13 | D151: 20528 | E151: 14 | F151: 20536 | K151: 0 | L151: 211
A152: 22 | B152: 20641 | C152: 24 | D152: 20664 | E152: 23 | F152: 20669 | K152: 0 | L152: 222
A153: 11 | B153: 20872 | C153: 11 | D153: 20883 | E153: 21 | F153: 20896 | K153: 0 | L153: 112
A154: 22 | B154: 20993 | C154: 13 | D154: 21003 | E154: 14 | F154: 21010 | K154: 0 | L154: 211
A155: 11 | B155: 21112 | C155: 22 | D155: 21120 | E155: 23 | F155: 21125 | K155: 0 | L155: 122
A156: 22 | B156: 21233 | C156: 13 | D156: 21247 | E156: 14 | F156: 21258 | K156: 0 | L156: 211
A157: 22 | B157: 21364 | C157: 13 | D157: 21377 | E157: 14 | F157: 21385 | K157: 0 | L157: 211
A158: 22 | B158: 21497 | C158: 13 | D158: 21509 | E158: 23 | F158: 21520 | K158: 0 | L158: 212
A159: 22 | B159: 21630 | C159: 24 | D159: 21636 | E159: 14 | F159: 21644 | K159: 0 | L159: 221
A160: 22 | B160: 21768 | C160: 24 | D160: 21776 | E160: 14 | F160: 21785 | K160: 0 | L160: 221
A161: 11 | B161: 21884 | C161: 22 | D161: 21897 | E161: 14 | F161: 21910 | K161: 0 | L161: 121
A162: 22 | B162: 22020 | C162: 13 | D162: 22029 | E162: 14 | F162: 22034 | K162: 0 | L162: 211
A163: 22 | B163: 22134 | C163: 24 | D163: 22139 | E163: 23 | F163: 22144 | K163: 0 | L163: 222
A164: 11 | B164: 22268 | C164: 11 | D164: 22276 | E164: 12 | F164: 22283 | K164: 0 | L164: 111
A165: 22 | B165: 22383 | C165: 13 | D165: 22393 | E165: 14 | F165: 22397 | K165: 0 | L165: 211
A166: 22 | B166: 22513 | C166: 24 | D166: 22534 | E166: 23 | F166: 22538 | K166: 0 | L166: 222
A167: 22 | B167: 22636 | C167: 13 | D167: 22647 | E167: 14 | F167: 22654 | K167: 0 | L167: 211
A168: 22 | B168: 22762 | C168: 13 | D168: 22771 | E168: 14 | F168: 22776 | K168: 0 | L168: 211
A169: 11 | B169: 22902 | C169: 11 | D169: 22909 | E169: 12 | F169: 22916 | K169: 0 | L169: 111
A170: 22 | B170: 23017 | C170: 13 | D170: 23026 | E170: 14 | F170: 23031 | K170: 0 | L170: 211
A171: 22 | B171: 23132 | C171: 13 | D171: 23140 | E171: 14 | F171: 23144 | K171: 0 | L171: 211
A172: 22 | B172: 23247 | C172: 13 | D172: 23260 | E172: 14 | F172: 23267 | K172: 0 | L172: 211
A173: 22 | B173: 23373 | C173: 13 | D173: 23382 | E173: 14 | F173: 23387 | K173: 0 | L173: 211
A174: 22 | B174: 23490 | C174: 13 | D174: 23501 | E174: 14 | F174: 23506 | K174: 0 | L174: 211
A175: 22 | B175: 23608 | C175: 13 | D175: 23621 | E175: 14 | F175: 23625 | K175: 0 | L175: 211
A176: 22 | B176: 23726 | C176: 13 | D176: 23738 | E176: 14 | F176: 23745 | K176: 0 | L176: 211
A177: 22 | B177: 23845 | C177: 13 | D177: 23858 | E177: 14 | F177: 23863 | K177: 0 | L177: 211
A178: 22 | B178: 23973 | C178: 13 | D178: 23983 | E178: 14 | F178: 23987 | L178: 211

Sheet !2011-06-27_09h18m.Subject 53
A1: Report for:!2011-06-27_09h18m.Subject 53
A2: Date | B2: 2011-06-27 | F2: Group | G2: var phase 2
A3: Hen | B3: 53 | F3: Correct Sequence | G3: =Start!J2 -> 122 | P3: Total Sequences in Data | Q3: =4994-COUNTBLANK(L7:L5000) -> 170 | V3: Total Sequences in Block Data | W3: =COUNTA(L7:L34) -> 28 | AA3: Total Sequences in Block Data | AB3: =COUNTA(L35:L63) -> 29 | AF3: Total Sequences in Block Data | AG3: =COUNTA(L64:L91) -> 28 | AK3: Total Sequences in Block Data | AL3: =COUNTA(L92:L119) -> 28 | AP3: Total Sequences in Block Data | AQ3: =COUNTA(L120:L148) -> 29 | AU3: Total Sequences in Block Data | AV3: =COUNTA(L149:L176) -> 28
A4: Program | B4: one | P4: Total Sequences in Summary | Q4: =SUM(O7:O14) -> 170 | V4: Total Sequences in Block Summary | W4: =SUM(U7:U14) -> 28 | AA4: Total Sequences in Block Summary | AB4: =SUM(Z7:Z14) -> 29 | AF4: Total Sequences in Block Summary | AG4: =SUM(AE7:AE14) -> 28 | AK4: Total Sequences in Block Summary | AL4: =SUM(AJ7:AJ14) -> 28 | AP4: Total Sequences in Block Summary | AQ4: =SUM(AO7:AO14) -> 29 | AU4: Total Sequences in Block Summary | AV4: =SUM(AT7:AT14) -> 28
T5: Block 1 | Y5: Block 2 | AD5: Block 3 | AI5: Block 4 | AN5: Block 5 | AS5: Block 6
A6: Sequence Component 1 | B6: Time 1 | C6: Sequence Component 2 | D6: Time 2 | E6: Sequence Component 3 | F6: Time 3 | G6: Sequence Component 4 | H6: Time 4 | I6: Sequence Component 5 | J6: Time 5 | K6: Correct? 0=No 1=Yes | L6: Sequence | N6: Frequency | P6: Relative Frequency | Q6: Variability | T6: Frequency | V6: Relative Frequency | W6: Variability | Y6: Frequency | AA6: Relative Frequency | AB6: Variability | AD6: Frequency | AF6: Relative Frequency | AG6: Variability | AI6: Frequency | AK6: Relative Frequency | AL6: Variability | AN6: Frequency | AP6: Relative Frequency | AQ6: Variability | AS6: Frequency | AU6: Relative Frequency | AV6: Variability
A7: 22 | B7: 59 | C7: 13 | D7: 72 | E7: 23 | F7: 85 | K7: 0 | L7: 212 | N7: 111 | O7: =COUNTIF($L$7:$L$500,N7) -> 22 | P7: =O7/$Q$4 -> 0.1294117647 | Q7: =IF(P7=0,0,(P7*((LOG(P7))/LOG(2)))) -> -0.3817594411 | T7: =N7 -> 111 | U7: =COUNTIF(L7:L34,T7) -> 2 | V7: =U7/(W4-U10) -> 0.07142857143 | W7: =IF(V7=0,0,(V7*((LOG(V7))/LOG(2)))) -> -0.271953923 | Y7: =N7 -> 111 | Z7: =COUNTIF(L35:L63,Y7) -> 5 | AA7: =Z7/(AB4-Z10) -> 0.1785714286 | AB7: =IF(AA7=0,0,(AA7*((LOG(AA7))/LOG(2)))) -> -0.4438262191 | AD7: =N7 -> 111 | AE7: =COUNTIF(L64:L91,AD7) -> 7 | AF7: =AE7/(AG4-AE10) -> 0.2592592593 | AG7: =IF(AF7=0,0,(AF7*((LOG(AF7))/LOG(2)))) -> -0.5049158541 | AI7: =N7 -> 111 | AJ7: =COUNTIF(L92:L119,AI7) -> 6 | AK7: =AJ7/(AL4-AJ10) -> 0.2307692308 | AL7: =IF(AK7=0,0,(AK7*((LOG(AK7))/LOG(2)))) -> -0.4881870502 | AN7: =N7 -> 111 | AO7: =COUNTIF(L120:L148,AN7) -> 1 | AP7: =AO7/(AQ4-AO10) -> 0.03703703704 | AQ7: =IF(AP7=0,0,(AP7*((LOG(AP7))/LOG(2)))) -> -0.1761069445 | AS7: =N7 -> 111 | AT7: =COUNTIF(L149:L176,AS7) -> 1 | AU7: =AT7/(AV4-AT10) -> 0.05 | AV7: =IF(AU7=0,0,(AU7*((LOG(AU7))/LOG(2)))) -> -0.2160964047
A8: 22 | B8: 234 | C8: 13 | D8: 249 | E8: 14 | F8: 258 | K8: 0 | L8: 211 | N8: 112 | O8: =COUNTIF($L$7:$L$500,N8) -> 11 | P8: =O8/$Q$4 -> 0.06470588235 | Q8: =IF(P8=0,0,(P8*((LOG(P8))/LOG(2)))) -> -0.2555856029 | T8: =N8 -> 112 | U8: =COUNTIF(L7:L34,T8) -> 0 | V8: =U8/(W4-U10) -> 0 | W8: =IF(V8=0,0,(V8*((LOG(V8))/LOG(2)))) -> 0 | Y8: =N8 -> 112 | Z8: =COUNTIF(L35:L63,Y8) -> 0 | AA8: =Z8/(AB4-Z10) -> 0 | AB8: =IF(AA8=0,0,(AA8*((LOG(AA8))/LOG(2)))) -> 0 | AD8: =N8 -> 112 | AE8: =COUNTIF(L64:L91,AD8) -> 1 | AF8: =AE8/(AG4-AE10) -> 0.03703703704 | AG8: =IF(AF8=0,0,(AF8*((LOG(AF8))/LOG(2)))) -> -0.1761069445 | AI8: =N8 -> 112 | AJ8: =COUNTIF(L92:L119,AI8) -> 2 | AK8: =AJ8/(AL4-AJ10) -> 0.07692307692 | AL8: =IF(AK8=0,0,(AK8*((LOG(AK8))/LOG(2)))) -> -0.2846492091 | AN8: =N8 -> 112 | AO8: =COUNTIF(L120:L148,AN8) -> 5 | AP8: =AO8/(AQ4-AO10) -> 0.1851851852 | AQ8: =IF(AP8=0,0,(AP8*((LOG(AP8))/LOG(2)))) -> -0.4505480384 | AS8: =N8 -> 112 | AT8: =COUNTIF(L149:L176,AS8) -> 3 | AU8: =AT8/(AV4-AT10) -> 0.15 | AV8: =IF(AU8=0,0,(AU8*((LOG(AU8))/LOG(2)))) -> -0.4105448391
A9: 22 | B9: 401 | C9: 13 | D9: 418 | E9: 14 | F9: 428 | K9: 0 | L9: 211 | N9: 121 | O9: =COUNTIF($L$7:$L$500,N9) -> 1 | P9: =O9/$Q$4 -> 0.005882352941 | Q9: =IF(P9=0,0,(P9*((LOG(P9))/LOG(2)))) -> -0.04358465257 | T9: =N9 -> 121 | U9: =COUNTIF(L7:L34,T9) -> 0 | V9: =U9/(W4-U10) -> 0 | W9: =IF(V9=0,0,(V9*((LOG(V9))/LOG(2)))) -> 0 | Y9: =N9 -> 121 | Z9: =COUNTIF(L35:L63,Y9) -> 0 | AA9: =Z9/(AB4-Z10) -> 0 | AB9: =IF(AA9=0,0,(AA9*((LOG(AA9))/LOG(2)))) -> 0 | AD9: =N9 -> 121 | AE9: =COUNTIF(L64:L91,AD9) -> 0 | AF9: =AE9/(AG4-AE10) -> 0 | AG9: =IF(AF9=0,0,(AF9*((LOG(AF9))/LOG(2)))) -> 0 | AI9: =N9 -> 121 | AJ9: =COUNTIF(L92:L119,AI9) -> 0 | AK9: =AJ9/(AL4-AJ10) -> 0 | AL9: =IF(AK9=0,0,(AK9*((LOG(AK9))/LOG(2)))) -> 0 | AN9: =N9 -> 121 | AO9: =COUNTIF(L120:L148,AN9) -> 0 | AP9: =AO9/(AQ4-AO10) -> 0 | AQ9: =IF(AP9=0,0,(AP9*((LOG(AP9))/LOG(2)))) -> 0 | AS9: =N9 -> 121 | AT9: =COUNTIF(L149:L176,AS9) -> 1 | AU9: =AT9/(AV4-AT10) -> 0.05 | AV9: =IF(AU9=0,0,(AU9*((LOG(AU9))/LOG(2)))) -> -0.2160964047
A10: 22 | B10: 561 | C10: 24 | D10: 586 | E10: 14 | F10: 599 | K10: 0 | L10: 221 | N10: 122 | O10: =COUNTIF($L$7:$L$500,N10) -> 14 | P10: =O10/$Q$4 -> 0.08235294118 | Q10: =IF(P10=0,0,(P10*((LOG(P10))/LOG(2)))) -> -0.29663826 | T10: =N10 -> 122 | U10: =COUNTIF(L7:L34,T10) -> 0 | Y10: =N10 -> 122 | Z10: =COUNTIF(L35:L63,Y10) -> 1 | AD10: =N10 -> 122 | AE10: =COUNTIF(L64:L91,AD10) -> 1 | AI10: =N10 -> 122 | AJ10: =COUNTIF(L92:L119,AI10) -> 2 | AN10: =N10 -> 122 | AO10: =COUNTIF(L120:L148,AN10) -> 2 | AS10: =N10 -> 122 | AT10: =COUNTIF(L149:L176,AS10) -> 8
A11: 22 | B11: 701 | C11: 13 | D11: 714 | E11: 14 | F11: 723 | K11: 0 | L11: 211 | N11: 211 | O11: =COUNTIF($L$7:$L$500,N11) -> 33 | P11: =O11/$Q$4 -> 0.1941176471 | Q11: =IF(P11=0,0,(P11*((LOG(P11))/LOG(2)))) -> -0.4590876174 | T11: =N11 -> 211 | U11: =COUNTIF(L7:L34,T11) -> 11 | V11: =U11/(W4-U10) -> 0.3928571429 | W11: =IF(V11=0,0,(V11*((LOG(V11))/LOG(2)))) -> -0.5295412978 | Y11: =N11 -> 211 | Z11: =COUNTIF(L35:L63,Y11) -> 10 | AA11: =Z11/(AB4-Z10) -> 0.3571428571 | AB11: =IF(AA11=0,0,(AA11*((LOG(AA11))/LOG(2)))) -> -0.5305095811 | AD11: =N11 -> 211 | AE11: =COUNTIF(L64:L91,AD11) -> 4 | AF11: =AE11/(AG4-AE10) -> 0.1481481481 | AG11: =IF(AF11=0,0,(AF11*((LOG(AF11))/LOG(2)))) -> -0.4081314818 | AI11: =N11 -> 211 | AJ11: =COUNTIF(L92:L119,AI11) -> 2 | AK11: =AJ11/(AL4-AJ10) -> 0.07692307692 | AL11: =IF(AK11=0,0,(AK11*((LOG(AK11))/LOG(2)))) -> -0.2846492091 | AN11: =N11 -> 211 | AO11: =COUNTIF(L120:L148,AN11) -> 5 | AP11: =AO11/(AQ4-AO10) -> 0.1851851852 | AQ11: =IF(AP11=0,0,(AP11*((LOG(AP11))/LOG(2)))) -> -0.4505480384 | AS11: =N11 -> 211 | AT11: =COUNTIF(L149:L176,AS11) -> 1 | AU11: =AT11/(AV4-AT10) -> 0.05 | AV11: =IF(AU11=0,0,(AU11*((LOG(AU11))/LOG(2)))) -> -0.2160964047
A12: 22 | B12: 859 | C12: 13 | D12: 871 | E12: 14 | F12: 876 | K12: 0 | L12: 211 | N12: 212 | O12: =COUNTIF($L$7:$L$500,N12) -> 4 | P12: =O12/$Q$4 -> 0.02352941176 | Q12: =IF(P12=0,0,(P12*((LOG(P12))/LOG(2)))) -> -0.1272797867 | T12: =N12 -> 212 | U12: =COUNTIF(L7:L34,T12) -> 2 | V12: =U12/(W4-U10) -> 0.07142857143 | W12: =IF(V12=0,0,(V12*((LOG(V12))/LOG(2)))) -> -0.271953923 | Y12: =N12 -> 212 | Z12: =COUNTIF(L35:L63,Y12) -> 1 | AA12: =Z12/(AB4-Z10) -> 0.03571428571 | AB12: =IF(AA12=0,0,(AA12*((LOG(AA12))/LOG(2)))) -> -0.1716912472 | AD12: =N12 -> 212 | AE12: =COUNTIF(L64:L91,AD12) -> 0 | AF12: =AE12/(AG4-AE10) -> 0 | AG12: =IF(AF12=0,0,(AF12*((LOG(AF12))/LOG(2)))) -> 0 | AI12: =N12 -> 212 | AJ12: =COUNTIF(L92:L119,AI12) -> 0 | AK12: =AJ12/(AL4-AJ10) -> 0 | AL12: =IF(AK12=0,0,(AK12*((LOG(AK12))/LOG(2)))) -> 0 | AN12: =N12 -> 212 | AO12: =COUNTIF(L120:L148,AN12) -> 0 | AP12: =AO12/(AQ4-AO10) -> 0 | AQ12: =IF(AP12=0,0,(AP12*((LOG(AP12))/LOG(2)))) -> 0 | AS12: =N12 -> 212 | AT12: =COUNTIF(L149:L176,AS12) -> 1 | AU12: =AT12/(AV4-AT10) -> 0.05 | AV12: =IF(AU12=0,0,(AU12*((LOG(AU12))/LOG(2)))) -> -0.2160964047
A13: 22 | B13: 983 | C13: 24 | D13: 993 | E13: 23 | F13: 1006 | K13: 0 | L13: 222 | N13: 221 | O13: =COUNTIF($L$7:$L$500,N13) -> 36 | P13: =O13/$Q$4 -> 0.2117647059 | Q13: =IF(P13=0,0,(P13*((LOG(P13))/LOG(2)))) -> -0.474239845 | T13: =N13 -> 221 | U13: =COUNTIF(L7:L34,T13) -> 7 | V13: =U13/(W4-U10) -> 0.25 | W13: =IF(V13=0,0,(V13*((LOG(V13))/LOG(2)))) -> -0.5 | Y13: =N13 -> 221 | Z13: =COUNTIF(L35:L63,Y13) -> 6 | AA13: =Z13/(AB4-Z10) -> 0.2142857143 | AB13: =IF(AA13=0,0,(AA13*((LOG(AA13))/LOG(2)))) -> -0.4762269474 | AD13: =N13 -> 221 | AE13: =COUNTIF(L64:L91,AD13) -> 9 | AF13: =AE13/(AG4-AE10) -> 0.3333333333 | AG13: =IF(AF13=0,0,(AF13*((LOG(AF13))/LOG(2)))) -> -0.5283208336 | AI13: =N13 -> 221 | AJ13: =COUNTIF(L92:L119,AI13) -> 6 | AK13: =AJ13/(AL4-AJ10) -> 0.2307692308 | AL13: =IF(AK13=0,0,(AK13*((LOG(AK13))/LOG(2)))) -> -0.4881870502 | AN13: =N13 -> 221 | AO13: =COUNTIF(L120:L148,AN13) -> 3 | AP13: =AO13/(AQ4-AO10) -> 0.1111111111 | AQ13: =IF(AP13=0,0,(AP13*((LOG(AP13))/LOG(2)))) -> -0.352213889 | AS13: =N13 -> 221 | AT13: =COUNTIF(L149:L176,AS13) -> 5 | AU13: =AT13/(AV4-AT10) -> 0.25 | AV13: =IF(AU13=0,0,(AU13*((LOG(AU13))/LOG(2)))) -> -0.5
A14: 22 | B14: 1111 | C14: 13 | D14: 1123 | E14: 14 | F14: 1131 | K14: 0 | L14: 211 | N14: 222 | O14: =COUNTIF($L$7:$L$500,N14) -> 49 | P14: =O14/$Q$4 -> 0.2882352941 | Q14: =IF(P14=0,0,(P14*((LOG(P14))/LOG(2)))) -> -0.5172904324 | T14: =N14 -> 222 | U14: =COUNTIF(L7:L34,T14) -> 6 | V14: =U14/(W4-U10) -> 0.2142857143 | W14: =IF(V14=0,0,(V14*((LOG(V14))/LOG(2)))) -> -0.4762269474 | Y14: =N14 -> 222 | Z14: =COUNTIF(L35:L63,Y14) -> 6 | AA14: =Z14/(AB4-Z10) -> 0.2142857143 | AB14: =IF(AA14=0,0,(AA14*((LOG(AA14))/LOG(2)))) -> -0.4762269474 | AD14: =N14 -> 222 | AE14: =COUNTIF(L64:L91,AD14) -> 6 | AF14: =AE14/(AG4-AE10) -> 0.2222222222 | AG14: =IF(AF14=0,0,(AF14*((LOG(AF14))/LOG(2)))) -> -0.4822055559 | AI14: =N14 -> 222 | AJ14: =COUNTIF(L92:L119,AI14) -> 10 | AK14: =AJ14/(AL4-AJ10) -> 0.3846153846 | AL14: =IF(AK14=0,0,(AK14*((LOG(AK14))/LOG(2)))) -> -0.5301967782 | AN14: =N14 -> 222 | AO14: =COUNTIF(L120:L148,AN14) -> 13 | AP14: =AO14/(AQ4-AO10) -> 0.4814814815 | AQ14: =IF(AP14=0,0,(AP14*((LOG(AP14))/LOG(2)))) -> -0.5076970812 | AS14: =N14 -> 222 | AT14: =COUNTIF(L149:L176,AS14) -> 8 | AU14: =AT14/(AV4-AT10) -> 0.4 | AV14: =IF(AU14=0,0,(AU14*((LOG(AU14))/LOG(2)))) -> -0.528771238
A15: 22 | B15: 1245 | C15: 13 | D15: 1261 | E15: 14 | F15: 1270 | K15: 0 | L15: 211 | P15: =SUM(P7:P14) -> 1 | Q15: =-SUM(Q7:Q14) -> 2.555465638 | V15: =SUM(V7:V14) -> 1 | W15: =-SUM(W7:W14) -> 2.049676091 | AA15: =SUM(AA7:AA14) -> 1 | AB15: =-SUM(AB7:AB14) -> 2.098480942 | AF15: =SUM(AF7:AF14) -> 1 | AG15: =-SUM(AG7:AG14) -> 2.09968067 | AK15: =SUM(AK7:AK14) -> 1 | AL15: =-SUM(AL7:AL14) -> 2.075869297 | AP15: =SUM(AP7:AP14) -> 1 | AQ15: =-SUM(AQ7:AQ14) -> 1.937113992 | AU15: =SUM(AU7:AU14) -> 1 | AV15: =-SUM(AV7:AV14) -> 2.303701696
A16: 22 | B16: 1380 | C16: 24 | D16: 1386 | E16: 14 | F16: 1396 | K16: 0 | L16: 221 | P16: U= | Q16: =Q15/(LOG(Q4)/LOG(2)) -> 0.3448955063 | V16: U1= | W16: =W15/(LOG(W4)/LOG(2)) -> 0.4263625475 | AA16: U2= | AB16: =AB15/(LOG(AB4)/LOG(2)) -> 0.431965655 | AF16: U3= | AG16: =AG15/(LOG(AG4)/LOG(2)) -> 0.4367642298 | AK16: U4= | AL16: =AL15/(LOG(AL4)/LOG(2)) -> 0.4318111166 | AP16: U5= | AQ16: =AQ15/(LOG(AQ4)/LOG(2)) -> 0.3987487793 | AU16: U6= | AV16: =AV15/(LOG(AV4)/LOG(2)) -> 0.4792035815
A17: 22 | B17: 1526 | C17: 13 | D17: 1539 | E17: 14 | F17: 1548 | K17: 0 | L17: 211
A18: 22 | B18: 1662 | C18: 24 | D18: 1677 | E18: 23 | F18: 1685 | K18: 0 | L18: 222
A19: 22 | B19: 1791 | C19: 24 | D19: 1800 | E19: 23 | F19: 1805 | K19: 0 | L19: 222 | N19: Total Target Seq
A20: 22 | B20: 1933 | C20: 13 | D20: 1947 | E20: 14 | F20: 1956 | K20: 0 | L20: 211 | N20: =COUNTIF(L7:L176,G3) -> 14 | P20: 28 | Q20: 29 | R20: 28 | S20: 28 | T20: 29 | U20: 28
A21: 22 | B21: 2069 | C21: 24 | D21: 2101 | E21: 14 | F21: 2114 | K21: 0 | L21: 221 | P21: % of reinforcement given in 6 equal intervals based on number of trials
A22: 22 | B22: 2218 | C22: 24 | D22: 2236 | E22: 23 | F22: 2251 | K22: 0 | L22: 222 | P22: %_1 | Q22: %_2 | R22: %_3 | S22: %_4 | T22: %_5 | U22: %_6
A23: 22 | B23: 2364 | C23: 24 | D23: 2383 | E23: 23 | F23: 2391 | K23: 0 | L23: 222 | O23: target sequence | P23: =$G$3 -> 122 | Q23: =$G$3 -> 122 | R23: =$G$3 -> 122 | S23: =$G$3 -> 122 | T23: =$G$3 -> 122 | U23: =$G$3 -> 122
A24: 22 | B24: 2526 | C24: 13 | D24: 2539 | E24: 14 | F24: 2548 | K24: 0 | L24: 211 | O24: total reinforcement | P24: =U10 -> 0 | Q24: =Z10 -> 1 | R24: =AE10 -> 1 | S24: =AJ10 -> 2 | T24: =AO10 -> 2 | U24: =AT10 -> 8
A25: 22 | B25: 2673 | C25: 13 | D25: 2691 | E25: 14 | F25: 2712 | K25: 0 | L25: 211 | O25: % target
A26: 22 | B26: 2817 | C26: 24 | D26: 2826 | E26: 14 | F26: 2839 | K26: 0 | L26: 221 | O26: CCRF
A27: 22 | B27: 2953 | C27: 24 | D27: 2963 | E27: 14 | F27: 2980 | K27: 0 | L27: 221 | O27: % CCRf
A28: 22 | B28: 3085 | C28: 24 | D28: 3170 | E28: 23 | F28: 3177 | K28: 0 | L28: 222 | O28: average response rate | P28: =F34/P20 -> 145.5 | Q28: =(F63-F34)/Q20 -> 139.3448276 | R28: =(F91-F63)/R20 -> 136.4642857 | S28: =(F119-F91)/S20 -> 136.2142857 | T28: =(F148-F119)/T20 -> 135.3103448 | U28: =(F176-F148)/U20 -> 153.1071429
A29: 11 | B29: 3291 | C29: 11 | D29: 3301 | E29: 12 | F29: 3309 | K29: 0 | L29: 111
A30: 22 | B30: 3492 | C30: 13 | D30: 3505 | E30: 14 | F30: 3516 | K30: 0 | L30: 211
A31: 22 | B31: 3625 | C31: 24 | D31: 3647 | E31: 14 | F31: 3660 | K31: 0 | L31: 221
A32: 22 | B32: 3765 | C32: 13 | D32: 3783 | E32: 23 | F32: 3804 | K32: 0 | L32: 212
A33: 22 | B33: 3902 | C33: 24 | D33: 3929 | E33: 14 | F33: 3941 | K33: 0 | L33: 221
A34: 11 | B34: 4053 | C34: 11 | D34: 4063 | E34: 12 | F34: 4074 | K34: 0 | L34: 111
A35: 22 | B35: 4180 | C35: 13 | D35: 4189 | E35: 14 | F35: 4197 | K35: 0 | L35: 211
A36: 22 | B36: 4305 | C36: 24 | D36: 4326 | E36: 14 | F36: 4339 | K36: 0 | L36: 221
A37: 22 | B37: 4447 | C37: 13 | D37: 4465 | E37: 14 | F37: 4473 | K37: 0 | L37: 211
A38: 22 | B38: 4578 | C38: 24 | D38: 4597 | E38: 14 | F38: 4609 | K38: 0 | L38: 221
A39: 22 | B39: 4713 | C39: 13 | D39: 4725 | E39: 23 | F39: 4737 | K39: 0 | L39: 212
A40: 22 | B40: 4851 | C40: 24 | D40: 4873 | E40: 23 | F40: 4891 | K40: 0 | L40: 222
A41: 11 | B41: 5020 | C41: 11 | D41: 5037 | E41: 12 | F41: 5048 | K41: 0 | L41: 111
A42: 22 | B42: 5181 | C42: 13 | D42: 5202 | E42: 14 | F42: 5214 | K42: 0 | L42: 211
A43: 22 | B43: 5336 | C43: 24 | D43: 5343 | E43: 14 | F43: 5353 | K43: 0 | L43: 221
A44: 11 | B44: 5457 | C44: 11 | D44: 5464 | E44: 12 | F44: 5473 | K44: 0 | L44: 111
A45: 22 | B45: 5581 | C45: 13 | D45: 5593 | E45: 14 | F45: 5601 | K45: 0 | L45: 211
A46: 22 | B46: 5715 | C46: 13 | D46: 5731 | E46: 14 | F46: 5740 | K46: 0 | L46: 211
A47: 22 | B47: 5848 | C47: 24 | D47: 5864 | E47: 23 | F47: 5875 | K47: 0 | L47: 222
A48: 11 | B48: 5990 | C48: 11 | D48: 6001 | E48: 12 | F48: 6013 | K48: 0 | L48: 111
A49: 22 | B49: 6136 | C49: 24 | D49: 6145 | E49: 23 | F49: 6153 | K49: 0 | L49: 222
A50: 22 | B50: 6265 | C50: 13 | D50: 6278 | E50: 14 | F50: 6286 | K50: 0 | L50: 211
A51: 11 | B51: 6424 | C51: 11 | D51: 6431 | E51: 12 | F51: 6440 | K51: 0 | L51: 111
A52: 11 | B52: 6555 | C52: 22 | D52: 6569 | E52: 23 | F52: 6577 | K52: 0 | L52: 122
A53: 22 | B53: 6677 | C53: 13 | D53: 6689 | E53: 14 | F53: 6697 | K53: 0 | L53: 211
A54: 22 | B54: 6822 | C54: 13 | D54: 6836 | E54: 14 | F54: 6844 | K54: 0 | L54: 211
A55: 11 | B55: 6954 | C55: 11 | D55: 6958 | E55: 12 | F55: 6966 | K55: 0 | L55: 111
A56: 22 | B56: 7072 | C56: 24 | D56: 7080 | E56: 23 | F56: 7089 | K56: 0 | L56: 222
A57: 22 | B57: 7193 | C57: 24 | D57: 7211 | E57: 14 | F57: 7229 | K57: 0 | L57: 221
A58: 22 | B58: 7375 | C58: 24 | D58: 7382 | E58: 14 | F58: 7395 | K58: 0 | L58: 221
A59: 22 | B59: 7504 | C59: 13 | D59: 7520 | E59: 14 | F59: 7528 | K59: 0 | L59: 211
A60: 22 | B60: 7651 | C60: 13 | D60: 7672 | E60: 14 | F60: 7683 | K60: 0 | L60: 211
A61: 22 | B61: 7836 | C61: 24 | D61: 7844 | E61: 14 | F61: 7872 | K61: 0 | L61: 221
A62: 22 | B62: 7977 | C62: 24 | D62: 7986 | E62: 23 | F62: 7992 | K62: 0 | L62: 222
A63: 22 | B63: 8102 | C63: 24 | D63: 8110 | E63: 23 | F63: 8115 | K63: 0 | L63: 222
A64: 11 | B64: 8217 | C64: 11 | D64: 8226 | E64: 12 | F64: 8234 | K64: 0 | L64: 111
A65: 11 | B65: 8352 | C65: 11 | D65: 8357 | E65: 12 | F65: 8366 | K65: 0 | L65: 111
A66: 11 | B66: 8475 | C66: 22 | D66: 8485 | E66: 23 | F66: 8490 | K66: 0 | L66: 122
A67: 11 | B67: 8604 | C67: 11 | D67: 8611 | E67: 12 | F67: 8620 | K67: 0 | L67: 111
A68: 22 | B68: 8753 | C68: 24 | D68: 8760 | E68: 23 | F68: 8769 | K68: 0 | L68: 222
A69: 11 | B69: 8900 | C69: 11 | D69: 8907 | E69: 12 | F69: 8916 | K69: 0 | L69: 111
A70: 22 | B70: 9028 | C70: 24 | D70: 9033 | E70: 14 | F70: 9046 | K70: 0 | L70: 221
A71: 22 | B71: 9160 | C71: 13 | D71: 9175 | E71: 14 | F71: 9180 | K71: 0 | L71: 211
A72: 11 | B72: 9309 | C72: 11 | D72: 9318 | E72: 21 | F72: 9334 | K72: 0 | L72: 112
A73: 22 | B73: 9432 | C73: 13 | D73: 9450 | E73: 14 | F73: 9459 | K73: 0 | L73: 211
A74: 22 | B74: 9560 | C74: 13 | D74: 9573 | E74: 14 | F74: 9577 | K74: 0 | L74: 211
A75: 22 | B75: 9684 | C75: 13 | D75: 9698 | E75: 14 | F75: 9702 | K75: 0 | L75: 211
A76: 22 | B76: 9810 | C76: 24 | D76: 9816 | E76: 23 | F76: 9824 | K76: 0 | L76: 222
A77: 22 | B77: 9940 | C77: 24 | D77: 9945 | E77: 14 | F77: 9957 | K77: 0 | L77: 221
A78: 22 | B78: 10079 | C78: 24 | D78: 10113 | E78: 23 | F78: 10120 | K78: 0 | L78: 222
A79: 22 | B79: 10234 | C79: 24 | D79: 10261 | E79: 14 | F79: 10275 | K79: 0 | L79: 221
A80: 11 | B80: 10386 | C80: 11 | D80: 10392 | E80: 12 | F80: 10397 | K80: 0 | L80: 111
A81: 22 | B81: 10532 | C81: 24 | D81: 10540 | E81: 14 | F81: 10560 | K81: 0 | L81: 221
A82: 22 | B82: 10661 | C82: 24 | D82: 10666 | E82: 23 | F82: 10673 | K82: 0 | L82: 222
A83: 11 | B83: 10795 | C83: 11 | D83: 10803 | E83: 12 | F83: 10814 | K83: 0 | L83: 111
A84: 22 | B84: 10918 | C84: 24 | D84: 10923 | E84: 14 | F84: 10939 | K84: 0 | L84: 221
A85: 11 | B85: 11097 | C85: 11 | D85: 11104 | E85: 12 | F85: 11113 | K85: 0 | L85: 111
A86: 22 | B86: 11232 | C86: 24 | D86: 11240 | E86: 14 | F86: 11264 | K86: 0 | L86: 221
A87: 22 | B87: 11379 | C87: 24 | D87: 11385 | E87: 14 | F87: 11399 | K87: 0 | L87: 221
A88: 22 | B88: 11507 | C88: 24 | D88: 11530 | E88: 14 | F88: 11543 | K88: 0 | L88: 221
A89: 22 | B89: 11650 | C89: 24 | D89: 11655 | E89: 23 | F89: 11663 | K89: 0 | L89: 222
A90: 22 | B90: 11773 | C90: 24 | D90: 11779 | E90: 14 | F90: 11795 | K90: 0 | L90: 221
A91: 22 | B91: 11900 | C91: 24 | D91: 11931 | E91: 23 | F91: 11936 | K91: 0 | L91: 222
A92: 11 | B92: 12059 | C92: 11 | D92: 12065 | E92: 12 | F92: 12073 | K92: 0 | L92: 111
A93: 22 | B93: 12212 | C93: 24 | D93: 12220 | E93: 14 | F93: 12239 | K93: 0 | L93: 221
A94: 22 | B94: 12351 | C94: 24 | D94: 12359 | E94: 23 | F94: 12367 | K94: 0 | L94: 222
A95: 11 | B95: 12492 | C95: 11 | D95: 12504 | E95: 12 | F95: 12511 | K95: 0 | L95: 111
A96: 22 | B96: 12619 | C96: 24 | D96: 12644 | E96: 23 | F96: 12646 | K96: 0 | L96: 222
A97: 22 | B97: 12759 | C97: 24 | D97: 12764 | E97: 14 | F97: 12778 | K97: 0 | L97: 221
A98: 22 | B98: 12904 | C98: 24 | D98: 12911 | E98: 14 | F98: 12924 | K98: 0 | L98: 221
A99: 11 | B99: 13068 | C99: 11 | D99: 13077 | E99: 21 | F99: 13097 | K99: 0 | L99: 112
A100: 22 | B100: 13191 | C100: 13 | D100: 13202 | E100: 14 | F100: 13208 | K100: 0 | L100: 211
A101: 22 | B101: 13306 | C101: 24 | D101: 13312 | E101: 23 | F101: 13317 | K101: 0 | L101: 222
A102: 11 | B102: 13450 | C102: 11 | D102: 13458 | E102: 12 | F102: 13465 | K102: 0 | L102: 111
A103: 22 | B103: 13567 | C103: 24 | D103: 13572 | E103: 23 | F103: 13577 | K103: 0 | L103: 222
A104: 11 | B104: 13691 | C104: 22 | D104: 13705 | E104: 23 | F104: 13710 | K104: 0 | L104: 122
A105: 22 | B105: 13825 | C105: 24 | D105: 13832 | E105: 23 | F105: 13840 | K105: 0 | L105: 222
A106: 22 | B106: 13947 | C106: 24 | D106: 13952 | E106: 14 | F106: 13973 | K106: 0 | L106: 221
A107: 22 | B107: 14082 | C107: 24 | D107: 14087 | E107: 23 | F107: 14092 | K107: 0 | L107: 222
A108: 11 | B108: 14204 | C108: 11 | D108: 14210 | E108: 21 | F108: 14225 | K108: 0 | L108: 112
A109: 22 | B109: 14323 | C109: 24 | D109: 14333 | E109: 14 | F109: 14351 | K109: 0 | L109: 221
A110: 11 | B110: 14493 | C110: 11 | D110: 14498 | E110: 12 | F110: 14502 | K110: 0 | L110: 111
A111: 22 | B111: 14620 | C111: 24 | D111: 14625 | E111: 23 | F111: 14633 | K111: 0 | L111: 222
A112: 22 | B112: 14757 | C112: 24 | D112: 14768 | E112: 14 | F112: 14783 | K112: 0 | L112: 221
A113: 11 | B113: 14900 | C113: 11 | D113: 14908 | E113: 12 | F113: 14916 | K113: 0 | L113: 111
A114: 22 | B114: 15028 | C114: 24 | D114: 15035 | E114: 23 | F114: 15042 | K114: 0 | L114: 222
A115: 11 | B115: 15197 | C115: 11 | D115: 15205 | E115: 12 | F115: 15210 | K115: 0 | L115: 111
A116: 22 | B116: 15326 | C116: 13 | D116: 15339 | E116: 14 | F116: 15346 | K116: 0 | L116: 211
A117: 22 | B117: 15458 | C117: 24 | D117: 15464 | E117: 23 | F117: 15469 | K117: 0 | L117: 222
A118: 11 | B118: 15588 | C118: 22 | D118: 15600 | E118: 23 | F118: 15607 | K118: 0 | L118: 122
A119: 22 | B119: 15731 | C119: 24 | D119: 15745 | E119: 23 | F119: 15750 | K119: 0 | L119: 222
A120: 11 | B120: 15871 | C120: 11 | D120: 15878 | E120: 21 | F120: 15892 | K120: 0 | L120: 112
A121: 22 | B121: 15983 | C121: 13 | D121: 15998 | E121: 14 | F121: 16005 | K121: 0 | L121: 211
A122: 22 | B122: 16119 | C122: 24 | D122: 16123 | E122: 23 | F122: 16128 | K122: 0 | L122: 222
A123: 22 | B123: 16245 | C123: 24 | D123: 16250 | E123: 23 | F123: 16256 | K123: 0 | L123: 222
A124: 11 | B124: 16376 | C124: 11 | D124: 16405 | E124: 21 | F124: 16420 | K124: 0 | L124: 112
A125: 22 | B125: 16518 | C125: 24 | D125: 16540 | E125: 23 | F125: 16544 | K125: 0 | L125: 222
A126: 11 | B126: 16669 | C126: 22 | D126: 16684 | E126: 23 | F126: 16689 | K126: 0 | L126: 122
A127: 11 | B127: 16806 | C127: 11 | D127: 16813 | E127: 12 | F127: 16821 | K127: 0 | L127: 111
A128: 22 | B128: 16982 | C128: 24 | D128: 16987 | E128: 23 | F128: 16995 | K128: 0 | L128: 222
A129: 11 | B129: 17123 | C129: 11 | D129: 17131 | E129: 21 | F129: 17144 | K129: 0 | L129: 112
A130: 22 | B130: 17240 | C130: 13 | D130: 17252 | E130: 14 | F130: 17259 | K130: 0 | L130: 211
A131: 22 | B131: 17375 | C131: 24 | D131: 17380 | E131: 14 | F131: 17393 | K131: 0 | L131: 221
A132: 22 | B132: 17496 | C132: 24 | D132: 17505 | E132: 23 | F132: 17518 | K132: 0 | L132: 222
A133: 22 | B133: 17626 | C133: 24 | D133: 17633 | E133: 23 | F133: 17642 | K133: 0 | L133: 222
A134: 22 | B134: 17756 | C134: 24 | D134: 17764 | E134: 14 | F134: 17777 | K134: 0 | L134: 221
A135: 11 | B135: 17898 | C135: 22 | D135: 17913 | E135: 23 | F135: 17919 | K135: 0 | L135: 122
A136: 22 | B136: 18025 | C136: 13 | D136: 18041 | E136: 14 | F136: 18048 | K136: 0 | L136: 211
A137: 22 | B137: 18151 | C137: 24 | D137: 18175 | E137: 23 | F137: 18180 | K137: 0 | L137: 222
A138: 22 | B138: 18302 | C138: 24 | D138: 18307 | E138: 23 | F138: 18313 | K138: 0 | L138: 222
A139: 22 | B139: 18412 | C139: 24 | D139: 18421 | E139: 23 | F139: 18429 | K139: 0 | L139: 222
A140: 22 | B140: 18537 | C140: 24 | D140: 18556 | E140: 23 | F140: 18563 | K140: 0 | L140: 222
A141: 11 | B141: 18687 | C141: 11 | D141: 18695 | E141: 21 | F141: 18708 | K141: 0 | L141: 112
A142: 22 | B142: 18811 | C142: 13 | D142: 18829 | E142: 14 | F142: 18834 | K142: 0 | L142: 211
A143: 22 | B143: 18953 | C143: 13 | D143: 18965 | E143: 14 | F143: 18969 | K143: 0 | L143: 211
A144: 22 | B144: 19089 | C144: 24 | D144: 19094 | E144: 23 | F144: 19099 | K144: 0 | L144: 222
A145: 22 | B145: 19213 | C145: 24 | D145: 19218 | E145: 14 | F145: 19233 | K145: 0 | L145: 221
A146: 11 | B146: 19373 | C146: 11 | D146: 19378 | E146: 21 | F146: 19392 | K146: 0 | L146: 112
A147: 22 | B147: 19487 | C147: 24 | D147: 19506 | E147: 23 | F147: 19511 | K147: 0 | L147: 222
A148: 22 | B148: 19617 | C148: 24 | D148: 19670 | E148: 23 | F148: 19674 | K148: 0 | L148: 222
A149: 22 | B149: 19771 | C149: 24 | D149: 19778 | E149: 14 | F149: 19795 | K149: 0 | L149: 221
A150: 11 | B150: 19911 | C150: 11 | D150: 19919 | E150: 21 | F150: 19931 | K150: 0 | L150: 112
A151: 22 | B151: 20020 | C151: 13 | D151: 20031 | E151: 14 | F151: 20042 | K151: 0 | L151: 211
A152: 11 | B152: 20161 | C152: 11 | D152: 20167 | E152: 21 | F152: 20184 | K152: 0 | L152: 112
A153: 22 | B153: 20329 | C153: 24 | D153: 20333 | E153: 23 | F153: 20348 | K153: 0 | L153: 222
A154: 11 | B154: 20447 | C154: 11 | D154: 20452 | E154: 12 | F154: 20456 | K154: 0 | L154: 111
A155: 22 | B155: 20596 | C155: 24 | D155: 20600 | E155: 23 | F155: 20608 | K155: 0 | L155: 222
A156: 22 | B156: 20712 | C156: 24 | D156: 20717 | E156: 23 | F156: 20725 | K156: 0 | L156: 222
A157: 11 | B157: 20836 | C157: 22 | D157: 20846 | E157: 23 | F157: 20851 | K157: 0 | L157: 122
A158: 22 | B158: 20972 | C158: 24 | D158: 20977 | E158: 23 | F158: 20985 | K158: 0 | L158: 222
A159: 22 | B159: 21117 | C159: 24 | D159: 21125 | E159: 14 | F159: 21137 | K159: 0 | L159: 221
A160: 11 | B160: 21250 | C160: 22 | D160: 21263 | E160: 23 | F160: 21271 | K160: 0 | L160: 122
A161: 22 | B161: 21388 | C161: 13 | D161: 21401 | E161: 23 | F161: 21414 | K161: 0 | L161: 212
A162: 11 | B162: 21530 | C162: 22 | D162: 21546 | E162: 23 | F162: 21559 | K162: 0 | L162: 122
A163: 22 | B163: 21708 | C163: 24 | D163: 21717 | E163: 14 | F163: 21730 | K163: 0 | L163: 221
A164: 11 | B164: 21845 | C164: 22 | D164: 21859 | E164: 23 | F164: 21868 | K164: 0 | L164: 122
A165: 22 | B165: 21999 | C165: 24 | D165: 22009 | E165: 14 | F165: 22021 | K165: 0 | L165: 221
A166: 22 | B166: 22167 | C166: 24 | D166: 22195 | E166: 23 | F166: 22211 | K166: 0 | L166: 222
A167: 22 | B167: 22313 | C167: 24 | D167: 22318 | E167: 23 | F167: 22325 | K167: 0 | L167: 222
A168: 22 | B168: 22460 | C168: 24 | D168: 22465 | E168: 23 | F168: 22473 | K168: 0 | L168: 222
A169: 22 | B169: 22625 | C169: 24 | D169: 22630 | E169: 14 | F169: 22657 | K169: 0 | L169: 221
A170: 11 | B170: 22834 | C170: 22 | D170: 22847 | E170: 23 | F170: 22855 | K170: 0 | L170: 122
A171: 22 | B171: 22993 | C171: 24 | D171: 22999 | E171: 23 | F171: 23004 | K171: 0 | L171: 222
A172: 11 | B172: 23185 | C172: 11 | D172: 23196 | E172: 21 | F172: 23210 | K172: 0 | L172: 112
A173: 11 | B173: 23348 | C173: 22 | D173: 23360 | E173: 23 | F173: 23372 | K173: 0 | L173: 122
A174: 11 | B174: 23498 | C174: 22 | D174: 23511 | E174: 23 | F174: 23518 | K174: 0 | L174: 122
A175: 11 | B175: 23698 | C175: 22 | D175: 23708 | E175: 14 | F175: 23735 | K175: 0 | L175: 121
A176: 11 | B176: 23939 | C176: 22 | D176: 23952 | E176: 23 | F176: 23961 | K176: 1 | L176: 122

Sheet !2011-06-28_08h09m.Subject 53
A1: Report for:!2011-06-28_08h09m.Subject 53
A2: Date | B2: 2011-06-28 | F2: Group | G2: var phase 2
A3: Hen | B3: 53 | F3: Correct Sequence | G3: =Start!J2 -> 122 | P3: Total Sequences in Data | Q3: =4994-COUNTBLANK(L7:L5000) -> 159 | V3: Total Sequences in Block Data | W3: =COUNTA(L7:L33) -> 27 | AA3: Total Sequences in Block Data | AB3: =COUNTA(L34:L59) -> 26 | AF3: Total Sequences in Block Data | AG3: =COUNTA(L60:L86) -> 27 | AK3: Total Sequences in Block Data | AL3: =COUNTA(L87:L112) -> 26 | AP3: Total Sequences in Block Data | AQ3: =COUNTA(L113:L139) -> 27 | AU3: Total Sequences in Block Data | AV3: =COUNTA(L140:L165) -> 26
A4: Program | B4: one | P4: Total Sequences in Summary | Q4: =SUM(O7:O14) -> 159 | V4: Total Sequences in Block Summary | W4: =SUM(U7:U14) -> 27 | AA4: Total Sequences in Block Summary | AB4: =SUM(Z7:Z14) -> 26 | AF4: Total Sequences in Block Summary | AG4: =SUM(AE7:AE14) -> 27 | AK4: Total Sequences in Block Summary | AL4: =SUM(AJ7:AJ14) -> 26 | AP4: Total Sequences in Block Summary | AQ4: =SUM(AO7:AO14) -> 27 | AU4: Total Sequences in Block Summary | AV4: =SUM(AT7:AT14) -> 26
T5: Block 1 | Y5: Block 2 | AD5: Block 3 | AI5: Block 4 | AN5: Block 5 | AS5: Block 6
A6: Sequence Component 1 | B6: Time 1 | C6: Sequence Component 2 | D6: Time 2 | E6: Sequence Component 3 | F6: Time 3 | G6: Sequence Component 4 | H6: Time 4 | I6: Sequence Component 5 | J6: Time 5 | K6: Correct? 0=No 1=Yes | L6: Sequence | N6: Frequency | P6: Relative Frequency | Q6: Variability | T6: Frequency | V6: Relative Frequency | W6: Variability | Y6: Frequency | AA6: Relative Frequency | AB6: Variability | AD6: Frequency | AF6: Relative Frequency | AG6: Variability | AI6: Frequency | AK6: Relative Frequency | AL6: Variability | AN6: Frequency | AP6: Relative Frequency | AQ6: Variability | AS6: Frequency | AU6: Relative Frequency | AV6: Variability
A7: 11 | B7: 51 | C7: 22 | D7: 66 | E7: 14 | F7: 84 | K7: 0 | L7: 121 | N7: 111 | O7: =COUNTIF($L$7:$L$500,N7) -> 7 | P7: =O7/$Q$4 -> 0.04402515723 | Q7: =IF(P7=0,0,(P7*((LOG(P7))/LOG(2)))) -> -0.1983565801 | T7: =N7 -> 111 | U7: =COUNTIF(L7:L33,T7) -> 0 | V7: =U7/(W4-U10) -> 0 | W7: =IF(V7=0,0,(V7*((LOG(V7))/LOG(2)))) -> 0 | Y7: =N7 -> 111 | Z7: =COUNTIF(L34:L59,Y7) -> 1 | AA7: =Z7/(AB4-Z10) -> 0.04347826087 | AB7: =IF(AA7=0,0,(AA7*((LOG(AA7))/LOG(2)))) -> -0.1966766068 | AD7: =N7 -> 111 | AE7: =COUNTIF(L60:L86,AD7) -> 0 | AF7: =AE7/(AG4-AE10) -> 0 | AG7: =IF(AF7=0,0,(AF7*((LOG(AF7))/LOG(2)))) -> 0 | AI7: =N7 -> 111 | AJ7: =COUNTIF(L87:L112,AI7) -> 3 | AK7: =AJ7/(AL4-AJ10) -> 0.1578947368 | AL7: =IF(AK7=0,0,(AK7*((LOG(AK7))/LOG(2)))) -> -0.4204681599 | AN7: =N7 -> 111 | AO7: =COUNTIF(L113:L139,AN7) -> 3 | AP7: =AO7/(AQ4-AO10) -> 0.1578947368 | AQ7: =IF(AP7=0,0,(AP7*((LOG(AP7))/LOG(2)))) -> -0.4204681599 | AS7: =N7 -> 111 | AT7: =COUNTIF(L140:L165,AS7) -> 0 | AU7: =AT7/(AV4-AT10) -> 0 | AV7: =IF(AU7=0,0,(AU7*((LOG(AU7))/LOG(2)))) -> 0
A8: 22 | B8: 215 | C8: 24 | D8: 235 | E8: 14 | F8: 246 | K8: 0 | L8: 221 | N8: 112 | O8: =COUNTIF($L$7:$L$500,N8) -> 25 | P8: =O8/$Q$4 -> 0.1572327044 | Q8: =IF(P8=0,0,(P8*((LOG(P8))/LOG(2)))) -> -0.4196582965 | T8: =N8 -> 112 | U8: =COUNTIF(L7:L33,T8) -> 3 | V8: =U8/(W4-U10) -> 0.15 | W8: =IF(V8=0,0,(V8*((LOG(V8))/LOG(2)))) -> -0.4105448391 | Y8: =N8 -> 112 | Z8: =COUNTIF(L34:L59,Y8) -> 2 | AA8: =Z8/(AB4-Z10) -> 0.08695652174 | AB8: =IF(AA8=0,0,(AA8*((LOG(AA8))/LOG(2)))) -> -0.3063966918 | AD8: =N8 -> 112 | AE8: =COUNTIF(L60:L86,AD8) -> 2 | AF8: =AE8/(AG4-AE10) -> 0.1 | AG8: =IF(AF8=0,0,(AF8*((LOG(AF8))/LOG(2)))) -> -0.3321928095 | AI8: =N8 -> 112 | AJ8: =COUNTIF(L87:L112,AI8) -> 5 | AK8: =AJ8/(AL4-AJ10) -> 0.2631578947 | AL8: =IF(AK8=0,0,(AK8*((LOG(AK8))/LOG(2)))) -> -0.5068419523 | AN8: =N8 -> 112 | AO8: =COUNTIF(L113:L139,AN8) -> 7 | AP8: =AO8/(AQ4-AO10) -> 0.3684210526 | AQ8: =IF(AP8=0,0,(AP8*((LOG(AP8))/LOG(2)))) -> -0.5307372705 | AS8: =N8 -> 112 | AT8: =COUNTIF(L140:L165,AS8) -> 6 | AU8: =AT8/(AV4-AT10) -> 0.3333333333 | AV8: =IF(AU8=0,0,(AU8*((LOG(AU8))/LOG(2)))) -> -0.5283208336
A9: 22 | B9: 358 | C9: 24 | D9: 370 | E9: 23 | F9: 388 | K9: 0 | L9: 222 | N9: 121 | O9: =COUNTIF($L$7:$L$500,N9) -> 18 | P9: =O9/$Q$4 -> 0.1132075472 | Q9: =IF(P9=0,0,(P9*((LOG(P9))/LOG(2)))) -> -0.3558065608 | T9: =N9 -> 121 | U9: =COUNTIF(L7:L33,T9) -> 1 | V9: =U9/(W4-U10) -> 0.05 | W9: =IF(V9=0,0,(V9*((LOG(V9))/LOG(2)))) -> -0.2160964047 | Y9: =N9 -> 121 | Z9: =COUNTIF(L34:L59,Y9) -> 6 | AA9: =Z9/(AB4-Z10) -> 0.2608695652 | AB9: =IF(AA9=0,0,(AA9*((LOG(AA9))/LOG(2)))) -> -0.505721597 | AD9: =N9 -> 121 | AE9: =COUNTIF(L60:L86,AD9) -> 7 | AF9: =AE9/(AG4-AE10) -> 0.35 | AG9: =IF(AF9=0,0,(AF9*((LOG(AF9))/LOG(2)))) -> -0.5301006105 | AI9: =N9 -> 121 | AJ9: =COUNTIF(L87:L112,AI9) -> 1 | AK9: =AJ9/(AL4-AJ10) -> 0.05263157895 | AL9: =IF(AK9=0,0,(AK9*((LOG(AK9))/LOG(2)))) -> -0.2235751323 | AN9: =N9 -> 121 | AO9: =COUNTIF(L113:L139,AN9) -> 2 | AP9: =AO9/(AQ4-AO10) -> 0.1052631579 | AQ9: =IF(AP9=0,0,(AP9*((LOG(AP9))/LOG(2)))) -> -0.3418871067 | AS9: =N9 -> 121 | AT9: =COUNTIF(L140:L165,AS9) -> 1 | AU9: =AT9/(AV4-AT10) -> 0.05555555556 | AV9: =IF(AU9=0,0,(AU9*((LOG(AU9))/LOG(2)))) -> -0.2316625001
A10: 22 | B10: 503 | C10: 24 | D10: 511 | E10: 23 | F10: 521 | K10: 0 | L10: 222 | N10: 122 | O10: =COUNTIF($L$7:$L$500,N10) -> 40 | P10: =O10/$Q$4 -> 0.251572327 | Q10: =IF(P10=0,0,(P10*((LOG(P10))/LOG(2)))) -> -0.5008691473 | T10: =N10 -> 122 | U10: =COUNTIF(L7:L33,T10) -> 7 | Y10: =N10 -> 122 | Z10: =COUNTIF(L34:L59,Y10) -> 3 | AD10: =N10 -> 122 | AE10: =COUNTIF(L60:L86,AD10) -> 7 | AI10: =N10 -> 122 | AJ10: =COUNTIF(L87:L112,AI10) -> 7 | AN10: =N10 -> 122 | AO10: =COUNTIF(L113:L139,AN10) -> 8 | AS10: =N10 -> 122 | AT10: =COUNTIF(L140:L165,AS10) -> 8
A11: 11 | B11: 666 | C11: 22 | D11: 674 | E11: 23 | F11: 680 | K11: 0 | L11: 122 | N11: 211 | O11: =COUNTIF($L$7:$L$500,N11) -> 14 | P11: =O11/$Q$4 -> 0.08805031447 | Q11: =IF(P11=0,0,(P11*((LOG(P11))/LOG(2)))) -> -0.3086628457 | T11: =N11 -> 211 | U11: =COUNTIF(L7:L33,T11) -> 2 | V11: =U11/(W4-U10) -> 0.1 | W11: =IF(V11=0,0,(V11*((LOG(V11))/LOG(2)))) -> -0.3321928095 | Y11: =N11 -> 211 | Z11: =COUNTIF(L34:L59,Y11) -> 6 | AA11: =Z11/(AB4-Z10) -> 0.2608695652 | AB11: =IF(AA11=0,0,(AA11*((LOG(AA11))/LOG(2)))) -> -0.505721597 | AD11: =N11 -> 211 | AE11: =COUNTIF(L60:L86,AD11) -> 1 | AF11: =AE11/(AG4-AE10) -> 0.05 | AG11: =IF(AF11=0,0,(AF11*((LOG(AF11))/LOG(2)))) -> -0.2160964047 | AI11: =N11 -> 211 | AJ11: =COUNTIF(L87:L112,AI11) -> 1 | AK11: =AJ11/(AL4-AJ10) -> 0.05263157895 | AL11: =IF(AK11=0,0,(AK11*((LOG(AK11))/LOG(2)))) -> -0.2235751323 | AN11: =N11 -> 211 | AO11: =COUNTIF(L113:L139,AN11) -> 2 | AP11: =AO11/(AQ4-AO10) -> 0.1052631579 | AQ11: =IF(AP11=0,0,(AP11*((LOG(AP11))/LOG(2)))) -> -0.3418871067 | AS11: =N11 -> 211 | AT11: =COUNTIF(L140:L165,AS11) -> 2 | AU11: =AT11/(AV4-AT10) -> 0.1111111111 | AV11: =IF(AU11=0,0,(AU11*((LOG(AU11))/LOG(2)))) -> -0.352213889
A12: 22 | B12: 796 | C12: 13 | D12: 809 | E12: 14 | F12: 817 | K12: 0 | L12: 211 | N12: 212 | O12: =COUNTIF($L$7:$L$500,N12) -> 14 | P12: =O12/$Q$4 -> 0.08805031447 | Q12: =IF(P12=0,0,(P12*((LOG(P12))/LOG(2)))) -> -0.3086628457 | T12: =N12 -> 212 | U12: =COUNTIF(L7:L33,T12) -> 2 | V12: =U12/(W4-U10) -> 0.1 | W12: =IF(V12=0,0,(V12*((LOG(V12))/LOG(2)))) -> -0.3321928095 | Y12: =N12 -> 212 | Z12: =COUNTIF(L34:L59,Y12) -> 2 | AA12: =Z12/(AB4-Z10) -> 0.08695652174 | AB12: =IF(AA12=0,0,(AA12*((LOG(AA12))/LOG(2)))) -> -0.3063966918 | AD12: =N12 -> 212 | AE12: =COUNTIF(L60:L86,AD12) -> 4 | AF12: =AE12/(AG4-AE10) -> 0.2 | AG12: =IF(AF12=0,0,(AF12*((LOG(AF12))/LOG(2)))) -> -0.464385619 | AI12: =N12 -> 212 | AJ12: =COUNTIF(L87:L112,AI12) -> 1 | AK12: =AJ12/(AL4-AJ10) -> 0.05263157895 | AL12: =IF(AK12=0,0,(AK12*((LOG(AK12))/LOG(2)))) -> -0.2235751323 | AN12: =N12 -> 212 | AO12: =COUNTIF(L113:L139,AN12) -> 1 | AP12: =AO12/(AQ4-AO10) -> 0.05263157895 | AQ12: =IF(AP12=0,0,(AP12*((LOG(AP12))/LOG(2)))) -> -0.2235751323 | AS12: =N12 -> 212 | AT12: =COUNTIF(L140:L165,AS12) -> 4 | AU12: =AT12/(AV4-AT10) -> 0.2222222222 | AV12: =IF(AU12=0,0,(AU12*((LOG(AU12))/LOG(2)))) -> -0.4822055559
A13: 11 | B13: 987 | C13: 22 | D13: 999 | E13: 23 | F13: 1022 | K13: 0 | L13: 122 | N13: 221 | O13: =COUNTIF($L$7:$L$500,N13) -> 16 | P13: =O13/$Q$4 -> 0.1006289308 | Q13: =IF(P13=0,0,(P13*((LOG(P13))/LOG(2)))) -> -0.3333718697 | T13: =N13 -> 221 | U13: =COUNTIF(L7:L33,T13) -> 6 | V13: =U13/(W4-U10) -> 0.3 | W13: =IF(V13=0,0,(V13*((LOG(V13))/LOG(2)))) -> -0.5210896782 | Y13: =N13 -> 221 | Z13: =COUNTIF(L34:L59,Y13) -> 1 | AA13: =Z13/(AB4-Z10) -> 0.04347826087 | AB13: =IF(AA13=0,0,(AA13*((LOG(AA13))/LOG(2)))) -> -0.1966766068 | AD13: =N13 -> 221 | AE13: =COUNTIF(L60:L86,AD13) -> 3 | AF13: =AE13/(AG4-AE10) -> 0.15 | AG13: =IF(AF13=0,0,(AF13*((LOG(AF13))/LOG(2)))) -> -0.4105448391 | AI13: =N13 -> 221 | AJ13: =COUNTIF(L87:L112,AI13) -> 3 | AK13: =AJ13/(AL4-AJ10) -> 0.1578947368 | AL13: =IF(AK13=0,0,(AK13*((LOG(AK13))/LOG(2)))) -> -0.4204681599 | AN13: =N13 -> 221 | AO13: =COUNTIF(L113:L139,AN13) -> 1 | AP13: =AO13/(AQ4-AO10) -> 0.05263157895 | AQ13: =IF(AP13=0,0,(AP13*((LOG(AP13))/LOG(2)))) -> -0.2235751323 | AS13: =N13 -> 221 | AT13: =COUNTIF(L140:L165,AS13) -> 2 | AU13: =AT13/(AV4-AT10) -> 0.1111111111 | AV13: =IF(AU13=0,0,(AU13*((LOG(AU13))/LOG(2)))) -> -0.352213889
A14: 22 | B14: 1138 | C14: 24 | D14: 1143 | E14: 14 | F14: 1156 | K14: 0 | L14: 221 | N14: 222 | O14: =COUNTIF($L$7:$L$500,N14) -> 25 | P14: =O14/$Q$4 -> 0.1572327044 | Q14: =IF(P14=0,0,(P14*((LOG(P14))/LOG(2)))) -> -0.4196582965 | T14: =N14 -> 222 | U14: =COUNTIF(L7:L33,T14) -> 6 | V14: =U14/(W4-U10) -> 0.3 | W14: =IF(V14=0,0,(V14*((LOG(V14))/LOG(2)))) -> -0.5210896782 | Y14: =N14 -> 222 | Z14: =COUNTIF(L34:L59,Y14) -> 5 | AA14: =Z14/(AB4-Z10) -> 0.2173913043 | AB14: =IF(AA14=0,0,(AA14*((LOG(AA14))/LOG(2)))) -> -0.4786160568 | AD14: =N14 -> 222 | AE14: =COUNTIF(L60:L86,AD14) -> 3 | AF14: =AE14/(AG4-AE10) -> 0.15 | AG14: =IF(AF14=0,0,(AF14*((LOG(AF14))/LOG(2)))) -> -0.4105448391 | AI14: =N14 -> 222 | AJ14: =COUNTIF(L87:L112,AI14) -> 5 | AK14: =AJ14/(AL4-AJ10) -> 0.2631578947 | AL14: =IF(AK14=0,0,(AK14*((LOG(AK14))/LOG(2)))) -> -0.5068419523 | AN14: =N14 -> 222 | AO14: =COUNTIF(L113:L139,AN14) -> 3 | AP14: =AO14/(AQ4-AO10) -> 0.1578947368 | AQ14: =IF(AP14=0,0,(AP14*((LOG(AP14))/LOG(2)))) -> -0.4204681599 | AS14: =N14 -> 222 | AT14: =COUNTIF(L140:L165,AS14) -> 3 | AU14: =AT14/(AV4-AT10) -> 0.1666666667 | AV14: =IF(AU14=0,0,(AU14*((LOG(AU14))/LOG(2)))) -> -0.4308270835
A15: 22 | B15: 1283 | C15: 13 | D15: 1336 | E15: 23 | F15: 1345 | K15: 0 | L15: 212 | P15: =SUM(P7:P14) -> 1 | Q15: =-SUM(Q7:Q14) -> 2.845046442 | V15: =SUM(V7:V14) -> 1 | W15: =-SUM(W7:W14) -> 2.333206219 | AA15: =SUM(AA7:AA14) -> 1 | AB15: =-SUM(AB7:AB14) -> 2.496205848 | AF15: =SUM(AF7:AF14) -> 1 | AG15: =-SUM(AG7:AG14) -> 2.363865122 | AK15: =SUM(AK7:AK14) -> 1 | AL15: =-SUM(AL7:AL14) -> 2.525345621 | AP15: =SUM(AP7:AP14) -> 1 | AQ15: =-SUM(AQ7:AQ14) -> 2.502598068 | AU15: =SUM(AU7:AU14) -> 1 | AV15: =-SUM(AV7:AV14) -> 2.377443751
A16: 22 | B16: 1477 | C16: 24 | D16: 1482 | E16: 14 | F16: 1495 | K16: 0 | L16: 221 | P16: U= | Q16: =Q15/(LOG(Q4)/LOG(2)) -> 0.3890458058 | V16: U1= | W16: =W15/(LOG(W4)/LOG(2)) -> 0.4906964083 | AA16: U2= | AB16: =AB15/(LOG(AB4)/LOG(2)) -> 0.531057943 | AF16: U3= | AG16: =AG15/(LOG(AG4)/LOG(2)) -> 0.4971442796 | AK16: U4= | AL16: =AL15/(LOG(AL4)/LOG(2)) -> 0.5372573148 | AP16: U5= | AQ16: =AQ15/(LOG(AQ4)/LOG(2)) -> 0.5263211942 | AU16: U6= | AV16: =AV15/(LOG(AV4)/LOG(2)) -> 0.5057917756
A17: 22 | B17: 1643 | C17: 24 | D17: 1652 | E17: 23 | F17: 1660 | K17: 0 | L17: 222
A18: 22 | B18: 1804 | C18: 24 | D18: 1814 | E18: 23 | F18: 1840 | K18: 0 | L18: 222
A19: 11 | B19: 2001 | C19: 11 | D19: 2005 | E19: 21 | F19: 2018 | K19: 0 | L19: 112 | N19: Total Target Seq
A20: 22 | B20: 2129 | C20: 24 | D20: 2179 | E20: 23 | F20: 2192 | K20: 0 | L20: 222 | N20: =COUNTIF(L7:L165,G3) -> 40 | P20: 27 | Q20: 26 | R20: 27 | S20: 26 | T20: 27 | U20: 26
A21: 22 | B21: 2308 | C21: 13 | D21: 2318 | E21: 23 | F21: 2332 | K21: 0 | L21: 212 | P21: % of reinforcement given in 6 equal intervals based on number of trials
A22: 22 | B22: 2454 | C22: 24 | D22: 2482 | E22: 23 | F22: 2488 | K22: 0 | L22: 222 | P22: %_1 | Q22: %_2 | R22: %_3 | S22: %_4 | T22: %_5 | U22: %_6
A23: 11 | B23: 2603 | C23: 22 | D23: 2617 | E23: 23 | F23: 2623 | K23: 0 | L23: 122 | O23: target sequence | P23: =$G$3 -> 122 | Q23: =$G$3 -> 122 | R23: =$G$3 -> 122 | S23: =$G$3 -> 122 | T23: =$G$3 -> 122 | U23: =$G$3 -> 122
A24: 22 | B24: 2778 | C24: 24 | D24: 2786 | E24: 14 | F24: 2804 | K24: 0 | L24: 221 | O24: total reinforcement | P24: =U10 -> 7 | Q24: =Z10 -> 3 | R24: =AE10 -> 7 | S24: =AJ10 -> 7 | T24: =AO10 -> 8 | U24: =AT10 -> 8
A25: 11 | B25: 2914 | C25: 22 | D25: 2927 | E25: 23 | F25: 2935 | K25: 0 | L25: 122 | O25: % target
A26: 22 | B26: 3046 | C26: 24 | D26: 3073 | E26: 14 | F26: 3092 | K26: 0 | L26: 221 | O26: CCRF
A27: 11 | B27: 3202 | C27: 22 | D27: 3215 | E27: 23 | F27: 3223 | K27: 0 | L27: 122 | O27: % CCRf
A28: 11 | B28: 3347 | C28: 22 | D28: 3360 | E28: 23 | F28: 3368 | K28: 0 | L28: 122 | O28: average response rate | P28: =F33/P20 -> 155.8148148 | Q28: =(F59-F33)/Q20 -> 148.0769231 | R28: =(F86-F59)/R20 -> 160.3703704 | S28: =(F112-F86)/S20 -> 162.1923077 | T28: =(F139-F112)/T20 -> 139.3703704 | U28: =(F165-F139)/U20 -> 138
A29: 11 | B29: 3510 | C29: 22 | D29: 3522 | E29: 23 | F29: 3530 | K29: 0 | L29: 122
A30: 11 | B30: 3682 | C30: 11 | D30: 3692 | E30: 21 | F30: 3704 | K30: 0 | L30: 112
A31: 22 | B31: 3831 | C31: 13 | D31: 3844 | E31: 14 | F31: 3852 | K31: 0 | L31: 211
A32: 22 | B32: 4052 | C32: 24 | D32: 4057 | E32: 14 | F32: 4070 | K32: 0 | L32: 221
A33: 11 | B33: 4178 | C33: 11 | D33: 4195 | E33: 21 | F33: 4207 | K33: 0 | L33: 112
A34: 11 | B34: 4328 | C34: 22 | D34: 4341 | E34: 14 | F34: 4352 | K34: 0 | L34: 121
A35: 22 | B35: 4487 | C35: 13 | D35: 4513 | E35: 14 | F35: 4518 | K35: 0 | L35: 211
A36: 11 | B36: 4626 | C36: 11 | D36: 4632 | E36: 21 | F36: 4644 | K36: 0 | L36: 112
A37: 22 | B37: 4738 | C37: 13 | D37: 4749 | E37: 14 | F37: 4754 | K37: 0 | L37: 211
A38: 11 | B38: 4870 | C38: 22 | D38: 4881 | E38: 14 | F38: 4892 | K38: 0 | L38: 121
A39: 22 | B39: 5026 | C39: 13 | D39: 5044 | E39: 23 | F39: 5052 | K39: 0 | L39: 212
A40: 22 | B40: 5173 | C40: 24 | D40: 5182 | E40: 23 | F40: 5190 | K40: 0 | L40: 222
A41: 22 | B41: 5292 | C41: 24 | D41: 5307 | E41: 14 | F41: 5318 | K41: 0 | L41: 221
A42: 11 | B42: 5430 | C42: 22 | D42: 5441 | E42: 14 | F42: 5462 | K42: 0 | L42: 121
A43: 22 | B43: 5567 | C43: 13 | D43: 5584 | E43: 14 | F43: 5592 | K43: 0 | L43: 211
A44: 11 | B44: 5738 | C44: 22 | D44: 5750 | E44: 14 | F44: 5777 | K44: 0 | L44: 121
A45: 22 | B45: 5878 | C45: 13 | D45: 5890 | E45: 14 | F45: 5898 | K45: 0 | L45: 211
A46: 22 | B46: 6063 | C46: 24 | D46: 6068 | E46: 23 | F46: 6096 | K46: 0 | L46: 222
A47: 22 | B47: 6208 | C47: 24 | D47: 6214 | E47: 23 | F47: 6219 | K47: 0 | L47: 222
A48: 22 | B48: 6338 | C48: 24 | D48: 6346 | E48: 23 | F48: 6353 | K48: 0 | L48: 222
A49: 11 | B49: 6490 | C49: 22 | D49: 6506 | E49: 14 | F49: 6521 | K49: 0 | L49: 121
A50: 11 | B50: 6642 | C50: 22 | D50: 6654 | E50: 23 | F50: 6662 | K50: 0 | L50: 122
A51: 22 | B51: 6850 | C51: 13 | D51: 6863 | E51: 14 | F51: 6871 | K51: 0 | L51: 211
A52: 11 | B52: 7038 | C52: 11 | D52: 7046 | E52: 21 | F52: 7066 | K52: 0 | L52: 112
A53: 11 | B53: 7215 | C53: 22 | D53: 7224 | E53: 23 | F53: 7229 | K53: 0 | L53: 122
A54: 22 | B54: 7357 | C54: 13 | D54: 7367 | E54: 23 | F54: 7379 | K54: 0 | L54: 212
A55: 11 | B55: 7492 | C55: 11 | D55: 7503 | E55: 12 | F55: 7512 | K55: 0 | L55: 111
A56: 11 | B56: 7656 | C56: 22 | D56: 7670 | E56: 23 | F56: 7682 | K56: 0 | L56: 122
A57: 22 | B57: 7776 | C57: 13 | D57: 7787 | E57: 14 | F57: 7795 | K57: 0 | L57: 211
A58: 11 | B58: 7899 | C58: 22 | D58: 7911 | E58: 14 | F58: 7924 | K58: 0 | L58: 121
A59: 22 | B59: 8042 | C59: 24 | D59: 8049 | E59: 23 | F59: 8057 | K59: 0 | L59: 222
A60: 22 | B60: 8228 | C60: 24 | D60: 8250 | E60: 23 | F60: 8255 | K60: 0 | L60: 222
A61: 22 | B61: 8369 | C61: 13 | D61: 8383 | E61: 23 | F61: 8399 | K61: 0 | L61: 212
A62: 22 | B62: 8489 | C62: 13 | D62: 8499 | E62: 14 | F62: 8504 | K62: 0 | L62: 211
A63: 11 | B63: 8612 | C63: 22 | D63: 8624 | E63: 14 | F63: 8638 | K63: 0 | L63: 121
A64: 11 | B64: 8777 | C64: 22 | D64: 8789 | E64: 14 | F64: 8800 | K64: 0 | L64: 121
A65: 22 | B65: 8921 | C65: 24 | D65: 8928 | E65: 14 | F65: 8946 | K65: 0 | L65: 221
A66: 11 | B66: 9113 | C66: 11 | D66: 9127 | E66: 21 | F66: 9142 | K66: 0 | L66: 112
A67: 22 | B67: 9271 | C67: 13 | D67: 9284 | E67: 23 | F67: 9292 | K67: 0 | L67: 212
A68: 22 | B68: 9404 | C68: 24 | D68: 9424 | E68: 23 | F68: 9429 | K68: 0 | L68: 222
A69: 11 | B69: 9588 | C69: 22 | D69: 9610 | E69: 14 | F69: 9622 | K69: 0 | L69: 121
A70: 22 | B70: 9737 | C70: 13 | D70: 9748 | E70: 23 | F70: 9760 | K70: 0 | L70: 212
A71: 11 | B71: 9942 | C71: 22 | D71: 9954 | E71: 23 | F71: 9979 | K71: 0 | L71: 122
A72: 11 | B72: 10149 | C72: 22 | D72: 10164 | E72: 14 | F72: 10179 | K72: 0 | L72: 121
A73: 11 | B73: 10312 | C73: 22 | D73: 10325 | E73: 14 | F73: 10340 | K73: 0 | L73: 121
A74: 22 | B74: 10471 | C74: 24 | D74: 10479 | E74: 14 | F74: 10495 | K74: 0 | L74: 221
A75: 11 | B75: 10609 | C75: 22 | D75: 10621 | E75: 23 | F75: 10633 | K75: 0 | L75: 122
A76: 11 | B76: 10768 | C76: 22 | D76: 10777 | E76: 23 | F76: 10785 | K76: 0 | L76: 122
A77: 11 | B77: 10900 | C77: 22 | D77: 10912 | E77: 23 | F77: 10919 | K77: 0 | L77: 122
A78: 11 | B78: 11040 | C78: 22 | D78: 11051 | E78: 23 | F78: 11058 | K78: 0 | L78: 122
A79: 22 | B79: 11288 | C79: 24 | D79: 11294 | E79: 14 | F79: 11304 | K79: 0 | L79: 221
A80: 11 | B80: 11437 | C80: 22 | D80: 11449 | E80: 14 | F80: 11460 | K80: 0 | L80: 121
A81: 11 | B81: 11580 | C81: 22 | D81: 11592 | E81: 14 | F81: 11605 | K81: 0 | L81: 121
A82: 11 | B82: 11719 | C82: 11 | D82: 11749 | E82: 21 | F82: 11761 | K82: 0 | L82: 112
A83: 22 | B83: 11952 | C83: 24 | D83: 11957 | E83: 23 | F83: 11966 | K83: 0 | L83: 222
A84: 22 | B84: 12085 | C84: 13 | D84: 12099 | E84: 23 | F84: 12111 | K84: 0 | L84: 212
A85: 11 | B85: 12229 | C85: 22 | D85: 12243 | E85: 23 | F85: 12250 | K85: 0 | L85: 122
A86: 11 | B86: 12365 | C86: 22 | D86: 12379 | E86: 23 | F86: 12387 | K86: 0 | L86: 122
A87: 11 | B87: 12501 | C87: 11 | D87: 12508 | E87: 21 | F87: 12520 | K87: 0 | L87: 112
A88: 22 | B88: 12616 | C88: 24 | D88: 12663 | E88: 14 | F88: 12746 | K88: 0 | L88: 221
A89: 22 | B89: 12871 | C89: 24 | D89: 12878 | E89: 23 | F89: 12886 | K89: 0 | L89: 222
A90: 11 | B90: 13001 | C90: 22 | D90: 13015 | E90: 23 | F90: 13022 | K90: 0 | L90: 122
A91: 22 | B91: 13217 | C91: 24 | D91: 13225 | E91: 23 | F91: 13238 | K91: 0 | L91: 222
A92: 11 | B92: 13415 | C92: 22 | D92: 13427 | E92: 14 | F92: 13444 | K92: 0 | L92: 121
A93: 22 | B93: 13622 | C93: 24 | D93: 13627 | E93: 23 | F93: 13633 | K93: 0 | L93: 222
A94: 11 | B94: 13746 | C94: 11 | D94: 13754 | E94: 12 | F94: 13759 | K94: 0 | L94: 111
A95: 11 | B95: 13898 | C95: 11 | D95: 13905 | E95: 21 | F95: 13920 | K95: 0 | L95: 112
A96: 11 | B96: 14058 | C96: 11 | D96: 14067 | E96: 21 | F96: 14084 | K96: 0 | L96: 112
A97: 11 | B97: 14261 | C97: 11 | D97: 14268 | E97: 21 | F97: 14279 | K97: 0 | L97: 112
A98: 11 | B98: 14451 | C98: 11 | D98: 14459 | E98: 12 | F98: 14467 | K98: 0 | L98: 111
A99: 11 | B99: 14575 | C99: 22 | D99: 14586 | E99: 23 | F99: 14595 | K99: 0 | L99: 122
A100: 22 | B100: 14727 | C100: 24 | D100: 14738 | E100: 14 | F100: 14749 | K100: 0 | L100: 221
A101: 11 | B101: 14863 | C101: 22 | D101: 14875 | E101: 23 | F101: 14882 | K101: 0 | L101: 122
A102: 11 | B102: 15030 | C102: 22 | D102: 15043 | E102: 23 | F102: 15051 | K102: 0 | L102: 122
A103: 11 | B103: 15172 | C103: 22 | D103: 15184 | E103: 23 | F103: 15191 | K103: 0 | L103: 122
A104: 11 | B104: 15382 | C104: 11 | D104: 15387 | E104: 21 | F104: 15402 | K104: 0 | L104: 112
A105: 22 | B105: 15529 | C105: 24 | D105: 15534 | E105: 23 | F105: 15538 | K105: 0 | L105: 222
A106: 22 | B106: 15681 | C106: 24 | D106: 15777 | E106: 23 | F106: 15782 | K106: 0 | L106: 222
A107: 22 | B107: 15954 | C107: 13 | D107: 15967 | E107: 23 | F107: 15975 | K107: 0 | L107: 212
A108: 22 | B108: 16072 | C108: 13 | D108: 16086 | E108: 14 | F108: 16090 | K108: 0 | L108: 211
A109: 11 | B109: 16197 | C109: 22 | D109: 16209 | E109: 23 | F109: 16216 | K109: 0 | L109: 122
A110: 11 | B110: 16327 | C110: 11 | D110: 16337 | E110: 12 | F110: 16344 | K110: 0 | L110: 111
A111: 22 | B111: 16452 | C111: 24 | D111: 16458 | E111: 14 | F111: 16471 | K111: 0 | L111: 221
A112: 11 | B112: 16584 | C112: 22 | D112: 16596 | E112: 23 | F112: 16604 | K112: 0 | L112: 122
A113: 11 | B113: 16722 | C113: 22 | D113: 16734 | E113: 23 | F113: 16742 | K113: 0 | L113: 122
A114: 11 | B114: 16873 | C114: 22 | D114: 16887 | E114: 23 | F114: 16895 | K114: 0 | L114: 122
A115: 11 | B115: 17007 | C115: 22 | D115: 17019 | E115: 23 | F115: 17027 | K115: 0 | L115: 122
A116: 11 | B116: 17159 | C116: 22 | D116: 17175 | E116: 14 | F116: 17198 | K116: 0 | L116: 121
A117: 11 | B117: 17308 | C117: 11 | D117: 17321 | E117: 21 | F117: 17333 | K117: 0 | L117: 112
A118: 11 | B118: 17452 | C118: 11 | D118: 17460 | E118: 21 | F118: 17472 | K118: 0 | L118: 112
A119: 11 | B119: 17597 | C119: 11 | D119: 17602 | E119: 12 | F119: 17610 | K119: 0 | L119: 111
A120: 11 | B120: 17719 | C120: 11 | D120: 17732 | E120: 12 | F120: 17740 | K120: 0 | L120: 111
A121: 11 | B121: 17847 | C121: 11 | D121: 17852 | E121: 21 | F121: 17865 | K121: 0 | L121: 112
A122: 11 | B122: 18022 | C122: 22 | D122: 18035 | E122: 14 | F122: 18053 | K122: 0 | L122: 121
A123: 11 | B123: 18195 | C123: 11 | D123: 18204 | E123: 12 | F123: 18212 | K123: 0 | L123: 111
A124: 11 | B124: 18323 | C124: 22 | D124: 18336 | E124: 23 | F124: 18343 | K124: 0 | L124: 122
A125: 11 | B125: 18503 | C125: 11 | D125: 18508 | E125: 21 | F125: 18520 | K125: 0 | L125: 112
A126: 22 | B126: 18633 | C126: 24 | D126: 18640 | E126: 23 | F126: 18645 | K126: 0 | L126: 222
A127: 22 | B127: 18754 | C127: 13 | D127: 18764 | E127: 14 | F127: 18769 | K127: 0 | L127: 211
A128: 11 | B128: 18878 | C128: 22 | D128: 18888 | E128: 23 | F128: 18895 | K128: 0 | L128: 122
A129: 11 | B129: 19017 | C129: 22 | D129: 19029 | E129: 23 | F129: 19039 | K129: 0 | L129: 122
A130: 11 | B130: 19154 | C130: 11 | D130: 19163 | E130: 21 | F130: 19174 | K130: 0 | L130: 112
A131: 11 | B131: 19275 | C131: 22 | D131: 19299 | E131: 23 | F131: 19307 | K131: 0 | L131: 122
A132: 11 | B132: 19421 | C132: 11 | D132: 19425 | E132: 21 | F132: 19441 | K132: 0 | L132: 112
A133: 22 | B133: 19539 | C133: 24 | D133: 19540 | E133: 14 | F133: 19554 | K133: 0 | L133: 221
A134: 22 | B134: 19657 | C134: 24 | D134: 19678 | E134: 23 | F134: 19687 | K134: 0 | L134: 222
A135: 11 | B135: 19795 | C135: 22 | D135: 19807 | E135: 23 | F135: 19817 | K135: 0 | L135: 122
A136: 22 | B136: 19948 | C136: 13 | D136: 19963 | E136: 23 | F136: 19972 | K136: 0 | L136: 212
A137: 11 | B137: 20076 | C137: 11 | D137: 20081 | E137: 21 | F137: 20094 | K137: 0 | L137: 112
A138: 22 | B138: 20193 | C138: 13 | D138: 20205 | E138: 14 | F138: 20212 | K138: 0 | L138: 211
A139: 22 | B139: 20313 | C139: 24 | D139: 20363 | E139: 23 | F139: 20367 | K139: 0 | L139: 222
A140: 11 | B140: 20466 | C140: 22 | D140: 20477 | E140: 23 | F140: 20482 | K140: 0 | L140: 122
A141: 22 | B141: 20593 | C141: 13 | D141: 20606 | E141: 23 | F141: 20618 | K141: 0 | L141: 212
A142: 11 | B142: 20727 | C142: 11 | D142: 20735 | E142: 21 | F142: 20750 | K142: 0 | L142: 112
A143: 11 | B143: 20862 | C143: 22 | D143: 20872 | E143: 23 | F143: 20877 | K143: 0 | L143: 122
A144: 11 | B144: 20981 | C144: 22 | D144: 20994 | E144: 23 | F144: 21003 | K144: 0 | L144: 122
A145: 22 | B145: 21113 | C145: 24 | D145: 21118 | E145: 23 | F145: 21123 | K145: 0 | L145: 222
A146: 11 | B146: 21242 | C146: 22 | D146: 21254 | E146: 23 | F146: 21261 | K146: 0 | L146: 122
A147: 22 | B147: 21374 | C147: 24 | D147: 21378 | E147: 23 | F147: 21385 | K147: 0 | L147: 222
A148: 22 | B148: 21521 | C148: 24 | D148: 21528 | E148: 14 | F148: 21549 | K148: 0 | L148: 221
A149: 11 | B149: 21731 | C149: 11 | D149: 21746 | E149: 21 | F149: 21761 | K149: 0 | L149: 112
A150: 22 | B150: 21856 | C150: 13 | D150: 21869 | E150: 23 | F150: 21881 | K150: 0 | L150: 212
A151: 22 | B151: 21984 | C151: 13 | D151: 21993 | E151: 14 | F151: 22000 | K151: 0 | L151: 211
A152: 11 | B152: 22110 | C152: 22 | D152: 22122 | E152: 23 | F152: 22129 | K152: 0 | L152: 122
A153: 11 | B153: 22245 | C153: 11 | D153: 22253 | E153: 21 | F153: 22265 | K153: 0 | L153: 112
A154: 22 | B154: 22376 | C154: 24 | D154: 22397 | E154: 23 | F154: 22406 | K154: 0 | L154: 222
A155: 22 | B155: 22509 | C155: 13 | D155: 22521 | E155: 23 | F155: 22533 | K155: 0 | L155: 212
A156: 11 | B156: 22642 | C156: 11 | D156: 22647 | E156: 21 | F156: 22659 | K156: 0 | L156: 112
A157: 22 | B157: 22774 | C157: 24 | D157: 22783 | E157: 14 | F157: 22795 | K157: 0 | L157: 221
A158: 22 | B158: 22894 | C158: 13 | D158: 22906 | E158: 23 | F158: 22915 | K158: 0 | L158: 212
A159: 11 | B159: 23026 | C159: 22 | D159: 23038 | E159: 23 | F159: 23045 | K159: 0 | L159: 122
A160: 11 | B160: 23155 | C160: 22 | D160: 23167 | E160: 23 | F160: 23174 | K160: 0 | L160: 122
A161: 11 | B161: 23298 | C161: 22 | D161: 23309 | E161: 23 | F161: 23317 | K161: 0 | L161: 122
A162: 22 | B162: 23423 | C162: 13 | D162: 23432 | E162: 14 | F162: 23440 | K162: 0 | L162: 211
A163: 11 | B163: 23546 | C163: 11 | D163: 23553 | E163: 21 | F163: 23564 | K163: 0 | L163: 112
A164: 11 | B164: 23737 | C164: 11 | D164: 23742 | E164: 21 | F164: 23755 | K164: 0 | L164: 112
A165: 11 | B165: 23926 | C165: 22 | D165: 23938 | E165: 14 | F165: 23955 | L165: 121

Sheet !2011-06-29_10h57m.Subject 53
A1: Report for:!2011-06-29_10h57m.Subject 53
A2: Date | B2: 2011-06-29 | F2: Group | G2: var phase 2
A3: Hen | B3: 53 | F3: Correct Sequence | G3: =Start!J2 -> 122 | P3: Total Sequences in Data | Q3: =4994-COUNTBLANK(L7:L5000) -> 138 | V3: Total Sequences in Block Data | W3: =COUNTA(L7:L29) -> 23 | AA3: Total Sequences in Block Data | AB3: =COUNTA(L30:L52) -> 23 | AF3: Total Sequences in Block Data | AG3: =COUNTA(L53:L75) -> 23 | AK3: Total Sequences in Block Data | AL3: =COUNTA(L76:L98) -> 23 | AP3: Total Sequences in Block Data | AQ3: =COUNTA(L99:L121) -> 23 | AU3: Total Sequences in Block Data | AV3: =COUNTA(L122:L144) -> 23
A4: Program | B4: one | P4: Total Sequences in Summary | Q4: =SUM(O7:O14) -> 138 | V4: Total Sequences in Block Summary | W4: =SUM(U7:U14) -> 23 | AA4: Total Sequences in Block Summary | AB4: =SUM(Z7:Z14) -> 23 | AF4: Total Sequences in Block Summary | AG4: =SUM(AE7:AE14) -> 23 | AK4: Total Sequences in Block Summary | AL4: =SUM(AJ7:AJ14) -> 23 | AP4: Total Sequences in Block Summary | AQ4: =SUM(AO7:AO14) -> 23 | AU4: Total Sequences in Block Summary | AV4: =SUM(AT7:AT14) -> 23
T5: Block 1 | Y5: Block 2 | AD5: Block 3 | AI5: Block 4 | AN5: Block 5 | AS5: Block 6
A6: Sequence Component 1 | B6: Time 1 | C6: Sequence Component 2 | D6: Time 2 | E6: Sequence Component 3 | F6: Time 3 | G6: Sequence Component 4 | H6: Time 4 | I6: Sequence Component 5 | J6: Time 5 | K6: Correct? 0=No 1=Yes | L6: Sequence | N6: Frequency | P6: Relative Frequency | Q6: Variability | T6: Frequency | V6: Relative Frequency | W6: Variability | Y6: Frequency | AA6: Relative Frequency | AB6: Variability | AD6: Frequency | AF6: Relative Frequency | AG6: Variability | AI6: Frequency | AK6: Relative Frequency | AL6: Variability | AN6: Frequency | AP6: Relative Frequency | AQ6: Variability | AS6: Frequency | AU6: Relative Frequency | AV6: Variability
A7: 22 | B7: 295 | C7: 13 | D7: 309 | E7: 23 | F7: 321 | K7: 0 | L7: 212 | N7: 111 | O7: =COUNTIF($L$7:$L$500,N7) -> 9 | P7: =O7/$Q$4 -> 0.0652173913 | Q7: =IF(P7=0,0,(P7*((LOG(P7))/LOG(2)))) -> -0.2568651819 | T7: =N7 -> 111 | U7: =COUNTIF(L7:L29,T7) -> 2 | V7: =U7/(W4-U10) -> 0.1 | W7: =IF(V7=0,0,(V7*((LOG(V7))/LOG(2)))) -> -0.3321928095 | Y7: =N7 -> 111 | Z7: =COUNTIF(L30:L52,Y7) -> 0 | AA7: =Z7/(AB4-Z10) -> 0 | AB7: =IF(AA7=0,0,(AA7*((LOG(AA7))/LOG(2)))) -> 0 | AD7: =N7 -> 111 | AE7: =COUNTIF(L53:L75,AD7) -> 4 | AF7: =AE7/(AG4-AE10) -> 0.1904761905 | AG7: =IF(AF7=0,0,(AF7*((LOG(AF7))/LOG(2)))) -> -0.4556795091 | AI7: =N7 -> 111 | AJ7: =COUNTIF(L76:L98,AI7) -> 0 | AK7: =AJ7/(AL4-AJ10) -> 0 | AL7: =IF(AK7=0,0,(AK7*((LOG(AK7))/LOG(2)))) -> 0 | AN7: =N7 -> 111 | AO7: =COUNTIF(L99:L121,AN7) -> 2 | AP7: =AO7/(AQ4-AO10) -> 0.1176470588 | AQ7: =IF(AP7=0,0,(AP7*((LOG(AP7))/LOG(2)))) -> -0.3632309225 | AS7: =N7 -> 111 | AT7: =COUNTIF(L122:L144,AS7) -> 1 | AU7: =AT7/(AV4-AT10) -> 0.05882352941 | AV7: =IF(AU7=0,0,(AU7*((LOG(AU7))/LOG(2)))) -> -0.2404389907
A8: 22 | B8: 484 | C8: 24 | D8: 503 | E8: 23 | F8: 523 | K8: 0 | L8: 222 | N8: 112 | O8: =COUNTIF($L$7:$L$500,N8) -> 37 | P8: =O8/$Q$4 -> 0.268115942 | Q8: =IF(P8=0,0,(P8*((LOG(P8))/LOG(2)))) -> -0.5091712346 | T8: =N8 -> 112 | U8: =COUNTIF(L7:L29,T8) -> 4 | V8: =U8/(W4-U10) -> 0.2 | W8: =IF(V8=0,0,(V8*((LOG(V8))/LOG(2)))) -> -0.464385619 | Y8: =N8 -> 112 | Z8: =COUNTIF(L30:L52,Y8) -> 5 | AA8: =Z8/(AB4-Z10) -> 0.3125 | AB8: =IF(AA8=0,0,(AA8*((LOG(AA8))/LOG(2)))) -> -0.5243974703 | AD8: =N8 -> 112 | AE8: =COUNTIF(L53:L75,AD8) -> 9 | AF8: =AE8/(AG4-AE10) -> 0.4285714286 | AG8: =IF(AF8=0,0,(AF8*((LOG(AF8))/LOG(2)))) -> -0.5238824663 | AI8: =N8 -> 112 | AJ8: =COUNTIF(L76:L98,AI8) -> 3 | AK8: =AJ8/(AL4-AJ10) -> 0.2307692308 | AL8: =IF(AK8=0,0,(AK8*((LOG(AK8))/LOG(2)))) -> -0.4881870502 | AN8: =N8 -> 112 | AO8: =COUNTIF(L99:L121,AN8) -> 8 | AP8: =AO8/(AQ4-AO10) -> 0.4705882353 | AQ8: =IF(AP8=0,0,(AP8*((LOG(AP8))/LOG(2)))) -> -0.5117472194 | AS8: =N8 -> 112 | AT8: =COUNTIF(L122:L144,AS8) -> 8 | AU8: =AT8/(AV4-AT10) -> 0.4705882353 | AV8: =IF(AU8=0,0,(AU8*((LOG(AU8))/LOG(2)))) -> -0.5117472194
A9: 22 | B9: 679 | C9: 24 | D9: 684 | E9: 23 | F9: 692 | K9: 0 | L9: 222 | N9: 121 | O9: =COUNTIF($L$7:$L$500,N9) -> 33 | P9: =O9/$Q$4 -> 0.2391304348 | Q9: =IF(P9=0,0,(P9*((LOG(P9))/LOG(2)))) -> -0.493596385 | T9: =N9 -> 121 | U9: =COUNTIF(L7:L29,T9) -> 7 | V9: =U9/(W4-U10) -> 0.35 | W9: =IF(V9=0,0,(V9*((LOG(V9))/LOG(2)))) -> -0.5301006105 | Y9: =N9 -> 121 | Z9: =COUNTIF(L30:L52,Y9) -> 5 | AA9: =Z9/(AB4-Z10) -> 0.3125 | AB9: =IF(AA9=0,0,(AA9*((LOG(AA9))/LOG(2)))) -> -0.5243974703 | AD9: =N9 -> 121 | AE9: =COUNTIF(L53:L75,AD9) -> 6 | AF9: =AE9/(AG4-AE10) -> 0.2857142857 | AG9: =IF(AF9=0,0,(AF9*((LOG(AF9))/LOG(2)))) -> -0.5163871206 | AI9: =N9 -> 121 | AJ9: =COUNTIF(L76:L98,AI9) -> 5 | AK9: =AJ9/(AL4-AJ10) -> 0.3846153846 | AL9: =IF(AK9=0,0,(AK9*((LOG(AK9))/LOG(2)))) -> -0.5301967782 | AN9: =N9 -> 121 | AO9: =COUNTIF(L99:L121,AN9) -> 5 | AP9: =AO9/(AQ4-AO10) -> 0.2941176471 | AQ9: =IF(AP9=0,0,(AP9*((LOG(AP9))/LOG(2)))) -> -0.5192749254 | AS9: =N9 -> 121 | AT9: =COUNTIF(L122:L144,AS9) -> 5 | AU9: =AT9/(AV4-AT10) -> 0.2941176471 | AV9: =IF(AU9=0,0,(AU9*((LOG(AU9))/LOG(2)))) -> -0.5192749254
A10: 22 | B10: 823 | C10: 13 | D10: 834 | E10: 23 | F10: 847 | K10: 0 | L10: 212 | N10: 122 | O10: =COUNTIF($L$7:$L$500,N10) -> 34 | P10: =O10/$Q$4 -> 0.2463768116 | Q10: =IF(P10=0,0,(P10*((LOG(P10))/LOG(2)))) -> -0.4979427169 | T10: =N10 -> 122 | U10: =COUNTIF(L7:L29,T10) -> 3 | Y10: =N10 -> 122 | Z10: =COUNTIF(L30:L52,Y10) -> 7 | AD10: =N10 -> 122 | AE10: =COUNTIF(L53:L75,AD10) -> 2 | AI10: =N10 -> 122 | AJ10: =COUNTIF(L76:L98,AI10) -> 10 | AN10: =N10 -> 122 | AO10: =COUNTIF(L99:L121,AN10) -> 6 | AS10: =N10 -> 122 | AT10: =COUNTIF(L122:L144,AS10) -> 6
A11: 11 | B11: 962 | C11: 11 | D11: 969 | E11: 21 | F11: 982 | K11: 0 | L11: 112 | N11: 211 | O11: =COUNTIF($L$7:$L$500,N11) -> 6 | P11: =O11/$Q$4 -> 0.04347826087 | Q11: =IF(P11=0,0,(P11*((LOG(P11))/LOG(2)))) -> -0.1966766068 | T11: =N11 -> 211 | U11: =COUNTIF(L7:L29,T11) -> 1 | V11: =U11/(W4-U10) -> 0.05 | W11: =IF(V11=0,0,(V11*((LOG(V11))/LOG(2)))) -> -0.2160964047 | Y11: =N11 -> 211 | Z11: =COUNTIF(L30:L52,Y11) -> 1 | AA11: =Z11/(AB4-Z10) -> 0.0625 | AB11: =IF(AA11=0,0,(AA11*((LOG(AA11))/LOG(2)))) -> -0.25 | AD11: =N11 -> 211 | AE11: =COUNTIF(L53:L75,AD11) -> 2 | AF11: =AE11/(AG4-AE10) -> 0.09523809524 | AG11: =IF(AF11=0,0,(AF11*((LOG(AF11))/LOG(2)))) -> -0.3230778498 | AI11: =N11 -> 211 | AJ11: =COUNTIF(L76:L98,AI11) -> 0 | AK11: =AJ11/(AL4-AJ10) -> 0 | AL11: =IF(AK11=0,0,(AK11*((LOG(AK11))/LOG(2)))) -> 0 | AN11: =N11 -> 211 | AO11: =COUNTIF(L99:L121,AN11) -> 1 | AP11: =AO11/(AQ4-AO10) -> 0.05882352941 | AQ11: =IF(AP11=0,0,(AP11*((LOG(AP11))/LOG(2)))) -> -0.2404389907 | AS11: =N11 -> 211 | AT11: =COUNTIF(L122:L144,AS11) -> 1 | AU11: =AT11/(AV4-AT10) -> 0.05882352941 | AV11: =IF(AU11=0,0,(AU11*((LOG(AU11))/LOG(2)))) -> -0.2404389907
A12: 11 | B12: 1121 | C12: 22 | D12: 1133 | E12: 23 | F12: 1142 | K12: 0 | L12: 122 | N12: 212 | O12: =COUNTIF($L$7:$L$500,N12) -> 11 | P12: =O12/$Q$4 -> 0.07971014493 | Q12: =IF(P12=0,0,(P12*((LOG(P12))/LOG(2)))) -> -0.290869719 | T12: =N12 -> 212 | U12: =COUNTIF(L7:L29,T12) -> 3 | V12: =U12/(W4-U10) -> 0.15 | W12: =IF(V12=0,0,(V12*((LOG(V12))/LOG(2)))) -> -0.4105448391 | Y12: =N12 -> 212 | Z12: =COUNTIF(L30:L52,Y12) -> 2 | AA12: =Z12/(AB4-Z10) -> 0.125 | AB12: =IF(AA12=0,0,(AA12*((LOG(AA12))/LOG(2)))) -> -0.375 | AD12: =N12 -> 212 | AE12: =COUNTIF(L53:L75,AD12) -> 0 | AF12: =AE12/(AG4-AE10) -> 0 | AG12: =IF(AF12=0,0,(AF12*((LOG(AF12))/LOG(2)))) -> 0 | AI12: =N12 -> 212 | AJ12: =COUNTIF(L76:L98,AI12) -> 4 | AK12: =AJ12/(AL4-AJ10) -> 0.3076923077 | AL12: =IF(AK12=0,0,(AK12*((LOG(AK12))/LOG(2)))) -> -0.523212221 | AN12: =N12 -> 212 | AO12: =COUNTIF(L99:L121,AN12) -> 1 | AP12: =AO12/(AQ4-AO10) -> 0.05882352941 | AQ12: =IF(AP12=0,0,(AP12*((LOG(AP12))/LOG(2)))) -> -0.2404389907 | AS12: =N12 -> 212 | AT12: =COUNTIF(L122:L144,AS12) -> 1 | AU12: =AT12/(AV4-AT10) -> 0.05882352941 | AV12: =IF(AU12=0,0,(AU12*((LOG(AU12))/LOG(2)))) -> -0.2404389907
A13: 11 | B13: 1262 | C13: 22 | D13: 1274 | E13: 14 | F13: 1288 | K13: 0 | L13: 121 | N13: 221 | O13: =COUNTIF($L$7:$L$500,N13) -> 2 | P13: =O13/$Q$4 -> 0.01449275362 | Q13: =IF(P13=0,0,(P13*((LOG(P13))/LOG(2)))) -> -0.08852933995 | T13: =N13 -> 221 | U13: =COUNTIF(L7:L29,T13) -> 1 | V13: =U13/(W4-U10) -> 0.05 | W13: =IF(V13=0,0,(V13*((LOG(V13))/LOG(2)))) -> -0.2160964047 | Y13: =N13 -> 221 | Z13: =COUNTIF(L30:L52,Y13) -> 1 | AA13: =Z13/(AB4-Z10) -> 0.0625 | AB13: =IF(AA13=0,0,(AA13*((LOG(AA13))/LOG(2)))) -> -0.25 | AD13: =N13 -> 221 | AE13: =COUNTIF(L53:L75,AD13) -> 0 | AF13: =AE13/(AG4-AE10) -> 0 | AG13: =IF(AF13=0,0,(AF13*((LOG(AF13))/LOG(2)))) -> 0 | AI13: =N13 -> 221 | AJ13: =COUNTIF(L76:L98,AI13) -> 0 | AK13: =AJ13/(AL4-AJ10) -> 0 | AL13: =IF(AK13=0,0,(AK13*((LOG(AK13))/LOG(2)))) -> 0 | AN13: =N13 -> 221 | AO13: =COUNTIF(L99:L121,AN13) -> 0 | AP13: =AO13/(AQ4-AO10) -> 0 | AQ13: =IF(AP13=0,0,(AP13*((LOG(AP13))/LOG(2)))) -> 0 | AS13: =N13 -> 221 | AT13: =COUNTIF(L122:L144,AS13) -> 0 | AU13: =AT13/(AV4-AT10) -> 0 | AV13: =IF(AU13=0,0,(AU13*((LOG(AU13))/LOG(2)))) -> 0
A14: 11 | B14: 1399 | C14: 22 | D14: 1413 | E14: 14 | F14: 1430 | K14: 0 | L14: 121 | N14: 222 | O14: =COUNTIF($L$7:$L$500,N14) -> 6 | P14: =O14/$Q$4 -> 0.04347826087 | Q14: =IF(P14=0,0,(P14*((LOG(P14))/LOG(2)))) -> -0.1966766068 | T14: =N14 -> 222 | U14: =COUNTIF(L7:L29,T14) -> 2 | V14: =U14/(W4-U10) -> 0.1 | W14: =IF(V14=0,0,(V14*((LOG(V14))/LOG(2)))) -> -0.3321928095 | Y14: =N14 -> 222 | Z14: =COUNTIF(L30:L52,Y14) -> 2 | AA14: =Z14/(AB4-Z10) -> 0.125 | AB14: =IF(AA14=0,0,(AA14*((LOG(AA14))/LOG(2)))) -> -0.375 | AD14: =N14 -> 222 | AE14: =COUNTIF(L53:L75,AD14) -> 0 | AF14: =AE14/(AG4-AE10) -> 0 | AG14: =IF(AF14=0,0,(AF14*((LOG(AF14))/LOG(2)))) -> 0 | AI14: =N14 -> 222 | AJ14: =COUNTIF(L76:L98,AI14) -> 1 | AK14: =AJ14/(AL4-AJ10) -> 0.07692307692 | AL14: =IF(AK14=0,0,(AK14*((LOG(AK14))/LOG(2)))) -> -0.2846492091 | AN14: =N14 -> 222 | AO14: =COUNTIF(L99:L121,AN14) -> 0 | AP14: =AO14/(AQ4-AO10) -> 0 | AQ14: =IF(AP14=0,0,(AP14*((LOG(AP14))/LOG(2)))) -> 0 | AS14: =N14 -> 222 | AT14: =COUNTIF(L122:L144,AS14) -> 1 | AU14: =AT14/(AV4-AT10) -> 0.05882352941 | AV14: =IF(AU14=0,0,(AU14*((LOG(AU14))/LOG(2)))) -> -0.2404389907
A15: 22 | B15: 1583 | C15: 24 | D15: 1588 | E15: 14 | F15: 1604 | K15: 0 | L15: 221 | P15: =SUM(P7:P14) -> 1 | Q15: =-SUM(Q7:Q14) -> 2.530327791 | V15: =SUM(V7:V14) -> 1 | W15: =-SUM(W7:W14) -> 2.501609497 | AA15: =SUM(AA7:AA14) -> 1 | AB15: =-SUM(AB7:AB14) -> 2.298794941 | AF15: =SUM(AF7:AF14) -> 1 | AG15: =-SUM(AG7:AG14) -> 1.819026946 | AK15: =SUM(AK7:AK14) -> 1 | AL15: =-SUM(AL7:AL14) -> 1.826245258 | AP15: =SUM(AP7:AP14) -> 1 | AQ15: =-SUM(AQ7:AQ14) -> 1.875131049 | AU15: =SUM(AU7:AU14) -> 1 | AV15: =-SUM(AV7:AV14) -> 1.992778107
A16: 22 | B16: 1730 | C16: 13 | D16: 1748 | E16: 23 | F16: 1761 | K16: 0 | L16: 212 | P16: U= | Q16: =Q15/(LOG(Q4)/LOG(2)) -> 0.3559568243 | V16: U1= | W16: =W15/(LOG(W4)/LOG(2)) -> 0.5530176267 | AA16: U2= | AB16: =AB15/(LOG(AB4)/LOG(2)) -> 0.5081824816 | AF16: U3= | AG16: =AG15/(LOG(AG4)/LOG(2)) -> 0.4021226996 | AK16: U4= | AL16: =AL15/(LOG(AL4)/LOG(2)) -> 0.403718414 | AP16: U5= | AQ16: =AQ15/(LOG(AQ4)/LOG(2)) -> 0.414525338 | AU16: U6= | AV16: =AV15/(LOG(AV4)/LOG(2)) -> 0.4405329532
A17: 11 | B17: 1878 | C17: 22 | D17: 1892 | E17: 23 | F17: 1903 | K17: 0 | L17: 122
A18: 11 | B18: 2014 | C18: 22 | D18: 2051 | E18: 23 | F18: 2062 | K18: 0 | L18: 122
A19: 11 | B19: 2177 | C19: 22 | D19: 2190 | E19: 14 | F19: 2206 | K19: 0 | L19: 121 | N19: Total Target Seq
A20: 11 | B20: 2323 | C20: 11 | D20: 2331 | E20: 21 | F20: 2343 | K20: 0 | L20: 112 | N20: =COUNTIF(L7:L144,G3) -> 34 | P20: 23 | Q20: 23 | R20: 23 | S20: 23 | T20: 23 | U20: 23
A21: 11 | B21: 2476 | C21: 11 | D21: 2485 | E21: 12 | F21: 2492 | K21: 0 | L21: 111 | P21: % of reinforcement given in 6 equal intervals based on number of trials
A22: 11 | B22: 2598 | C22: 11 | D22: 2606 | E22: 21 | F22: 2620 | K22: 0 | L22: 112 | P22: %_1 | Q22: %_2 | R22: %_3 | S22: %_4 | T22: %_5 | U22: %_6
A23: 11 | B23: 2746 | C23: 11 | D23: 2754 | E23: 12 | F23: 2761 | K23: 0 | L23: 111 | O23: target sequence | P23: =$G$3 -> 122 | Q23: =$G$3 -> 122 | R23: =$G$3 -> 122 | S23: =$G$3 -> 122 | T23: =$G$3 -> 122 | U23: =$G$3 -> 122
A24: 11 | B24: 2861 | C24: 11 | D24: 2868 | E24: 21 | F24: 2880 | K24: 0 | L24: 112 | O24: total reinforcement | P24: =U10 -> 3 | Q24: =Z10 -> 7 | R24: =AE10 -> 2 | S24: =AJ10 -> 10 | T24: =AO10 -> 6 | U24: =AT10 -> 6
A25: 11 | B25: 3018 | C25: 22 | D25: 3040 | E25: 14 | F25: 3060 | K25: 0 | L25: 121 | O25: % target
A26: 11 | B26: 3205 | C26: 22 | D26: 3220 | E26: 14 | F26: 3236 | K26: 0 | L26: 121 | O26: CCRF
A27: 11 | B27: 3370 | C27: 22 | D27: 3383 | E27: 14 | F27: 3396 | K27: 0 | L27: 121 | O27: % CCRf
A28: 22 | B28: 3500 | C28: 13 | D28: 3509 | E28: 14 | F28: 3518 | K28: 0 | L28: 211 | O28: average response rate | P28: =F29/P20 -> 161.173913 | Q28: =(F52-F29)/Q20 -> 155.6086957 | R28: =(F75-F52)/R20 -> 136.4782609 | S28: =(F98-F75)/S20 -> 133.173913 | T28: =(F121-F98)/T20 -> 135.2173913 | U28: =(F144-F121)/U20 -> 141.0434783
A29: 11 | B29: 3674 | C29: 22 | D29: 3688 | E29: 14 | F29: 3707 | K29: 0 | L29: 121
A30: 11 | B30: 3836 | C30: 22 | D30: 3848 | E30: 14 | F30: 3865 | K30: 0 | L30: 121
A31: 11 | B31: 4008 | C31: 11 | D31: 4015 | E31: 21 | F31: 4031 | K31: 0 | L31: 112
A32: 11 | B32: 4178 | C32: 22 | D32: 4191 | E32: 14 | F32: 4202 | K32: 0 | L32: 121
A33: 11 | B33: 4318 | C33: 11 | D33: 4328 | E33: 21 | F33: 4340 | K33: 0 | L33: 112
A34: 11 | B34: 4489 | C34: 22 | D34: 4501 | E34: 23 | F34: 4509 | K34: 0 | L34: 122
A35: 11 | B35: 4643 | C35: 22 | D35: 4654 | E35: 23 | F35: 4659 | K35: 0 | L35: 122
A36: 11 | B36: 4794 | C36: 22 | D36: 4805 | E36: 14 | F36: 4817 | K36: 0 | L36: 121
A37: 11 | B37: 4941 | C37: 22 | D37: 4952 | E37: 23 | F37: 4958 | K37: 0 | L37: 122
A38: 22 | B38: 5086 | C38: 24 | D38: 5103 | E38: 23 | F38: 5129 | K38: 0 | L38: 222
A39: 22 | B39: 5258 | C39: 13 | D39: 5284 | E39: 23 | F39: 5296 | K39: 0 | L39: 212
A40: 11 | B40: 5403 | C40: 11 | D40: 5411 | E40: 21 | F40: 5423 | K40: 0 | L40: 112
A41: 11 | B41: 5569 | C41: 22 | D41: 5581 | E41: 23 | F41: 5589 | K41: 0 | L41: 122
A42: 11 | B42: 5730 | C42: 22 | D42: 5753 | E42: 14 | F42: 5764 | K42: 0 | L42: 121
A43: 11 | B43: 5907 | C43: 22 | D43: 5917 | E43: 23 | F43: 5922 | K43: 0 | L43: 122
A44: 22 | B44: 6077 | C44: 24 | D44: 6088 | E44: 14 | F44: 6109 | K44: 0 | L44: 221
A45: 22 | B45: 6227 | C45: 13 | D45: 6236 | E45: 14 | F45: 6243 | K45: 0 | L45: 211
A46: 22 | B46: 6381 | C46: 24 | D46: 6394 | E46: 23 | F46: 6402 | K46: 0 | L46: 222
A47: 11 | B47: 6517 | C47: 11 | D47: 6524 | E47: 21 | F47: 6536 | K47: 0 | L47: 112
A48: 22 | B48: 6675 | C48: 13 | D48: 6686 | E48: 23 | F48: 6700 | K48: 0 | L48: 212
A49: 11 | B49: 6831 | C49: 22 | D49: 6840 | E49: 23 | F49: 6844 | K49: 0 | L49: 122
A50: 11 | B50: 6947 | C50: 11 | D50: 6954 | E50: 21 | F50: 6969 | K50: 0 | L50: 112
A51: 11 | B51: 7113 | C51: 22 | D51: 7126 | E51: 23 | F51: 7133 | K51: 0 | L51: 122
A52: 11 | B52: 7253 | C52: 22 | D52: 7265 | E52: 14 | F52: 7286 | K52: 0 | L52: 121
A53: 11 | B53: 7393 | C53: 11 | D53: 7413 | E53: 12 | F53: 7421 | K53: 0 | L53: 111
A54: 11 | B54: 7564 | C54: 11 | D54: 7572 | E54: 21 | F54: 7583 | K54: 0 | L54: 112
A55: 11 | B55: 7774 | C55: 22 | D55: 7786 | E55: 14 | F55: 7799 | K55: 0 | L55: 121
A56: 11 | B56: 7902 | C56: 11 | D56: 7910 | E56: 21 | F56: 7922 | K56: 0 | L56: 112
A57: 22 | B57: 8034 | C57: 13 | D57: 8045 | E57: 14 | F57: 8053 | K57: 0 | L57: 211
A58: 11 | B58: 8169 | C58: 22 | D58: 8180 | E58: 23 | F58: 8189 | K58: 0 | L58: 122
A59: 11 | B59: 8290 | C59: 11 | D59: 8298 | E59: 21 | F59: 8310 | K59: 0 | L59: 112
A60: 22 | B60: 8412 | C60: 13 | D60: 8420 | E60: 14 | F60: 8427 | K60: 0 | L60: 211
A61: 11 | B61: 8531 | C61: 22 | D61: 8543 | E61: 14 | F61: 8554 | K61: 0 | L61: 121
A62: 11 | B62: 8660 | C62: 22 | D62: 8671 | E62: 14 | F62: 8680 | K62: 0 | L62: 121
A63: 11 | B63: 8793 | C63: 11 | D63: 8798 | E63: 12 | F63: 8805 | K63: 0 | L63: 111
A64: 11 | B64: 8938 | C64: 11 | D64: 9010 | E64: 21 | F64: 9029 | K64: 0 | L64: 112
A65: 11 | B65: 9139 | C65: 11 | D65: 9146 | E65: 21 | F65: 9157 | K65: 0 | L65: 112
A66: 11 | B66: 9259 | C66: 22 | D66: 9270 | E66: 14 | F66: 9291 | K66: 0 | L66: 121
A67: 11 | B67: 9387 | C67: 11 | D67: 9394 | E67: 12 | F67: 9401 | K67: 0 | L67: 111
A68: 11 | B68: 9499 | C68: 11 | D68: 9506 | E68: 21 | F68: 9519 | K68: 0 | L68: 112
A69: 11 | B69: 9626 | C69: 11 | D69: 9634 | E69: 21 | F69: 9647 | K69: 0 | L69: 112
A70: 11 | B70: 9756 | C70: 11 | D70: 9761 | E70: 21 | F70: 9774 | K70: 0 | L70: 112
A71: 11 | B71: 9880 | C71: 11 | D71: 9887 | E71: 12 | F71: 9892 | K71: 0 | L71: 111
A72: 11 | B72: 10006 | C72: 22 | D72: 10018 | E72: 23 | F72: 10028 | K72: 0 | L72: 122
A73: 11 | B73: 10138 | C73: 22 | D73: 10153 | E73: 14 | F73: 10167 | K73: 0 | L73: 121
A74: 11 | B74: 10269 | C74: 22 | D74: 10281 | E74: 14 | F74: 10300 | K74: 0 | L74: 121
A75: 11 | B75: 10406 | C75: 11 | D75: 10413 | E75: 21 | F75: 10425 | K75: 0 | L75: 112
A76: 22 | B76: 10525 | C76: 13 | D76: 10545 | E76: 23 | F76: 10557 | K76: 0 | L76: 212
A77: 11 | B77: 10667 | C77: 22 | D77: 10679 | E77: 14 | F77: 10696 | K77: 0 | L77: 121
A78: 11 | B78: 10796 | C78: 22 | D78: 10808 | E78: 14 | F78: 10820 | K78: 0 | L78: 121
A79: 11 | B79: 10927 | C79: 22 | D79: 10936 | E79: 23 | F79: 10944 | K79: 0 | L79: 122
A80: 22 | B80: 11050 | C80: 13 | D80: 11060 | E80: 23 | F80: 11071 | K80: 0 | L80: 212
A81: 22 | B81: 11180 | C81: 24 | D81: 11188 | E81: 23 | F81: 11195 | K81: 0 | L81: 222
A82: 11 | B82: 11307 | C82: 22 | D82: 11318 | E82: 14 | F82: 11327 | K82: 0 | L82: 121
A83: 11 | B83: 11432 | C83: 22 | D83: 11443 | E83: 23 | F83: 11451 | K83: 0 | L83: 122
A84: 11 | B84: 11551 | C84: 11 | D84: 11580 | E84: 21 | F84: 11595 | K84: 0 | L84: 112
A85: 11 | B85: 11694 | C85: 22 | D85: 11705 | E85: 23 | F85: 11715 | K85: 0 | L85: 122
A86: 22 | B86: 11830 | C86: 13 | D86: 11841 | E86: 23 | F86: 11854 | K86: 0 | L86: 212
A87: 11 | B87: 11958 | C87: 11 | D87: 11965 | E87: 21 | F87: 11989 | K87: 0 | L87: 112
A88: 11 | B88: 12094 | C88: 22 | D88: 12105 | E88: 23 | F88: 12113 | K88: 0 | L88: 122
A89: 11 | B89: 12219 | C89: 22 | D89: 12228 | E89: 23 | F89: 12235 | K89: 0 | L89: 122
A90: 11 | B90: 12340 | C90: 22 | D90: 12352 | E90: 23 | F90: 12358 | K90: 0 | L90: 122
A91: 11 | B91: 12482 | C91: 22 | D91: 12494 | E91: 23 | F91: 12502 | K91: 0 | L91: 122
A92: 11 | B92: 12653 | C92: 22 | D92: 12662 | E92: 23 | F92: 12668 | K92: 0 | L92: 122
A93: 11 | B93: 12779 | C93: 22 | D93: 12791 | E93: 14 | F93: 12808 | K93: 0 | L93: 121
A94: 11 | B94: 12918 | C94: 22 | D94: 12929 | E94: 14 | F94: 12946 | K94: 0 | L94: 121
A95: 11 | B95: 13059 | C95: 22 | D95: 13070 | E95: 23 | F95: 13093 | K95: 0 | L95: 122
A96: 11 | B96: 13206 | C96: 22 | D96: 13217 | E96: 23 | F96: 13228 | K96: 0 | L96: 122
A97: 11 | B97: 13337 | C97: 11 | D97: 13346 | E97: 21 | F97: 13358 | K97: 0 | L97: 112
A98: 22 | B98: 13467 | C98: 13 | D98: 13479 | E98: 23 | F98: 13488 | K98: 0 | L98: 212
A99: 11 | B99: 13595 | C99: 11 | D99: 13602 | E99: 12 | F99: 13607 | K99: 0 | L99: 111
A100: 11 | B100: 13718 | C100: 22 | D100: 13730 | E100: 23 | F100: 13738 | K100: 0 | L100: 122
A101: 11 | B101: 13844 | C101: 22 | D101: 13855 | E101: 14 | F101: 13865 | K101: 0 | L101: 121
A102: 11 | B102: 13975 | C102: 22 | D102: 13987 | E102: 23 | F102: 13998 | K102: 0 | L102: 122
A103: 11 | B103: 14103 | C103: 22 | D103: 14115 | E103: 14 | F103: 14128 | K103: 0 | L103: 121
A104: 11 | B104: 14237 | C104: 11 | D104: 14245 | E104: 21 | F104: 14259 | K104: 0 | L104: 112
A105: 11 | B105: 14383 | C105: 22 | D105: 14407 | E105: 23 | F105: 14420 | K105: 0 | L105: 122
A106: 11 | B106: 14521 | C106: 11 | D106: 14527 | E106: 21 | F106: 14539 | K106: 0 | L106: 112
A107: 11 | B107: 14657 | C107: 11 | D107: 14666 | E107: 21 | F107: 14682 | K107: 0 | L107: 112
A108: 11 | B108: 14837 | C108: 11 | D108: 14842 | E108: 21 | F108: 14854 | K108: 0 | L108: 112
A109: 11 | B109: 14969 | C109: 11 | D109: 14975 | E109: 21 | F109: 14983 | K109: 0 | L109: 112
A110: 11 | B110: 15118 | C110: 22 | D110: 15126 | E110: 23 | F110: 15131 | K110: 0 | L110: 122
A111: 22 | B111: 15249 | C111: 13 | D111: 15258 | E111: 14 | F111: 15265 | K111: 0 | L111: 211
A112: 11 | B112: 15373 | C112: 22 | D112: 15386 | E112: 23 | F112: 15399 | K112: 0 | L112: 122
A113: 11 | B113: 15515 | C113: 11 | D113: 15523 | E113: 21 | F113: 15535 | K113: 0 | L113: 112
A114: 11 | B114: 15663 | C114: 22 | D114: 15676 | E114: 14 | F114: 15690 | K114: 0 | L114: 121
A115: 11 | B115: 15795 | C115: 22 | D115: 15806 | E115: 14 | F115: 15821 | K115: 0 | L115: 121
A116: 11 | B116: 15925 | C116: 11 | D116: 15931 | E116: 21 | F116: 15943 | K116: 0 | L116: 112
A117: 11 | B117: 16074 | C117: 22 | D117: 16086 | E117: 23 | F117: 16093 | K117: 0 | L117: 122
A118: 11 | B118: 16196 | C118: 11 | D118: 16200 | E118: 12 | F118: 16205 | K118: 0 | L118: 111
A119: 11 | B119: 16308 | C119: 22 | D119: 16317 | E119: 14 | F119: 16325 | K119: 0 | L119: 121
A120: 22 | B120: 16439 | C120: 13 | D120: 16451 | E120: 23 | F120: 16462 | K120: 0 | L120: 212
A121: 11 | B121: 16577 | C121: 11 | D121: 16585 | E121: 21 | F121: 16598 | K121: 0 | L121: 112
A122: 11 | B122: 16719 | C122: 11 | D122: 16725 | E122: 12 | F122: 16733 | K122: 0 | L122: 111
A123: 11 | B123: 16836 | C123: 22 | D123: 16849 | E123: 23 | F123: 16857 | K123: 0 | L123: 122
A124: 11 | B124: 16967 | C124: 22 | D124: 16979 | E124: 23 | F124: 16986 | K124: 0 | L124: 122
A125: 11 | B125: 17125 | C125: 11 | D125: 17132 | E125: 21 | F125: 17146 | K125: 0 | L125: 112
A126: 22 | B126: 17340 | C126: 24 | D126: 17348 | E126: 23 | F126: 17364 | K126: 0 | L126: 222
A127: 11 | B127: 17469 | C127: 11 | D127: 17476 | E127: 21 | F127: 17488 | K127: 0 | L127: 112
A128: 11 | B128: 17623 | C128: 22 | D128: 17635 | E128: 14 | F128: 17648 | K128: 0 | L128: 121
A129: 11 | B129: 17756 | C129: 22 | D129: 17767 | E129: 23 | F129: 17775 | K129: 0 | L129: 122
A130: 11 | B130: 17879 | C130: 11 | D130: 17884 | E130: 21 | F130: 17895 | K130: 0 | L130: 112
A131: 22 | B131: 18026 | C131: 13 | D131: 18039 | E131: 23 | F131: 18050 | K131: 0 | L131: 212
A132: 11 | B132: 18154 | C132: 22 | D132: 18163 | E132: 23 | F132: 18171 | K132: 0 | L132: 122
A133: 11 | B133: 18278 | C133: 11 | D133: 18284 | E133: 21 | F133: 18297 | K133: 0 | L133: 112
A134: 11 | B134: 18434 | C134: 22 | D134: 18446 | E134: 23 | F134: 18457 | K134: 0 | L134: 122
A135: 11 | B135: 18558 | C135: 22 | D135: 18568 | E135: 14 | F135: 18578 | K135: 0 | L135: 121
A136: 11 | B136: 18687 | C136: 22 | D136: 18698 | E136: 23 | F136: 18706 | K136: 0 | L136: 122
A137: 11 | B137: 18838 | C137: 11 | D137: 18845 | E137: 21 | F137: 18856 | K137: 0 | L137: 112
A138: 11 | B138: 19000 | C138: 11 | D138: 19008 | E138: 21 | F138: 19019 | K138: 0 | L138: 112
A139: 22 | B139: 19131 | C139: 13 | D139: 19149 | E139: 14 | F139: 19156 | K139: 0 | L139: 211
A140: 11 | B140: 19264 | C140: 11 | D140: 19272 | E140: 21 | F140: 19283 | K140: 0 | L140: 112
A141: 11 | B141: 19434 | C141: 22 | D141: 19445 | E141: 14 | F141: 19460 | K141: 0 | L141: 121
A142: 11 | B142: 19564 | C142: 22 | D142: 19575 | E142: 14 | F142: 19588 | K142: 0 | L142: 121
A143: 11 | B143: 19689 | C143: 22 | D143: 19702 | E143: 14 | F143: 19721 | K143: 0 | L143: 121
A144: 11 | B144: 19823 | C144: 11 | D144: 19830 | E144: 21 | F144: 19842 | K144: 1 | L144: 112

Sheet !2011-06-30_09h15m.Subject 53
A1: Report for:!2011-06-30_09h15m.Subject 53
A2: Date | B2: 2011-06-30 | F2: Group | G2: var phase 2
A3: Hen | B3: 53 | F3: Correct Sequence | G3: =Start!J2 -> 122 | P3: Total Sequences in Data | Q3: =4994-COUNTBLANK(L7:L5000) -> 81 | V3: Total Sequences in Block Data | W3: =COUNTA(L7:L20) -> 14 | AA3: Total Sequences in Block Data | AB3: =COUNTA(L21:L33) -> 13 | AF3: Total Sequences in Block Data | AG3: =COUNTA(L34:L47) -> 14 | AK3: Total Sequences in Block Data | AL3: =COUNTA(L48:L60) -> 13 | AP3: Total Sequences in Block Data | AQ3: =COUNTA(L61:L74) -> 14 | AU3: Total Sequences in Block Data | AV3: =COUNTA(L75:L87) -> 13
A4: Program | B4: one | P4: Total Sequences in Summary | Q4: =SUM(O7:O14) -> 81 | V4: Total Sequences in Block Summary | W4: =SUM(U7:U14) -> 14 | AA4: Total Sequences in Block Summary | AB4: =SUM(Z7:Z14) -> 13 | AF4: Total Sequences in Block Summary | AG4: =SUM(AE7:AE14) -> 14 | AK4: Total Sequences in Block Summary | AL4: =SUM(AJ7:AJ14) -> 13 | AP4: Total Sequences in Block Summary | AQ4: =SUM(AO7:AO14) -> 14 | AU4: Total Sequences in Block Summary | AV4: =SUM(AT7:AT14) -> 13
T5: Block 1 | Y5: Block 2 | AD5: Block 3 | AI5: Block 4 | AN5: Block 5 | AS5: Block 6
A6: Sequence Component 1 | B6: Time 1 | C6: Sequence Component 2 | D6: Time 2 | E6: Sequence Component 3 | F6: Time 3 | G6: Sequence Component 4 | H6: Time 4 | I6: Sequence Component 5 | J6: Time 5 | K6: Correct? 0=No 1=Yes | L6: Sequence | N6: Frequency | P6: Relative Frequency | Q6: Variability | T6: Frequency | V6: Relative Frequency | W6: Variability | Y6: Frequency | AA6: Relative Frequency | AB6: Variability | AD6: Frequency | AF6: Relative Frequency | AG6: Variability | AI6: Frequency | AK6: Relative Frequency | AL6: Variability | AN6: Frequency | AP6: Relative Frequency | AQ6: Variability | AS6: Frequency | AU6: Relative Frequency | AV6: Variability
A7: 11 | B7: 101 | C7: 22 | D7: 113 | E7: 23 | F7: 124 | K7: 0 | L7: 122 | N7: 111 | O7: =COUNTIF($L$7:$L$500,N7) -> 7 | P7: =O7/$Q$4 -> 0.08641975309 | Q7: =IF(P7=0,0,(P7*((LOG(P7))/LOG(2)))) -> -0.3052773527 | T7: =N7 -> 111 | U7: =COUNTIF(L7:L20,T7) -> 1 | V7: =U7/(W4-U10) -> 0.09090909091 | W7: =IF(V7=0,0,(V7*((LOG(V7))/LOG(2)))) -> -0.3144937835 | Y7: =N7 -> 111 | Z7: =COUNTIF(L21:L33,Y7) -> 0 | AA7: =Z7/(AB4-Z10) -> 0 | AB7: =IF(AA7=0,0,(AA7*((LOG(AA7))/LOG(2)))) -> 0 | AD7: =N7 -> 111 | AE7: =COUNTIF(L34:L47,AD7) -> 0 | AF7: =AE7/(AG4-AE10) -> 0 | AG7: =IF(AF7=0,0,(AF7*((LOG(AF7))/LOG(2)))) -> 0 | AI7: =N7 -> 111 | AJ7: =COUNTIF(L48:L60,AI7) -> 3 | AK7: =AJ7/(AL4-AJ10) -> 0.25 | AL7: =IF(AK7=0,0,(AK7*((LOG(AK7))/LOG(2)))) -> -0.5 | AN7: =N7 -> 111 | AO7: =COUNTIF(L61:L74,AN7) -> 2 | AP7: =AO7/(AQ4-AO10) -> 0.1428571429 | AQ7: =IF(AP7=0,0,(AP7*((LOG(AP7))/LOG(2)))) -> -0.4010507032 | AS7: =N7 -> 111 | AT7: =COUNTIF(L75:L87,AS7) -> 1 | AU7: =AT7/(AV4-AT10) -> 0.08333333333 | AV7: =IF(AU7=0,0,(AU7*((LOG(AU7))/LOG(2)))) -> -0.2987468751
A8: 11 | B8: 266 | C8: 22 | D8: 278 | E8: 23 | F8: 283 | K8: 0 | L8: 122 | N8: 112 | O8: =COUNTIF($L$7:$L$500,N8) -> 39 | P8: =O8/$Q$4 -> 0.4814814815 | Q8: =IF(P8=0,0,(P8*((LOG(P8))/LOG(2)))) -> -0.5076970812 | T8: =N8 -> 112 | U8: =COUNTIF(L7:L20,T8) -> 4 | V8: =U8/(W4-U10) -> 0.3636363636 | W8: =IF(V8=0,0,(V8*((LOG(V8))/LOG(2)))) -> -0.5307024068 | Y8: =N8 -> 112 | Z8: =COUNTIF(L21:L33,Y8) -> 4 | AA8: =Z8/(AB4-Z10) -> 0.3636363636 | AB8: =IF(AA8=0,0,(AA8*((LOG(AA8))/LOG(2)))) -> -0.5307024068 | AD8: =N8 -> 112 | AE8: =COUNTIF(L34:L47,AD8) -> 6 | AF8: =AE8/(AG4-AE10) -> 0.75 | AG8: =IF(AF8=0,0,(AF8*((LOG(AF8))/LOG(2)))) -> -0.3112781245 | AI8: =N8 -> 112 | AJ8: =COUNTIF(L48:L60,AI8) -> 6 | AK8: =AJ8/(AL4-AJ10) -> 0.5 | AL8: =IF(AK8=0,0,(AK8*((LOG(AK8))/LOG(2)))) -> -0.5 | AN8: =N8 -> 112 | AO8: =COUNTIF(L61:L74,AN8) -> 8 | AP8: =AO8/(AQ4-AO10) -> 0.5714285714 | AQ8: =IF(AP8=0,0,(AP8*((LOG(AP8))/LOG(2)))) -> -0.4613456697 | AS8: =N8 -> 112 | AT8: =COUNTIF(L75:L87,AS8) -> 11 | AU8: =AT8/(AV4-AT10) -> 0.9166666667 | AV8: =IF(AU8=0,0,(AU8*((LOG(AU8))/LOG(2)))) -> -0.1150699752
A9: 22 | B9: 387 | C9: 24 | D9: 410 | E9: 23 | F9: 418 | K9: 0 | L9: 222 | N9: 121 | O9: =COUNTIF($L$7:$L$500,N9) -> 11 | P9: =O9/$Q$4 -> 0.1358024691 | Q9: =IF(P9=0,0,(P9*((LOG(P9))/LOG(2)))) -> -0.3911679287 | T9: =N9 -> 121 | U9: =COUNTIF(L7:L20,T9) -> 3 | V9: =U9/(W4-U10) -> 0.2727272727 | W9: =IF(V9=0,0,(V9*((LOG(V9))/LOG(2)))) -> -0.5112188503 | Y9: =N9 -> 121 | Z9: =COUNTIF(L21:L33,Y9) -> 5 | AA9: =Z9/(AB4-Z10) -> 0.4545454545 | AB9: =IF(AA9=0,0,(AA9*((LOG(AA9))/LOG(2)))) -> -0.5170470562 | AD9: =N9 -> 121 | AE9: =COUNTIF(L34:L47,AD9) -> 2 | AF9: =AE9/(AG4-AE10) -> 0.25 | AG9: =IF(AF9=0,0,(AF9*((LOG(AF9))/LOG(2)))) -> -0.5 | AI9: =N9 -> 121 | AJ9: =COUNTIF(L48:L60,AI9) -> 0 | AK9: =AJ9/(AL4-AJ10) -> 0 | AL9: =IF(AK9=0,0,(AK9*((LOG(AK9))/LOG(2)))) -> 0 | AN9: =N9 -> 121 | AO9: =COUNTIF(L61:L74,AN9) -> 1 | AP9: =AO9/(AQ4-AO10) -> 0.07142857143 | AQ9: =IF(AP9=0,0,(AP9*((LOG(AP9))/LOG(2)))) -> -0.271953923 | AS9: =N9 -> 121 | AT9: =COUNTIF(L75:L87,AS9) -> 0 | AU9: =AT9/(AV4-AT10) -> 0 | AV9: =IF(AU9=0,0,(AU9*((LOG(AU9))/LOG(2)))) -> 0
A10: 22 | B10: 607 | C10: 13 | D10: 619 | E10: 14 | F10: 625 | K10: 0 | L10: 211 | N10: 122 | O10: =COUNTIF($L$7:$L$500,N10) -> 13 | P10: =O10/$Q$4 -> 0.1604938272 | Q10: =IF(P10=0,0,(P10*((LOG(P10))/LOG(2)))) -> -0.423609058 | T10: =N10 -> 122 | U10: =COUNTIF(L7:L20,T10) -> 3 | Y10: =N10 -> 122 | Z10: =COUNTIF(L21:L33,Y10) -> 2 | AD10: =N10 -> 122 | AE10: =COUNTIF(L34:L47,AD10) -> 6 | AI10: =N10 -> 122 | AJ10: =COUNTIF(L48:L60,AI10) -> 1 | AN10: =N10 -> 122 | AO10: =COUNTIF(L61:L74,AN10) -> 0 | AS10: =N10 -> 122 | AT10: =COUNTIF(L75:L87,AS10) -> 1
A11: 11 | B11: 762 | C11: 22 | D11: 772 | E11: 14 | F11: 788 | K11: 0 | L11: 121 | N11: 211 | O11: =COUNTIF($L$7:$L$500,N11) -> 7 | P11: =O11/$Q$4 -> 0.08641975309 | Q11: =IF(P11=0,0,(P11*((LOG(P11))/LOG(2)))) -> -0.3052773527 | T11: =N11 -> 211 | U11: =COUNTIF(L7:L20,T11) -> 2 | V11: =U11/(W4-U10) -> 0.1818181818 | W11: =IF(V11=0,0,(V11*((LOG(V11))/LOG(2)))) -> -0.4471693852 | Y11: =N11 -> 211 | Z11: =COUNTIF(L21:L33,Y11) -> 1 | AA11: =Z11/(AB4-Z10) -> 0.09090909091 | AB11: =IF(AA11=0,0,(AA11*((LOG(AA11))/LOG(2)))) -> -0.3144937835 | AD11: =N11 -> 211 | AE11: =COUNTIF(L34:L47,AD11) -> 0 | AF11: =AE11/(AG4-AE10) -> 0 | AG11: =IF(AF11=0,0,(AF11*((LOG(AF11))/LOG(2)))) -> 0 | AI11: =N11 -> 211 | AJ11: =COUNTIF(L48:L60,AI11) -> 2 | AK11: =AJ11/(AL4-AJ10) -> 0.1666666667 | AL11: =IF(AK11=0,0,(AK11*((LOG(AK11))/LOG(2)))) -> -0.4308270835 | AN11: =N11 -> 211 | AO11: =COUNTIF(L61:L74,AN11) -> 2 | AP11: =AO11/(AQ4-AO10) -> 0.1428571429 | AQ11: =IF(AP11=0,0,(AP11*((LOG(AP11))/LOG(2)))) -> -0.4010507032 | AS11: =N11 -> 211 | AT11: =COUNTIF(L75:L87,AS11) -> 0 | AU11: =AT11/(AV4-AT10) -> 0 | AV11: =IF(AU11=0,0,(AU11*((LOG(AU11))/LOG(2)))) -> 0
A12: 11 | B12: 897 | C12: 11 | D12: 905 | E12: 12 | F12: 925 | K12: 0 | L12: 111 | N12: 212 | O12: =COUNTIF($L$7:$L$500,N12) -> 0 | P12: =O12/$Q$4 -> 0 | Q12: =IF(P12=0,0,(P12*((LOG(P12))/LOG(2)))) -> 0 | T12: =N12 -> 212 | U12: =COUNTIF(L7:L20,T12) -> 0 | V12: =U12/(W4-U10) -> 0 | W12: =IF(V12=0,0,(V12*((LOG(V12))/LOG(2)))) -> 0 | Y12: =N12 -> 212 | Z12: =COUNTIF(L21:L33,Y12) -> 0 | AA12: =Z12/(AB4-Z10) -> 0 | AB12: =IF(AA12=0,0,(AA12*((LOG(AA12))/LOG(2)))) -> 0 | AD12: =N12 -> 212 | AE12: =COUNTIF(L34:L47,AD12) -> 0 | AF12: =AE12/(AG4-AE10) -> 0 | AG12: =IF(AF12=0,0,(AF12*((LOG(AF12))/LOG(2)))) -> 0 | AI12: =N12 -> 212 | AJ12: =COUNTIF(L48:L60,AI12) -> 0 | AK12: =AJ12/(AL4-AJ10) -> 0 | AL12: =IF(AK12=0,0,(AK12*((LOG(AK12))/LOG(2)))) -> 0 | AN12: =N12 -> 212 | AO12: =COUNTIF(L61:L74,AN12) -> 0 | AP12: =AO12/(AQ4-AO10) -> 0 | AQ12: =IF(AP12=0,0,(AP12*((LOG(AP12))/LOG(2)))) -> 0 | AS12: =N12 -> 212 | AT12: =COUNTIF(L75:L87,AS12) -> 0 | AU12: =AT12/(AV4-AT10) -> 0 | AV12: =IF(AU12=0,0,(AU12*((LOG(AU12))/LOG(2)))) -> 0
A13: 11 | B13: 1083 | C13: 22 | D13: 1095 | E13: 23 | F13: 1103 | K13: 0 | L13: 122 | N13: 221 | O13: =COUNTIF($L$7:$L$500,N13) -> 1 | P13: =O13/$Q$4 -> 0.01234567901 | Q13: =IF(P13=0,0,(P13*((LOG(P13))/LOG(2)))) -> -0.07826975312 | T13: =N13 -> 221 | U13: =COUNTIF(L7:L20,T13) -> 0 | V13: =U13/(W4-U10) -> 0 | W13: =IF(V13=0,0,(V13*((LOG(V13))/LOG(2)))) -> 0 | Y13: =N13 -> 221 | Z13: =COUNTIF(L21:L33,Y13) -> 0 | AA13: =Z13/(AB4-Z10) -> 0 | AB13: =IF(AA13=0,0,(AA13*((LOG(AA13))/LOG(2)))) -> 0 | AD13: =N13 -> 221 | AE13: =COUNTIF(L34:L47,AD13) -> 0 | AF13: =AE13/(AG4-AE10) -> 0 | AG13: =IF(AF13=0,0,(AF13*((LOG(AF13))/LOG(2)))) -> 0 | AI13: =N13 -> 221 | AJ13: =COUNTIF(L48:L60,AI13) -> 0 | AK13: =AJ13/(AL4-AJ10) -> 0 | AL13: =IF(AK13=0,0,(AK13*((LOG(AK13))/LOG(2)))) -> 0 | AN13: =N13 -> 221 | AO13: =COUNTIF(L61:L74,AN13) -> 1 | AP13: =AO13/(AQ4-AO10) -> 0.07142857143 | AQ13: =IF(AP13=0,0,(AP13*((LOG(AP13))/LOG(2)))) -> -0.271953923 | AS13: =N13 -> 221 | AT13: =COUNTIF(L75:L87,AS13) -> 0 | AU13: =AT13/(AV4-AT10) -> 0 | AV13: =IF(AU13=0,0,(AU13*((LOG(AU13))/LOG(2)))) -> 0
A14: 11 | B14: 1249 | C14: 11 | D14: 1258 | E14: 21 | F14: 1273 | K14: 0 | L14: 112 | N14: 222 | O14: =COUNTIF($L$7:$L$500,N14) -> 3 | P14: =O14/$Q$4 -> 0.03703703704 | Q14: =IF(P14=0,0,(P14*((LOG(P14))/LOG(2)))) -> -0.1761069445 | T14: =N14 -> 222 | U14: =COUNTIF(L7:L20,T14) -> 1 | V14: =U14/(W4-U10) -> 0.09090909091 | W14: =IF(V14=0,0,(V14*((LOG(V14))/LOG(2)))) -> -0.3144937835 | Y14: =N14 -> 222 | Z14: =COUNTIF(L21:L33,Y14) -> 1 | AA14: =Z14/(AB4-Z10) -> 0.09090909091 | AB14: =IF(AA14=0,0,(AA14*((LOG(AA14))/LOG(2)))) -> -0.3144937835 | AD14: =N14 -> 222 | AE14: =COUNTIF(L34:L47,AD14) -> 0 | AF14: =AE14/(AG4-AE10) -> 0 | AG14: =IF(AF14=0,0,(AF14*((LOG(AF14))/LOG(2)))) -> 0 | AI14: =N14 -> 222 | AJ14: =COUNTIF(L48:L60,AI14) -> 1 | AK14: =AJ14/(AL4-AJ10) -> 0.08333333333 | AL14: =IF(AK14=0,0,(AK14*((LOG(AK14))/LOG(2)))) -> -0.2987468751 | AN14: =N14 -> 222 | AO14: =COUNTIF(L61:L74,AN14) -> 0 | AP14: =AO14/(AQ4-AO10) -> 0 | AQ14: =IF(AP14=0,0,(AP14*((LOG(AP14))/LOG(2)))) -> 0 | AS14: =N14 -> 222 | AT14: =COUNTIF(L75:L87,AS14) -> 0 | AU14: =AT14/(AV4-AT10) -> 0 | AV14: =IF(AU14=0,0,(AU14*((LOG(AU14))/LOG(2)))) -> 0
A15: 11 | B15: 1402 | C15: 11 | D15: 1410 | E15: 21 | F15: 1422 | K15: 0 | L15: 112 | P15: =SUM(P7:P14) -> 1 | Q15: =-SUM(Q7:Q14) -> 2.187405471 | V15: =SUM(V7:V14) -> 1 | W15: =-SUM(W7:W14) -> 2.118078209 | AA15: =SUM(AA7:AA14) -> 1 | AB15: =-SUM(AB7:AB14) -> 1.67673703 | AF15: =SUM(AF7:AF14) -> 1 | AG15: =-SUM(AG7:AG14) -> 0.8112781245 | AK15: =SUM(AK7:AK14) -> 1 | AL15: =-SUM(AL7:AL14) -> 1.729573959 | AP15: =SUM(AP7:AP14) -> 1 | AQ15: =-SUM(AQ7:AQ14) -> 1.807354922 | AU15: =SUM(AU7:AU14) -> 1 | AV15: =-SUM(AV7:AV14) -> 0.4138168503
A16: 11 | B16: 1539 | C16: 11 | D16: 1544 | E16: 21 | F16: 1554 | K16: 0 | L16: 112 | P16: U= | Q16: =Q15/(LOG(Q4)/LOG(2)) -> 0.3450247987 | V16: U1= | W16: =W15/(LOG(W4)/LOG(2)) -> 0.5563122569 | AA16: U2= | AB16: =AB15/(LOG(AB4)/LOG(2)) -> 0.4531183205 | AF16: U3= | AG16: =AG15/(LOG(AG4)/LOG(2)) -> 0.2130818222 | AK16: U4= | AL16: =AL15/(LOG(AL4)/LOG(2)) -> 0.4673968745 | AP16: U5= | AQ16: =AQ15/(LOG(AQ4)/LOG(2)) -> 0.4747009299 | AU16: U6= | AV16: =AV15/(LOG(AV4)/LOG(2)) -> 0.1118291019
A17: 11 | B17: 1652 | C17: 22 | D17: 1669 | E17: 14 | F17: 1679 | K17: 0 | L17: 121
A18: 22 | B18: 1777 | C18: 13 | D18: 1786 | E18: 14 | F18: 1793 | K18: 0 | L18: 211
A19: 11 | B19: 1898 | C19: 22 | D19: 1911 | E19: 14 | F19: 1927 | K19: 0 | L19: 121 | N19: Total Target Seq
A20: 11 | B20: 2047 | C20: 11 | D20: 2055 | E20: 21 | F20: 2072 | K20: 0 | L20: 112 | N20: =COUNTIF(L7:L87,G3) -> 13 | P20: 14 | Q20: 13 | R20: 14 | S20: 13 | T20: 14 | U20: 13
A21: 11 | B21: 2175 | C21: 11 | D21: 2182 | E21: 21 | F21: 2194 | K21: 0 | L21: 112 | P21: % of reinforcement given in 6 equal intervals based on number of trials
A22: 11 | B22: 2323 | C22: 11 | D22: 2330 | E22: 21 | F22: 2343 | K22: 0 | L22: 112 | P22: %_1 | Q22: %_2 | R22: %_3 | S22: %_4 | T22: %_5 | U22: %_6
A23: 11 | B23: 2467 | C23: 11 | D23: 2474 | E23: 21 | F23: 2490 | K23: 0 | L23: 112 | O23: target sequence | P23: =$G$3 -> 122 | Q23: =$G$3 -> 122 | R23: =$G$3 -> 122 | S23: =$G$3 -> 122 | T23: =$G$3 -> 122 | U23: =$G$3 -> 122
A24: 22 | B24: 2580 | C24: 13 | D24: 2630 | E24: 14 | F24: 2637 | K24: 0 | L24: 211 | O24: total reinforcement | P24: =U10 -> 3 | Q24: =Z10 -> 2 | R24: =AE10 -> 6 | S24: =AJ10 -> 1 | T24: =AO10 -> 0 | U24: =AT10 -> 1
A25: 11 | B25: 2743 | C25: 22 | D25: 2754 | E25: 14 | F25: 2775 | K25: 0 | L25: 121 | O25: % target
A26: 22 | B26: 2908 | C26: 24 | D26: 2914 | E26: 23 | F26: 2919 | K26: 0 | L26: 222 | O26: CCRF
A27: 11 | B27: 3023 | C27: 22 | D27: 3035 | E27: 23 | F27: 3050 | K27: 0 | L27: 122 | O27: % CCRf
A28: 11 | B28: 3189 | C28: 22 | D28: 3203 | E28: 14 | F28: 3221 | K28: 0 | L28: 121 | O28: average response rate | P28: =F20/P20 -> 148 | Q28: =(F33-F20)/Q20 -> 137.7692308 | R28: =(F47-F33)/R20 -> 132.5 | S28: =(F60-F47)/S20 -> 131 | T28: =(F74-F60)/T20 -> 130.2857143 | U28: =(F87-F74)/U20 -> 139.0769231
A29: 11 | B29: 3332 | C29: 22 | D29: 3344 | E29: 14 | F29: 3358 | K29: 0 | L29: 121
A30: 11 | B30: 3462 | C30: 22 | D30: 3473 | E30: 14 | F30: 3486 | K30: 0 | L30: 121
A31: 11 | B31: 3591 | C31: 11 | D31: 3595 | E31: 21 | F31: 3607 | K31: 0 | L31: 112
A32: 11 | B32: 3714 | C32: 22 | D32: 3726 | E32: 14 | F32: 3742 | K32: 0 | L32: 121
A33: 11 | B33: 3844 | C33: 22 | D33: 3856 | E33: 23 | F33: 3863 | K33: 0 | L33: 122
A34: 11 | B34: 3969 | C34: 22 | D34: 3980 | E34: 14 | F34: 3995 | K34: 0 | L34: 121
A35: 11 | B35: 4099 | C35: 22 | D35: 4108 | E35: 23 | F35: 4116 | K35: 0 | L35: 122
A36: 11 | B36: 4220 | C36: 22 | D36: 4232 | E36: 14 | F36: 4248 | K36: 0 | L36: 121
A37: 11 | B37: 4352 | C37: 22 | D37: 4363 | E37: 23 | F37: 4373 | K37: 0 | L37: 122
A38: 11 | B38: 4477 | C38: 22 | D38: 4486 | E38: 23 | F38: 4494 | K38: 0 | L38: 122
A39: 11 | B39: 4606 | C39: 22 | D39: 4618 | E39: 23 | F39: 4625 | K39: 0 | L39: 122
A40: 11 | B40: 4745 | C40: 22 | D40: 4757 | E40: 23 | F40: 4772 | K40: 0 | L40: 122
A41: 11 | B41: 4877 | C41: 11 | D41: 4884 | E41: 21 | F41: 4896 | K41: 0 | L41: 112
A42: 11 | B42: 4999 | C42: 22 | D42: 5010 | E42: 23 | F42: 5017 | K42: 0 | L42: 122
A43: 11 | B43: 5117 | C43: 11 | D43: 5122 | E43: 21 | F43: 5132 | K43: 0 | L43: 112
A44: 11 | B44: 5279 | C44: 11 | D44: 5286 | E44: 21 | F44: 5299 | K44: 0 | L44: 112
A45: 11 | B45: 5418 | C45: 11 | D45: 5422 | E45: 21 | F45: 5434 | K45: 0 | L45: 112
A46: 11 | B46: 5538 | C46: 11 | D46: 5543 | E46: 21 | F46: 5553 | K46: 0 | L46: 112
A47: 11 | B47: 5660 | C47: 11 | D47: 5706 | E47: 21 | F47: 5718 | K47: 0 | L47: 112
A48: 11 | B48: 5853 | C48: 11 | D48: 5858 | E48: 21 | F48: 5869 | K48: 0 | L48: 112
A49: 11 | B49: 5977 | C49: 22 | D49: 5989 | E49: 23 | F49: 5998 | K49: 0 | L49: 122
A50: 11 | B50: 6099 | C50: 11 | D50: 6164 | E50: 12 | F50: 6171 | K50: 0 | L50: 111
A51: 11 | B51: 6276 | C51: 11 | D51: 6284 | E51: 12 | F51: 6291 | K51: 0 | L51: 111
A52: 11 | B52: 6401 | C52: 11 | D52: 6406 | E52: 21 | F52: 6422 | K52: 0 | L52: 112
A53: 11 | B53: 6557 | C53: 11 | D53: 6562 | E53: 21 | F53: 6576 | K53: 0 | L53: 112
A54: 11 | B54: 6680 | C54: 11 | D54: 6684 | E54: 21 | F54: 6696 | K54: 0 | L54: 112
A55: 11 | B55: 6796 | C55: 11 | D55: 6800 | E55: 21 | F55: 6811 | K55: 0 | L55: 112
A56: 11 | B56: 6913 | C56: 11 | D56: 6920 | E56: 21 | F56: 6931 | K56: 0 | L56: 112
A57: 22 | B57: 7065 | C57: 24 | D57: 7072 | E57: 23 | F57: 7079 | K57: 0 | L57: 222
A58: 11 | B58: 7181 | C58: 11 | D58: 7185 | E58: 12 | F58: 7190 | K58: 0 | L58: 111
A59: 22 | B59: 7292 | C59: 13 | D59: 7300 | E59: 14 | F59: 7304 | K59: 0 | L59: 211
A60: 22 | B60: 7406 | C60: 13 | D60: 7416 | E60: 14 | F60: 7421 | K60: 0 | L60: 211
A61: 11 | B61: 7521 | C61: 11 | D61: 7532 | E61: 12 | F61: 7537 | K61: 0 | L61: 111
A62: 22 | B62: 7641 | C62: 13 | D62: 7653 | E62: 14 | F62: 7658 | K62: 0 | L62: 211
A63: 22 | B63: 7756 | C63: 13 | D63: 7767 | E63: 14 | F63: 7775 | K63: 0 | L63: 211
A64: 11 | B64: 7879 | C64: 22 | D64: 7893 | E64: 14 | F64: 7909 | K64: 0 | L64: 121
A65: 11 | B65: 8011 | C65: 11 | D65: 8016 | E65: 21 | F65: 8027 | K65: 0 | L65: 112
A66: 11 | B66: 8133 | C66: 11 | D66: 8140 | E66: 21 | F66: 8151 | K66: 0 | L66: 112
A67: 11 | B67: 8249 | C67: 11 | D67: 8253 | E67: 12 | F67: 8258 | K67: 0 | L67: 111
A68: 11 | B68: 8373 | C68: 11 | D68: 8381 | E68: 21 | F68: 8391 | K68: 0 | L68: 112
A69: 11 | B69: 8515 | C69: 11 | D69: 8522 | E69: 21 | F69: 8537 | K69: 0 | L69: 112
A70: 11 | B70: 8645 | C70: 11 | D70: 8651 | E70: 21 | F70: 8664 | K70: 0 | L70: 112
A71: 11 | B71: 8786 | C71: 11 | D71: 8791 | E71: 21 | F71: 8804 | K71: 0 | L71: 112
A72: 22 | B72: 8986 | C72: 24 | D72: 8993 | E72: 14 | F72: 9005 | K72: 0 | L72: 221
A73: 11 | B73: 9120 | C73: 11 | D73: 9124 | E73: 21 | F73: 9135 | K73: 0 | L73: 112
A74: 11 | B74: 9233 | C74: 11 | D74: 9237 | E74: 21 | F74: 9245 | K74: 0 | L74: 112
A75: 11 | B75: 9368 | C75: 22 | D75: 9378 | E75: 23 | F75: 9393 | K75: 0 | L75: 122
A76: 11 | B76: 9490 | C76: 11 | D76: 9495 | E76: 21 | F76: 9503 | K76: 0 | L76: 112
A77: 11 | B77: 9614 | C77: 11 | D77: 9618 | E77: 21 | F77: 9629 | K77: 0 | L77: 112
A78: 11 | B78: 9762 | C78: 11 | D78: 9770 | E78: 21 | F78: 9782 | K78: 0 | L78: 112
A79: 11 | B79: 9898 | C79: 11 | D79: 9904 | E79: 12 | F79: 9909 | K79: 0 | L79: 111
A80: 11 | B80: 10014 | C80: 11 | D80: 10019 | E80: 21 | F80: 10032 | K80: 0 | L80: 112
A81: 11 | B81: 10156 | C81: 11 | D81: 10162 | E81: 21 | F81: 10174 | K81: 0 | L81: 112
A82: 11 | B82: 10305 | C82: 11 | D82: 10311 | E82: 21 | F82: 10323 | K82: 0 | L82: 112
A83: 11 | B83: 10448 | C83: 11 | D83: 10453 | E83: 21 | F83: 10465 | K83: 0 | L83: 112
A84: 11 | B84: 10585 | C84: 11 | D84: 10590 | E84: 21 | F84: 10601 | K84: 0 | L84: 112
A85: 11 | B85: 10747 | C85: 11 | D85: 10754 | E85: 21 | F85: 10765 | K85: 0 | L85: 112
A86: 11 | B86: 10890 | C86: 11 | D86: 10894 | E86: 21 | F86: 10905 | K86: 0 | L86: 112
A87: 11 | B87: 11037 | C87: 11 | D87: 11042 | E87: 21 | F87: 11053 | K87: 1 | L87: 112

Sheet !2011-07-01_09h45m.Subject 53
A1: Report for:!2011-07-01_09h45m.Subject 53
A2: Date | B2: 2011-07-01 | F2: Group | G2: var phase 2
A3: Hen | B3: 53 | F3: Correct Sequence | G3: =Start!J2 -> 122 | P3: Total Sequences in Data | Q3: =4994-COUNTBLANK(L7:L5000) -> 77 | V3: Total Sequences in Block Data | W3: =COUNTA(L7:L19) -> 13 | AA3: Total Sequences in Block Data | AB3: =COUNTA(L20:L32) -> 13 | AF3: Total Sequences in Block Data | AG3: =COUNTA(L33:L44) -> 12 | AK3: Total Sequences in Block Data | AL3: =COUNTA(L45:L57) -> 13 | AP3: Total Sequences in Block Data | AQ3: =COUNTA(L58:L70) -> 13 | AU3: Total Sequences in Block Data | AV3: =COUNTA(L71:L83) -> 13
A4: Program | B4: one | P4: Total Sequences in Summary | Q4: =SUM(O7:O14) -> 77 | V4: Total Sequences in Block Summary | W4: =SUM(U7:U14) -> 13 | AA4: Total Sequences in Block Summary | AB4: =SUM(Z7:Z14) -> 13 | AF4: Total Sequences in Block Summary | AG4: =SUM(AE7:AE14) -> 12 | AK4: Total Sequences in Block Summary | AL4: =SUM(AJ7:AJ14) -> 13 | AP4: Total Sequences in Block Summary | AQ4: =SUM(AO7:AO14) -> 13 | AU4: Total Sequences in Block Summary | AV4: =SUM(AT7:AT14) -> 13
T5: Block 1 | Y5: Block 2 | AD5: Block 3 | AI5: Block 4 | AN5: Block 5 | AS5: Block 6
A6: Sequence Component 1 | B6: Time 1 | C6: Sequence Component 2 | D6: Time 2 | E6: Sequence Component 3 | F6: Time 3 | G6: Sequence Component 4 | H6: Time 4 | I6: Sequence Component 5 | J6: Time 5 | K6: Correct? 0=No 1=Yes | L6: Sequence | N6: Frequency | P6: Relative Frequency | Q6: Variability | T6: Frequency | V6: Relative Frequency | W6: Variability | Y6: Frequency | AA6: Relative Frequency | AB6: Variability | AD6: Frequency | AF6: Relative Frequency | AG6: Variability | AI6: Frequency | AK6: Relative Frequency | AL6: Variability | AN6: Frequency | AP6: Relative Frequency | AQ6: Variability | AS6: Frequency | AU6: Relative Frequency | AV6: Variability
A7: 11 | B7: 125 | C7: 22 | D7: 139 | E7: 14 | F7: 165 | K7: 0 | L7: 121 | N7: 111 | O7: =COUNTIF($L$7:$L$500,N7) -> 5 | P7: =O7/$Q$4 -> 0.06493506494 | Q7: =IF(P7=0,0,(P7*((LOG(P7))/LOG(2)))) -> -0.2561596393 | T7: =N7 -> 111 | U7: =COUNTIF(L7:L19,T7) -> 1 | V7: =U7/(W4-U10) -> 0.09090909091 | W7: =IF(V7=0,0,(V7*((LOG(V7))/LOG(2)))) -> -0.3144937835 | Y7: =N7 -> 111 | Z7: =COUNTIF(L20:L32,Y7) -> 1 | AA7: =Z7/(AB4-Z10) -> 0.08333333333 | AB7: =IF(AA7=0,0,(AA7*((LOG(AA7))/LOG(2)))) -> -0.2987468751 | AD7: =N7 -> 111 | AE7: =COUNTIF(L33:L44,AD7) -> 0 | AF7: =AE7/(AG4-AE10) -> 0 | AG7: =IF(AF7=0,0,(AF7*((LOG(AF7))/LOG(2)))) -> 0 | AI7: =N7 -> 111 | AJ7: =COUNTIF(L45:L57,AI7) -> 0 | AK7: =AJ7/(AL4-AJ10) -> 0 | AL7: =IF(AK7=0,0,(AK7*((LOG(AK7))/LOG(2)))) -> 0 | AN7: =N7 -> 111 | AO7: =COUNTIF(L58:L70,AN7) -> 2 | AP7: =AO7/(AQ4-AO10) -> 0.1538461538 | AQ7: =IF(AP7=0,0,(AP7*((LOG(AP7))/LOG(2)))) -> -0.4154522643 | AS7: =N7 -> 111 | AT7: =COUNTIF(L71:L83,AS7) -> 1 | AU7: =AT7/(AV4-AT10) -> 0.07692307692 | AV7: =IF(AU7=0,0,(AU7*((LOG(AU7))/LOG(2)))) -> -0.2846492091
A8: 22 | B8: 295 | C8: 24 | D8: 304 | E8: 23 | F8: 312 | K8: 0 | L8: 222 | N8: 112 | O8: =COUNTIF($L$7:$L$500,N8) -> 37 | P8: =O8/$Q$4 -> 0.4805194805 | Q8: =IF(P8=0,0,(P8*((LOG(P8))/LOG(2)))) -> -0.508069188 | T8: =N8 -> 112 | U8: =COUNTIF(L7:L19,T8) -> 3 | V8: =U8/(W4-U10) -> 0.2727272727 | W8: =IF(V8=0,0,(V8*((LOG(V8))/LOG(2)))) -> -0.5112188503 | Y8: =N8 -> 112 | Z8: =COUNTIF(L20:L32,Y8) -> 8 | AA8: =Z8/(AB4-Z10) -> 0.6666666667 | AB8: =IF(AA8=0,0,(AA8*((LOG(AA8))/LOG(2)))) -> -0.3899750005 | AD8: =N8 -> 112 | AE8: =COUNTIF(L33:L44,AD8) -> 3 | AF8: =AE8/(AG4-AE10) -> 0.375 | AG8: =IF(AF8=0,0,(AF8*((LOG(AF8))/LOG(2)))) -> -0.5306390622 | AI8: =N8 -> 112 | AJ8: =COUNTIF(L45:L57,AI8) -> 6 | AK8: =AJ8/(AL4-AJ10) -> 0.5454545455 | AL8: =IF(AK8=0,0,(AK8*((LOG(AK8))/LOG(2)))) -> -0.4769831552 | AN8: =N8 -> 112 | AO8: =COUNTIF(L58:L70,AN8) -> 9 | AP8: =AO8/(AQ4-AO10) -> 0.6923076923 | AQ8: =IF(AP8=0,0,(AP8*((LOG(AP8))/LOG(2)))) -> -0.3672794193 | AS8: =N8 -> 112 | AT8: =COUNTIF(L71:L83,AS8) -> 8 | AU8: =AT8/(AV4-AT10) -> 0.6153846154 | AV8: =IF(AU8=0,0,(AU8*((LOG(AU8))/LOG(2)))) -> -0.4310398265
A9: 11 | B9: 453 | C9: 22 | D9: 465 | E9: 23 | F9: 472 | K9: 0 | L9: 122 | N9: 121 | O9: =COUNTIF($L$7:$L$500,N9) -> 9 | P9: =O9/$Q$4 -> 0.1168831169 | Q9: =IF(P9=0,0,(P9*((LOG(P9))/LOG(2)))) -> -0.3619708293 | T9: =N9 -> 121 | U9: =COUNTIF(L7:L19,T9) -> 4 | V9: =U9/(W4-U10) -> 0.3636363636 | W9: =IF(V9=0,0,(V9*((LOG(V9))/LOG(2)))) -> -0.5307024068 | Y9: =N9 -> 121 | Z9: =COUNTIF(L20:L32,Y9) -> 1 | AA9: =Z9/(AB4-Z10) -> 0.08333333333 | AB9: =IF(AA9=0,0,(AA9*((LOG(AA9))/LOG(2)))) -> -0.2987468751 | AD9: =N9 -> 121 | AE9: =COUNTIF(L33:L44,AD9) -> 2 | AF9: =AE9/(AG4-AE10) -> 0.25 | AG9: =IF(AF9=0,0,(AF9*((LOG(AF9))/LOG(2)))) -> -0.5 | AI9: =N9 -> 121 | AJ9: =COUNTIF(L45:L57,AI9) -> 1 | AK9: =AJ9/(AL4-AJ10) -> 0.09090909091 | AL9: =IF(AK9=0,0,(AK9*((LOG(AK9))/LOG(2)))) -> -0.3144937835 | AN9: =N9 -> 121 | AO9: =COUNTIF(L58:L70,AN9) -> 1 | AP9: =AO9/(AQ4-AO10) -> 0.07692307692 | AQ9: =IF(AP9=0,0,(AP9*((LOG(AP9))/LOG(2)))) -> -0.2846492091 | AS9: =N9 -> 121 | AT9: =COUNTIF(L71:L83,AS9) -> 0 | AU9: =AT9/(AV4-AT10) -> 0 | AV9: =IF(AU9=0,0,(AU9*((LOG(AU9))/LOG(2)))) -> 0
A10: 11 | B10: 630 | C10: 22 | D10: 641 | E10: 23 | F10: 651 | K10: 0 | L10: 122 | N10: 122 | O10: =COUNTIF($L$7:$L$500,N10) -> 9 | P10: =O10/$Q$4 -> 0.1168831169 | Q10: =IF(P10=0,0,(P10*((LOG(P10))/LOG(2)))) -> -0.3619708293 | T10: =N10 -> 122 | U10: =COUNTIF(L7:L19,T10) -> 2 | Y10: =N10 -> 122 | Z10: =COUNTIF(L20:L32,Y10) -> 1 | AD10: =N10 -> 122 | AE10: =COUNTIF(L33:L44,AD10) -> 4 | AI10: =N10 -> 122 | AJ10: =COUNTIF(L45:L57,AI10) -> 2 | AN10: =N10 -> 122 | AO10: =COUNTIF(L58:L70,AN10) -> 0 | AS10: =N10 -> 122 | AT10: =COUNTIF(L71:L83,AS10) -> 0
A11: 11 | B11: 798 | C11: 11 | D11: 805 | E11: 21 | F11: 818 | K11: 0 | L11: 112 | N11: 211 | O11: =COUNTIF($L$7:$L$500,N11) -> 3 | P11: =O11/$Q$4 -> 0.03896103896 | Q11: =IF(P11=0,0,(P11*((LOG(P11))/LOG(2)))) -> -0.1824087288 | T11: =N11 -> 211 | U11: =COUNTIF(L7:L19,T11) -> 1 | V11: =U11/(W4-U10) -> 0.09090909091 | W11: =IF(V11=0,0,(V11*((LOG(V11))/LOG(2)))) -> -0.3144937835 | Y11: =N11 -> 211 | Z11: =COUNTIF(L20:L32,Y11) -> 0 | AA11: =Z11/(AB4-Z10) -> 0 | AB11: =IF(AA11=0,0,(AA11*((LOG(AA11))/LOG(2)))) -> 0 | AD11: =N11 -> 211 | AE11: =COUNTIF(L33:L44,AD11) -> 0 | AF11: =AE11/(AG4-AE10) -> 0 | AG11: =IF(AF11=0,0,(AF11*((LOG(AF11))/LOG(2)))) -> 0 | AI11: =N11 -> 211 | AJ11: =COUNTIF(L45:L57,AI11) -> 1 | AK11: =AJ11/(AL4-AJ10) -> 0.09090909091 | AL11: =IF(AK11=0,0,(AK11*((LOG(AK11))/LOG(2)))) -> -0.3144937835 | AN11: =N11 -> 211 | AO11: =COUNTIF(L58:L70,AN11) -> 1 | AP11: =AO11/(AQ4-AO10) -> 0.07692307692 | AQ11: =IF(AP11=0,0,(AP11*((LOG(AP11))/LOG(2)))) -> -0.2846492091 | AS11: =N11 -> 211 | AT11: =COUNTIF(L71:L83,AS11) -> 0 | AU11: =AT11/(AV4-AT10) -> 0 | AV11: =IF(AU11=0,0,(AU11*((LOG(AU11))/LOG(2)))) -> 0
A12: 11 | B12: 942 | C12: 22 | D12: 953 | E12: 14 | F12: 977 | K12: 0 | L12: 121 | N12: 212 | O12: =COUNTIF($L$7:$L$500,N12) -> 6 | P12: =O12/$Q$4 -> 0.07792207792 | Q12: =IF(P12=0,0,(P12*((LOG(P12))/LOG(2)))) -> -0.2868953797 | T12: =N12 -> 212 | U12: =COUNTIF(L7:L19,T12) -> 1 | V12: =U12/(W4-U10) -> 0.09090909091 | W12: =IF(V12=0,0,(V12*((LOG(V12))/LOG(2)))) -> -0.3144937835 | Y12: =N12 -> 212 | Z12: =COUNTIF(L20:L32,Y12) -> 0 | AA12: =Z12/(AB4-Z10) -> 0 | AB12: =IF(AA12=0,0,(AA12*((LOG(AA12))/LOG(2)))) -> 0 | AD12: =N12 -> 212 | AE12: =COUNTIF(L33:L44,AD12) -> 2 | AF12: =AE12/(AG4-AE10) -> 0.25 | AG12: =IF(AF12=0,0,(AF12*((LOG(AF12))/LOG(2)))) -> -0.5 | AI12: =N12 -> 212 | AJ12: =COUNTIF(L45:L57,AI12) -> 2 | AK12: =AJ12/(AL4-AJ10) -> 0.1818181818 | AL12: =IF(AK12=0,0,(AK12*((LOG(AK12))/LOG(2)))) -> -0.4471693852 | AN12: =N12 -> 212 | AO12: =COUNTIF(L58:L70,AN12) -> 0 | AP12: =AO12/(AQ4-AO10) -> 0 | AQ12: =IF(AP12=0,0,(AP12*((LOG(AP12))/LOG(2)))) -> 0 | AS12: =N12 -> 212 | AT12: =COUNTIF(L71:L83,AS12) -> 1 | AU12: =AT12/(AV4-AT10) -> 0.07692307692 | AV12: =IF(AU12=0,0,(AU12*((LOG(AU12))/LOG(2)))) -> -0.2846492091
A13: 22 | B13: 1084 | C13: 13 | D13: 1092 | E13: 23 | F13: 1109 | K13: 0 | L13: 212 | N13: 221 | O13: =COUNTIF($L$7:$L$500,N13) -> 5 | P13: =O13/$Q$4 -> 0.06493506494 | Q13: =IF(P13=0,0,(P13*((LOG(P13))/LOG(2)))) -> -0.2561596393 | T13: =N13 -> 221 | U13: =COUNTIF(L7:L19,T13) -> 0 | V13: =U13/(W4-U10) -> 0 | W13: =IF(V13=0,0,(V13*((LOG(V13))/LOG(2)))) -> 0 | Y13: =N13 -> 221 | Z13: =COUNTIF(L20:L32,Y13) -> 2 | AA13: =Z13/(AB4-Z10) -> 0.1666666667 | AB13: =IF(AA13=0,0,(AA13*((LOG(AA13))/LOG(2)))) -> -0.4308270835 | AD13: =N13 -> 221 | AE13: =COUNTIF(L33:L44,AD13) -> 0 | AF13: =AE13/(AG4-AE10) -> 0 | AG13: =IF(AF13=0,0,(AF13*((LOG(AF13))/LOG(2)))) -> 0 | AI13: =N13 -> 221 | AJ13: =COUNTIF(L45:L57,AI13) -> 1 | AK13: =AJ13/(AL4-AJ10) -> 0.09090909091 | AL13: =IF(AK13=0,0,(AK13*((LOG(AK13))/LOG(2)))) -> -0.3144937835 | AN13: =N13 -> 221 | AO13: =COUNTIF(L58:L70,AN13) -> 0 | AP13: =AO13/(AQ4-AO10) -> 0 | AQ13: =IF(AP13=0,0,(AP13*((LOG(AP13))/LOG(2)))) -> 0 | AS13: =N13 -> 221 | AT13: =COUNTIF(L71:L83,AS13) -> 2 | AU13: =AT13/(AV4-AT10) -> 0.1538461538 | AV13: =IF(AU13=0,0,(AU13*((LOG(AU13))/LOG(2)))) -> -0.4154522643
A14: 11 | B14: 1213 | C14: 22 | D14: 1222 | E14: 14 | F14: 1231 | K14: 0 | L14: 121 | N14: 222 | O14: =COUNTIF($L$7:$L$500,N14) -> 3 | P14: =O14/$Q$4 -> 0.03896103896 | Q14: =IF(P14=0,0,(P14*((LOG(P14))/LOG(2)))) -> -0.1824087288 | T14: =N14 -> 222 | U14: =COUNTIF(L7:L19,T14) -> 1 | V14: =U14/(W4-U10) -> 0.09090909091 | W14: =IF(V14=0,0,(V14*((LOG(V14))/LOG(2)))) -> -0.3144937835 | Y14: =N14 -> 222 | Z14: =COUNTIF(L20:L32,Y14) -> 0 | AA14: =Z14/(AB4-Z10) -> 0 | AB14: =IF(AA14=0,0,(AA14*((LOG(AA14))/LOG(2)))) -> 0 | AD14: =N14 -> 222 | AE14: =COUNTIF(L33:L44,AD14) -> 1 | AF14: =AE14/(AG4-AE10) -> 0.125 | AG14: =IF(AF14=0,0,(AF14*((LOG(AF14))/LOG(2)))) -> -0.375 | AI14: =N14 -> 222 | AJ14: =COUNTIF(L45:L57,AI14) -> 0 | AK14: =AJ14/(AL4-AJ10) -> 0 | AL14: =IF(AK14=0,0,(AK14*((LOG(AK14))/LOG(2)))) -> 0 | AN14: =N14 -> 222 | AO14: =COUNTIF(L58:L70,AN14) -> 0 | AP14: =AO14/(AQ4-AO10) -> 0 | AQ14: =IF(AP14=0,0,(AP14*((LOG(AP14))/LOG(2)))) -> 0 | AS14: =N14 -> 222 | AT14: =COUNTIF(L71:L83,AS14) -> 1 | AU14: =AT14/(AV4-AT10) -> 0.07692307692 | AV14: =IF(AU14=0,0,(AU14*((LOG(AU14))/LOG(2)))) -> -0.2846492091
A15: 11 | B15: 1371 | C15: 11 | D15: 1382 | E15: 12 | F15: 1390 | K15: 0 | L15: 111 | P15: =SUM(P7:P14) -> 1 | Q15: =-SUM(Q7:Q14) -> 2.396042963 | V15: =SUM(V7:V14) -> 1 | W15: =-SUM(W7:W14) -> 2.299896391 | AA15: =SUM(AA7:AA14) -> 1 | AB15: =-SUM(AB7:AB14) -> 1.418295834 | AF15: =SUM(AF7:AF14) -> 1 | AG15: =-SUM(AG7:AG14) -> 1.905639062 | AK15: =SUM(AK7:AK14) -> 1 | AL15: =-SUM(AL7:AL14) -> 1.867633891 | AP15: =SUM(AP7:AP14) -> 1 | AQ15: =-SUM(AQ7:AQ14) -> 1.352030102 | AU15: =SUM(AU7:AU14) -> 1 | AV15: =-SUM(AV7:AV14) -> 1.700439718
A16: 11 | B16: 1512 | C16: 11 | D16: 1520 | E16: 21 | F16: 1533 | K16: 0 | L16: 112 | P16: U= | Q16: =Q15/(LOG(Q4)/LOG(2)) -> 0.3823399676 | V16: U1= | W16: =W15/(LOG(W4)/LOG(2)) -> 0.6215197561 | AA16: U2= | AB16: =AB15/(LOG(AB4)/LOG(2)) -> 0.3832776486 | AF16: U3= | AG16: =AG15/(LOG(AG4)/LOG(2)) -> 0.5315645734 | AK16: U4= | AL16: =AL15/(LOG(AL4)/LOG(2)) -> 0.5047059358 | AP16: U5= | AQ16: =AQ15/(LOG(AQ4)/LOG(2)) -> 0.3653701194 | AU16: U6= | AV16: =AV15/(LOG(AV4)/LOG(2)) -> 0.4595236911
A17: 11 | B17: 1647 | C17: 11 | D17: 1654 | E17: 21 | F17: 1666 | K17: 0 | L17: 112
A18: 11 | B18: 1802 | C18: 22 | D18: 1813 | E18: 14 | F18: 1839 | K18: 0 | L18: 121
A19: 22 | B19: 1941 | C19: 13 | D19: 1950 | E19: 14 | F19: 1954 | K19: 0 | L19: 211 | N19: Total Target Seq
A20: 11 | B20: 2093 | C20: 11 | D20: 2101 | E20: 21 | F20: 2113 | K20: 0 | L20: 112 | N20: =COUNTIF(L7:L83,G3) -> 9 | P20: 13 | Q20: 13 | R20: 12 | S20: 13 | T20: 13 | U20: 13
A21: 11 | B21: 2244 | C21: 11 | D21: 2252 | E21: 21 | F21: 2264 | K21: 0 | L21: 112 | P21: % of reinforcement given in 6 equal intervals based on number of trials
A22: 11 | B22: 2380 | C22: 11 | D22: 2389 | E22: 21 | F22: 2400 | K22: 0 | L22: 112 | P22: %_1 | Q22: %_2 | R22: %_3 | S22: %_4 | T22: %_5 | U22: %_6
A23: 11 | B23: 2518 | C23: 11 | D23: 2526 | E23: 21 | F23: 2537 | K23: 0 | L23: 112 | O23: target sequence | P23: =$G$3 -> 122 | Q23: =$G$3 -> 122 | R23: =$G$3 -> 122 | S23: =$G$3 -> 122 | T23: =$G$3 -> 122 | U23: =$G$3 -> 122
A24: 11 | B24: 2655 | C24: 11 | D24: 2659 | E24: 21 | F24: 2670 | K24: 0 | L24: 112 | O24: total reinforcement | P24: =U10 -> 2 | Q24: =Z10 -> 1 | R24: =AE10 -> 4 | S24: =AJ10 -> 2 | T24: =AO10 -> 0 | U24: =AT10 -> 0
A25: 11 | B25: 2789 | C25: 22 | D25: 2801 | E25: 23 | F25: 2819 | K25: 0 | L25: 122 | O25: % target
A26: 11 | B26: 2924 | C26: 11 | D26: 2929 | E26: 21 | F26: 2938 | K26: 0 | L26: 112 | O26: CCRF
A27: 11 | B27: 3059 | C27: 22 | D27: 3071 | E27: 14 | F27: 3093 | K27: 0 | L27: 121 | O27: % CCRf
A28: 11 | B28: 3227 | C28: 11 | D28: 3234 | E28: 21 | F28: 3246 | K28: 0 | L28: 112 | O28: average response rate | P28: =F19/P20 -> 150.3076923 | Q28: =(F32-F19)/Q20 -> 141.7692308 | R28: =(F44-F32)/R20 -> 145.75 | S28: =(F57-F44)/S20 -> 129.1538462 | T28: =(F70-F57)/T20 -> 126.3846154 | U28: =(F83-F70)/U20 -> 125.4615385
A29: 11 | B29: 3377 | C29: 11 | D29: 3384 | E29: 21 | F29: 3396 | K29: 0 | L29: 112
A30: 11 | B30: 3516 | C30: 11 | D30: 3520 | E30: 12 | F30: 3525 | K30: 0 | L30: 111
A31: 22 | B31: 3637 | C31: 24 | D31: 3645 | E31: 14 | F31: 3662 | K31: 0 | L31: 221
A32: 22 | B32: 3775 | C32: 24 | D32: 3786 | E32: 14 | F32: 3797 | K32: 0 | L32: 221
A33: 22 | B33: 3910 | C33: 24 | D33: 3921 | E33: 23 | F33: 3940 | K33: 0 | L33: 222
A34: 22 | B34: 4093 | C34: 13 | D34: 4104 | E34: 23 | F34: 4117 | K34: 0 | L34: 212
A35: 22 | B35: 4239 | C35: 13 | D35: 4251 | E35: 23 | F35: 4267 | K35: 0 | L35: 212
A36: 11 | B36: 4409 | C36: 11 | D36: 4416 | E36: 21 | F36: 4425 | K36: 0 | L36: 112
A37: 11 | B37: 4556 | C37: 22 | D37: 4567 | E37: 14 | F37: 4582 | K37: 0 | L37: 121
A38: 11 | B38: 4727 | C38: 22 | D38: 4737 | E38: 14 | F38: 4751 | K38: 0 | L38: 121
A39: 11 | B39: 4853 | C39: 22 | D39: 4862 | E39: 23 | F39: 4870 | K39: 0 | L39: 122
A40: 11 | B40: 4976 | C40: 22 | D40: 4985 | E40: 23 | F40: 4993 | K40: 0 | L40: 122
A41: 11 | B41: 5104 | C41: 22 | D41: 5112 | E41: 23 | F41: 5120 | K41: 0 | L41: 122
A42: 11 | B42: 5226 | C42: 11 | D42: 5231 | E42: 21 | F42: 5243 | K42: 0 | L42: 112
A43: 11 | B43: 5379 | C43: 11 | D43: 5386 | E43: 21 | F43: 5398 | K43: 0 | L43: 112
A44: 11 | B44: 5518 | C44: 22 | D44: 5529 | E44: 23 | F44: 5546 | K44: 0 | L44: 122
A45: 11 | B45: 5647 | C45: 11 | D45: 5654 | E45: 21 | F45: 5666 | K45: 0 | L45: 112
A46: 22 | B46: 5799 | C46: 13 | D46: 5818 | E46: 23 | F46: 5830 | K46: 0 | L46: 212
A47: 11 | B47: 5932 | C47: 11 | D47: 5938 | E47: 21 | F47: 5950 | K47: 0 | L47: 112
A48: 11 | B48: 6064 | C48: 22 | D48: 6076 | E48: 14 | F48: 6095 | K48: 0 | L48: 121
A49: 11 | B49: 6195 | C49: 11 | D49: 6202 | E49: 21 | F49: 6214 | K49: 0 | L49: 112
A50: 11 | B50: 6343 | C50: 22 | D50: 6352 | E50: 23 | F50: 6359 | K50: 0 | L50: 122
A51: 11 | B51: 6490 | C51: 11 | D51: 6494 | E51: 21 | F51: 6507 | K51: 0 | L51: 112
A52: 22 | B52: 6604 | C52: 13 | D52: 6617 | E52: 23 | F52: 6628 | K52: 0 | L52: 212
A53: 22 | B53: 6729 | C53: 13 | D53: 6739 | E53: 14 | F53: 6746 | K53: 0 | L53: 211
A54: 22 | B54: 6843 | C54: 24 | D54: 6857 | E54: 14 | F54: 6868 | K54: 0 | L54: 221
A55: 11 | B55: 6969 | C55: 22 | D55: 6977 | E55: 23 | F55: 6986 | K55: 0 | L55: 122
A56: 11 | B56: 7086 | C56: 11 | D56: 7090 | E56: 21 | F56: 7102 | K56: 0 | L56: 112
A57: 11 | B57: 7207 | C57: 11 | D57: 7214 | E57: 21 | F57: 7225 | K57: 0 | L57: 112
A58: 11 | B58: 7319 | C58: 11 | D58: 7326 | E58: 21 | F58: 7337 | K58: 0 | L58: 112
A59: 11 | B59: 7435 | C59: 11 | D59: 7448 | E59: 21 | F59: 7459 | K59: 0 | L59: 112
A60: 11 | B60: 7580 | C60: 11 | D60: 7584 | E60: 21 | F60: 7594 | K60: 0 | L60: 112
A61: 11 | B61: 7701 | C61: 11 | D61: 7706 | E61: 21 | F61: 7718 | K61: 0 | L61: 112
A62: 11 | B62: 7829 | C62: 11 | D62: 7836 | E62: 21 | F62: 7854 | K62: 0 | L62: 112
A63: 11 | B63: 7959 | C63: 11 | D63: 7966 | E63: 21 | F63: 7977 | K63: 0 | L63: 112
A64: 11 | B64: 8074 | C64: 11 | D64: 8079 | E64: 21 | F64: 8091 | K64: 0 | L64: 112
A65: 11 | B65: 8185 | C65: 11 | D65: 8189 | E65: 21 | F65: 8199 | K65: 0 | L65: 112
A66: 11 | B66: 8317 | C66: 22 | D66: 8329 | E66: 14 | F66: 8364 | K66: 0 | L66: 121
A67: 22 | B67: 8463 | C67: 13 | D67: 8470 | E67: 14 | F67: 8477 | K67: 0 | L67: 211
A68: 11 | B68: 8579 | C68: 11 | D68: 8585 | E68: 21 | F68: 8596 | K68: 0 | L68: 112
A69: 11 | B69: 8742 | C69: 11 | D69: 8747 | E69: 12 | F69: 8754 | K69: 0 | L69: 111
A70: 11 | B70: 8859 | C70: 11 | D70: 8863 | E70: 12 | F70: 8868 | K70: 0 | L70: 111
A71: 22 | B71: 8986 | C71: 24 | D71: 8994 | E71: 14 | F71: 9007 | K71: 0 | L71: 221
A72: 22 | B72: 9107 | C72: 24 | D72: 9115 | E72: 14 | F72: 9130 | K72: 0 | L72: 221
A73: 11 | B73: 9231 | C73: 11 | D73: 9238 | E73: 12 | F73: 9246 | K73: 0 | L73: 111
A74: 11 | B74: 9357 | C74: 11 | D74: 9361 | E74: 21 | F74: 9373 | K74: 0 | L74: 112
A75: 11 | B75: 9472 | C75: 11 | D75: 9476 | E75: 21 | F75: 9488 | K75: 0 | L75: 112
A76: 22 | B76: 9630 | C76: 13 | D76: 9641 | E76: 23 | F76: 9654 | K76: 0 | L76: 212
A77: 11 | B77: 9756 | C77: 11 | D77: 9761 | E77: 21 | F77: 9771 | K77: 0 | L77: 112
A78: 22 | B78: 9912 | C78: 24 | D78: 9919 | E78: 23 | F78: 9927 | K78: 0 | L78: 222
A79: 11 | B79: 10030 | C79: 11 | D79: 10034 | E79: 21 | F79: 10043 | K79: 0 | L79: 112
A80: 11 | B80: 10142 | C80: 11 | D80: 10146 | E80: 21 | F80: 10155 | K80: 0 | L80: 112
A81: 11 | B81: 10252 | C81: 11 | D81: 10259 | E81: 21 | F81: 10270 | K81: 0 | L81: 112
A82: 11 | B82: 10370 | C82: 11 | D82: 10377 | E82: 21 | F82: 10389 | K82: 0 | L82: 112
A83: 11 | B83: 10483 | C83: 11 | D83: 10487 | E83: 21 | F83: 10499 | K83: 1 | L83: 112

Sheet !2011-07-02_09h15m.Subject 53
A1: Report for:!2011-07-02_09h15m.Subject 53
A2: Date | B2: 2011-07-02 | F2: Group | G2: var phase 2
A3: Hen | B3: 53 | F3: Correct Sequence | G3: =Start!J2 -> 122 | P3: Total Sequences in Data | Q3: =4994-COUNTBLANK(L7:L5000) -> 81 | V3: Total Sequences in Block Data | W3: =COUNTA(L7:L20) -> 14 | AA3: Total Sequences in Block Data | AB3: =COUNTA(L21:L33) -> 13 | AF3: Total Sequences in Block Data | AG3: =COUNTA(L34:L47) -> 14 | AK3: Total Sequences in Block Data | AL3: =COUNTA(L48:L60) -> 13 | AP3: Total Sequences in Block Data | AQ3: =COUNTA(L61:L74) -> 14 | AU3: Total Sequences in Block Data | AV3: =COUNTA(L75:L87) -> 13
A4: Program | B4: one | P4: Total Sequences in Summary | Q4: =SUM(O7:O14) -> 81 | V4: Total Sequences in Block Summary | W4: =SUM(U7:U14) -> 14 | AA4: Total Sequences in Block Summary | AB4: =SUM(Z7:Z14) -> 13 | AF4: Total Sequences in Block Summary | AG4: =SUM(AE7:AE14) -> 14 | AK4: Total Sequences in Block Summary | AL4: =SUM(AJ7:AJ14) -> 13 | AP4: Total Sequences in Block Summary | AQ4: =SUM(AO7:AO14) -> 14 | AU4: Total Sequences in Block Summary | AV4: =SUM(AT7:AT14) -> 13
T5: Block 1 | Y5: Block 2 | AD5: Block 3 | AI5: Block 4 | AN5: Block 5 | AS5: Block 6
A6: Sequence Component 1 | B6: Time 1 | C6: Sequence Component 2 | D6: Time 2 | E6: Sequence Component 3 | F6: Time 3 | G6: Sequence Component 4 | H6: Time 4 | I6: Sequence Component 5 | J6: Time 5 | K6: Correct? 0=No 1=Yes | L6: Sequence | N6: Frequency | P6: Relative Frequency | Q6: Variability | T6: Frequency | V6: Relative Frequency | W6: Variability | Y6: Frequency | AA6: Relative Frequency | AB6: Variability | AD6: Frequency | AF6: Relative Frequency | AG6: Variability | AI6: Frequency | AK6: Relative Frequency | AL6: Variability | AN6: Frequency | AP6: Relative Frequency | AQ6: Variability | AS6: Frequency | AU6: Relative Frequency | AV6: Variability
A7: 22 | B7: 29 | C7: 13 | D7: 43 | E7: 23 | F7: 55 | K7: 0 | L7: 212 | N7: 111 | O7: =COUNTIF($L$7:$L$500,N7) -> 0 | P7: =O7/$Q$4 -> 0 | Q7: =IF(P7=0,0,(P7*((LOG(P7))/LOG(2)))) -> 0 | T7: =N7 -> 111 | U7: =COUNTIF(L7:L20,T7) -> 0 | V7: =U7/(W4-U10) -> 0 | W7: =IF(V7=0,0,(V7*((LOG(V7))/LOG(2)))) -> 0 | Y7: =N7 -> 111 | Z7: =COUNTIF(L21:L33,Y7) -> 0 | AA7: =Z7/(AB4-Z10) -> 0 | AB7: =IF(AA7=0,0,(AA7*((LOG(AA7))/LOG(2)))) -> 0 | AD7: =N7 -> 111 | AE7: =COUNTIF(L34:L47,AD7) -> 0 | AF7: =AE7/(AG4-AE10) -> 0 | AG7: =IF(AF7=0,0,(AF7*((LOG(AF7))/LOG(2)))) -> 0 | AI7: =N7 -> 111 | AJ7: =COUNTIF(L48:L60,AI7) -> 0 | AK7: =AJ7/(AL4-AJ10) -> 0 | AL7: =IF(AK7=0,0,(AK7*((LOG(AK7))/LOG(2)))) -> 0 | AN7: =N7 -> 111 | AO7: =COUNTIF(L61:L74,AN7) -> 0 | AP7: =AO7/(AQ4-AO10) -> 0 | AQ7: =IF(AP7=0,0,(AP7*((LOG(AP7))/LOG(2)))) -> 0 | AS7: =N7 -> 111 | AT7: =COUNTIF(L75:L87,AS7) -> 0 | AU7: =AT7/(AV4-AT10) -> 0 | AV7: =IF(AU7=0,0,(AU7*((LOG(AU7))/LOG(2)))) -> 0
A8: 11 | B8: 173 | C8: 11 | D8: 205 | E8: 21 | F8: 218 | K8: 0 | L8: 112 | N8: 112 | O8: =COUNTIF($L$7:$L$500,N8) -> 39 | P8: =O8/$Q$4 -> 0.4814814815 | Q8: =IF(P8=0,0,(P8*((LOG(P8))/LOG(2)))) -> -0.5076970812 | T8: =N8 -> 112 | U8: =COUNTIF(L7:L20,T8) -> 5 | V8: =U8/(W4-U10) -> 0.3846153846 | W8: =IF(V8=0,0,(V8*((LOG(V8))/LOG(2)))) -> -0.5301967782 | Y8: =N8 -> 112 | Z8: =COUNTIF(L21:L33,Y8) -> 6 | AA8: =Z8/(AB4-Z10) -> 0.5454545455 | AB8: =IF(AA8=0,0,(AA8*((LOG(AA8))/LOG(2)))) -> -0.4769831552 | AD8: =N8 -> 112 | AE8: =COUNTIF(L34:L47,AD8) -> 10 | AF8: =AE8/(AG4-AE10) -> 0.8333333333 | AG8: =IF(AF8=0,0,(AF8*((LOG(AF8))/LOG(2)))) -> -0.2191953382 | AI8: =N8 -> 112 | AJ8: =COUNTIF(L48:L60,AI8) -> 9 | AK8: =AJ8/(AL4-AJ10) -> 0.9 | AL8: =IF(AK8=0,0,(AK8*((LOG(AK8))/LOG(2)))) -> -0.1368027841 | AN8: =N8 -> 112 | AO8: =COUNTIF(L61:L74,AN8) -> 5 | AP8: =AO8/(AQ4-AO10) -> 0.4166666667 | AQ8: =IF(AP8=0,0,(AP8*((LOG(AP8))/LOG(2)))) -> -0.5262643358 | AS8: =N8 -> 112 | AT8: =COUNTIF(L75:L87,AS8) -> 4 | AU8: =AT8/(AV4-AT10) -> 0.4 | AV8: =IF(AU8=0,0,(AU8*((LOG(AU8))/LOG(2)))) -> -0.528771238
A9: 11 | B9: 346 | C9: 22 | D9: 359 | E9: 14 | F9: 375 | K9: 0 | L9: 121 | N9: 121 | O9: =COUNTIF($L$7:$L$500,N9) -> 19 | P9: =O9/$Q$4 -> 0.2345679012 | Q9: =IF(P9=0,0,(P9*((LOG(P9))/LOG(2)))) -> -0.4906978679 | T9: =N9 -> 121 | U9: =COUNTIF(L7:L20,T9) -> 6 | V9: =U9/(W4-U10) -> 0.4615384615 | W9: =IF(V9=0,0,(V9*((LOG(V9))/LOG(2)))) -> -0.5148356388 | Y9: =N9 -> 121 | Z9: =COUNTIF(L21:L33,Y9) -> 3 | AA9: =Z9/(AB4-Z10) -> 0.2727272727 | AB9: =IF(AA9=0,0,(AA9*((LOG(AA9))/LOG(2)))) -> -0.5112188503 | AD9: =N9 -> 121 | AE9: =COUNTIF(L34:L47,AD9) -> 1 | AF9: =AE9/(AG4-AE10) -> 0.08333333333 | AG9: =IF(AF9=0,0,(AF9*((LOG(AF9))/LOG(2)))) -> -0.2987468751 | AI9: =N9 -> 121 | AJ9: =COUNTIF(L48:L60,AI9) -> 1 | AK9: =AJ9/(AL4-AJ10) -> 0.1 | AL9: =IF(AK9=0,0,(AK9*((LOG(AK9))/LOG(2)))) -> -0.3321928095 | AN9: =N9 -> 121 | AO9: =COUNTIF(L61:L74,AN9) -> 3 | AP9: =AO9/(AQ4-AO10) -> 0.25 | AQ9: =IF(AP9=0,0,(AP9*((LOG(AP9))/LOG(2)))) -> -0.5 | AS9: =N9 -> 121 | AT9: =COUNTIF(L75:L87,AS9) -> 5 | AU9: =AT9/(AV4-AT10) -> 0.5 | AV9: =IF(AU9=0,0,(AU9*((LOG(AU9))/LOG(2)))) -> -0.5
A10: 11 | B10: 512 | C10: 22 | D10: 525 | E10: 14 | F10: 543 | K10: 0 | L10: 121 | N10: 122 | O10: =COUNTIF($L$7:$L$500,N10) -> 13 | P10: =O10/$Q$4 -> 0.1604938272 | Q10: =IF(P10=0,0,(P10*((LOG(P10))/LOG(2)))) -> -0.423609058 | T10: =N10 -> 122 | U10: =COUNTIF(L7:L20,T10) -> 1 | Y10: =N10 -> 122 | Z10: =COUNTIF(L21:L33,Y10) -> 2 | AD10: =N10 -> 122 | AE10: =COUNTIF(L34:L47,AD10) -> 2 | AI10: =N10 -> 122 | AJ10: =COUNTIF(L48:L60,AI10) -> 3 | AN10: =N10 -> 122 | AO10: =COUNTIF(L61:L74,AN10) -> 2 | AS10: =N10 -> 122 | AT10: =COUNTIF(L75:L87,AS10) -> 3
A11: 11 | B11: 665 | C11: 22 | D11: 683 | E11: 14 | F11: 697 | K11: 0 | L11: 121 | N11: 211 | O11: =COUNTIF($L$7:$L$500,N11) -> 1 | P11: =O11/$Q$4 -> 0.01234567901 | Q11: =IF(P11=0,0,(P11*((LOG(P11))/LOG(2)))) -> -0.07826975312 | T11: =N11 -> 211 | U11: =COUNTIF(L7:L20,T11) -> 0 | V11: =U11/(W4-U10) -> 0 | W11: =IF(V11=0,0,(V11*((LOG(V11))/LOG(2)))) -> 0 | Y11: =N11 -> 211 | Z11: =COUNTIF(L21:L33,Y11) -> 0 | AA11: =Z11/(AB4-Z10) -> 0 | AB11: =IF(AA11=0,0,(AA11*((LOG(AA11))/LOG(2)))) -> 0 | AD11: =N11 -> 211 | AE11: =COUNTIF(L34:L47,AD11) -> 0 | AF11: =AE11/(AG4-AE10) -> 0 | AG11: =IF(AF11=0,0,(AF11*((LOG(AF11))/LOG(2)))) -> 0 | AI11: =N11 -> 211 | AJ11: =COUNTIF(L48:L60,AI11) -> 0 | AK11: =AJ11/(AL4-AJ10) -> 0 | AL11: =IF(AK11=0,0,(AK11*((LOG(AK11))/LOG(2)))) -> 0 | AN11: =N11 -> 211 | AO11: =COUNTIF(L61:L74,AN11) -> 1 | AP11: =AO11/(AQ4-AO10) -> 0.08333333333 | AQ11: =IF(AP11=0,0,(AP11*((LOG(AP11))/LOG(2)))) -> -0.2987468751 | AS11: =N11 -> 211 | AT11: =COUNTIF(L75:L87,AS11) -> 0 | AU11: =AT11/(AV4-AT10) -> 0 | AV11: =IF(AU11=0,0,(AU11*((LOG(AU11))/LOG(2)))) -> 0
A12: 11 | B12: 842 | C12: 11 | D12: 847 | E12: 21 | F12: 860 | K12: 0 | L12: 112 | N12: 212 | O12: =COUNTIF($L$7:$L$500,N12) -> 5 | P12: =O12/$Q$4 -> 0.06172839506 | Q12: =IF(P12=0,0,(P12*((LOG(P12))/LOG(2)))) -> -0.2480198709 | T12: =N12 -> 212 | U12: =COUNTIF(L7:L20,T12) -> 2 | V12: =U12/(W4-U10) -> 0.1538461538 | W12: =IF(V12=0,0,(V12*((LOG(V12))/LOG(2)))) -> -0.4154522643 | Y12: =N12 -> 212 | Z12: =COUNTIF(L21:L33,Y12) -> 1 | AA12: =Z12/(AB4-Z10) -> 0.09090909091 | AB12: =IF(AA12=0,0,(AA12*((LOG(AA12))/LOG(2)))) -> -0.3144937835 | AD12: =N12 -> 212 | AE12: =COUNTIF(L34:L47,AD12) -> 1 | AF12: =AE12/(AG4-AE10) -> 0.08333333333 | AG12: =IF(AF12=0,0,(AF12*((LOG(AF12))/LOG(2)))) -> -0.2987468751 | AI12: =N12 -> 212 | AJ12: =COUNTIF(L48:L60,AI12) -> 0 | AK12: =AJ12/(AL4-AJ10) -> 0 | AL12: =IF(AK12=0,0,(AK12*((LOG(AK12))/LOG(2)))) -> 0 | AN12: =N12 -> 212 | AO12: =COUNTIF(L61:L74,AN12) -> 1 | AP12: =AO12/(AQ4-AO10) -> 0.08333333333 | AQ12: =IF(AP12=0,0,(AP12*((LOG(AP12))/LOG(2)))) -> -0.2987468751 | AS12: =N12 -> 212 | AT12: =COUNTIF(L75:L87,AS12) -> 0 | AU12: =AT12/(AV4-AT10) -> 0 | AV12: =IF(AU12=0,0,(AU12*((LOG(AU12))/LOG(2)))) -> 0
A13: 11 | B13: 992 | C13: 22 | D13: 1004 | E13: 14 | F13: 1016 | K13: 0 | L13: 121 | N13: 221 | O13: =COUNTIF($L$7:$L$500,N13) -> 1 | P13: =O13/$Q$4 -> 0.01234567901 | Q13: =IF(P13=0,0,(P13*((LOG(P13))/LOG(2)))) -> -0.07826975312 | T13: =N13 -> 221 | U13: =COUNTIF(L7:L20,T13) -> 0 | V13: =U13/(W4-U10) -> 0 | W13: =IF(V13=0,0,(V13*((LOG(V13))/LOG(2)))) -> 0 | Y13: =N13 -> 221 | Z13: =COUNTIF(L21:L33,Y13) -> 1 | AA13: =Z13/(AB4-Z10) -> 0.09090909091 | AB13: =IF(AA13=0,0,(AA13*((LOG(AA13))/LOG(2)))) -> -0.3144937835 | AD13: =N13 -> 221 | AE13: =COUNTIF(L34:L47,AD13) -> 0 | AF13: =AE13/(AG4-AE10) -> 0 | AG13: =IF(AF13=0,0,(AF13*((LOG(AF13))/LOG(2)))) -> 0 | AI13: =N13 -> 221 | AJ13: =COUNTIF(L48:L60,AI13) -> 0 | AK13: =AJ13/(AL4-AJ10) -> 0 | AL13: =IF(AK13=0,0,(AK13*((LOG(AK13))/LOG(2)))) -> 0 | AN13: =N13 -> 221 | AO13: =COUNTIF(L61:L74,AN13) -> 0 | AP13: =AO13/(AQ4-AO10) -> 0 | AQ13: =IF(AP13=0,0,(AP13*((LOG(AP13))/LOG(2)))) -> 0 | AS13: =N13 -> 221 | AT13: =COUNTIF(L75:L87,AS13) -> 0 | AU13: =AT13/(AV4-AT10) -> 0 | AV13: =IF(AU13=0,0,(AU13*((LOG(AU13))/LOG(2)))) -> 0
A14: 22 | B14: 1133 | C14: 13 | D14: 1145 | E14: 23 | F14: 1161 | K14: 0 | L14: 212 | N14: 222 | O14: =COUNTIF($L$7:$L$500,N14) -> 3 | P14: =O14/$Q$4 -> 0.03703703704 | Q14: =IF(P14=0,0,(P14*((LOG(P14))/LOG(2)))) -> -0.1761069445 | T14: =N14 -> 222 | U14: =COUNTIF(L7:L20,T14) -> 0 | V14: =U14/(W4-U10) -> 0 | W14: =IF(V14=0,0,(V14*((LOG(V14))/LOG(2)))) -> 0 | Y14: =N14 -> 222 | Z14: =COUNTIF(L21:L33,Y14) -> 0 | AA14: =Z14/(AB4-Z10) -> 0 | AB14: =IF(AA14=0,0,(AA14*((LOG(AA14))/LOG(2)))) -> 0 | AD14: =N14 -> 222 | AE14: =COUNTIF(L34:L47,AD14) -> 0 | AF14: =AE14/(AG4-AE10) -> 0 | AG14: =IF(AF14=0,0,(AF14*((LOG(AF14))/LOG(2)))) -> 0 | AI14: =N14 -> 222 | AJ14: =COUNTIF(L48:L60,AI14) -> 0 | AK14: =AJ14/(AL4-AJ10) -> 0 | AL14: =IF(AK14=0,0,(AK14*((LOG(AK14))/LOG(2)))) -> 0 | AN14: =N14 -> 222 | AO14: =COUNTIF(L61:L74,AN14) -> 2 | AP14: =AO14/(AQ4-AO10) -> 0.1666666667 | AQ14: =IF(AP14=0,0,(AP14*((LOG(AP14))/LOG(2)))) -> -0.4308270835 | AS14: =N14 -> 222 | AT14: =COUNTIF(L75:L87,AS14) -> 1 | AU14: =AT14/(AV4-AT10) -> 0.1 | AV14: =IF(AU14=0,0,(AU14*((LOG(AU14))/LOG(2)))) -> -0.3321928095
A15: 11 | B15: 1263 | C15: 22 | D15: 1282 | E15: 14 | F15: 1294 | K15: 0 | L15: 121 | P15: =SUM(P7:P14) -> 1 | Q15: =-SUM(Q7:Q14) -> 2.002670329 | V15: =SUM(V7:V14) -> 1 | W15: =-SUM(W7:W14) -> 1.460484681 | AA15: =SUM(AA7:AA14) -> 1 | AB15: =-SUM(AB7:AB14) -> 1.617189573 | AF15: =SUM(AF7:AF14) -> 1 | AG15: =-SUM(AG7:AG14) -> 0.8166890883 | AK15: =SUM(AK7:AK14) -> 1 | AL15: =-SUM(AL7:AL14) -> 0.4689955936 | AP15: =SUM(AP7:AP14) -> 1 | AQ15: =-SUM(AQ7:AQ14) -> 2.054585169 | AU15: =SUM(AU7:AU14) -> 1 | AV15: =-SUM(AV7:AV14) -> 1.360964047
A16: 11 | B16: 1397 | C16: 11 | D16: 1404 | E16: 21 | F16: 1414 | K16: 0 | L16: 112 | P16: U= | Q16: =Q15/(LOG(Q4)/LOG(2)) -> 0.3158860743 | V16: U1= | W16: =W15/(LOG(W4)/LOG(2)) -> 0.3835956225 | AA16: U2= | AB16: =AB15/(LOG(AB4)/LOG(2)) -> 0.4370263255 | AF16: U3= | AG16: =AG15/(LOG(AG4)/LOG(2)) -> 0.2145030093 | AK16: U4= | AL16: =AL15/(LOG(AL4)/LOG(2)) -> 0.1267405036 | AP16: U5= | AQ16: =AQ15/(LOG(AQ4)/LOG(2)) -> 0.5396358394 | AU16: U6= | AV16: =AV15/(LOG(AV4)/LOG(2)) -> 0.3677844124
A17: 11 | B17: 1544 | C17: 22 | D17: 1560 | E17: 14 | F17: 1573 | K17: 0 | L17: 121
A18: 11 | B18: 1714 | C18: 11 | D18: 1718 | E18: 21 | F18: 1730 | K18: 0 | L18: 112
A19: 11 | B19: 1870 | C19: 11 | D19: 1874 | E19: 21 | F19: 1886 | K19: 0 | L19: 112 | N19: Total Target Seq
A20: 11 | B20: 2003 | C20: 22 | D20: 2016 | E20: 23 | F20: 2025 | K20: 0 | L20: 122 | N20: =COUNTIF(L7:L87,G3) -> 13 | P20: 14 | Q20: 13 | R20: 14 | S20: 13 | T20: 14 | U20: 13
A21: 11 | B21: 2164 | C21: 22 | D21: 2176 | E21: 14 | F21: 2206 | K21: 0 | L21: 121 | P21: % of reinforcement given in 6 equal intervals based on number of trials
A22: 11 | B22: 2312 | C22: 11 | D22: 2317 | E22: 21 | F22: 2334 | K22: 0 | L22: 112 | P22: %_1 | Q22: %_2 | R22: %_3 | S22: %_4 | T22: %_5 | U22: %_6
A23: 11 | B23: 2467 | C23: 11 | D23: 2474 | E23: 21 | F23: 2487 | K23: 0 | L23: 112 | O23: target sequence | P23: =$G$3 -> 122 | Q23: =$G$3 -> 122 | R23: =$G$3 -> 122 | S23: =$G$3 -> 122 | T23: =$G$3 -> 122 | U23: =$G$3 -> 122
A24: 11 | B24: 2606 | C24: 22 | D24: 2618 | E24: 23 | F24: 2631 | K24: 0 | L24: 122 | O24: total reinforcement | P24: =U10 -> 1 | Q24: =Z10 -> 2 | R24: =AE10 -> 2 | S24: =AJ10 -> 3 | T24: =AO10 -> 2 | U24: =AT10 -> 3
A25: 11 | B25: 2745 | C25: 22 | D25: 2757 | E25: 14 | F25: 2770 | K25: 0 | L25: 121 | O25: % target
A26: 11 | B26: 2874 | C26: 22 | D26: 2890 | E26: 14 | F26: 2910 | K26: 0 | L26: 121 | O26: CCRF
A27: 22 | B27: 3010 | C27: 13 | D27: 3023 | E27: 23 | F27: 3036 | K27: 0 | L27: 212 | O27: % CCRf
A28: 11 | B28: 3137 | C28: 11 | D28: 3142 | E28: 21 | F28: 3151 | K28: 0 | L28: 112 | O28: average response rate | P28: =F20/P20 -> 144.6428571 | Q28: =(F33-F20)/Q20 -> 135.7692308 | R28: =(F47-F33)/R20 -> 119.1428571 | S28: =(F60-F47)/S20 -> 113.9230769 | T28: =(F74-F60)/T20 -> 119.0714286 | U28: =(F87-F74)/U20 -> 122.0769231
A29: 11 | B29: 3282 | C29: 11 | D29: 3290 | E29: 21 | F29: 3302 | K29: 0 | L29: 112
A30: 22 | B30: 3414 | C30: 24 | D30: 3423 | E30: 14 | F30: 3434 | K30: 0 | L30: 221
A31: 11 | B31: 3534 | C31: 11 | D31: 3539 | E31: 21 | F31: 3548 | K31: 0 | L31: 112
A32: 11 | B32: 3656 | C32: 22 | D32: 3667 | E32: 23 | F32: 3677 | K32: 0 | L32: 122
A33: 11 | B33: 3777 | C33: 11 | D33: 3782 | E33: 21 | F33: 3790 | K33: 0 | L33: 112
A34: 11 | B34: 3884 | C34: 11 | D34: 3889 | E34: 21 | F34: 3900 | K34: 0 | L34: 112
A35: 11 | B35: 4000 | C35: 11 | D35: 4005 | E35: 21 | F35: 4014 | K35: 0 | L35: 112
A36: 11 | B36: 4120 | C36: 11 | D36: 4127 | E36: 21 | F36: 4136 | K36: 0 | L36: 112
A37: 11 | B37: 4228 | C37: 11 | D37: 4232 | E37: 21 | F37: 4243 | K37: 0 | L37: 112
A38: 11 | B38: 4336 | C38: 11 | D38: 4341 | E38: 21 | F38: 4353 | K38: 0 | L38: 112
A39: 22 | B39: 4495 | C39: 13 | D39: 4506 | E39: 23 | F39: 4515 | K39: 0 | L39: 212
A40: 11 | B40: 4613 | C40: 11 | D40: 4618 | E40: 21 | F40: 4627 | K40: 0 | L40: 112
A41: 11 | B41: 4720 | C41: 11 | D41: 4727 | E41: 21 | F41: 4735 | K41: 0 | L41: 112
A42: 11 | B42: 4840 | C42: 22 | D42: 4849 | E42: 14 | F42: 4864 | K42: 0 | L42: 121
A43: 11 | B43: 4962 | C43: 11 | D43: 4966 | E43: 21 | F43: 4976 | K43: 0 | L43: 112
A44: 11 | B44: 5071 | C44: 22 | D44: 5080 | E44: 23 | F44: 5087 | K44: 0 | L44: 122
A45: 11 | B45: 5203 | C45: 22 | D45: 5212 | E45: 23 | F45: 5230 | K45: 0 | L45: 122
A46: 11 | B46: 5327 | C46: 11 | D46: 5332 | E46: 21 | F46: 5344 | K46: 0 | L46: 112
A47: 11 | B47: 5440 | C47: 11 | D47: 5446 | E47: 21 | F47: 5458 | K47: 0 | L47: 112
A48: 11 | B48: 5550 | C48: 22 | D48: 5560 | E48: 14 | F48: 5578 | K48: 0 | L48: 121
A49: 11 | B49: 5677 | C49: 22 | D49: 5688 | E49: 23 | F49: 5701 | K49: 0 | L49: 122
A50: 11 | B50: 5799 | C50: 22 | D50: 5808 | E50: 23 | F50: 5816 | K50: 0 | L50: 122
A51: 11 | B51: 5914 | C51: 22 | D51: 5922 | E51: 23 | F51: 5928 | K51: 0 | L51: 122
A52: 11 | B52: 6026 | C52: 11 | D52: 6030 | E52: 21 | F52: 6039 | K52: 0 | L52: 112
A53: 11 | B53: 6131 | C53: 11 | D53: 6136 | E53: 21 | F53: 6147 | K53: 0 | L53: 112
A54: 11 | B54: 6245 | C54: 11 | D54: 6250 | E54: 21 | F54: 6261 | K54: 0 | L54: 112
A55: 11 | B55: 6361 | C55: 11 | D55: 6366 | E55: 21 | F55: 6375 | K55: 0 | L55: 112
A56: 11 | B56: 6471 | C56: 11 | D56: 6475 | E56: 21 | F56: 6483 | K56: 0 | L56: 112
A57: 11 | B57: 6592 | C57: 11 | D57: 6597 | E57: 21 | F57: 6606 | K57: 0 | L57: 112
A58: 11 | B58: 6704 | C58: 11 | D58: 6709 | E58: 21 | F58: 6718 | K58: 0 | L58: 112
A59: 11 | B59: 6817 | C59: 11 | D59: 6821 | E59: 21 | F59: 6830 | K59: 0 | L59: 112
A60: 11 | B60: 6921 | C60: 11 | D60: 6929 | E60: 21 | F60: 6939 | K60: 0 | L60: 112
A61: 11 | B61: 7031 | C61: 22 | D61: 7043 | E61: 23 | F61: 7059 | K61: 0 | L61: 122
A62: 22 | B62: 7160 | C62: 24 | D62: 7176 | E62: 23 | F62: 7184 | K62: 0 | L62: 222
A63: 11 | B63: 7285 | C63: 11 | D63: 7289 | E63: 21 | F63: 7299 | K63: 0 | L63: 112
A64: 22 | B64: 7407 | C64: 24 | D64: 7418 | E64: 23 | F64: 7426 | K64: 0 | L64: 222
A65: 22 | B65: 7517 | C65: 13 | D65: 7528 | E65: 14 | F65: 7532 | K65: 0 | L65: 211
A66: 11 | B66: 7632 | C66: 11 | D66: 7637 | E66: 21 | F66: 7649 | K66: 0 | L66: 112
A67: 22 | B67: 7739 | C67: 13 | D67: 7750 | E67: 23 | F67: 7761 | K67: 0 | L67: 212
A68: 11 | B68: 7859 | C68: 11 | D68: 7866 | E68: 21 | F68: 7875 | K68: 0 | L68: 112
A69: 11 | B69: 7968 | C69: 22 | D69: 7979 | E69: 23 | F69: 7995 | K69: 0 | L69: 122
A70: 11 | B70: 8092 | C70: 22 | D70: 8104 | E70: 14 | F70: 8122 | K70: 0 | L70: 121
A71: 11 | B71: 8220 | C71: 11 | D71: 8225 | E71: 21 | F71: 8234 | K71: 0 | L71: 112
A72: 11 | B72: 8338 | C72: 11 | D72: 8345 | E72: 21 | F72: 8354 | K72: 0 | L72: 112
A73: 11 | B73: 8454 | C73: 22 | D73: 8464 | E73: 14 | F73: 8479 | K73: 0 | L73: 121
A74: 11 | B74: 8575 | C74: 22 | D74: 8587 | E74: 14 | F74: 8606 | K74: 0 | L74: 121
A75: 22 | B75: 8710 | C75: 24 | D75: 8719 | E75: 23 | F75: 8727 | K75: 0 | L75: 222
A76: 11 | B76: 8824 | C76: 22 | D76: 8834 | E76: 14 | F76: 8849 | K76: 0 | L76: 121
A77: 11 | B77: 8967 | C77: 22 | D77: 8976 | E77: 14 | F77: 8993 | K77: 0 | L77: 121
A78: 11 | B78: 9090 | C78: 22 | D78: 9100 | E78: 23 | F78: 9114 | K78: 0 | L78: 122
A79: 11 | B79: 9210 | C79: 22 | D79: 9219 | E79: 23 | F79: 9227 | K79: 0 | L79: 122
A80: 11 | B80: 9325 | C80: 11 | D80: 9331 | E80: 21 | F80: 9339 | K80: 0 | L80: 112
A81: 11 | B81: 9432 | C81: 22 | D81: 9441 | E81: 14 | F81: 9456 | K81: 0 | L81: 121
A82: 11 | B82: 9554 | C82: 11 | D82: 9559 | E82: 21 | F82: 9571 | K82: 0 | L82: 112
A83: 11 | B83: 9701 | C83: 22 | D83: 9722 | E83: 14 | F83: 9738 | K83: 0 | L83: 121
A84: 11 | B84: 9835 | C84: 22 | D84: 9843 | E84: 23 | F84: 9850 | K84: 0 | L84: 122
A85: 11 | B85: 9949 | C85: 22 | D85: 9959 | E85: 14 | F85: 9972 | K85: 0 | L85: 121
A86: 11 | B86: 10071 | C86: 11 | D86: 10076 | E86: 21 | F86: 10088 | K86: 0 | L86: 112
A87: 11 | B87: 10180 | C87: 11 | D87: 10185 | E87: 21 | F87: 10193 | K87: 1 | L87: 112

Sheet !2011-07-03_09h29m.Subject 53
A1: Report for:!2011-07-03_09h29m.Subject 53
A2: Date | B2: 2011-07-03 | F2: Group | G2: var phase 2
A3: Hen | B3: 53 | F3: Correct Sequence | G3: =Start!J2 -> 122 | P3: Total Sequences in Data | Q3: =4994-COUNTBLANK(L7:L5000) -> 78 | V3: Total Sequences in Block Data | W3: =COUNTA(L7:L19) -> 13 | AA3: Total Sequences in Block Data | AB3: =COUNTA(L20:L32) -> 13 | AF3: Total Sequences in Block Data | AG3: =COUNTA(L33:L45) -> 13 | AK3: Total Sequences in Block Data | AL3: =COUNTA(L46:L58) -> 13 | AP3: Total Sequences in Block Data | AQ3: =COUNTA(L59:L71) -> 13 | AU3: Total Sequences in Block Data | AV3: =COUNTA(L72:L84) -> 13
A4: Program | B4: one | P4: Total Sequences in Summary | Q4: =SUM(O7:O14) -> 78 | V4: Total Sequences in Block Summary | W4: =SUM(U7:U14) -> 13 | AA4: Total Sequences in Block Summary | AB4: =SUM(Z7:Z14) -> 13 | AF4: Total Sequences in Block Summary | AG4: =SUM(AE7:AE14) -> 13 | AK4: Total Sequences in Block Summary | AL4: =SUM(AJ7:AJ14) -> 13 | AP4: Total Sequences in Block Summary | AQ4: =SUM(AO7:AO14) -> 13 | AU4: Total Sequences in Block Summary | AV4: =SUM(AT7:AT14) -> 13
T5: Block 1 | Y5: Block 2 | AD5: Block 3 | AI5: Block 4 | AN5: Block 5 | AS5: Block 6
A6: Sequence Component 1 | B6: Time 1 | C6: Sequence Component 2 | D6: Time 2 | E6: Sequence Component 3 | F6: Time 3 | G6: Sequence Component 4 | H6: Time 4 | I6: Sequence Component 5 | J6: Time 5 | K6: Correct? 0=No 1=Yes | L6: Sequence | N6: Frequency | P6: Relative Frequency | Q6: Variability | T6: Frequency | V6: Relative Frequency | W6: Variability | Y6: Frequency | AA6: Relative Frequency | AB6: Variability | AD6: Frequency | AF6: Relative Frequency | AG6: Variability | AI6: Frequency | AK6: Relative Frequency | AL6: Variability | AN6: Frequency | AP6: Relative Frequency | AQ6: Variability | AS6: Frequency | AU6: Relative Frequency | AV6: Variability
A7: 22 | B7: 43 | C7: 24 | D7: 66 | E7: 14 | F7: 84 | K7: 0 | L7: 221 | N7: 111 | O7: =COUNTIF($L$7:$L$500,N7) -> 6 | P7: =O7/$Q$4 -> 0.07692307692 | Q7: =IF(P7=0,0,(P7*((LOG(P7))/LOG(2)))) -> -0.2846492091 | T7: =N7 -> 111 | U7: =COUNTIF(L7:L19,T7) -> 1 | V7: =U7/(W4-U10) -> 0.07692307692 | W7: =IF(V7=0,0,(V7*((LOG(V7))/LOG(2)))) -> -0.2846492091 | Y7: =N7 -> 111 | Z7: =COUNTIF(L20:L32,Y7) -> 0 | AA7: =Z7/(AB4-Z10) -> 0 | AB7: =IF(AA7=0,0,(AA7*((LOG(AA7))/LOG(2)))) -> 0 | AD7: =N7 -> 111 | AE7: =COUNTIF(L33:L45,AD7) -> 0 | AF7: =AE7/(AG4-AE10) -> 0 | AG7: =IF(AF7=0,0,(AF7*((LOG(AF7))/LOG(2)))) -> 0 | AI7: =N7 -> 111 | AJ7: =COUNTIF(L46:L58,AI7) -> 5 | AK7: =AJ7/(AL4-AJ10) -> 0.3846153846 | AL7: =IF(AK7=0,0,(AK7*((LOG(AK7))/LOG(2)))) -> -0.5301967782 | AN7: =N7 -> 111 | AO7: =COUNTIF(L59:L71,AN7) -> 0 | AP7: =AO7/(AQ4-AO10) -> 0 | AQ7: =IF(AP7=0,0,(AP7*((LOG(AP7))/LOG(2)))) -> 0 | AS7: =N7 -> 111 | AT7: =COUNTIF(L72:L84,AS7) -> 0 | AU7: =AT7/(AV4-AT10) -> 0 | AV7: =IF(AU7=0,0,(AU7*((LOG(AU7))/LOG(2)))) -> 0
A8: 22 | B8: 236 | C8: 24 | D8: 250 | E8: 14 | F8: 265 | K8: 0 | L8: 221 | N8: 112 | O8: =COUNTIF($L$7:$L$500,N8) -> 36 | P8: =O8/$Q$4 -> 0.4615384615 | Q8: =IF(P8=0,0,(P8*((LOG(P8))/LOG(2)))) -> -0.5148356388 | T8: =N8 -> 112 | U8: =COUNTIF(L7:L19,T8) -> 1 | V8: =U8/(W4-U10) -> 0.07692307692 | W8: =IF(V8=0,0,(V8*((LOG(V8))/LOG(2)))) -> -0.2846492091 | Y8: =N8 -> 112 | Z8: =COUNTIF(L20:L32,Y8) -> 9 | AA8: =Z8/(AB4-Z10) -> 0.6923076923 | AB8: =IF(AA8=0,0,(AA8*((LOG(AA8))/LOG(2)))) -> -0.3672794193 | AD8: =N8 -> 112 | AE8: =COUNTIF(L33:L45,AD8) -> 6 | AF8: =AE8/(AG4-AE10) -> 0.4615384615 | AG8: =IF(AF8=0,0,(AF8*((LOG(AF8))/LOG(2)))) -> -0.5148356388 | AI8: =N8 -> 112 | AJ8: =COUNTIF(L46:L58,AI8) -> 6 | AK8: =AJ8/(AL4-AJ10) -> 0.4615384615 | AL8: =IF(AK8=0,0,(AK8*((LOG(AK8))/LOG(2)))) -> -0.5148356388 | AN8: =N8 -> 112 | AO8: =COUNTIF(L59:L71,AN8) -> 7 | AP8: =AO8/(AQ4-AO10) -> 0.7777777778 | AQ8: =IF(AP8=0,0,(AP8*((LOG(AP8))/LOG(2)))) -> -0.2819989506 | AS8: =N8 -> 112 | AT8: =COUNTIF(L72:L84,AS8) -> 7 | AU8: =AT8/(AV4-AT10) -> 0.6363636364 | AV8: =IF(AU8=0,0,(AU8*((LOG(AU8))/LOG(2)))) -> -0.4149578978
A9: 11 | B9: 367 | C9: 22 | D9: 380 | E9: 14 | F9: 396 | K9: 0 | L9: 121 | N9: 121 | O9: =COUNTIF($L$7:$L$500,N9) -> 10 | P9: =O9/$Q$4 -> 0.1282051282 | Q9: =IF(P9=0,0,(P9*((LOG(P9))/LOG(2)))) -> -0.37993258 | T9: =N9 -> 121 | U9: =COUNTIF(L7:L19,T9) -> 2 | V9: =U9/(W4-U10) -> 0.1538461538 | W9: =IF(V9=0,0,(V9*((LOG(V9))/LOG(2)))) -> -0.4154522643 | Y9: =N9 -> 121 | Z9: =COUNTIF(L20:L32,Y9) -> 3 | AA9: =Z9/(AB4-Z10) -> 0.2307692308 | AB9: =IF(AA9=0,0,(AA9*((LOG(AA9))/LOG(2)))) -> -0.4881870502 | AD9: =N9 -> 121 | AE9: =COUNTIF(L33:L45,AD9) -> 3 | AF9: =AE9/(AG4-AE10) -> 0.2307692308 | AG9: =IF(AF9=0,0,(AF9*((LOG(AF9))/LOG(2)))) -> -0.4881870502 | AI9: =N9 -> 121 | AJ9: =COUNTIF(L46:L58,AI9) -> 1 | AK9: =AJ9/(AL4-AJ10) -> 0.07692307692 | AL9: =IF(AK9=0,0,(AK9*((LOG(AK9))/LOG(2)))) -> -0.2846492091 | AN9: =N9 -> 121 | AO9: =COUNTIF(L59:L71,AN9) -> 0 | AP9: =AO9/(AQ4-AO10) -> 0 | AQ9: =IF(AP9=0,0,(AP9*((LOG(AP9))/LOG(2)))) -> 0 | AS9: =N9 -> 121 | AT9: =COUNTIF(L72:L84,AS9) -> 1 | AU9: =AT9/(AV4-AT10) -> 0.09090909091 | AV9: =IF(AU9=0,0,(AU9*((LOG(AU9))/LOG(2)))) -> -0.3144937835
A10: 22 | B10: 530 | C10: 24 | D10: 538 | E10: 23 | F10: 561 | K10: 0 | L10: 222 | N10: 122 | O10: =COUNTIF($L$7:$L$500,N10) -> 6 | P10: =O10/$Q$4 -> 0.07692307692 | Q10: =IF(P10=0,0,(P10*((LOG(P10))/LOG(2)))) -> -0.2846492091 | T10: =N10 -> 122 | U10: =COUNTIF(L7:L19,T10) -> 0 | Y10: =N10 -> 122 | Z10: =COUNTIF(L20:L32,Y10) -> 0 | AD10: =N10 -> 122 | AE10: =COUNTIF(L33:L45,AD10) -> 0 | AI10: =N10 -> 122 | AJ10: =COUNTIF(L46:L58,AI10) -> 0 | AN10: =N10 -> 122 | AO10: =COUNTIF(L59:L71,AN10) -> 4 | AS10: =N10 -> 122 | AT10: =COUNTIF(L72:L84,AS10) -> 2
A11: 22 | B11: 673 | C11: 24 | D11: 682 | E11: 23 | F11: 700 | K11: 0 | L11: 222 | N11: 211 | O11: =COUNTIF($L$7:$L$500,N11) -> 1 | P11: =O11/$Q$4 -> 0.01282051282 | Q11: =IF(P11=0,0,(P11*((LOG(P11))/LOG(2)))) -> -0.08058207973 | T11: =N11 -> 211 | U11: =COUNTIF(L7:L19,T11) -> 0 | V11: =U11/(W4-U10) -> 0 | W11: =IF(V11=0,0,(V11*((LOG(V11))/LOG(2)))) -> 0 | Y11: =N11 -> 211 | Z11: =COUNTIF(L20:L32,Y11) -> 0 | AA11: =Z11/(AB4-Z10) -> 0 | AB11: =IF(AA11=0,0,(AA11*((LOG(AA11))/LOG(2)))) -> 0 | AD11: =N11 -> 211 | AE11: =COUNTIF(L33:L45,AD11) -> 1 | AF11: =AE11/(AG4-AE10) -> 0.07692307692 | AG11: =IF(AF11=0,0,(AF11*((LOG(AF11))/LOG(2)))) -> -0.2846492091 | AI11: =N11 -> 211 | AJ11: =COUNTIF(L46:L58,AI11) -> 0 | AK11: =AJ11/(AL4-AJ10) -> 0 | AL11: =IF(AK11=0,0,(AK11*((LOG(AK11))/LOG(2)))) -> 0 | AN11: =N11 -> 211 | AO11: =COUNTIF(L59:L71,AN11) -> 0 | AP11: =AO11/(AQ4-AO10) -> 0 | AQ11: =IF(AP11=0,0,(AP11*((LOG(AP11))/LOG(2)))) -> 0 | AS11: =N11 -> 211 | AT11: =COUNTIF(L72:L84,AS11) -> 0 | AU11: =AT11/(AV4-AT10) -> 0 | AV11: =IF(AU11=0,0,(AU11*((LOG(AU11))/LOG(2)))) -> 0
A12: 22 | B12: 803 | C12: 24 | D12: 815 | E12: 23 | F12: 832 | K12: 0 | L12: 222 | N12: 212 | O12: =COUNTIF($L$7:$L$500,N12) -> 9 | P12: =O12/$Q$4 -> 0.1153846154 | Q12: =IF(P12=0,0,(P12*((LOG(P12))/LOG(2)))) -> -0.3594781405 | T12: =N12 -> 212 | U12: =COUNTIF(L7:L19,T12) -> 3 | V12: =U12/(W4-U10) -> 0.2307692308 | W12: =IF(V12=0,0,(V12*((LOG(V12))/LOG(2)))) -> -0.4881870502 | Y12: =N12 -> 212 | Z12: =COUNTIF(L20:L32,Y12) -> 1 | AA12: =Z12/(AB4-Z10) -> 0.07692307692 | AB12: =IF(AA12=0,0,(AA12*((LOG(AA12))/LOG(2)))) -> -0.2846492091 | AD12: =N12 -> 212 | AE12: =COUNTIF(L33:L45,AD12) -> 3 | AF12: =AE12/(AG4-AE10) -> 0.2307692308 | AG12: =IF(AF12=0,0,(AF12*((LOG(AF12))/LOG(2)))) -> -0.4881870502 | AI12: =N12 -> 212 | AJ12: =COUNTIF(L46:L58,AI12) -> 0 | AK12: =AJ12/(AL4-AJ10) -> 0 | AL12: =IF(AK12=0,0,(AK12*((LOG(AK12))/LOG(2)))) -> 0 | AN12: =N12 -> 212 | AO12: =COUNTIF(L59:L71,AN12) -> 2 | AP12: =AO12/(AQ4-AO10) -> 0.2222222222 | AQ12: =IF(AP12=0,0,(AP12*((LOG(AP12))/LOG(2)))) -> -0.4822055559 | AS12: =N12 -> 212 | AT12: =COUNTIF(L72:L84,AS12) -> 0 | AU12: =AT12/(AV4-AT10) -> 0 | AV12: =IF(AU12=0,0,(AU12*((LOG(AU12))/LOG(2)))) -> 0
A13: 22 | B13: 946 | C13: 24 | D13: 963 | E13: 23 | F13: 980 | K13: 0 | L13: 222 | N13: 221 | O13: =COUNTIF($L$7:$L$500,N13) -> 3 | P13: =O13/$Q$4 -> 0.03846153846 | Q13: =IF(P13=0,0,(P13*((LOG(P13))/LOG(2)))) -> -0.180786143 | T13: =N13 -> 221 | U13: =COUNTIF(L7:L19,T13) -> 2 | V13: =U13/(W4-U10) -> 0.1538461538 | W13: =IF(V13=0,0,(V13*((LOG(V13))/LOG(2)))) -> -0.4154522643 | Y13: =N13 -> 221 | Z13: =COUNTIF(L20:L32,Y13) -> 0 | AA13: =Z13/(AB4-Z10) -> 0 | AB13: =IF(AA13=0,0,(AA13*((LOG(AA13))/LOG(2)))) -> 0 | AD13: =N13 -> 221 | AE13: =COUNTIF(L33:L45,AD13) -> 0 | AF13: =AE13/(AG4-AE10) -> 0 | AG13: =IF(AF13=0,0,(AF13*((LOG(AF13))/LOG(2)))) -> 0 | AI13: =N13 -> 221 | AJ13: =COUNTIF(L46:L58,AI13) -> 0 | AK13: =AJ13/(AL4-AJ10) -> 0 | AL13: =IF(AK13=0,0,(AK13*((LOG(AK13))/LOG(2)))) -> 0 | AN13: =N13 -> 221 | AO13: =COUNTIF(L59:L71,AN13) -> 0 | AP13: =AO13/(AQ4-AO10) -> 0 | AQ13: =IF(AP13=0,0,(AP13*((LOG(AP13))/LOG(2)))) -> 0 | AS13: =N13 -> 221 | AT13: =COUNTIF(L72:L84,AS13) -> 1 | AU13: =AT13/(AV4-AT10) -> 0.09090909091 | AV13: =IF(AU13=0,0,(AU13*((LOG(AU13))/LOG(2)))) -> -0.3144937835
A14: 22 | B14: 1100 | C14: 13 | D14: 1113 | E14: 23 | F14: 1124 | K14: 0 | L14: 212 | N14: 222 | O14: =COUNTIF($L$7:$L$500,N14) -> 7 | P14: =O14/$Q$4 -> 0.08974358974 | Q14: =IF(P14=0,0,(P14*((LOG(P14))/LOG(2)))) -> -0.3121324497 | T14: =N14 -> 222 | U14: =COUNTIF(L7:L19,T14) -> 4 | V14: =U14/(W4-U10) -> 0.3076923077 | W14: =IF(V14=0,0,(V14*((LOG(V14))/LOG(2)))) -> -0.523212221 | Y14: =N14 -> 222 | Z14: =COUNTIF(L20:L32,Y14) -> 0 | AA14: =Z14/(AB4-Z10) -> 0 | AB14: =IF(AA14=0,0,(AA14*((LOG(AA14))/LOG(2)))) -> 0 | AD14: =N14 -> 222 | AE14: =COUNTIF(L33:L45,AD14) -> 0 | AF14: =AE14/(AG4-AE10) -> 0 | AG14: =IF(AF14=0,0,(AF14*((LOG(AF14))/LOG(2)))) -> 0 | AI14: =N14 -> 222 | AJ14: =COUNTIF(L46:L58,AI14) -> 1 | AK14: =AJ14/(AL4-AJ10) -> 0.07692307692 | AL14: =IF(AK14=0,0,(AK14*((LOG(AK14))/LOG(2)))) -> -0.2846492091 | AN14: =N14 -> 222 | AO14: =COUNTIF(L59:L71,AN14) -> 0 | AP14: =AO14/(AQ4-AO10) -> 0 | AQ14: =IF(AP14=0,0,(AP14*((LOG(AP14))/LOG(2)))) -> 0 | AS14: =N14 -> 222 | AT14: =COUNTIF(L72:L84,AS14) -> 2 | AU14: =AT14/(AV4-AT10) -> 0.1818181818 | AV14: =IF(AU14=0,0,(AU14*((LOG(AU14))/LOG(2)))) -> -0.4471693852
A15: 22 | B15: 1241 | C15: 13 | D15: 1258 | E15: 23 | F15: 1271 | K15: 0 | L15: 212 | P15: =SUM(P7:P14) -> 1 | Q15: =-SUM(Q7:Q14) -> 2.39704545 | V15: =SUM(V7:V14) -> 1 | W15: =-SUM(W7:W14) -> 2.411602218 | AA15: =SUM(AA7:AA14) -> 1 | AB15: =-SUM(AB7:AB14) -> 1.140115679 | AF15: =SUM(AF7:AF14) -> 1 | AG15: =-SUM(AG7:AG14) -> 1.775858948 | AK15: =SUM(AK7:AK14) -> 1 | AL15: =-SUM(AL7:AL14) -> 1.614330835 | AP15: =SUM(AP7:AP14) -> 1 | AQ15: =-SUM(AQ7:AQ14) -> 0.7642045065 | AU15: =SUM(AU7:AU14) -> 1 | AV15: =-SUM(AV7:AV14) -> 1.49111485
A16: 11 | B16: 1373 | C16: 11 | D16: 1381 | E16: 21 | F16: 1393 | K16: 0 | L16: 112 | P16: U= | Q16: =Q15/(LOG(Q4)/LOG(2)) -> 0.3813670735 | V16: U1= | W16: =W15/(LOG(W4)/LOG(2)) -> 0.6517069326 | AA16: U2= | AB16: =AB15/(LOG(AB4)/LOG(2)) -> 0.3081027568 | AF16: U3= | AG16: =AG15/(LOG(AG4)/LOG(2)) -> 0.4799048447 | AK16: U4= | AL16: =AL15/(LOG(AL4)/LOG(2)) -> 0.4362537855 | AP16: U5= | AQ16: =AQ15/(LOG(AQ4)/LOG(2)) -> 0.2065172154 | AU16: U6= | AV16: =AV15/(LOG(AV4)/LOG(2)) -> 0.4029561251
A17: 11 | B17: 1481 | C17: 22 | D17: 1494 | E17: 14 | F17: 1508 | K17: 0 | L17: 121
A18: 22 | B18: 1608 | C18: 13 | D18: 1619 | E18: 23 | F18: 1632 | K18: 0 | L18: 212
A19: 11 | B19: 1729 | C19: 11 | D19: 1746 | E19: 12 | F19: 1750 | K19: 0 | L19: 111 | N19: Total Target Seq
A20: 11 | B20: 1844 | C20: 11 | D20: 1849 | E20: 21 | F20: 1861 | K20: 0 | L20: 112 | N20: =COUNTIF(L7:L84,G3) -> 6 | P20: 13 | Q20: 13 | R20: 13 | S20: 13 | T20: 13 | U20: 13
A21: 11 | B21: 1998 | C21: 11 | D21: 2006 | E21: 21 | F21: 2019 | K21: 0 | L21: 112 | P21: % of reinforcement given in 6 equal intervals based on number of trials
A22: 11 | B22: 2123 | C22: 11 | D22: 2130 | E22: 21 | F22: 2139 | K22: 0 | L22: 112 | P22: %_1 | Q22: %_2 | R22: %_3 | S22: %_4 | T22: %_5 | U22: %_6
A23: 11 | B23: 2244 | C23: 22 | D23: 2257 | E23: 14 | F23: 2268 | K23: 0 | L23: 121 | O23: target sequence | P23: =$G$3 -> 122 | Q23: =$G$3 -> 122 | R23: =$G$3 -> 122 | S23: =$G$3 -> 122 | T23: =$G$3 -> 122 | U23: =$G$3 -> 122
A24: 11 | B24: 2363 | C24: 11 | D24: 2367 | E24: 21 | F24: 2379 | K24: 0 | L24: 112 | O24: total reinforcement | P24: =U10 -> 0 | Q24: =Z10 -> 0 | R24: =AE10 -> 0 | S24: =AJ10 -> 0 | T24: =AO10 -> 4 | U24: =AT10 -> 2
A25: 11 | B25: 2477 | C25: 11 | D25: 2485 | E25: 21 | F25: 2494 | K25: 0 | L25: 112 | O25: % target
A26: 11 | B26: 2587 | C26: 11 | D26: 2592 | E26: 21 | F26: 2601 | K26: 0 | L26: 112 | O26: CCRF
A27: 11 | B27: 2714 | C27: 22 | D27: 2723 | E27: 14 | F27: 2738 | K27: 0 | L27: 121 | O27: % CCRf
A28: 11 | B28: 2835 | C28: 11 | D28: 2840 | E28: 21 | F28: 2849 | K28: 0 | L28: 112 | O28: average response rate | P28: =F19/P20 -> 134.6153846 | Q28: =(F32-F19)/Q20 -> 121.7692308 | R28: =(F45-F32)/R20 -> 128.5384615 | S28: =(F58-F45)/S20 -> 122.7692308 | T28: =(F71-F58)/T20 -> 133.4615385 | U28: =(F84-F71)/U20 -> 133
A29: 11 | B29: 2944 | C29: 11 | D29: 2949 | E29: 21 | F29: 2959 | K29: 0 | L29: 112
A30: 11 | B30: 3054 | C30: 22 | D30: 3063 | E30: 14 | F30: 3087 | K30: 0 | L30: 121
A31: 11 | B31: 3184 | C31: 11 | D31: 3192 | E31: 21 | F31: 3204 | K31: 0 | L31: 112
A32: 22 | B32: 3303 | C32: 13 | D32: 3322 | E32: 23 | F32: 3333 | K32: 0 | L32: 212
A33: 11 | B33: 3431 | C33: 11 | D33: 3435 | E33: 21 | F33: 3446 | K33: 0 | L33: 112
A34: 11 | B34: 3546 | C34: 11 | D34: 3552 | E34: 21 | F34: 3561 | K34: 0 | L34: 112
A35: 11 | B35: 3691 | C35: 11 | D35: 3699 | E35: 21 | F35: 3710 | K35: 0 | L35: 112
A36: 22 | B36: 3834 | C36: 13 | D36: 3849 | E36: 23 | F36: 3860 | K36: 0 | L36: 212
A37: 22 | B37: 3965 | C37: 13 | D37: 3976 | E37: 23 | F37: 3985 | K37: 0 | L37: 212
A38: 11 | B38: 4097 | C38: 11 | D38: 4102 | E38: 21 | F38: 4110 | K38: 0 | L38: 112
A39: 11 | B39: 4240 | C39: 22 | D39: 4250 | E39: 14 | F39: 4262 | K39: 0 | L39: 121
A40: 11 | B40: 4362 | C40: 11 | D40: 4367 | E40: 21 | F40: 4382 | K40: 0 | L40: 112
A41: 22 | B41: 4488 | C41: 13 | D41: 4507 | E41: 23 | F41: 4519 | K41: 0 | L41: 212
A42: 11 | B42: 4618 | C42: 11 | D42: 4622 | E42: 21 | F42: 4635 | K42: 0 | L42: 112
A43: 11 | B43: 4745 | C43: 22 | D43: 4754 | E43: 14 | F43: 4766 | K43: 0 | L43: 121
A44: 22 | B44: 4872 | C44: 13 | D44: 4880 | E44: 14 | F44: 4884 | K44: 0 | L44: 211
A45: 11 | B45: 4982 | C45: 22 | D45: 4993 | E45: 14 | F45: 5004 | K45: 0 | L45: 121
A46: 11 | B46: 5101 | C46: 11 | D46: 5106 | E46: 12 | F46: 5114 | K46: 0 | L46: 111
A47: 11 | B47: 5248 | C47: 11 | D47: 5256 | E47: 21 | F47: 5268 | K47: 0 | L47: 112
A48: 11 | B48: 5371 | C48: 22 | D48: 5382 | E48: 14 | F48: 5395 | K48: 0 | L48: 121
A49: 11 | B49: 5492 | C49: 11 | D49: 5497 | E49: 12 | F49: 5504 | K49: 0 | L49: 111
A50: 11 | B50: 5602 | C50: 11 | D50: 5607 | E50: 21 | F50: 5618 | K50: 0 | L50: 112
A51: 11 | B51: 5724 | C51: 11 | D51: 5729 | E51: 21 | F51: 5740 | K51: 0 | L51: 112
A52: 11 | B52: 5847 | C52: 11 | D52: 5851 | E52: 12 | F52: 5858 | K52: 0 | L52: 111
A53: 11 | B53: 5956 | C53: 11 | D53: 5960 | E53: 21 | F53: 5969 | K53: 0 | L53: 112
A54: 22 | B54: 6092 | C54: 24 | D54: 6103 | E54: 23 | F54: 6110 | K54: 0 | L54: 222
A55: 11 | B55: 6206 | C55: 11 | D55: 6210 | E55: 12 | F55: 6218 | K55: 0 | L55: 111
A56: 11 | B56: 6316 | C56: 11 | D56: 6320 | E56: 12 | F56: 6324 | K56: 0 | L56: 111
A57: 11 | B57: 6471 | C57: 11 | D57: 6475 | E57: 21 | F57: 6488 | K57: 0 | L57: 112
A58: 11 | B58: 6587 | C58: 11 | D58: 6592 | E58: 21 | F58: 6600 | K58: 0 | L58: 112
A59: 11 | B59: 6706 | C59: 11 | D59: 6710 | E59: 21 | F59: 6721 | K59: 0 | L59: 112
A60: 11 | B60: 6832 | C60: 22 | D60: 6847 | E60: 23 | F60: 6857 | K60: 0 | L60: 122
A61: 22 | B61: 6977 | C61: 13 | D61: 6990 | E61: 23 | F61: 7005 | K61: 0 | L61: 212
A62: 11 | B62: 7102 | C62: 11 | D62: 7106 | E62: 21 | F62: 7117 | K62: 0 | L62: 112
A63: 11 | B63: 7229 | C63: 22 | D63: 7243 | E63: 23 | F63: 7274 | K63: 0 | L63: 122
A64: 11 | B64: 7409 | C64: 11 | D64: 7417 | E64: 21 | F64: 7426 | K64: 0 | L64: 112
A65: 11 | B65: 7544 | C65: 22 | D65: 7556 | E65: 23 | F65: 7564 | K65: 0 | L65: 122
A66: 22 | B66: 7662 | C66: 13 | D66: 7670 | E66: 23 | F66: 7682 | K66: 0 | L66: 212
A67: 11 | B67: 7779 | C67: 11 | D67: 7786 | E67: 21 | F67: 7800 | K67: 0 | L67: 112
A68: 11 | B68: 7935 | C68: 11 | D68: 7941 | E68: 21 | F68: 7953 | K68: 0 | L68: 112
A69: 11 | B69: 8062 | C69: 22 | D69: 8073 | E69: 23 | F69: 8080 | K69: 0 | L69: 122
A70: 11 | B70: 8177 | C70: 11 | D70: 8182 | E70: 21 | F70: 8199 | K70: 0 | L70: 112
A71: 11 | B71: 8310 | C71: 11 | D71: 8314 | E71: 21 | F71: 8335 | K71: 0 | L71: 112
A72: 22 | B72: 8503 | C72: 24 | D72: 8515 | E72: 23 | F72: 8528 | K72: 0 | L72: 222
A73: 11 | B73: 8624 | C73: 11 | D73: 8629 | E73: 21 | F73: 8639 | K73: 0 | L73: 112
A74: 11 | B74: 8754 | C74: 22 | D74: 8764 | E74: 23 | F74: 8776 | K74: 0 | L74: 122
A75: 11 | B75: 8874 | C75: 11 | D75: 8881 | E75: 21 | F75: 8894 | K75: 0 | L75: 112
A76: 11 | B76: 8990 | C76: 11 | D76: 8994 | E76: 21 | F76: 9004 | K76: 0 | L76: 112
A77: 11 | B77: 9110 | C77: 11 | D77: 9115 | E77: 21 | F77: 9127 | K77: 0 | L77: 112
A78: 11 | B78: 9236 | C78: 11 | D78: 9244 | E78: 21 | F78: 9255 | K78: 0 | L78: 112
A79: 11 | B79: 9386 | C79: 11 | D79: 9393 | E79: 21 | F79: 9404 | K79: 0 | L79: 112
A80: 11 | B80: 9508 | C80: 22 | D80: 9517 | E80: 23 | F80: 9524 | K80: 0 | L80: 122
A81: 11 | B81: 9623 | C81: 11 | D81: 9628 | E81: 21 | F81: 9640 | K81: 0 | L81: 112
A82: 11 | B82: 9751 | C82: 22 | D82: 9762 | E82: 14 | F82: 9779 | K82: 0 | L82: 121
A83: 22 | B83: 9901 | C83: 24 | D83: 9908 | E83: 23 | F83: 9917 | K83: 0 | L83: 222
A84: 22 | B84: 10035 | C84: 24 | D84: 10044 | E84: 14 | F84: 10064 | K84: 1 | L84: 221

Sheet !2011-07-04_09h23m.Subject 52
A1: Report for:!2011-07-04_09h23m.Subject 52
A2: Date | B2: 2011-07-04 | F2: Group | G2: 0
A3: Hen | B3: 52 | F3: Correct Sequence | G3: =Start!J2 -> 122 | P3: Total Sequences in Data | Q3: =4994-COUNTBLANK(L7:L5000) -> 79 | V3: Total Sequences in Block Data | W3: =COUNTA(L7:L19) -> 13 | AA3: Total Sequences in Block Data | AB3: =COUNTA(L20:L32) -> 13 | AF3: Total Sequences in Block Data | AG3: =COUNTA(L33:L46) -> 14 | AK3: Total Sequences in Block Data | AL3: =COUNTA(L47:L59) -> 13 | AP3: Total Sequences in Block Data | AQ3: =COUNTA(L60:L72) -> 13 | AU3: Total Sequences in Block Data | AV3: =COUNTA(L73:L85) -> 13
A4: Program | B4: 0 | P4: Total Sequences in Summary | Q4: =SUM(O7:O14) -> 79 | V4: Total Sequences in Block Summary | W4: =SUM(U7:U14) -> 13 | AA4: Total Sequences in Block Summary | AB4: =SUM(Z7:Z14) -> 13 | AF4: Total Sequences in Block Summary | AG4: =SUM(AE7:AE14) -> 14 | AK4: Total Sequences in Block Summary | AL4: =SUM(AJ7:AJ14) -> 13 | AP4: Total Sequences in Block Summary | AQ4: =SUM(AO7:AO14) -> 13 | AU4: Total Sequences in Block Summary | AV4: =SUM(AT7:AT14) -> 13
T5: Block 1 | Y5: Block 2 | AD5: Block 3 | AI5: Block 4 | AN5: Block 5 | AS5: Block 6
A6: Sequence Component 1 | B6: Time 1 | C6: Sequence Component 2 | D6: Time 2 | E6: Sequence Component 3 | F6: Time 3 | G6: Sequence Component 4 | H6: Time 4 | I6: Sequence Component 5 | J6: Time 5 | K6: Correct? 0=No 1=Yes | L6: Sequence | N6: Frequency | P6: Relative Frequency | Q6: Variability | T6: Frequency | V6: Relative Frequency | W6: Variability | Y6: Frequency | AA6: Relative Frequency | AB6: Variability | AD6: Frequency | AF6: Relative Frequency | AG6: Variability | AI6: Frequency | AK6: Relative Frequency | AL6: Variability | AN6: Frequency | AP6: Relative Frequency | AQ6: Variability | AS6: Frequency | AU6: Relative Frequency | AV6: Variability
A7: 22 | B7: 67 | C7: 24 | D7: 79 | E7: 23 | F7: 104 | K7: 0 | L7: 222 | N7: 111 | O7: =COUNTIF($L$7:$L$500,N7) -> 3 | P7: =O7/$Q$4 -> 0.03797468354 | Q7: =IF(P7=0,0,(P7*((LOG(P7))/LOG(2)))) -> -0.1791956297 | T7: =N7 -> 111 | U7: =COUNTIF(L7:L19,T7) -> 0 | V7: =U7/(W4-U10) -> 0 | W7: =IF(V7=0,0,(V7*((LOG(V7))/LOG(2)))) -> 0 | Y7: =N7 -> 111 | Z7: =COUNTIF(L20:L32,Y7) -> 0 | AA7: =Z7/(AB4-Z10) -> 0 | AB7: =IF(AA7=0,0,(AA7*((LOG(AA7))/LOG(2)))) -> 0 | AD7: =N7 -> 111 | AE7: =COUNTIF(L33:L46,AD7) -> 0 | AF7: =AE7/(AG4-AE10) -> 0 | AG7: =IF(AF7=0,0,(AF7*((LOG(AF7))/LOG(2)))) -> 0 | AI7: =N7 -> 111 | AJ7: =COUNTIF(L47:L59,AI7) -> 1 | AK7: =AJ7/(AL4-AJ10) -> 0.08333333333 | AL7: =IF(AK7=0,0,(AK7*((LOG(AK7))/LOG(2)))) -> -0.2987468751 | AN7: =N7 -> 111 | AO7: =COUNTIF(L60:L72,AN7) -> 1 | AP7: =AO7/(AQ4-AO10) -> 0.09090909091 | AQ7: =IF(AP7=0,0,(AP7*((LOG(AP7))/LOG(2)))) -> -0.3144937835 | AS7: =N7 -> 111 | AT7: =COUNTIF(L73:L85,AS7) -> 1 | AU7: =AT7/(AV4-AT10) -> 0.07692307692 | AV7: =IF(AU7=0,0,(AU7*((LOG(AU7))/LOG(2)))) -> -0.2846492091
A8: 11 | B8: 209 | C8: 22 | D8: 221 | E8: 14 | F8: 239 | K8: 0 | L8: 121 | N8: 112 | O8: =COUNTIF($L$7:$L$500,N8) -> 40 | P8: =O8/$Q$4 -> 0.5063291139 | Q8: =IF(P8=0,0,(P8*((LOG(P8))/LOG(2)))) -> -0.4971405839 | T8: =N8 -> 112 | U8: =COUNTIF(L7:L19,T8) -> 3 | V8: =U8/(W4-U10) -> 0.2727272727 | W8: =IF(V8=0,0,(V8*((LOG(V8))/LOG(2)))) -> -0.5112188503 | Y8: =N8 -> 112 | Z8: =COUNTIF(L20:L32,Y8) -> 5 | AA8: =Z8/(AB4-Z10) -> 0.3846153846 | AB8: =IF(AA8=0,0,(AA8*((LOG(AA8))/LOG(2)))) -> -0.5301967782 | AD8: =N8 -> 112 | AE8: =COUNTIF(L33:L46,AD8) -> 4 | AF8: =AE8/(AG4-AE10) -> 0.3636363636 | AG8: =IF(AF8=0,0,(AF8*((LOG(AF8))/LOG(2)))) -> -0.5307024068 | AI8: =N8 -> 112 | AJ8: =COUNTIF(L47:L59,AI8) -> 7 | AK8: =AJ8/(AL4-AJ10) -> 0.5833333333 | AL8: =IF(AK8=0,0,(AK8*((LOG(AK8))/LOG(2)))) -> -0.4536044209 | AN8: =N8 -> 112 | AO8: =COUNTIF(L60:L72,AN8) -> 10 | AP8: =AO8/(AQ4-AO10) -> 0.9090909091 | AQ8: =IF(AP8=0,0,(AP8*((LOG(AP8))/LOG(2)))) -> -0.1250032034 | AS8: =N8 -> 112 | AT8: =COUNTIF(L73:L85,AS8) -> 11 | AU8: =AT8/(AV4-AT10) -> 0.8461538462 | AV8: =IF(AU8=0,0,(AU8*((LOG(AU8))/LOG(2)))) -> -0.2039299303
A9: 11 | B9: 371 | C9: 22 | D9: 380 | E9: 14 | F9: 394 | K9: 0 | L9: 121 | N9: 121 | O9: =COUNTIF($L$7:$L$500,N9) -> 24 | P9: =O9/$Q$4 -> 0.3037974684 | Q9: =IF(P9=0,0,(P9*((LOG(P9))/LOG(2)))) -> -0.5221726321 | T9: =N9 -> 121 | U9: =COUNTIF(L7:L19,T9) -> 7 | V9: =U9/(W4-U10) -> 0.6363636364 | W9: =IF(V9=0,0,(V9*((LOG(V9))/LOG(2)))) -> -0.4149578978 | Y9: =N9 -> 121 | Z9: =COUNTIF(L20:L32,Y9) -> 7 | AA9: =Z9/(AB4-Z10) -> 0.5384615385 | AB9: =IF(AA9=0,0,(AA9*((LOG(AA9))/LOG(2)))) -> -0.4808918133 | AD9: =N9 -> 121 | AE9: =COUNTIF(L33:L46,AD9) -> 5 | AF9: =AE9/(AG4-AE10) -> 0.4545454545 | AG9: =IF(AF9=0,0,(AF9*((LOG(AF9))/LOG(2)))) -> -0.5170470562 | AI9: =N9 -> 121 | AJ9: =COUNTIF(L47:L59,AI9) -> 4 | AK9: =AJ9/(AL4-AJ10) -> 0.3333333333 | AL9: =IF(AK9=0,0,(AK9*((LOG(AK9))/LOG(2)))) -> -0.5283208336 | AN9: =N9 -> 121 | AO9: =COUNTIF(L60:L72,AN9) -> 0 | AP9: =AO9/(AQ4-AO10) -> 0 | AQ9: =IF(AP9=0,0,(AP9*((LOG(AP9))/LOG(2)))) -> 0 | AS9: =N9 -> 121 | AT9: =COUNTIF(L73:L85,AS9) -> 1 | AU9: =AT9/(AV4-AT10) -> 0.07692307692 | AV9: =IF(AU9=0,0,(AU9*((LOG(AU9))/LOG(2)))) -> -0.2846492091
A10: 11 | B10: 496 | C10: 22 | D10: 505 | E10: 14 | F10: 520 | K10: 0 | L10: 121 | N10: 122 | O10: =COUNTIF($L$7:$L$500,N10) -> 8 | P10: =O10/$Q$4 -> 0.1012658228 | Q10: =IF(P10=0,0,(P10*((LOG(P10))/LOG(2)))) -> -0.3345600758 | T10: =N10 -> 122 | U10: =COUNTIF(L7:L19,T10) -> 2 | Y10: =N10 -> 122 | Z10: =COUNTIF(L20:L32,Y10) -> 0 | AD10: =N10 -> 122 | AE10: =COUNTIF(L33:L46,AD10) -> 3 | AI10: =N10 -> 122 | AJ10: =COUNTIF(L47:L59,AI10) -> 1 | AN10: =N10 -> 122 | AO10: =COUNTIF(L60:L72,AN10) -> 2 | AS10: =N10 -> 122 | AT10: =COUNTIF(L73:L85,AS10) -> 0
A11: 11 | B11: 615 | C11: 11 | D11: 636 | E11: 21 | F11: 649 | K11: 0 | L11: 112 | N11: 211 | O11: =COUNTIF($L$7:$L$500,N11) -> 1 | P11: =O11/$Q$4 -> 0.01265822785 | Q11: =IF(P11=0,0,(P11*((LOG(P11))/LOG(2)))) -> -0.07979469301 | T11: =N11 -> 211 | U11: =COUNTIF(L7:L19,T11) -> 0 | V11: =U11/(W4-U10) -> 0 | W11: =IF(V11=0,0,(V11*((LOG(V11))/LOG(2)))) -> 0 | Y11: =N11 -> 211 | Z11: =COUNTIF(L20:L32,Y11) -> 0 | AA11: =Z11/(AB4-Z10) -> 0 | AB11: =IF(AA11=0,0,(AA11*((LOG(AA11))/LOG(2)))) -> 0 | AD11: =N11 -> 211 | AE11: =COUNTIF(L33:L46,AD11) -> 1 | AF11: =AE11/(AG4-AE10) -> 0.09090909091 | AG11: =IF(AF11=0,0,(AF11*((LOG(AF11))/LOG(2)))) -> -0.3144937835 | AI11: =N11 -> 211 | AJ11: =COUNTIF(L47:L59,AI11) -> 0 | AK11: =AJ11/(AL4-AJ10) -> 0 | AL11: =IF(AK11=0,0,(AK11*((LOG(AK11))/LOG(2)))) -> 0 | AN11: =N11 -> 211 | AO11: =COUNTIF(L60:L72,AN11) -> 0 | AP11: =AO11/(AQ4-AO10) -> 0 | AQ11: =IF(AP11=0,0,(AP11*((LOG(AP11))/LOG(2)))) -> 0 | AS11: =N11 -> 211 | AT11: =COUNTIF(L73:L85,AS11) -> 0 | AU11: =AT11/(AV4-AT10) -> 0 | AV11: =IF(AU11=0,0,(AU11*((LOG(AU11))/LOG(2)))) -> 0
A12: 11 | B12: 738 | C12: 11 | D12: 746 | E12: 21 | F12: 756 | K12: 0 | L12: 112 | N12: 212 | O12: =COUNTIF($L$7:$L$500,N12) -> 1 | P12: =O12/$Q$4 -> 0.01265822785 | Q12: =IF(P12=0,0,(P12*((LOG(P12))/LOG(2)))) -> -0.07979469301 | T12: =N12 -> 212 | U12: =COUNTIF(L7:L19,T12) -> 0 | V12: =U12/(W4-U10) -> 0 | W12: =IF(V12=0,0,(V12*((LOG(V12))/LOG(2)))) -> 0 | Y12: =N12 -> 212 | Z12: =COUNTIF(L20:L32,Y12) -> 1 | AA12: =Z12/(AB4-Z10) -> 0.07692307692 | AB12: =IF(AA12=0,0,(AA12*((LOG(AA12))/LOG(2)))) -> -0.2846492091 | AD12: =N12 -> 212 | AE12: =COUNTIF(L33:L46,AD12) -> 0 | AF12: =AE12/(AG4-AE10) -> 0 | AG12: =IF(AF12=0,0,(AF12*((LOG(AF12))/LOG(2)))) -> 0 | AI12: =N12 -> 212 | AJ12: =COUNTIF(L47:L59,AI12) -> 0 | AK12: =AJ12/(AL4-AJ10) -> 0 | AL12: =IF(AK12=0,0,(AK12*((LOG(AK12))/LOG(2)))) -> 0 | AN12: =N12 -> 212 | AO12: =COUNTIF(L60:L72,AN12) -> 0 | AP12: =AO12/(AQ4-AO10) -> 0 | AQ12: =IF(AP12=0,0,(AP12*((LOG(AP12))/LOG(2)))) -> 0 | AS12: =N12 -> 212 | AT12: =COUNTIF(L73:L85,AS12) -> 0 | AU12: =AT12/(AV4-AT10) -> 0 | AV12: =IF(AU12=0,0,(AU12*((LOG(AU12))/LOG(2)))) -> 0
A13: 11 | B13: 849 | C13: 11 | D13: 856 | E13: 21 | F13: 867 | K13: 0 | L13: 112 | N13: 221 | O13: =COUNTIF($L$7:$L$500,N13) -> 1 | P13: =O13/$Q$4 -> 0.01265822785 | Q13: =IF(P13=0,0,(P13*((LOG(P13))/LOG(2)))) -> -0.07979469301 | T13: =N13 -> 221 | U13: =COUNTIF(L7:L19,T13) -> 0 | V13: =U13/(W4-U10) -> 0 | W13: =IF(V13=0,0,(V13*((LOG(V13))/LOG(2)))) -> 0 | Y13: =N13 -> 221 | Z13: =COUNTIF(L20:L32,Y13) -> 0 | AA13: =Z13/(AB4-Z10) -> 0 | AB13: =IF(AA13=0,0,(AA13*((LOG(AA13))/LOG(2)))) -> 0 | AD13: =N13 -> 221 | AE13: =COUNTIF(L33:L46,AD13) -> 1 | AF13: =AE13/(AG4-AE10) -> 0.09090909091 | AG13: =IF(AF13=0,0,(AF13*((LOG(AF13))/LOG(2)))) -> -0.3144937835 | AI13: =N13 -> 221 | AJ13: =COUNTIF(L47:L59,AI13) -> 0 | AK13: =AJ13/(AL4-AJ10) -> 0 | AL13: =IF(AK13=0,0,(AK13*((LOG(AK13))/LOG(2)))) -> 0 | AN13: =N13 -> 221 | AO13: =COUNTIF(L60:L72,AN13) -> 0 | AP13: =AO13/(AQ4-AO10) -> 0 | AQ13: =IF(AP13=0,0,(AP13*((LOG(AP13))/LOG(2)))) -> 0 | AS13: =N13 -> 221 | AT13: =COUNTIF(L73:L85,AS13) -> 0 | AU13: =AT13/(AV4-AT10) -> 0 | AV13: =IF(AU13=0,0,(AU13*((LOG(AU13))/LOG(2)))) -> 0
A14: 11 | B14: 969 | C14: 22 | D14: 980 | E14: 14 | F14: 993 | K14: 0 | L14: 121 | N14: 222 | O14: =COUNTIF($L$7:$L$500,N14) -> 1 | P14: =O14/$Q$4 -> 0.01265822785 | Q14: =IF(P14=0,0,(P14*((LOG(P14))/LOG(2)))) -> -0.07979469301 | T14: =N14 -> 222 | U14: =COUNTIF(L7:L19,T14) -> 1 | V14: =U14/(W4-U10) -> 0.09090909091 | W14: =IF(V14=0,0,(V14*((LOG(V14))/LOG(2)))) -> -0.3144937835 | Y14: =N14 -> 222 | Z14: =COUNTIF(L20:L32,Y14) -> 0 | AA14: =Z14/(AB4-Z10) -> 0 | AB14: =IF(AA14=0,0,(AA14*((LOG(AA14))/LOG(2)))) -> 0 | AD14: =N14 -> 222 | AE14: =COUNTIF(L33:L46,AD14) -> 0 | AF14: =AE14/(AG4-AE10) -> 0 | AG14: =IF(AF14=0,0,(AF14*((LOG(AF14))/LOG(2)))) -> 0 | AI14: =N14 -> 222 | AJ14: =COUNTIF(L47:L59,AI14) -> 0 | AK14: =AJ14/(AL4-AJ10) -> 0 | AL14: =IF(AK14=0,0,(AK14*((LOG(AK14))/LOG(2)))) -> 0 | AN14: =N14 -> 222 | AO14: =COUNTIF(L60:L72,AN14) -> 0 | AP14: =AO14/(AQ4-AO10) -> 0 | AQ14: =IF(AP14=0,0,(AP14*((LOG(AP14))/LOG(2)))) -> 0 | AS14: =N14 -> 222 | AT14: =COUNTIF(L73:L85,AS14) -> 0 | AU14: =AT14/(AV4-AT10) -> 0 | AV14: =IF(AU14=0,0,(AU14*((LOG(AU14))/LOG(2)))) -> 0
A15: 11 | B15: 1090 | C15: 22 | D15: 1105 | E15: 14 | F15: 1118 | K15: 0 | L15: 121 | P15: =SUM(P7:P14) -> 1 | Q15: =-SUM(Q7:Q14) -> 1.852247694 | V15: =SUM(V7:V14) -> 1 | W15: =-SUM(W7:W14) -> 1.240670532 | AA15: =SUM(AA7:AA14) -> 1 | AB15: =-SUM(AB7:AB14) -> 1.295737801 | AF15: =SUM(AF7:AF14) -> 1 | AG15: =-SUM(AG7:AG14) -> 1.67673703 | AK15: =SUM(AK7:AK14) -> 1 | AL15: =-SUM(AL7:AL14) -> 1.28067213 | AP15: =SUM(AP7:AP14) -> 1 | AQ15: =-SUM(AQ7:AQ14) -> 0.4394969869 | AU15: =SUM(AU7:AU14) -> 1 | AV15: =-SUM(AV7:AV14) -> 0.7732283485
A16: 11 | B16: 1220 | C16: 22 | D16: 1232 | E16: 23 | F16: 1253 | K16: 0 | L16: 122 | P16: U= | Q16: =Q15/(LOG(Q4)/LOG(2)) -> 0.2938312368 | V16: U1= | W16: =W15/(LOG(W4)/LOG(2)) -> 0.3352765147 | AA16: U2= | AB16: =AB15/(LOG(AB4)/LOG(2)) -> 0.3501577918 | AF16: U3= | AG16: =AG15/(LOG(AG4)/LOG(2)) -> 0.4403942013 | AK16: U4= | AL16: =AL15/(LOG(AL4)/LOG(2)) -> 0.3460864727 | AP16: U5= | AQ16: =AQ15/(LOG(AQ4)/LOG(2)) -> 0.1187688546 | AU16: U6= | AV16: =AV15/(LOG(AV4)/LOG(2)) -> 0.2089558019
A17: 11 | B17: 1358 | C17: 22 | D17: 1367 | E17: 14 | F17: 1379 | K17: 0 | L17: 121
A18: 11 | B18: 1476 | C18: 22 | D18: 1492 | E18: 14 | F18: 1505 | K18: 0 | L18: 121
A19: 11 | B19: 1610 | C19: 22 | D19: 1620 | E19: 23 | F19: 1627 | K19: 0 | L19: 122 | N19: Total Target Seq
A20: 11 | B20: 1725 | C20: 11 | D20: 1734 | E20: 21 | F20: 1744 | K20: 0 | L20: 112 | N20: =COUNTIF(L7:L85,G3) -> 8 | P20: 13 | Q20: 13 | R20: 14 | S20: 13 | T20: 13 | U20: 13
A21: 11 | B21: 1845 | C21: 22 | D21: 1855 | E21: 14 | F21: 1867 | K21: 0 | L21: 121 | P21: % of reinforcement given in 6 equal intervals based on number of trials
A22: 22 | B22: 1972 | C22: 13 | D22: 1983 | E22: 23 | F22: 1993 | K22: 0 | L22: 212 | P22: %_1 | Q22: %_2 | R22: %_3 | S22: %_4 | T22: %_5 | U22: %_6
A23: 11 | B23: 2090 | C23: 22 | D23: 2101 | E23: 14 | F23: 2114 | K23: 0 | L23: 121 | O23: target sequence | P23: =$G$3 -> 122 | Q23: =$G$3 -> 122 | R23: =$G$3 -> 122 | S23: =$G$3 -> 122 | T23: =$G$3 -> 122 | U23: =$G$3 -> 122
A24: 11 | B24: 2211 | C24: 11 | D24: 2219 | E24: 21 | F24: 2228 | K24: 0 | L24: 112 | O24: total reinforcement | P24: =U10 -> 2 | Q24: =Z10 -> 0 | R24: =AE10 -> 3 | S24: =AJ10 -> 1 | T24: =AO10 -> 2 | U24: =AT10 -> 0
A25: 11 | B25: 2318 | C25: 11 | D25: 2322 | E25: 21 | F25: 2331 | K25: 0 | L25: 112 | O25: % target
A26: 11 | B26: 2422 | C26: 22 | D26: 2431 | E26: 14 | F26: 2446 | K26: 0 | L26: 121 | O26: CCRF
A27: 11 | B27: 2543 | C27: 22 | D27: 2552 | E27: 14 | F27: 2560 | K27: 0 | L27: 121 | O27: % CCRf
A28: 11 | B28: 2657 | C28: 11 | D28: 2661 | E28: 21 | F28: 2671 | K28: 0 | L28: 112 | O28: average response rate | P28: =F19/P20 -> 125.1538462 | Q28: =(F32-F19)/Q20 -> 117.8461538 | R28: =(F46-F32)/R20 -> 131.7857143 | S28: =(F59-F46)/S20 -> 117.5384615 | T28: =(F72-F59)/T20 -> 118.3076923 | U28: =(F85-F72)/U20 -> 114.3076923
A29: 11 | B29: 2758 | C29: 22 | D29: 2767 | E29: 14 | F29: 2783 | K29: 0 | L29: 121
A30: 11 | B30: 2882 | C30: 22 | D30: 2894 | E30: 14 | F30: 2909 | K30: 0 | L30: 121
A31: 11 | B31: 3007 | C31: 11 | D31: 3012 | E31: 21 | F31: 3022 | K31: 0 | L31: 112
A32: 11 | B32: 3139 | C32: 22 | D32: 3148 | E32: 14 | F32: 3159 | K32: 0 | L32: 121
A33: 11 | B33: 3256 | C33: 11 | D33: 3261 | E33: 21 | F33: 3271 | K33: 0 | L33: 112
A34: 11 | B34: 3363 | C34: 22 | D34: 3372 | E34: 14 | F34: 3386 | K34: 0 | L34: 121
A35: 11 | B35: 3489 | C35: 22 | D35: 3498 | E35: 14 | F35: 3510 | K35: 0 | L35: 121
A36: 22 | B36: 3665 | C36: 24 | D36: 3674 | E36: 14 | F36: 3687 | K36: 0 | L36: 221
A37: 11 | B37: 3803 | C37: 22 | D37: 3815 | E37: 14 | F37: 3836 | K37: 0 | L37: 121
A38: 11 | B38: 3933 | C38: 22 | D38: 3946 | E38: 14 | F38: 3960 | K38: 0 | L38: 121
A39: 22 | B39: 4070 | C39: 13 | D39: 4078 | E39: 14 | F39: 4087 | K39: 0 | L39: 211
A40: 11 | B40: 4255 | C40: 22 | D40: 4265 | E40: 14 | F40: 4278 | K40: 0 | L40: 121
A41: 11 | B41: 4386 | C41: 22 | D41: 4394 | E41: 23 | F41: 4401 | K41: 0 | L41: 122
A42: 11 | B42: 4500 | C42: 22 | D42: 4511 | E42: 23 | F42: 4525 | K42: 0 | L42: 122
A43: 11 | B43: 4628 | C43: 22 | D43: 4639 | E43: 23 | F43: 4647 | K43: 0 | L43: 122
A44: 11 | B44: 4746 | C44: 11 | D44: 4750 | E44: 21 | F44: 4759 | K44: 0 | L44: 112
A45: 11 | B45: 4852 | C45: 11 | D45: 4859 | E45: 21 | F45: 4870 | K45: 0 | L45: 112
A46: 11 | B46: 4988 | C46: 11 | D46: 4996 | E46: 21 | F46: 5004 | K46: 0 | L46: 112
A47: 11 | B47: 5096 | C47: 11 | D47: 5100 | E47: 21 | F47: 5109 | K47: 0 | L47: 112
A48: 11 | B48: 5199 | C48: 11 | D48: 5206 | E48: 21 | F48: 5214 | K48: 0 | L48: 112
A49: 11 | B49: 5303 | C49: 22 | D49: 5311 | E49: 14 | F49: 5324 | K49: 0 | L49: 121
A50: 11 | B50: 5421 | C50: 11 | D50: 5426 | E50: 21 | F50: 5436 | K50: 0 | L50: 112
A51: 11 | B51: 5554 | C51: 22 | D51: 5562 | E51: 14 | F51: 5578 | K51: 0 | L51: 121
A52: 11 | B52: 5678 | C52: 11 | D52: 5682 | E52: 21 | F52: 5695 | K52: 0 | L52: 112
A53: 11 | B53: 5786 | C53: 11 | D53: 5790 | E53: 21 | F53: 5799 | K53: 0 | L53: 112
A54: 11 | B54: 5907 | C54: 22 | D54: 5915 | E54: 23 | F54: 5925 | K54: 0 | L54: 122
A55: 11 | B55: 6022 | C55: 11 | D55: 6026 | E55: 21 | F55: 6039 | K55: 0 | L55: 112
A56: 11 | B56: 6130 | C56: 11 | D56: 6134 | E56: 21 | F56: 6142 | K56: 0 | L56: 112
A57: 11 | B57: 6252 | C57: 22 | D57: 6260 | E57: 14 | F57: 6280 | K57: 0 | L57: 121
A58: 11 | B58: 6379 | C58: 22 | D58: 6391 | E58: 14 | F58: 6415 | K58: 0 | L58: 121
A59: 11 | B59: 6512 | C59: 11 | D59: 6525 | E59: 12 | F59: 6532 | K59: 0 | L59: 111
A60: 11 | B60: 6658 | C60: 11 | D60: 6678 | E60: 12 | F60: 6682 | K60: 0 | L60: 111
A61: 11 | B61: 6779 | C61: 11 | D61: 6783 | E61: 21 | F61: 6792 | K61: 0 | L61: 112
A62: 11 | B62: 6904 | C62: 11 | D62: 6908 | E62: 21 | F62: 6919 | K62: 0 | L62: 112
A63: 11 | B63: 7048 | C63: 11 | D63: 7053 | E63: 21 | F63: 7062 | K63: 0 | L63: 112
A64: 11 | B64: 7154 | C64: 11 | D64: 7159 | E64: 21 | F64: 7168 | K64: 0 | L64: 112
A65: 11 | B65: 7260 | C65: 11 | D65: 7264 | E65: 21 | F65: 7274 | K65: 0 | L65: 112
A66: 11 | B66: 7365 | C66: 11 | D66: 7369 | E66: 21 | F66: 7378 | K66: 0 | L66: 112
A67: 11 | B67: 7472 | C67: 22 | D67: 7481 | E67: 23 | F67: 7511 | K67: 0 | L67: 122
A68: 11 | B68: 7608 | C68: 11 | D68: 7612 | E68: 21 | F68: 7622 | K68: 0 | L68: 112
A69: 11 | B69: 7713 | C69: 11 | D69: 7720 | E69: 21 | F69: 7730 | K69: 0 | L69: 112
A70: 11 | B70: 7833 | C70: 22 | D70: 7843 | E70: 23 | F70: 7854 | K70: 0 | L70: 122
A71: 11 | B71: 7952 | C71: 11 | D71: 7957 | E71: 21 | F71: 7966 | K71: 0 | L71: 112
A72: 11 | B72: 8055 | C72: 11 | D72: 8059 | E72: 21 | F72: 8070 | K72: 0 | L72: 112
A73: 11 | B73: 8160 | C73: 11 | D73: 8164 | E73: 21 | F73: 8174 | K73: 0 | L73: 112
A74: 11 | B74: 8263 | C74: 11 | D74: 8268 | E74: 12 | F74: 8276 | K74: 0 | L74: 111
A75: 11 | B75: 8377 | C75: 11 | D75: 8382 | E75: 21 | F75: 8392 | K75: 0 | L75: 112
A76: 11 | B76: 8478 | C76: 11 | D76: 8483 | E76: 21 | F76: 8492 | K76: 0 | L76: 112
A77: 11 | B77: 8586 | C77: 11 | D77: 8590 | E77: 21 | F77: 8600 | K77: 0 | L77: 112
A78: 11 | B78: 8709 | C78: 11 | D78: 8714 | E78: 21 | F78: 8726 | K78: 0 | L78: 112
A79: 11 | B79: 8817 | C79: 11 | D79: 8821 | E79: 21 | F79: 8834 | K79: 0 | L79: 112
A80: 11 | B80: 8948 | C80: 22 | D80: 8960 | E80: 14 | F80: 9002 | K80: 0 | L80: 121
A81: 11 | B81: 9101 | C81: 11 | D81: 9105 | E81: 21 | F81: 9115 | K81: 0 | L81: 112
A82: 11 | B82: 9219 | C82: 11 | D82: 9224 | E82: 21 | F82: 9233 | K82: 0 | L82: 112
A83: 11 | B83: 9324 | C83: 11 | D83: 9328 | E83: 21 | F83: 9338 | K83: 0 | L83: 112
A84: 11 | B84: 9427 | C84: 11 | D84: 9431 | E84: 21 | F84: 9440 | K84: 0 | L84: 112
A85: 11 | B85: 9529 | C85: 11 | D85: 9534 | E85: 21 | F85: 9556 | K85: 1 | L85: 112

Sheet !2011-07-05_09h36m.Subject 53
A1: Report for:!2011-07-05_09h36m.Subject 53
A2: Date | B2: 2011-07-05 | F2: Group | G2: var phase 2
A3: Hen | B3: 53 | F3: Correct Sequence | G3: =Start!J2 -> 122 | P3: Total Sequences in Data | Q3: =4994-COUNTBLANK(L7:L5000) -> 109 | V3: Total Sequences in Block Data | W3: =COUNTA(L7:L24) -> 18 | AA3: Total Sequences in Block Data | AB3: =COUNTA(L25:L42) -> 18 | AF3: Total Sequences in Block Data | AG3: =COUNTA(L43:L61) -> 19 | AK3: Total Sequences in Block Data | AL3: =COUNTA(L62:L79) -> 18 | AP3: Total Sequences in Block Data | AQ3: =COUNTA(L80:L97) -> 18 | AU3: Total Sequences in Block Data | AV3: =COUNTA(L98:L115) -> 18
A4: Program | B4: one | P4: Total Sequences in Summary | Q4: =SUM(O7:O14) -> 109 | V4: Total Sequences in Block Summary | W4: =SUM(U7:U14) -> 18 | AA4: Total Sequences in Block Summary | AB4: =SUM(Z7:Z14) -> 18 | AF4: Total Sequences in Block Summary | AG4: =SUM(AE7:AE14) -> 19 | AK4: Total Sequences in Block Summary | AL4: =SUM(AJ7:AJ14) -> 18 | AP4: Total Sequences in Block Summary | AQ4: =SUM(AO7:AO14) -> 18 | AU4: Total Sequences in Block Summary | AV4: =SUM(AT7:AT14) -> 18
T5: Block 1 | Y5: Block 2 | AD5: Block 3 | AI5: Block 4 | AN5: Block 5 | AS5: Block 6
A6: Sequence Component 1 | B6: Time 1 | C6: Sequence Component 2 | D6: Time 2 | E6: Sequence Component 3 | F6: Time 3 | G6: Sequence Component 4 | H6: Time 4 | I6: Sequence Component 5 | J6: Time 5 | K6: Correct? 0=No 1=Yes | L6: Sequence | N6: Frequency | P6: Relative Frequency | Q6: Variability | T6: Frequency | V6: Relative Frequency | W6: Variability | Y6: Frequency | AA6: Relative Frequency | AB6: Variability | AD6: Frequency | AF6: Relative Frequency | AG6: Variability | AI6: Frequency | AK6: Relative Frequency | AL6: Variability | AN6: Frequency | AP6: Relative Frequency | AQ6: Variability | AS6: Frequency | AU6: Relative Frequency | AV6: Variability
A7: 22 | B7: 38 | C7: 24 | D7: 60 | E7: 23 | F7: 77 | K7: 0 | L7: 222 | N7: 111 | O7: =COUNTIF($L$7:$L$500,N7) -> 7 | P7: =O7/$Q$4 -> 0.06422018349 | Q7: =IF(P7=0,0,(P7*((LOG(P7))/LOG(2)))) -> -0.254365191 | T7: =N7 -> 111 | U7: =COUNTIF(L7:L24,T7) -> 0 | V7: =U7/(W4-U10) -> 0 | W7: =IF(V7=0,0,(V7*((LOG(V7))/LOG(2)))) -> 0 | Y7: =N7 -> 111 | Z7: =COUNTIF(L25:L42,Y7) -> 0 | AA7: =Z7/(AB4-Z10) -> 0 | AB7: =IF(AA7=0,0,(AA7*((LOG(AA7))/LOG(2)))) -> 0 | AD7: =N7 -> 111 | AE7: =COUNTIF(L43:L61,AD7) -> 0 | AF7: =AE7/(AG4-AE10) -> 0 | AG7: =IF(AF7=0,0,(AF7*((LOG(AF7))/LOG(2)))) -> 0 | AI7: =N7 -> 111 | AJ7: =COUNTIF(L62:L79,AI7) -> 0 | AK7: =AJ7/(AL4-AJ10) -> 0 | AL7: =IF(AK7=0,0,(AK7*((LOG(AK7))/LOG(2)))) -> 0 | AN7: =N7 -> 111 | AO7: =COUNTIF(L80:L97,AN7) -> 2 | AP7: =AO7/(AQ4-AO10) -> 0.1333333333 | AQ7: =IF(AP7=0,0,(AP7*((LOG(AP7))/LOG(2)))) -> -0.3875854127 | AS7: =N7 -> 111 | AT7: =COUNTIF(L98:L115,AS7) -> 5 | AU7: =AT7/(AV4-AT10) -> 0.3125 | AV7: =IF(AU7=0,0,(AU7*((LOG(AU7))/LOG(2)))) -> -0.5243974703
A8: 11 | B8: 198 | C8: 22 | D8: 210 | E8: 14 | F8: 225 | K8: 0 | L8: 121 | N8: 112 | O8: =COUNTIF($L$7:$L$500,N8) -> 38 | P8: =O8/$Q$4 -> 0.3486238532 | Q8: =IF(P8=0,0,(P8*((LOG(P8))/LOG(2)))) -> -0.5299977874 | T8: =N8 -> 112 | U8: =COUNTIF(L7:L24,T8) -> 4 | V8: =U8/(W4-U10) -> 0.2352941176 | W8: =IF(V8=0,0,(V8*((LOG(V8))/LOG(2)))) -> -0.4911677274 | Y8: =N8 -> 112 | Z8: =COUNTIF(L25:L42,Y8) -> 3 | AA8: =Z8/(AB4-Z10) -> 0.25 | AB8: =IF(AA8=0,0,(AA8*((LOG(AA8))/LOG(2)))) -> -0.5 | AD8: =N8 -> 112 | AE8: =COUNTIF(L43:L61,AD8) -> 4 | AF8: =AE8/(AG4-AE10) -> 0.4444444444 | AG8: =IF(AF8=0,0,(AF8*((LOG(AF8))/LOG(2)))) -> -0.5199666673 | AI8: =N8 -> 112 | AJ8: =COUNTIF(L62:L79,AI8) -> 7 | AK8: =AJ8/(AL4-AJ10) -> 0.5833333333 | AL8: =IF(AK8=0,0,(AK8*((LOG(AK8))/LOG(2)))) -> -0.4536044209 | AN8: =N8 -> 112 | AO8: =COUNTIF(L80:L97,AN8) -> 11 | AP8: =AO8/(AQ4-AO10) -> 0.7333333333 | AQ8: =IF(AP8=0,0,(AP8*((LOG(AP8))/LOG(2)))) -> -0.3281365831 | AS8: =N8 -> 112 | AT8: =COUNTIF(L98:L115,AS8) -> 9 | AU8: =AT8/(AV4-AT10) -> 0.5625 | AV8: =IF(AU8=0,0,(AU8*((LOG(AU8))/LOG(2)))) -> -0.4669171867
A9: 11 | B9: 325 | C9: 11 | D9: 327 | E9: 21 | F9: 335 | K9: 0 | L9: 112 | N9: 121 | O9: =COUNTIF($L$7:$L$500,N9) -> 23 | P9: =O9/$Q$4 -> 0.2110091743 | Q9: =IF(P9=0,0,(P9*((LOG(P9))/LOG(2)))) -> -0.4736359127 | T9: =N9 -> 121 | U9: =COUNTIF(L7:L24,T9) -> 4 | V9: =U9/(W4-U10) -> 0.2352941176 | W9: =IF(V9=0,0,(V9*((LOG(V9))/LOG(2)))) -> -0.4911677274 | Y9: =N9 -> 121 | Z9: =COUNTIF(L25:L42,Y9) -> 7 | AA9: =Z9/(AB4-Z10) -> 0.5833333333 | AB9: =IF(AA9=0,0,(AA9*((LOG(AA9))/LOG(2)))) -> -0.4536044209 | AD9: =N9 -> 121 | AE9: =COUNTIF(L43:L61,AD9) -> 4 | AF9: =AE9/(AG4-AE10) -> 0.4444444444 | AG9: =IF(AF9=0,0,(AF9*((LOG(AF9))/LOG(2)))) -> -0.5199666673 | AI9: =N9 -> 121 | AJ9: =COUNTIF(L62:L79,AI9) -> 4 | AK9: =AJ9/(AL4-AJ10) -> 0.3333333333 | AL9: =IF(AK9=0,0,(AK9*((LOG(AK9))/LOG(2)))) -> -0.5283208336 | AN9: =N9 -> 121 | AO9: =COUNTIF(L80:L97,AN9) -> 2 | AP9: =AO9/(AQ4-AO10) -> 0.1333333333 | AQ9: =IF(AP9=0,0,(AP9*((LOG(AP9))/LOG(2)))) -> -0.3875854127 | AS9: =N9 -> 121 | AT9: =COUNTIF(L98:L115,AS9) -> 2 | AU9: =AT9/(AV4-AT10) -> 0.125 | AV9: =IF(AU9=0,0,(AU9*((LOG(AU9))/LOG(2)))) -> -0.375
A10: 11 | B10: 444 | C10: 22 | D10: 454 | E10: 14 | F10: 468 | K10: 0 | L10: 121 | N10: 122 | O10: =COUNTIF($L$7:$L$500,N10) -> 28 | P10: =O10/$Q$4 -> 0.2568807339 | Q10: =IF(P10=0,0,(P10*((LOG(P10))/LOG(2)))) -> -0.5036992961 | T10: =N10 -> 122 | U10: =COUNTIF(L7:L24,T10) -> 1 | Y10: =N10 -> 122 | Z10: =COUNTIF(L25:L42,Y10) -> 6 | AD10: =N10 -> 122 | AE10: =COUNTIF(L43:L61,AD10) -> 10 | AI10: =N10 -> 122 | AJ10: =COUNTIF(L62:L79,AI10) -> 6 | AN10: =N10 -> 122 | AO10: =COUNTIF(L80:L97,AN10) -> 3 | AS10: =N10 -> 122 | AT10: =COUNTIF(L98:L115,AS10) -> 2
A11: 11 | B11: 575 | C11: 22 | D11: 585 | E11: 23 | F11: 591 | K11: 0 | L11: 122 | N11: 211 | O11: =COUNTIF($L$7:$L$500,N11) -> 2 | P11: =O11/$Q$4 -> 0.01834862385 | Q11: =IF(P11=0,0,(P11*((LOG(P11))/LOG(2)))) -> -0.1058382445 | T11: =N11 -> 211 | U11: =COUNTIF(L7:L24,T11) -> 2 | V11: =U11/(W4-U10) -> 0.1176470588 | W11: =IF(V11=0,0,(V11*((LOG(V11))/LOG(2)))) -> -0.3632309225 | Y11: =N11 -> 211 | Z11: =COUNTIF(L25:L42,Y11) -> 0 | AA11: =Z11/(AB4-Z10) -> 0 | AB11: =IF(AA11=0,0,(AA11*((LOG(AA11))/LOG(2)))) -> 0 | AD11: =N11 -> 211 | AE11: =COUNTIF(L43:L61,AD11) -> 0 | AF11: =AE11/(AG4-AE10) -> 0 | AG11: =IF(AF11=0,0,(AF11*((LOG(AF11))/LOG(2)))) -> 0 | AI11: =N11 -> 211 | AJ11: =COUNTIF(L62:L79,AI11) -> 0 | AK11: =AJ11/(AL4-AJ10) -> 0 | AL11: =IF(AK11=0,0,(AK11*((LOG(AK11))/LOG(2)))) -> 0 | AN11: =N11 -> 211 | AO11: =COUNTIF(L80:L97,AN11) -> 0 | AP11: =AO11/(AQ4-AO10) -> 0 | AQ11: =IF(AP11=0,0,(AP11*((LOG(AP11))/LOG(2)))) -> 0 | AS11: =N11 -> 211 | AT11: =COUNTIF(L98:L115,AS11) -> 0 | AU11: =AT11/(AV4-AT10) -> 0 | AV11: =IF(AU11=0,0,(AU11*((LOG(AU11))/LOG(2)))) -> 0
A12: 22 | B12: 701 | C12: 24 | D12: 703 | E12: 23 | F12: 712 | K12: 0 | L12: 222 | N12: 212 | O12: =COUNTIF($L$7:$L$500,N12) -> 5 | P12: =O12/$Q$4 -> 0.04587155963 | Q12: =IF(P12=0,0,(P12*((LOG(P12))/LOG(2)))) -> -0.2039567078 | T12: =N12 -> 212 | U12: =COUNTIF(L7:L24,T12) -> 3 | V12: =U12/(W4-U10) -> 0.1764705882 | W12: =IF(V12=0,0,(V12*((LOG(V12))/LOG(2)))) -> -0.4416177072 | Y12: =N12 -> 212 | Z12: =COUNTIF(L25:L42,Y12) -> 1 | AA12: =Z12/(AB4-Z10) -> 0.08333333333 | AB12: =IF(AA12=0,0,(AA12*((LOG(AA12))/LOG(2)))) -> -0.2987468751 | AD12: =N12 -> 212 | AE12: =COUNTIF(L43:L61,AD12) -> 1 | AF12: =AE12/(AG4-AE10) -> 0.1111111111 | AG12: =IF(AF12=0,0,(AF12*((LOG(AF12))/LOG(2)))) -> -0.352213889 | AI12: =N12 -> 212 | AJ12: =COUNTIF(L62:L79,AI12) -> 0 | AK12: =AJ12/(AL4-AJ10) -> 0 | AL12: =IF(AK12=0,0,(AK12*((LOG(AK12))/LOG(2)))) -> 0 | AN12: =N12 -> 212 | AO12: =COUNTIF(L80:L97,AN12) -> 0 | AP12: =AO12/(AQ4-AO10) -> 0 | AQ12: =IF(AP12=0,0,(AP12*((LOG(AP12))/LOG(2)))) -> 0 | AS12: =N12 -> 212 | AT12: =COUNTIF(L98:L115,AS12) -> 0 | AU12: =AT12/(AV4-AT10) -> 0 | AV12: =IF(AU12=0,0,(AU12*((LOG(AU12))/LOG(2)))) -> 0
A13: 22 | B13: 821 | C13: 13 | D13: 829 | E13: 14 | F13: 837 | K13: 0 | L13: 211 | N13: 221 | O13: =COUNTIF($L$7:$L$500,N13) -> 2 | P13: =O13/$Q$4 -> 0.01834862385 | Q13: =IF(P13=0,0,(P13*((LOG(P13))/LOG(2)))) -> -0.1058382445 | T13: =N13 -> 221 | U13: =COUNTIF(L7:L24,T13) -> 1 | V13: =U13/(W4-U10) -> 0.05882352941 | W13: =IF(V13=0,0,(V13*((LOG(V13))/LOG(2)))) -> -0.2404389907 | Y13: =N13 -> 221 | Z13: =COUNTIF(L25:L42,Y13) -> 0 | AA13: =Z13/(AB4-Z10) -> 0 | AB13: =IF(AA13=0,0,(AA13*((LOG(AA13))/LOG(2)))) -> 0 | AD13: =N13 -> 221 | AE13: =COUNTIF(L43:L61,AD13) -> 0 | AF13: =AE13/(AG4-AE10) -> 0 | AG13: =IF(AF13=0,0,(AF13*((LOG(AF13))/LOG(2)))) -> 0 | AI13: =N13 -> 221 | AJ13: =COUNTIF(L62:L79,AI13) -> 1 | AK13: =AJ13/(AL4-AJ10) -> 0.08333333333 | AL13: =IF(AK13=0,0,(AK13*((LOG(AK13))/LOG(2)))) -> -0.2987468751 | AN13: =N13 -> 221 | AO13: =COUNTIF(L80:L97,AN13) -> 0 | AP13: =AO13/(AQ4-AO10) -> 0 | AQ13: =IF(AP13=0,0,(AP13*((LOG(AP13))/LOG(2)))) -> 0 | AS13: =N13 -> 221 | AT13: =COUNTIF(L98:L115,AS13) -> 0 | AU13: =AT13/(AV4-AT10) -> 0 | AV13: =IF(AU13=0,0,(AU13*((LOG(AU13))/LOG(2)))) -> 0
A14: 22 | B14: 946 | C14: 13 | D14: 956 | E14: 23 | F14: 971 | K14: 0 | L14: 212 | N14: 222 | O14: =COUNTIF($L$7:$L$500,N14) -> 4 | P14: =O14/$Q$4 -> 0.03669724771 | Q14: =IF(P14=0,0,(P14*((LOG(P14))/LOG(2)))) -> -0.1749792413 | T14: =N14 -> 222 | U14: =COUNTIF(L7:L24,T14) -> 3 | V14: =U14/(W4-U10) -> 0.1764705882 | W14: =IF(V14=0,0,(V14*((LOG(V14))/LOG(2)))) -> -0.4416177072 | Y14: =N14 -> 222 | Z14: =COUNTIF(L25:L42,Y14) -> 1 | AA14: =Z14/(AB4-Z10) -> 0.08333333333 | AB14: =IF(AA14=0,0,(AA14*((LOG(AA14))/LOG(2)))) -> -0.2987468751 | AD14: =N14 -> 222 | AE14: =COUNTIF(L43:L61,AD14) -> 0 | AF14: =AE14/(AG4-AE10) -> 0 | AG14: =IF(AF14=0,0,(AF14*((LOG(AF14))/LOG(2)))) -> 0 | AI14: =N14 -> 222 | AJ14: =COUNTIF(L62:L79,AI14) -> 0 | AK14: =AJ14/(AL4-AJ10) -> 0 | AL14: =IF(AK14=0,0,(AK14*((LOG(AK14))/LOG(2)))) -> 0 | AN14: =N14 -> 222 | AO14: =COUNTIF(L80:L97,AN14) -> 0 | AP14: =AO14/(AQ4-AO10) -> 0 | AQ14: =IF(AP14=0,0,(AP14*((LOG(AP14))/LOG(2)))) -> 0 | AS14: =N14 -> 222 | AT14: =COUNTIF(L98:L115,AS14) -> 0 | AU14: =AT14/(AV4-AT10) -> 0 | AV14: =IF(AU14=0,0,(AU14*((LOG(AU14))/LOG(2)))) -> 0
A15: 11 | B15: 1068 | C15: 22 | D15: 1077 | E15: 14 | F15: 1094 | K15: 0 | L15: 121 | P15: =SUM(P7:P14) -> 1 | Q15: =-SUM(Q7:Q14) -> 2.352310625 | V15: =SUM(V7:V14) -> 1 | W15: =-SUM(W7:W14) -> 2.469240782 | AA15: =SUM(AA7:AA14) -> 1 | AB15: =-SUM(AB7:AB14) -> 1.551098171 | AF15: =SUM(AF7:AF14) -> 1 | AG15: =-SUM(AG7:AG14) -> 1.392147224 | AK15: =SUM(AK7:AK14) -> 1 | AL15: =-SUM(AL7:AL14) -> 1.28067213 | AP15: =SUM(AP7:AP14) -> 1 | AQ15: =-SUM(AQ7:AQ14) -> 1.103307409 | AU15: =SUM(AU7:AU14) -> 1 | AV15: =-SUM(AV7:AV14) -> 1.366314657
A16: 22 | B16: 1205 | C16: 13 | D16: 1214 | E16: 14 | F16: 1222 | K16: 0 | L16: 211 | P16: U= | Q16: =Q15/(LOG(Q4)/LOG(2)) -> 0.3475541611 | V16: U1= | W16: =W15/(LOG(W4)/LOG(2)) -> 0.5921547225 | AA16: U2= | AB16: =AB15/(LOG(AB4)/LOG(2)) -> 0.3719726783 | AF16: U3= | AG16: =AG15/(LOG(AG4)/LOG(2)) -> 0.3277238652 | AK16: U4= | AL16: =AL15/(LOG(AL4)/LOG(2)) -> 0.3071211422 | AP16: U5= | AQ16: =AQ15/(LOG(AQ4)/LOG(2)) -> 0.264586871 | AU16: U6= | AV16: =AV15/(LOG(AV4)/LOG(2)) -> 0.327659288
A17: 22 | B17: 1333 | C17: 24 | D17: 1341 | E17: 14 | F17: 1358 | K17: 0 | L17: 221
A18: 11 | B18: 1496 | C18: 11 | D18: 1505 | E18: 21 | F18: 1516 | K18: 0 | L18: 112
A19: 11 | B19: 1609 | C19: 11 | D19: 1630 | E19: 21 | F19: 1640 | K19: 0 | L19: 112 | N19: Total Target Seq
A20: 11 | B20: 1740 | C20: 22 | D20: 1753 | E20: 14 | F20: 1765 | K20: 0 | L20: 121 | N20: =COUNTIF(L7:L115,G3) -> 28 | P20: 18 | Q20: 18 | R20: 19 | S20: 18 | T20: 18 | U20: 18
A21: 22 | B21: 1875 | C21: 24 | D21: 1885 | E21: 23 | F21: 1903 | K21: 0 | L21: 222 | P21: % of reinforcement given in 6 equal intervals based on number of trials
A22: 11 | B22: 2001 | C22: 11 | D22: 2009 | E22: 21 | F22: 2019 | K22: 0 | L22: 112 | P22: %_1 | Q22: %_2 | R22: %_3 | S22: %_4 | T22: %_5 | U22: %_6
A23: 22 | B23: 2124 | C23: 13 | D23: 2137 | E23: 23 | F23: 2153 | K23: 0 | L23: 212 | O23: target sequence | P23: =$G$3 -> 122 | Q23: =$G$3 -> 122 | R23: =$G$3 -> 122 | S23: =$G$3 -> 122 | T23: =$G$3 -> 122 | U23: =$G$3 -> 122
A24: 22 | B24: 2281 | C24: 13 | D24: 2295 | E24: 23 | F24: 2304 | K24: 0 | L24: 212 | O24: total reinforcement | P24: =U10 -> 1 | Q24: =Z10 -> 6 | R24: =AE10 -> 10 | S24: =AJ10 -> 6 | T24: =AO10 -> 3 | U24: =AT10 -> 2
A25: 11 | B25: 2409 | C25: 22 | D25: 2418 | E25: 23 | F25: 2439 | K25: 0 | L25: 122 | O25: % target
A26: 22 | B26: 2548 | C26: 13 | D26: 2560 | E26: 23 | F26: 2573 | K26: 0 | L26: 212 | O26: CCRF
A27: 22 | B27: 2698 | C27: 24 | D27: 2713 | E27: 23 | F27: 2732 | K27: 0 | L27: 222 | O27: % CCRf
A28: 11 | B28: 2872 | C28: 22 | D28: 2882 | E28: 23 | F28: 2900 | K28: 0 | L28: 122 | O28: average response rate | P28: =F24/P20 -> 128 | Q28: =(F42-F24)/Q20 -> 128 | R28: =(F61-F42)/R20 -> 127.4210526 | S28: =(F79-F61)/S20 -> 129.2777778 | T28: =(F97-F79)/T20 -> 121.3333333 | U28: =(F115-F97)/U20 -> 124.2777778
A29: 11 | B29: 3003 | C29: 22 | D29: 3013 | E29: 14 | F29: 3021 | K29: 0 | L29: 121
A30: 11 | B30: 3121 | C30: 22 | D30: 3131 | E30: 23 | F30: 3139 | K30: 0 | L30: 122
A31: 11 | B31: 3237 | C31: 11 | D31: 3245 | E31: 21 | F31: 3255 | K31: 0 | L31: 112
A32: 11 | B32: 3348 | C32: 22 | D32: 3357 | E32: 14 | F32: 3382 | K32: 0 | L32: 121
A33: 11 | B33: 3481 | C33: 22 | D33: 3493 | E33: 23 | F33: 3507 | K33: 0 | L33: 122
A34: 11 | B34: 3607 | C34: 22 | D34: 3617 | E34: 23 | F34: 3634 | K34: 0 | L34: 122
A35: 11 | B35: 3733 | C35: 22 | D35: 3743 | E35: 14 | F35: 3755 | K35: 0 | L35: 121
A36: 11 | B36: 3857 | C36: 22 | D36: 3870 | E36: 14 | F36: 3882 | K36: 0 | L36: 121
A37: 11 | B37: 3981 | C37: 22 | D37: 3990 | E37: 23 | F37: 4014 | K37: 0 | L37: 122
A38: 11 | B38: 4110 | C38: 11 | D38: 4111 | E38: 21 | F38: 4123 | K38: 0 | L38: 112
A39: 11 | B39: 4215 | C39: 22 | D39: 4224 | E39: 14 | F39: 4241 | K39: 0 | L39: 121
A40: 11 | B40: 4339 | C40: 22 | D40: 4353 | E40: 14 | F40: 4366 | K40: 0 | L40: 121
A41: 11 | B41: 4463 | C41: 11 | D41: 4468 | E41: 21 | F41: 4480 | K41: 0 | L41: 112
A42: 11 | B42: 4582 | C42: 22 | D42: 4592 | E42: 14 | F42: 4608 | K42: 0 | L42: 121
A43: 11 | B43: 4705 | C43: 22 | D43: 4715 | E43: 23 | F43: 4729 | K43: 0 | L43: 122
A44: 11 | B44: 4827 | C44: 22 | D44: 4837 | E44: 14 | F44: 4851 | K44: 0 | L44: 121
A45: 11 | B45: 4948 | C45: 22 | D45: 4964 | E45: 23 | F45: 4985 | K45: 0 | L45: 122
A46: 11 | B46: 5081 | C46: 11 | D46: 5086 | E46: 21 | F46: 5097 | K46: 0 | L46: 112
A47: 11 | B47: 5186 | C47: 22 | D47: 5196 | E47: 14 | F47: 5208 | K47: 0 | L47: 121
A48: 11 | B48: 5307 | C48: 22 | D48: 5318 | E48: 23 | F48: 5325 | K48: 0 | L48: 122
A49: 11 | B49: 5422 | C49: 22 | D49: 5433 | E49: 14 | F49: 5455 | K49: 0 | L49: 121
A50: 11 | B50: 5555 | C50: 22 | D50: 5567 | E50: 23 | F50: 5591 | K50: 0 | L50: 122
A51: 11 | B51: 5689 | C51: 11 | D51: 5694 | E51: 21 | F51: 5704 | K51: 0 | L51: 112
A52: 11 | B52: 5797 | C52: 22 | D52: 5806 | E52: 23 | F52: 5815 | K52: 0 | L52: 122
A53: 11 | B53: 5913 | C53: 11 | D53: 5918 | E53: 21 | F53: 5930 | K53: 0 | L53: 112
A54: 11 | B54: 6050 | C54: 22 | D54: 6063 | E54: 23 | F54: 6084 | K54: 0 | L54: 122
A55: 11 | B55: 6180 | C55: 22 | D55: 6191 | E55: 23 | F55: 6205 | K55: 0 | L55: 122
A56: 11 | B56: 6305 | C56: 22 | D56: 6317 | E56: 23 | F56: 6346 | K56: 0 | L56: 122
A57: 11 | B57: 6448 | C57: 22 | D57: 6459 | E57: 23 | F57: 6473 | K57: 0 | L57: 122
A58: 11 | B58: 6569 | C58: 22 | D58: 6580 | E58: 23 | F58: 6586 | K58: 0 | L58: 122
A59: 22 | B59: 6692 | C59: 13 | D59: 6700 | E59: 23 | F59: 6713 | K59: 0 | L59: 212
A60: 11 | B60: 6809 | C60: 11 | D60: 6811 | E60: 21 | F60: 6823 | K60: 0 | L60: 112
A61: 11 | B61: 6984 | C61: 22 | D61: 6994 | E61: 14 | F61: 7029 | K61: 0 | L61: 121
A62: 11 | B62: 7128 | C62: 11 | D62: 7136 | E62: 21 | F62: 7146 | K62: 0 | L62: 112
A63: 11 | B63: 7236 | C63: 11 | D63: 7241 | E63: 21 | F63: 7255 | K63: 0 | L63: 112
A64: 11 | B64: 7345 | C64: 22 | D64: 7358 | E64: 23 | F64: 7380 | K64: 0 | L64: 122
A65: 11 | B65: 7476 | C65: 22 | D65: 7489 | E65: 23 | F65: 7499 | K65: 0 | L65: 122
A66: 11 | B66: 7597 | C66: 11 | D66: 7604 | E66: 21 | F66: 7618 | K66: 0 | L66: 112
A67: 22 | B67: 7813 | C67: 24 | D67: 7832 | E67: 14 | F67: 7848 | K67: 0 | L67: 221
A68: 11 | B68: 7945 | C68: 22 | D68: 7956 | E68: 14 | F68: 7968 | K68: 0 | L68: 121
A69: 11 | B69: 8065 | C69: 22 | D69: 8080 | E69: 14 | F69: 8092 | K69: 0 | L69: 121
A70: 11 | B70: 8191 | C70: 22 | D70: 8202 | E70: 23 | F70: 8209 | K70: 0 | L70: 122
A71: 11 | B71: 8309 | C71: 22 | D71: 8324 | E71: 14 | F71: 8334 | K71: 0 | L71: 121
A72: 11 | B72: 8433 | C72: 22 | D72: 8445 | E72: 23 | F72: 8467 | K72: 0 | L72: 122
A73: 11 | B73: 8566 | C73: 22 | D73: 8575 | E73: 14 | F73: 8587 | K73: 0 | L73: 121
A74: 11 | B74: 8684 | C74: 22 | D74: 8695 | E74: 23 | F74: 8708 | K74: 0 | L74: 122
A75: 11 | B75: 8865 | C75: 11 | D75: 8873 | E75: 21 | F75: 8886 | K75: 0 | L75: 112
A76: 11 | B76: 8982 | C76: 22 | D76: 8993 | E76: 23 | F76: 8999 | K76: 0 | L76: 122
A77: 11 | B77: 9097 | C77: 11 | D77: 9101 | E77: 21 | F77: 9113 | K77: 0 | L77: 112
A78: 11 | B78: 9220 | C78: 11 | D78: 9228 | E78: 21 | F78: 9240 | K78: 0 | L78: 112
A79: 11 | B79: 9341 | C79: 11 | D79: 9346 | E79: 21 | F79: 9356 | K79: 0 | L79: 112
A80: 11 | B80: 9447 | C80: 11 | D80: 9452 | E80: 21 | F80: 9461 | K80: 0 | L80: 112
A81: 11 | B81: 9556 | C81: 22 | D81: 9565 | E81: 23 | F81: 9582 | K81: 0 | L81: 122
A82: 11 | B82: 9704 | C82: 22 | D82: 9713 | E82: 14 | F82: 9726 | K82: 0 | L82: 121
A83: 11 | B83: 9823 | C83: 11 | D83: 9830 | E83: 21 | F83: 9843 | K83: 0 | L83: 112
A84: 11 | B84: 9943 | C84: 11 | D84: 9951 | E84: 21 | F84: 9961 | K84: 0 | L84: 112
A85: 11 | B85: 10058 | C85: 11 | D85: 10069 | E85: 12 | F85: 10074 | K85: 0 | L85: 111
A86: 11 | B86: 10170 | C86: 22 | D86: 10183 | E86: 14 | F86: 10207 | K86: 0 | L86: 121
A87: 11 | B87: 10306 | C87: 11 | D87: 10311 | E87: 21 | F87: 10324 | K87: 0 | L87: 112
A88: 11 | B88: 10453 | C88: 11 | D88: 10462 | E88: 21 | F88: 10471 | K88: 0 | L88: 112
A89: 11 | B89: 10572 | C89: 11 | D89: 10577 | E89: 21 | F89: 10586 | K89: 0 | L89: 112
A90: 11 | B90: 10697 | C90: 22 | D90: 10709 | E90: 23 | F90: 10717 | K90: 0 | L90: 122
A91: 11 | B91: 10814 | C91: 11 | D91: 10818 | E91: 21 | F91: 10828 | K91: 0 | L91: 112
A92: 11 | B92: 10931 | C92: 11 | D92: 10938 | E92: 21 | F92: 10948 | K92: 0 | L92: 112
A93: 11 | B93: 11038 | C93: 11 | D93: 11042 | E93: 12 | F93: 11047 | K93: 0 | L93: 111
A94: 11 | B94: 11172 | C94: 22 | D94: 11180 | E94: 23 | F94: 11191 | K94: 0 | L94: 122
A95: 11 | B95: 11288 | C95: 11 | D95: 11293 | E95: 21 | F95: 11305 | K95: 0 | L95: 112
A96: 11 | B96: 11402 | C96: 11 | D96: 11422 | E96: 21 | F96: 11430 | K96: 0 | L96: 112
A97: 11 | B97: 11525 | C97: 11 | D97: 11530 | E97: 21 | F97: 11540 | K97: 0 | L97: 112
A98: 11 | B98: 11663 | C98: 11 | D98: 11671 | E98: 21 | F98: 11680 | K98: 0 | L98: 112
A99: 11 | B99: 11772 | C99: 11 | D99: 11777 | E99: 12 | F99: 11785 | K99: 0 | L99: 111
A100: 11 | B100: 11882 | C100: 11 | D100: 11886 | E100: 21 | F100: 11895 | K100: 0 | L100: 112
A101: 11 | B101: 11992 | C101: 22 | D101: 12006 | E101: 23 | F101: 12008 | K101: 0 | L101: 122
A102: 11 | B102: 12105 | C102: 11 | D102: 12110 | E102: 21 | F102: 12123 | K102: 0 | L102: 112
A103: 11 | B103: 12232 | C103: 11 | D103: 12237 | E103: 12 | F103: 12245 | K103: 0 | L103: 111
A104: 11 | B104: 12353 | C104: 11 | D104: 12360 | E104: 21 | F104: 12372 | K104: 0 | L104: 112
A105: 11 | B105: 12476 | C105: 11 | D105: 12481 | E105: 21 | F105: 12491 | K105: 0 | L105: 112
A106: 11 | B106: 12590 | C106: 11 | D106: 12594 | E106: 12 | F106: 12602 | K106: 0 | L106: 111
A107: 11 | B107: 12772 | C107: 22 | D107: 12789 | E107: 14 | F107: 12804 | K107: 0 | L107: 121
A108: 11 | B108: 12904 | C108: 22 | D108: 12912 | E108: 14 | F108: 12922 | K108: 0 | L108: 121
A109: 11 | B109: 13019 | C109: 11 | D109: 13024 | E109: 21 | F109: 13033 | K109: 0 | L109: 112
A110: 11 | B110: 13148 | C110: 11 | D110: 13153 | E110: 21 | F110: 13162 | K110: 0 | L110: 112
A111: 11 | B111: 13273 | C111: 11 | D111: 13278 | E111: 12 | F111: 13286 | K111: 0 | L111: 111
A112: 11 | B112: 13398 | C112: 11 | D112: 13403 | E112: 21 | F112: 13415 | K112: 0 | L112: 112
A113: 11 | B113: 13526 | C113: 11 | D113: 13532 | E113: 12 | F113: 13537 | K113: 0 | L113: 111
A114: 11 | B114: 13634 | C114: 22 | D114: 13649 | E114: 23 | F114: 13659 | K114: 0 | L114: 122
A115: 11 | B115: 13761 | C115: 11 | D115: 13766 | E115: 21 | F115: 13777 | K115: 1 | L115: 112

Sheet !2011-07-06_09h41m.Subject 53
A1: Report for:!2011-07-06_09h41m.Subject 53
A2: Date | B2: 2011-07-06 | F2: Group | G2: var phase 2
A3: Hen | B3: 53 | F3: Correct Sequence | G3: =Start!J2 -> 122 | P3: Total Sequences in Data | Q3: =4994-COUNTBLANK(L7:L5000) -> 74 | V3: Total Sequences in Block Data | W3: =COUNTA(L7:L18) -> 12 | AA3: Total Sequences in Block Data | AB3: =COUNTA(L19:L31) -> 13 | AF3: Total Sequences in Block Data | AG3: =COUNTA(L32:L43) -> 12 | AK3: Total Sequences in Block Data | AL3: =COUNTA(L44:L55) -> 12 | AP3: Total Sequences in Block Data | AQ3: =COUNTA(L56:L68) -> 13 | AU3: Total Sequences in Block Data | AV3: =COUNTA(L69:L80) -> 12
A4: Program | B4: one | P4: Total Sequences in Summary | Q4: =SUM(O7:O14) -> 74 | V4: Total Sequences in Block Summary | W4: =SUM(U7:U14) -> 12 | AA4: Total Sequences in Block Summary | AB4: =SUM(Z7:Z14) -> 13 | AF4: Total Sequences in Block Summary | AG4: =SUM(AE7:AE14) -> 12 | AK4: Total Sequences in Block Summary | AL4: =SUM(AJ7:AJ14) -> 12 | AP4: Total Sequences in Block Summary | AQ4: =SUM(AO7:AO14) -> 13 | AU4: Total Sequences in Block Summary | AV4: =SUM(AT7:AT14) -> 12
T5: Block 1 | Y5: Block 2 | AD5: Block 3 | AI5: Block 4 | AN5: Block 5 | AS5: Block 6
A6: Sequence Component 1 | B6: Time 1 | C6: Sequence Component 2 | D6: Time 2 | E6: Sequence Component 3 | F6: Time 3 | G6: Sequence Component 4 | H6: Time 4 | I6: Sequence Component 5 | J6: Time 5 | K6: Correct? 0=No 1=Yes | L6: Sequence | N6: Frequency | P6: Relative Frequency | Q6: Variability | T6: Frequency | V6: Relative Frequency | W6: Variability | Y6: Frequency | AA6: Relative Frequency | AB6: Variability | AD6: Frequency | AF6: Relative Frequency | AG6: Variability | AI6: Frequency | AK6: Relative Frequency | AL6: Variability | AN6: Frequency | AP6: Relative Frequency | AQ6: Variability | AS6: Frequency | AU6: Relative Frequency | AV6: Variability
A7: 11 | B7: 17 | C7: 22 | D7: 32 | E7: 23 | F7: 42 | K7: 0 | L7: 122 | N7: 111 | O7: =COUNTIF($L$7:$L$500,N7) -> 3 | P7: =O7/$Q$4 -> 0.04054054054 | Q7: =IF(P7=0,0,(P7*((LOG(P7))/LOG(2)))) -> -0.1874793594 | T7: =N7 -> 111 | U7: =COUNTIF(L7:L18,T7) -> 0 | V7: =U7/(W4-U10) -> 0 | W7: =IF(V7=0,0,(V7*((LOG(V7))/LOG(2)))) -> 0 | Y7: =N7 -> 111 | Z7: =COUNTIF(L19:L31,Y7) -> 0 | AA7: =Z7/(AB4-Z10) -> 0 | AB7: =IF(AA7=0,0,(AA7*((LOG(AA7))/LOG(2)))) -> 0 | AD7: =N7 -> 111 | AE7: =COUNTIF(L32:L43,AD7) -> 0 | AF7: =AE7/(AG4-AE10) -> 0 | AG7: =IF(AF7=0,0,(AF7*((LOG(AF7))/LOG(2)))) -> 0 | AI7: =N7 -> 111 | AJ7: =COUNTIF(L44:L55,AI7) -> 2 | AK7: =AJ7/(AL4-AJ10) -> 0.1818181818 | AL7: =IF(AK7=0,0,(AK7*((LOG(AK7))/LOG(2)))) -> -0.4471693852 | AN7: =N7 -> 111 | AO7: =COUNTIF(L56:L68,AN7) -> 1 | AP7: =AO7/(AQ4-AO10) -> 0.09090909091 | AQ7: =IF(AP7=0,0,(AP7*((LOG(AP7))/LOG(2)))) -> -0.3144937835 | AS7: =N7 -> 111 | AT7: =COUNTIF(L69:L80,AS7) -> 0 | AU7: =AT7/(AV4-AT10) -> 0 | AV7: =IF(AU7=0,0,(AU7*((LOG(AU7))/LOG(2)))) -> 0
A8: 22 | B8: 158 | C8: 24 | D8: 180 | E8: 23 | F8: 199 | K8: 0 | L8: 222 | N8: 112 | O8: =COUNTIF($L$7:$L$500,N8) -> 38 | P8: =O8/$Q$4 -> 0.5135135135 | Q8: =IF(P8=0,0,(P8*((LOG(P8))/LOG(2)))) -> -0.4937565187 | T8: =N8 -> 112 | U8: =COUNTIF(L7:L18,T8) -> 1 | V8: =U8/(W4-U10) -> 0.1111111111 | W8: =IF(V8=0,0,(V8*((LOG(V8))/LOG(2)))) -> -0.352213889 | Y8: =N8 -> 112 | Z8: =COUNTIF(L19:L31,Y8) -> 4 | AA8: =Z8/(AB4-Z10) -> 0.5 | AB8: =IF(AA8=0,0,(AA8*((LOG(AA8))/LOG(2)))) -> -0.5 | AD8: =N8 -> 112 | AE8: =COUNTIF(L32:L43,AD8) -> 6 | AF8: =AE8/(AG4-AE10) -> 0.6 | AG8: =IF(AF8=0,0,(AF8*((LOG(AF8))/LOG(2)))) -> -0.4421793565 | AI8: =N8 -> 112 | AJ8: =COUNTIF(L44:L55,AI8) -> 8 | AK8: =AJ8/(AL4-AJ10) -> 0.7272727273 | AL8: =IF(AK8=0,0,(AK8*((LOG(AK8))/LOG(2)))) -> -0.3341320863 | AN8: =N8 -> 112 | AO8: =COUNTIF(L56:L68,AN8) -> 9 | AP8: =AO8/(AQ4-AO10) -> 0.8181818182 | AQ8: =IF(AP8=0,0,(AP8*((LOG(AP8))/LOG(2)))) -> -0.2368690504 | AS8: =N8 -> 112 | AT8: =COUNTIF(L69:L80,AS8) -> 10 | AU8: =AT8/(AV4-AT10) -> 1 | AV8: =IF(AU8=0,0,(AU8*((LOG(AU8))/LOG(2)))) -> 0
A9: 22 | B9: 321 | C9: 24 | D9: 342 | E9: 14 | F9: 356 | K9: 0 | L9: 221 | N9: 121 | O9: =COUNTIF($L$7:$L$500,N9) -> 10 | P9: =O9/$Q$4 -> 0.1351351351 | Q9: =IF(P9=0,0,(P9*((LOG(P9))/LOG(2)))) -> -0.3902061177 | T9: =N9 -> 121 | U9: =COUNTIF(L7:L18,T9) -> 2 | V9: =U9/(W4-U10) -> 0.2222222222 | W9: =IF(V9=0,0,(V9*((LOG(V9))/LOG(2)))) -> -0.4822055559 | Y9: =N9 -> 121 | Z9: =COUNTIF(L19:L31,Y9) -> 3 | AA9: =Z9/(AB4-Z10) -> 0.375 | AB9: =IF(AA9=0,0,(AA9*((LOG(AA9))/LOG(2)))) -> -0.5306390622 | AD9: =N9 -> 121 | AE9: =COUNTIF(L32:L43,AD9) -> 3 | AF9: =AE9/(AG4-AE10) -> 0.3 | AG9: =IF(AF9=0,0,(AF9*((LOG(AF9))/LOG(2)))) -> -0.5210896782 | AI9: =N9 -> 121 | AJ9: =COUNTIF(L44:L55,AI9) -> 1 | AK9: =AJ9/(AL4-AJ10) -> 0.09090909091 | AL9: =IF(AK9=0,0,(AK9*((LOG(AK9))/LOG(2)))) -> -0.3144937835 | AN9: =N9 -> 121 | AO9: =COUNTIF(L56:L68,AN9) -> 1 | AP9: =AO9/(AQ4-AO10) -> 0.09090909091 | AQ9: =IF(AP9=0,0,(AP9*((LOG(AP9))/LOG(2)))) -> -0.3144937835 | AS9: =N9 -> 121 | AT9: =COUNTIF(L69:L80,AS9) -> 0 | AU9: =AT9/(AV4-AT10) -> 0 | AV9: =IF(AU9=0,0,(AU9*((LOG(AU9))/LOG(2)))) -> 0
A10: 22 | B10: 466 | C10: 24 | D10: 488 | E10: 14 | F10: 501 | K10: 0 | L10: 221 | N10: 122 | O10: =COUNTIF($L$7:$L$500,N10) -> 15 | P10: =O10/$Q$4 -> 0.2027027027 | Q10: =IF(P10=0,0,(P10*((LOG(P10))/LOG(2)))) -> -0.4667356966 | T10: =N10 -> 122 | U10: =COUNTIF(L7:L18,T10) -> 3 | Y10: =N10 -> 122 | Z10: =COUNTIF(L19:L31,Y10) -> 5 | AD10: =N10 -> 122 | AE10: =COUNTIF(L32:L43,AD10) -> 2 | AI10: =N10 -> 122 | AJ10: =COUNTIF(L44:L55,AI10) -> 1 | AN10: =N10 -> 122 | AO10: =COUNTIF(L56:L68,AN10) -> 2 | AS10: =N10 -> 122 | AT10: =COUNTIF(L69:L80,AS10) -> 2
A11: 11 | B11: 604 | C11: 22 | D11: 613 | E11: 23 | F11: 629 | K11: 0 | L11: 122 | N11: 211 | O11: =COUNTIF($L$7:$L$500,N11) -> 0 | P11: =O11/$Q$4 -> 0 | Q11: =IF(P11=0,0,(P11*((LOG(P11))/LOG(2)))) -> 0 | T11: =N11 -> 211 | U11: =COUNTIF(L7:L18,T11) -> 0 | V11: =U11/(W4-U10) -> 0 | W11: =IF(V11=0,0,(V11*((LOG(V11))/LOG(2)))) -> 0 | Y11: =N11 -> 211 | Z11: =COUNTIF(L19:L31,Y11) -> 0 | AA11: =Z11/(AB4-Z10) -> 0 | AB11: =IF(AA11=0,0,(AA11*((LOG(AA11))/LOG(2)))) -> 0 | AD11: =N11 -> 211 | AE11: =COUNTIF(L32:L43,AD11) -> 0 | AF11: =AE11/(AG4-AE10) -> 0 | AG11: =IF(AF11=0,0,(AF11*((LOG(AF11))/LOG(2)))) -> 0 | AI11: =N11 -> 211 | AJ11: =COUNTIF(L44:L55,AI11) -> 0 | AK11: =AJ11/(AL4-AJ10) -> 0 | AL11: =IF(AK11=0,0,(AK11*((LOG(AK11))/LOG(2)))) -> 0 | AN11: =N11 -> 211 | AO11: =COUNTIF(L56:L68,AN11) -> 0 | AP11: =AO11/(AQ4-AO10) -> 0 | AQ11: =IF(AP11=0,0,(AP11*((LOG(AP11))/LOG(2)))) -> 0 | AS11: =N11 -> 211 | AT11: =COUNTIF(L69:L80,AS11) -> 0 | AU11: =AT11/(AV4-AT10) -> 0 | AV11: =IF(AU11=0,0,(AU11*((LOG(AU11))/LOG(2)))) -> 0
A12: 22 | B12: 734 | C12: 24 | D12: 745 | E12: 23 | F12: 758 | K12: 0 | L12: 222 | N12: 212 | O12: =COUNTIF($L$7:$L$500,N12) -> 1 | P12: =O12/$Q$4 -> 0.01351351351 | Q12: =IF(P12=0,0,(P12*((LOG(P12))/LOG(2)))) -> -0.08391153197 | T12: =N12 -> 212 | U12: =COUNTIF(L7:L18,T12) -> 0 | V12: =U12/(W4-U10) -> 0 | W12: =IF(V12=0,0,(V12*((LOG(V12))/LOG(2)))) -> 0 | Y12: =N12 -> 212 | Z12: =COUNTIF(L19:L31,Y12) -> 1 | AA12: =Z12/(AB4-Z10) -> 0.125 | AB12: =IF(AA12=0,0,(AA12*((LOG(AA12))/LOG(2)))) -> -0.375 | AD12: =N12 -> 212 | AE12: =COUNTIF(L32:L43,AD12) -> 0 | AF12: =AE12/(AG4-AE10) -> 0 | AG12: =IF(AF12=0,0,(AF12*((LOG(AF12))/LOG(2)))) -> 0 | AI12: =N12 -> 212 | AJ12: =COUNTIF(L44:L55,AI12) -> 0 | AK12: =AJ12/(AL4-AJ10) -> 0 | AL12: =IF(AK12=0,0,(AK12*((LOG(AK12))/LOG(2)))) -> 0 | AN12: =N12 -> 212 | AO12: =COUNTIF(L56:L68,AN12) -> 0 | AP12: =AO12/(AQ4-AO10) -> 0 | AQ12: =IF(AP12=0,0,(AP12*((LOG(AP12))/LOG(2)))) -> 0 | AS12: =N12 -> 212 | AT12: =COUNTIF(L69:L80,AS12) -> 0 | AU12: =AT12/(AV4-AT10) -> 0 | AV12: =IF(AU12=0,0,(AU12*((LOG(AU12))/LOG(2)))) -> 0
A13: 22 | B13: 876 | C13: 24 | D13: 893 | E13: 23 | F13: 913 | K13: 0 | L13: 222 | N13: 221 | O13: =COUNTIF($L$7:$L$500,N13) -> 2 | P13: =O13/$Q$4 -> 0.02702702703 | Q13: =IF(P13=0,0,(P13*((LOG(P13))/LOG(2)))) -> -0.1407960369 | T13: =N13 -> 221 | U13: =COUNTIF(L7:L18,T13) -> 2 | V13: =U13/(W4-U10) -> 0.2222222222 | W13: =IF(V13=0,0,(V13*((LOG(V13))/LOG(2)))) -> -0.4822055559 | Y13: =N13 -> 221 | Z13: =COUNTIF(L19:L31,Y13) -> 0 | AA13: =Z13/(AB4-Z10) -> 0 | AB13: =IF(AA13=0,0,(AA13*((LOG(AA13))/LOG(2)))) -> 0 | AD13: =N13 -> 221 | AE13: =COUNTIF(L32:L43,AD13) -> 0 | AF13: =AE13/(AG4-AE10) -> 0 | AG13: =IF(AF13=0,0,(AF13*((LOG(AF13))/LOG(2)))) -> 0 | AI13: =N13 -> 221 | AJ13: =COUNTIF(L44:L55,AI13) -> 0 | AK13: =AJ13/(AL4-AJ10) -> 0 | AL13: =IF(AK13=0,0,(AK13*((LOG(AK13))/LOG(2)))) -> 0 | AN13: =N13 -> 221 | AO13: =COUNTIF(L56:L68,AN13) -> 0 | AP13: =AO13/(AQ4-AO10) -> 0 | AQ13: =IF(AP13=0,0,(AP13*((LOG(AP13))/LOG(2)))) -> 0 | AS13: =N13 -> 221 | AT13: =COUNTIF(L69:L80,AS13) -> 0 | AU13: =AT13/(AV4-AT10) -> 0 | AV13: =IF(AU13=0,0,(AU13*((LOG(AU13))/LOG(2)))) -> 0
A14: 22 | B14: 1021 | C14: 24 | D14: 1037 | E14: 23 | F14: 1046 | K14: 0 | L14: 222 | N14: 222 | O14: =COUNTIF($L$7:$L$500,N14) -> 5 | P14: =O14/$Q$4 -> 0.06756756757 | Q14: =IF(P14=0,0,(P14*((LOG(P14))/LOG(2)))) -> -0.2626706264 | T14: =N14 -> 222 | U14: =COUNTIF(L7:L18,T14) -> 4 | V14: =U14/(W4-U10) -> 0.4444444444 | W14: =IF(V14=0,0,(V14*((LOG(V14))/LOG(2)))) -> -0.5199666673 | Y14: =N14 -> 222 | Z14: =COUNTIF(L19:L31,Y14) -> 0 | AA14: =Z14/(AB4-Z10) -> 0 | AB14: =IF(AA14=0,0,(AA14*((LOG(AA14))/LOG(2)))) -> 0 | AD14: =N14 -> 222 | AE14: =COUNTIF(L32:L43,AD14) -> 1 | AF14: =AE14/(AG4-AE10) -> 0.1 | AG14: =IF(AF14=0,0,(AF14*((LOG(AF14))/LOG(2)))) -> -0.3321928095 | AI14: =N14 -> 222 | AJ14: =COUNTIF(L44:L55,AI14) -> 0 | AK14: =AJ14/(AL4-AJ10) -> 0 | AL14: =IF(AK14=0,0,(AK14*((LOG(AK14))/LOG(2)))) -> 0 | AN14: =N14 -> 222 | AO14: =COUNTIF(L56:L68,AN14) -> 0 | AP14: =AO14/(AQ4-AO10) -> 0 | AQ14: =IF(AP14=0,0,(AP14*((LOG(AP14))/LOG(2)))) -> 0 | AS14: =N14 -> 222 | AT14: =COUNTIF(L69:L80,AS14) -> 0 | AU14: =AT14/(AV4-AT10) -> 0 | AV14: =IF(AU14=0,0,(AU14*((LOG(AU14))/LOG(2)))) -> 0
A15: 11 | B15: 1185 | C15: 22 | D15: 1197 | E15: 14 | F15: 1215 | K15: 0 | L15: 121 | P15: =SUM(P7:P14) -> 1 | Q15: =-SUM(Q7:Q14) -> 2.025555888 | V15: =SUM(V7:V14) -> 1 | W15: =-SUM(W7:W14) -> 1.836591668 | AA15: =SUM(AA7:AA14) -> 1 | AB15: =-SUM(AB7:AB14) -> 1.405639062 | AF15: =SUM(AF7:AF14) -> 1 | AG15: =-SUM(AG7:AG14) -> 1.295461844 | AK15: =SUM(AK7:AK14) -> 1 | AL15: =-SUM(AL7:AL14) -> 1.095795255 | AP15: =SUM(AP7:AP14) -> 1 | AQ15: =-SUM(AQ7:AQ14) -> 0.8658566175 | AU15: =SUM(AU7:AU14) -> 1 | AV15: =-SUM(AV7:AV14) -> 0
A16: 11 | B16: 1317 | C16: 22 | D16: 1326 | E16: 14 | F16: 1336 | K16: 0 | L16: 121 | P16: U= | Q16: =Q15/(LOG(Q4)/LOG(2)) -> 0.3262051856 | V16: U1= | W16: =W15/(LOG(W4)/LOG(2)) -> 0.5123042899 | AA16: U2= | AB16: =AB15/(LOG(AB4)/LOG(2)) -> 0.379857306 | AF16: U3= | AG16: =AG15/(LOG(AG4)/LOG(2)) -> 0.3613599428 | AK16: U4= | AL16: =AL15/(LOG(AL4)/LOG(2)) -> 0.3056643563 | AP16: U5= | AQ16: =AQ15/(LOG(AQ4)/LOG(2)) -> 0.2339874943 | AU16: U6= | AV16: =AV15/(LOG(AV4)/LOG(2)) -> 0
A17: 11 | B17: 1463 | C17: 22 | D17: 1473 | E17: 23 | F17: 1498 | K17: 0 | L17: 122
A18: 11 | B18: 1600 | C18: 11 | D18: 1621 | E18: 21 | F18: 1631 | K18: 0 | L18: 112
A19: 11 | B19: 1735 | C19: 22 | D19: 1744 | E19: 23 | F19: 1764 | K19: 0 | L19: 122 | N19: Total Target Seq
A20: 11 | B20: 1863 | C20: 22 | D20: 1875 | E20: 14 | F20: 1889 | K20: 0 | L20: 121 | N20: =COUNTIF(L7:L80,G3) -> 15 | P20: 12 | Q20: 13 | R20: 12 | S20: 12 | T20: 13 | U20: 12
A21: 22 | B21: 2000 | C21: 13 | D21: 2013 | E21: 23 | F21: 2023 | K21: 0 | L21: 212 | P21: % of reinforcement given in 6 equal intervals based on number of trials
A22: 11 | B22: 2120 | C22: 22 | D22: 2131 | E22: 23 | F22: 2148 | K22: 0 | L22: 122 | P22: %_1 | Q22: %_2 | R22: %_3 | S22: %_4 | T22: %_5 | U22: %_6
A23: 11 | B23: 2254 | C23: 22 | D23: 2263 | E23: 23 | F23: 2271 | K23: 0 | L23: 122 | O23: target sequence | P23: =$G$3 -> 122 | Q23: =$G$3 -> 122 | R23: =$G$3 -> 122 | S23: =$G$3 -> 122 | T23: =$G$3 -> 122 | U23: =$G$3 -> 122
A24: 11 | B24: 2368 | C24: 22 | D24: 2383 | E24: 23 | F24: 2391 | K24: 0 | L24: 122 | O24: total reinforcement | P24: =U10 -> 3 | Q24: =Z10 -> 5 | R24: =AE10 -> 2 | S24: =AJ10 -> 1 | T24: =AO10 -> 2 | U24: =AT10 -> 2
A25: 11 | B25: 2487 | C25: 11 | D25: 2515 | E25: 21 | F25: 2528 | K25: 0 | L25: 112 | O25: % target
A26: 11 | B26: 2638 | C26: 22 | D26: 2648 | E26: 14 | F26: 2663 | K26: 0 | L26: 121 | O26: CCRF
A27: 11 | B27: 2759 | C27: 11 | D27: 2766 | E27: 21 | F27: 2778 | K27: 0 | L27: 112 | O27: % CCRf
A28: 11 | B28: 2867 | C28: 11 | D28: 2872 | E28: 21 | F28: 2883 | K28: 0 | L28: 112 | O28: average response rate | P28: =F18/P20 -> 135.9166667 | Q28: =(F31-F18)/Q20 -> 125.0769231 | R28: =(F43-F31)/R20 -> 127.8333333 | S28: =(F55-F43)/S20 -> 112.5833333 | T28: =(F68-F55)/T20 -> 113.9230769 | U28: =(F80-F68)/U20 -> 109.9166667
A29: 11 | B29: 2984 | C29: 22 | D29: 2993 | E29: 14 | F29: 3008 | K29: 0 | L29: 121
A30: 11 | B30: 3104 | C30: 22 | D30: 3115 | E30: 23 | F30: 3142 | K30: 0 | L30: 122
A31: 11 | B31: 3240 | C31: 11 | D31: 3248 | E31: 21 | F31: 3257 | K31: 0 | L31: 112
A32: 11 | B32: 3355 | C32: 22 | D32: 3365 | E32: 14 | F32: 3381 | K32: 0 | L32: 121
A33: 11 | B33: 3480 | C33: 22 | D33: 3489 | E33: 23 | F33: 3507 | K33: 0 | L33: 122
A34: 11 | B34: 3606 | C34: 22 | D34: 3617 | E34: 14 | F34: 3689 | K34: 0 | L34: 121
A35: 11 | B35: 3788 | C35: 22 | D35: 3796 | E35: 14 | F35: 3808 | K35: 0 | L35: 121
A36: 11 | B36: 3907 | C36: 22 | D36: 3918 | E36: 23 | F36: 3947 | K36: 0 | L36: 122
A37: 11 | B37: 4045 | C37: 11 | D37: 4052 | E37: 21 | F37: 4062 | K37: 0 | L37: 112
A38: 22 | B38: 4199 | C38: 24 | D38: 4208 | E38: 23 | F38: 4222 | K38: 0 | L38: 222
A39: 11 | B39: 4319 | C39: 11 | D39: 4326 | E39: 21 | F39: 4335 | K39: 0 | L39: 112
A40: 11 | B40: 4429 | C40: 11 | D40: 4445 | E40: 21 | F40: 4457 | K40: 0 | L40: 112
A41: 11 | B41: 4546 | C41: 11 | D41: 4551 | E41: 21 | F41: 4560 | K41: 0 | L41: 112
A42: 11 | B42: 4665 | C42: 11 | D42: 4673 | E42: 21 | F42: 4684 | K42: 0 | L42: 112
A43: 11 | B43: 4774 | C43: 11 | D43: 4782 | E43: 21 | F43: 4791 | K43: 0 | L43: 112
A44: 11 | B44: 4881 | C44: 11 | D44: 4886 | E44: 21 | F44: 4896 | K44: 0 | L44: 112
A45: 11 | B45: 4990 | C45: 11 | D45: 4998 | E45: 21 | F45: 5007 | K45: 0 | L45: 112
A46: 11 | B46: 5097 | C46: 22 | D46: 5106 | E46: 14 | F46: 5118 | K46: 0 | L46: 121
A47: 11 | B47: 5216 | C47: 11 | D47: 5221 | E47: 21 | F47: 5231 | K47: 0 | L47: 112
A48: 11 | B48: 5324 | C48: 11 | D48: 5329 | E48: 21 | F48: 5339 | K48: 0 | L48: 112
A49: 11 | B49: 5430 | C49: 11 | D49: 5436 | E49: 21 | F49: 5446 | K49: 0 | L49: 112
A50: 11 | B50: 5537 | C50: 11 | D50: 5541 | E50: 12 | F50: 5545 | K50: 0 | L50: 111
A51: 11 | B51: 5642 | C51: 11 | D51: 5646 | E51: 21 | F51: 5655 | K51: 0 | L51: 112
A52: 11 | B52: 5743 | C52: 11 | D52: 5753 | E52: 21 | F52: 5765 | K52: 0 | L52: 112
A53: 11 | B53: 5869 | C53: 11 | D53: 5873 | E53: 21 | F53: 5884 | K53: 0 | L53: 112
A54: 11 | B54: 5974 | C54: 11 | D54: 5979 | E54: 12 | F54: 5984 | K54: 0 | L54: 111
A55: 11 | B55: 6082 | C55: 22 | D55: 6098 | E55: 23 | F55: 6142 | K55: 0 | L55: 122
A56: 11 | B56: 6239 | C56: 11 | D56: 6243 | E56: 21 | F56: 6255 | K56: 0 | L56: 112
A57: 11 | B57: 6348 | C57: 11 | D57: 6352 | E57: 21 | F57: 6362 | K57: 0 | L57: 112
A58: 11 | B58: 6461 | C58: 11 | D58: 6465 | E58: 12 | F58: 6473 | K58: 0 | L58: 111
A59: 11 | B59: 6569 | C59: 11 | D59: 6573 | E59: 21 | F59: 6584 | K59: 0 | L59: 112
A60: 11 | B60: 6675 | C60: 22 | D60: 6722 | E60: 23 | F60: 6730 | K60: 0 | L60: 122
A61: 11 | B61: 6827 | C61: 11 | D61: 6831 | E61: 21 | F61: 6840 | K61: 0 | L61: 112
A62: 11 | B62: 6929 | C62: 11 | D62: 6933 | E62: 21 | F62: 6942 | K62: 0 | L62: 112
A63: 11 | B63: 7032 | C63: 11 | D63: 7037 | E63: 21 | F63: 7046 | K63: 0 | L63: 112
A64: 11 | B64: 7135 | C64: 11 | D64: 7139 | E64: 21 | F64: 7148 | K64: 0 | L64: 112
A65: 11 | B65: 7251 | C65: 11 | D65: 7259 | E65: 21 | F65: 7269 | K65: 0 | L65: 112
A66: 11 | B66: 7368 | C66: 22 | D66: 7380 | E66: 23 | F66: 7392 | K66: 0 | L66: 122
A67: 11 | B67: 7489 | C67: 11 | D67: 7493 | E67: 21 | F67: 7502 | K67: 0 | L67: 112
A68: 11 | B68: 7596 | C68: 22 | D68: 7608 | E68: 14 | F68: 7623 | K68: 0 | L68: 121
A69: 11 | B69: 7715 | C69: 22 | D69: 7728 | E69: 23 | F69: 7749 | K69: 0 | L69: 122
A70: 11 | B70: 7846 | C70: 11 | D70: 7850 | E70: 21 | F70: 7859 | K70: 0 | L70: 112
A71: 11 | B71: 7948 | C71: 11 | D71: 7952 | E71: 21 | F71: 7962 | K71: 0 | L71: 112
A72: 11 | B72: 8054 | C72: 11 | D72: 8063 | E72: 21 | F72: 8079 | K72: 0 | L72: 112
A73: 11 | B73: 8171 | C73: 11 | D73: 8175 | E73: 21 | F73: 8188 | K73: 0 | L73: 112
A74: 11 | B74: 8277 | C74: 11 | D74: 8281 | E74: 21 | F74: 8290 | K74: 0 | L74: 112
A75: 11 | B75: 8399 | C75: 11 | D75: 8403 | E75: 21 | F75: 8413 | K75: 0 | L75: 112
A76: 11 | B76: 8502 | C76: 11 | D76: 8506 | E76: 21 | F76: 8515 | K76: 0 | L76: 112
A77: 11 | B77: 8605 | C77: 22 | D77: 8614 | E77: 23 | F77: 8621 | K77: 0 | L77: 122
A78: 11 | B78: 8718 | C78: 11 | D78: 8722 | E78: 21 | F78: 8732 | K78: 0 | L78: 112
A79: 11 | B79: 8824 | C79: 11 | D79: 8829 | E79: 21 | F79: 8837 | K79: 0 | L79: 112
A80: 11 | B80: 8928 | C80: 11 | D80: 8932 | E80: 21 | F80: 8942 | K80: 1 | L80: 112

Sheet !2011-07-07_10h13m.Subject 53
A1: Report for:!2011-07-07_10h13m.Subject 53
A2: Date | B2: 2011-07-07 | F2: Group | G2: var phase 2
A3: Hen | B3: 53 | F3: Correct Sequence | G3: =Start!J2 -> 122 | P3: Total Sequences in Data | Q3: =4994-COUNTBLANK(L7:L5000) -> 80 | V3: Total Sequences in Block Data | W3: =COUNTA(L7:L19) -> 13 | AA3: Total Sequences in Block Data | AB3: =COUNTA(L20:L33) -> 14 | AF3: Total Sequences in Block Data | AG3: =COUNTA(L34:L46) -> 13 | AK3: Total Sequences in Block Data | AL3: =COUNTA(L47:L59) -> 13 | AP3: Total Sequences in Block Data | AQ3: =COUNTA(L60:L73) -> 14 | AU3: Total Sequences in Block Data | AV3: =COUNTA(L74:L86) -> 13
A4: Program | B4: one | P4: Total Sequences in Summary | Q4: =SUM(O7:O14) -> 80 | V4: Total Sequences in Block Summary | W4: =SUM(U7:U14) -> 13 | AA4: Total Sequences in Block Summary | AB4: =SUM(Z7:Z14) -> 14 | AF4: Total Sequences in Block Summary | AG4: =SUM(AE7:AE14) -> 13 | AK4: Total Sequences in Block Summary | AL4: =SUM(AJ7:AJ14) -> 13 | AP4: Total Sequences in Block Summary | AQ4: =SUM(AO7:AO14) -> 14 | AU4: Total Sequences in Block Summary | AV4: =SUM(AT7:AT14) -> 13
T5: Block 1 | Y5: Block 2 | AD5: Block 3 | AI5: Block 4 | AN5: Block 5 | AS5: Block 6
A6: Sequence Component 1 | B6: Time 1 | C6: Sequence Component 2 | D6: Time 2 | E6: Sequence Component 3 | F6: Time 3 | G6: Sequence Component 4 | H6: Time 4 | I6: Sequence Component 5 | J6: Time 5 | K6: Correct? 0=No 1=Yes | L6: Sequence | N6: Frequency | P6: Relative Frequency | Q6: Variability | T6: Frequency | V6: Relative Frequency | W6: Variability | Y6: Frequency | AA6: Relative Frequency | AB6: Variability | AD6: Frequency | AF6: Relative Frequency | AG6: Variability | AI6: Frequency | AK6: Relative Frequency | AL6: Variability | AN6: Frequency | AP6: Relative Frequency | AQ6: Variability | AS6: Frequency | AU6: Relative Frequency | AV6: Variability
A7: 22 | B7: 69 | C7: 24 | D7: 91 | E7: 23 | F7: 104 | K7: 0 | L7: 222 | N7: 111 | O7: =COUNTIF($L$7:$L$500,N7) -> 5 | P7: =O7/$Q$4 -> 0.0625 | Q7: =IF(P7=0,0,(P7*((LOG(P7))/LOG(2)))) -> -0.25 | T7: =N7 -> 111 | U7: =COUNTIF(L7:L19,T7) -> 0 | V7: =U7/(W4-U10) -> 0 | W7: =IF(V7=0,0,(V7*((LOG(V7))/LOG(2)))) -> 0 | Y7: =N7 -> 111 | Z7: =COUNTIF(L20:L33,Y7) -> 1 | AA7: =Z7/(AB4-Z10) -> 0.09090909091 | AB7: =IF(AA7=0,0,(AA7*((LOG(AA7))/LOG(2)))) -> -0.3144937835 | AD7: =N7 -> 111 | AE7: =COUNTIF(L34:L46,AD7) -> 0 | AF7: =AE7/(AG4-AE10) -> 0 | AG7: =IF(AF7=0,0,(AF7*((LOG(AF7))/LOG(2)))) -> 0 | AI7: =N7 -> 111 | AJ7: =COUNTIF(L47:L59,AI7) -> 2 | AK7: =AJ7/(AL4-AJ10) -> 0.1666666667 | AL7: =IF(AK7=0,0,(AK7*((LOG(AK7))/LOG(2)))) -> -0.4308270835 | AN7: =N7 -> 111 | AO7: =COUNTIF(L60:L73,AN7) -> 2 | AP7: =AO7/(AQ4-AO10) -> 0.1538461538 | AQ7: =IF(AP7=0,0,(AP7*((LOG(AP7))/LOG(2)))) -> -0.4154522643 | AS7: =N7 -> 111 | AT7: =COUNTIF(L74:L86,AS7) -> 0 | AU7: =AT7/(AV4-AT10) -> 0 | AV7: =IF(AU7=0,0,(AU7*((LOG(AU7))/LOG(2)))) -> 0
A8: 11 | B8: 215 | C8: 22 | D8: 228 | E8: 23 | F8: 247 | K8: 0 | L8: 122 | N8: 112 | O8: =COUNTIF($L$7:$L$500,N8) -> 39 | P8: =O8/$Q$4 -> 0.4875 | Q8: =IF(P8=0,0,(P8*((LOG(P8))/LOG(2)))) -> -0.5053063646 | T8: =N8 -> 112 | U8: =COUNTIF(L7:L19,T8) -> 0 | V8: =U8/(W4-U10) -> 0 | W8: =IF(V8=0,0,(V8*((LOG(V8))/LOG(2)))) -> 0 | Y8: =N8 -> 112 | Z8: =COUNTIF(L20:L33,Y8) -> 4 | AA8: =Z8/(AB4-Z10) -> 0.3636363636 | AB8: =IF(AA8=0,0,(AA8*((LOG(AA8))/LOG(2)))) -> -0.5307024068 | AD8: =N8 -> 112 | AE8: =COUNTIF(L34:L46,AD8) -> 6 | AF8: =AE8/(AG4-AE10) -> 0.75 | AG8: =IF(AF8=0,0,(AF8*((LOG(AF8))/LOG(2)))) -> -0.3112781245 | AI8: =N8 -> 112 | AJ8: =COUNTIF(L47:L59,AI8) -> 9 | AK8: =AJ8/(AL4-AJ10) -> 0.75 | AL8: =IF(AK8=0,0,(AK8*((LOG(AK8))/LOG(2)))) -> -0.3112781245 | AN8: =N8 -> 112 | AO8: =COUNTIF(L60:L73,AN8) -> 8 | AP8: =AO8/(AQ4-AO10) -> 0.6153846154 | AQ8: =IF(AP8=0,0,(AP8*((LOG(AP8))/LOG(2)))) -> -0.4310398265 | AS8: =N8 -> 112 | AT8: =COUNTIF(L74:L86,AS8) -> 12 | AU8: =AT8/(AV4-AT10) -> 0.9230769231 | AV8: =IF(AU8=0,0,(AU8*((LOG(AU8))/LOG(2)))) -> -0.1065943545
A9: 22 | B9: 366 | C9: 24 | D9: 376 | E9: 14 | F9: 388 | K9: 0 | L9: 221 | N9: 121 | O9: =COUNTIF($L$7:$L$500,N9) -> 12 | P9: =O9/$Q$4 -> 0.15 | Q9: =IF(P9=0,0,(P9*((LOG(P9))/LOG(2)))) -> -0.4105448391 | T9: =N9 -> 121 | U9: =COUNTIF(L7:L19,T9) -> 1 | V9: =U9/(W4-U10) -> 0.1111111111 | W9: =IF(V9=0,0,(V9*((LOG(V9))/LOG(2)))) -> -0.352213889 | Y9: =N9 -> 121 | Z9: =COUNTIF(L20:L33,Y9) -> 5 | AA9: =Z9/(AB4-Z10) -> 0.4545454545 | AB9: =IF(AA9=0,0,(AA9*((LOG(AA9))/LOG(2)))) -> -0.5170470562 | AD9: =N9 -> 121 | AE9: =COUNTIF(L34:L46,AD9) -> 2 | AF9: =AE9/(AG4-AE10) -> 0.25 | AG9: =IF(AF9=0,0,(AF9*((LOG(AF9))/LOG(2)))) -> -0.5 | AI9: =N9 -> 121 | AJ9: =COUNTIF(L47:L59,AI9) -> 1 | AK9: =AJ9/(AL4-AJ10) -> 0.08333333333 | AL9: =IF(AK9=0,0,(AK9*((LOG(AK9))/LOG(2)))) -> -0.2987468751 | AN9: =N9 -> 121 | AO9: =COUNTIF(L60:L73,AN9) -> 2 | AP9: =AO9/(AQ4-AO10) -> 0.1538461538 | AQ9: =IF(AP9=0,0,(AP9*((LOG(AP9))/LOG(2)))) -> -0.4154522643 | AS9: =N9 -> 121 | AT9: =COUNTIF(L74:L86,AS9) -> 1 | AU9: =AT9/(AV4-AT10) -> 0.07692307692 | AV9: =IF(AU9=0,0,(AU9*((LOG(AU9))/LOG(2)))) -> -0.2846492091
A10: 22 | B10: 516 | C10: 24 | D10: 532 | E10: 23 | F10: 541 | K10: 0 | L10: 222 | N10: 122 | O10: =COUNTIF($L$7:$L$500,N10) -> 14 | P10: =O10/$Q$4 -> 0.175 | Q10: =IF(P10=0,0,(P10*((LOG(P10))/LOG(2)))) -> -0.4400503052 | T10: =N10 -> 122 | U10: =COUNTIF(L7:L19,T10) -> 4 | Y10: =N10 -> 122 | Z10: =COUNTIF(L20:L33,Y10) -> 3 | AD10: =N10 -> 122 | AE10: =COUNTIF(L34:L46,AD10) -> 5 | AI10: =N10 -> 122 | AJ10: =COUNTIF(L47:L59,AI10) -> 1 | AN10: =N10 -> 122 | AO10: =COUNTIF(L60:L73,AN10) -> 1 | AS10: =N10 -> 122 | AT10: =COUNTIF(L74:L86,AS10) -> 0
A11: 11 | B11: 640 | C11: 22 | D11: 649 | E11: 23 | F11: 658 | K11: 0 | L11: 122 | N11: 211 | O11: =COUNTIF($L$7:$L$500,N11) -> 0 | P11: =O11/$Q$4 -> 0 | Q11: =IF(P11=0,0,(P11*((LOG(P11))/LOG(2)))) -> 0 | T11: =N11 -> 211 | U11: =COUNTIF(L7:L19,T11) -> 0 | V11: =U11/(W4-U10) -> 0 | W11: =IF(V11=0,0,(V11*((LOG(V11))/LOG(2)))) -> 0 | Y11: =N11 -> 211 | Z11: =COUNTIF(L20:L33,Y11) -> 0 | AA11: =Z11/(AB4-Z10) -> 0 | AB11: =IF(AA11=0,0,(AA11*((LOG(AA11))/LOG(2)))) -> 0 | AD11: =N11 -> 211 | AE11: =COUNTIF(L34:L46,AD11) -> 0 | AF11: =AE11/(AG4-AE10) -> 0 | AG11: =IF(AF11=0,0,(AF11*((LOG(AF11))/LOG(2)))) -> 0 | AI11: =N11 -> 211 | AJ11: =COUNTIF(L47:L59,AI11) -> 0 | AK11: =AJ11/(AL4-AJ10) -> 0 | AL11: =IF(AK11=0,0,(AK11*((LOG(AK11))/LOG(2)))) -> 0 | AN11: =N11 -> 211 | AO11: =COUNTIF(L60:L73,AN11) -> 0 | AP11: =AO11/(AQ4-AO10) -> 0 | AQ11: =IF(AP11=0,0,(AP11*((LOG(AP11))/LOG(2)))) -> 0 | AS11: =N11 -> 211 | AT11: =COUNTIF(L74:L86,AS11) -> 0 | AU11: =AT11/(AV4-AT10) -> 0 | AV11: =IF(AU11=0,0,(AU11*((LOG(AU11))/LOG(2)))) -> 0
A12: 22 | B12: 778 | C12: 24 | D12: 797 | E12: 23 | F12: 805 | K12: 0 | L12: 222 | N12: 212 | O12: =COUNTIF($L$7:$L$500,N12) -> 3 | P12: =O12/$Q$4 -> 0.0375 | Q12: =IF(P12=0,0,(P12*((LOG(P12))/LOG(2)))) -> -0.1776362098 | T12: =N12 -> 212 | U12: =COUNTIF(L7:L19,T12) -> 2 | V12: =U12/(W4-U10) -> 0.2222222222 | W12: =IF(V12=0,0,(V12*((LOG(V12))/LOG(2)))) -> -0.4822055559 | Y12: =N12 -> 212 | Z12: =COUNTIF(L20:L33,Y12) -> 1 | AA12: =Z12/(AB4-Z10) -> 0.09090909091 | AB12: =IF(AA12=0,0,(AA12*((LOG(AA12))/LOG(2)))) -> -0.3144937835 | AD12: =N12 -> 212 | AE12: =COUNTIF(L34:L46,AD12) -> 0 | AF12: =AE12/(AG4-AE10) -> 0 | AG12: =IF(AF12=0,0,(AF12*((LOG(AF12))/LOG(2)))) -> 0 | AI12: =N12 -> 212 | AJ12: =COUNTIF(L47:L59,AI12) -> 0 | AK12: =AJ12/(AL4-AJ10) -> 0 | AL12: =IF(AK12=0,0,(AK12*((LOG(AK12))/LOG(2)))) -> 0 | AN12: =N12 -> 212 | AO12: =COUNTIF(L60:L73,AN12) -> 0 | AP12: =AO12/(AQ4-AO10) -> 0 | AQ12: =IF(AP12=0,0,(AP12*((LOG(AP12))/LOG(2)))) -> 0 | AS12: =N12 -> 212 | AT12: =COUNTIF(L74:L86,AS12) -> 0 | AU12: =AT12/(AV4-AT10) -> 0 | AV12: =IF(AU12=0,0,(AU12*((LOG(AU12))/LOG(2)))) -> 0
A13: 22 | B13: 922 | C13: 24 | D13: 938 | E13: 23 | F13: 961 | K13: 0 | L13: 222 | N13: 221 | O13: =COUNTIF($L$7:$L$500,N13) -> 3 | P13: =O13/$Q$4 -> 0.0375 | Q13: =IF(P13=0,0,(P13*((LOG(P13))/LOG(2)))) -> -0.1776362098 | T13: =N13 -> 221 | U13: =COUNTIF(L7:L19,T13) -> 2 | V13: =U13/(W4-U10) -> 0.2222222222 | W13: =IF(V13=0,0,(V13*((LOG(V13))/LOG(2)))) -> -0.4822055559 | Y13: =N13 -> 221 | Z13: =COUNTIF(L20:L33,Y13) -> 0 | AA13: =Z13/(AB4-Z10) -> 0 | AB13: =IF(AA13=0,0,(AA13*((LOG(AA13))/LOG(2)))) -> 0 | AD13: =N13 -> 221 | AE13: =COUNTIF(L34:L46,AD13) -> 0 | AF13: =AE13/(AG4-AE10) -> 0 | AG13: =IF(AF13=0,0,(AF13*((LOG(AF13))/LOG(2)))) -> 0 | AI13: =N13 -> 221 | AJ13: =COUNTIF(L47:L59,AI13) -> 0 | AK13: =AJ13/(AL4-AJ10) -> 0 | AL13: =IF(AK13=0,0,(AK13*((LOG(AK13))/LOG(2)))) -> 0 | AN13: =N13 -> 221 | AO13: =COUNTIF(L60:L73,AN13) -> 1 | AP13: =AO13/(AQ4-AO10) -> 0.07692307692 | AQ13: =IF(AP13=0,0,(AP13*((LOG(AP13))/LOG(2)))) -> -0.2846492091 | AS13: =N13 -> 221 | AT13: =COUNTIF(L74:L86,AS13) -> 0 | AU13: =AT13/(AV4-AT10) -> 0 | AV13: =IF(AU13=0,0,(AU13*((LOG(AU13))/LOG(2)))) -> 0
A14: 22 | B14: 1072 | C14: 13 | D14: 1082 | E14: 23 | F14: 1093 | K14: 0 | L14: 212 | N14: 222 | O14: =COUNTIF($L$7:$L$500,N14) -> 4 | P14: =O14/$Q$4 -> 0.05 | Q14: =IF(P14=0,0,(P14*((LOG(P14))/LOG(2)))) -> -0.2160964047 | T14: =N14 -> 222 | U14: =COUNTIF(L7:L19,T14) -> 4 | V14: =U14/(W4-U10) -> 0.4444444444 | W14: =IF(V14=0,0,(V14*((LOG(V14))/LOG(2)))) -> -0.5199666673 | Y14: =N14 -> 222 | Z14: =COUNTIF(L20:L33,Y14) -> 0 | AA14: =Z14/(AB4-Z10) -> 0 | AB14: =IF(AA14=0,0,(AA14*((LOG(AA14))/LOG(2)))) -> 0 | AD14: =N14 -> 222 | AE14: =COUNTIF(L34:L46,AD14) -> 0 | AF14: =AE14/(AG4-AE10) -> 0 | AG14: =IF(AF14=0,0,(AF14*((LOG(AF14))/LOG(2)))) -> 0 | AI14: =N14 -> 222 | AJ14: =COUNTIF(L47:L59,AI14) -> 0 | AK14: =AJ14/(AL4-AJ10) -> 0 | AL14: =IF(AK14=0,0,(AK14*((LOG(AK14))/LOG(2)))) -> 0 | AN14: =N14 -> 222 | AO14: =COUNTIF(L60:L73,AN14) -> 0 | AP14: =AO14/(AQ4-AO10) -> 0 | AQ14: =IF(AP14=0,0,(AP14*((LOG(AP14))/LOG(2)))) -> 0 | AS14: =N14 -> 222 | AT14: =COUNTIF(L74:L86,AS14) -> 0 | AU14: =AT14/(AV4-AT10) -> 0 | AV14: =IF(AU14=0,0,(AU14*((LOG(AU14))/LOG(2)))) -> 0
A15: 11 | B15: 1192 | C15: 22 | D15: 1201 | E15: 23 | F15: 1219 | K15: 0 | L15: 122 | P15: =SUM(P7:P14) -> 1 | Q15: =-SUM(Q7:Q14) -> 2.177270333 | V15: =SUM(V7:V14) -> 1 | W15: =-SUM(W7:W14) -> 1.836591668 | AA15: =SUM(AA7:AA14) -> 1 | AB15: =-SUM(AB7:AB14) -> 1.67673703 | AF15: =SUM(AF7:AF14) -> 1 | AG15: =-SUM(AG7:AG14) -> 0.8112781245 | AK15: =SUM(AK7:AK14) -> 1 | AL15: =-SUM(AL7:AL14) -> 1.040852083 | AP15: =SUM(AP7:AP14) -> 1 | AQ15: =-SUM(AQ7:AQ14) -> 1.546593564 | AU15: =SUM(AU7:AU14) -> 1 | AV15: =-SUM(AV7:AV14) -> 0.3912435636
A16: 22 | B16: 1363 | C16: 24 | D16: 1373 | E16: 14 | F16: 1386 | K16: 0 | L16: 221 | P16: U= | Q16: =Q15/(LOG(Q4)/LOG(2)) -> 0.3443997307 | V16: U1= | W16: =W15/(LOG(W4)/LOG(2)) -> 0.4963171428 | AA16: U2= | AB16: =AB15/(LOG(AB4)/LOG(2)) -> 0.4403942013 | AF16: U3= | AG16: =AG15/(LOG(AG4)/LOG(2)) -> 0.2192383031 | AK16: U4= | AL16: =AL15/(LOG(AL4)/LOG(2)) -> 0.2812779459 | AP16: U5= | AQ16: =AQ15/(LOG(AQ4)/LOG(2)) -> 0.4062120806 | AU16: U6= | AV16: =AV15/(LOG(AV4)/LOG(2)) -> 0.1057289386
A17: 22 | B17: 1506 | C17: 13 | D17: 1516 | E17: 23 | F17: 1529 | K17: 0 | L17: 212
A18: 11 | B18: 1661 | C18: 22 | D18: 1671 | E18: 23 | F18: 1695 | K18: 0 | L18: 122
A19: 11 | B19: 1832 | C19: 22 | D19: 1841 | E19: 14 | F19: 1853 | K19: 0 | L19: 121 | N19: Total Target Seq
A20: 11 | B20: 1956 | C20: 22 | D20: 1970 | E20: 23 | F20: 1992 | K20: 0 | L20: 122 | N20: =COUNTIF(L7:L86,G3) -> 14 | P20: 13 | Q20: 14 | R20: 13 | S20: 13 | T20: 14 | U20: 13
A21: 11 | B21: 2107 | C21: 22 | D21: 2119 | E21: 23 | F21: 2137 | K21: 0 | L21: 122 | P21: % of reinforcement given in 6 equal intervals based on number of trials
A22: 11 | B22: 2238 | C22: 22 | D22: 2248 | E22: 14 | F22: 2260 | K22: 0 | L22: 121 | P22: %_1 | Q22: %_2 | R22: %_3 | S22: %_4 | T22: %_5 | U22: %_6
A23: 11 | B23: 2359 | C23: 11 | D23: 2366 | E23: 21 | F23: 2380 | K23: 0 | L23: 112 | O23: target sequence | P23: =$G$3 -> 122 | Q23: =$G$3 -> 122 | R23: =$G$3 -> 122 | S23: =$G$3 -> 122 | T23: =$G$3 -> 122 | U23: =$G$3 -> 122
A24: 11 | B24: 2479 | C24: 22 | D24: 2488 | E24: 14 | F24: 2500 | K24: 0 | L24: 121 | O24: total reinforcement | P24: =U10 -> 4 | Q24: =Z10 -> 3 | R24: =AE10 -> 5 | S24: =AJ10 -> 1 | T24: =AO10 -> 1 | U24: =AT10 -> 0
A25: 11 | B25: 2597 | C25: 11 | D25: 2600 | E25: 21 | F25: 2612 | K25: 0 | L25: 112 | O25: % target
A26: 11 | B26: 2706 | C26: 22 | D26: 2719 | E26: 14 | F26: 2737 | K26: 0 | L26: 121 | O26: CCRF
A27: 11 | B27: 2835 | C27: 22 | D27: 2849 | E27: 14 | F27: 2862 | K27: 0 | L27: 121 | O27: % CCRf
A28: 11 | B28: 2959 | C28: 11 | D28: 2972 | E28: 21 | F28: 2984 | K28: 0 | L28: 112 | O28: average response rate | P28: =F19/P20 -> 142.5384615 | Q28: =(F33-F19)/Q20 -> 123.2857143 | R28: =(F46-F33)/R20 -> 122 | S28: =(F59-F46)/S20 -> 116.3846154 | T28: =(F73-F59)/T20 -> 121.7142857 | U28: =(F86-F73)/U20 -> 114.9230769
A29: 22 | B29: 3093 | C29: 13 | D29: 3102 | E29: 23 | F29: 3113 | K29: 0 | L29: 212
A30: 11 | B30: 3210 | C30: 11 | D30: 3215 | E30: 12 | F30: 3217 | K30: 0 | L30: 111
A31: 11 | B31: 3314 | C31: 22 | D31: 3324 | E31: 14 | F31: 3331 | K31: 0 | L31: 121
A32: 11 | B32: 3428 | C32: 22 | D32: 3437 | E32: 23 | F32: 3462 | K32: 0 | L32: 122
A33: 11 | B33: 3559 | C33: 11 | D33: 3567 | E33: 21 | F33: 3579 | K33: 0 | L33: 112
A34: 11 | B34: 3694 | C34: 22 | D34: 3707 | E34: 23 | F34: 3732 | K34: 0 | L34: 122
A35: 11 | B35: 3830 | C35: 11 | D35: 3831 | E35: 21 | F35: 3845 | K35: 0 | L35: 112
A36: 11 | B36: 3935 | C36: 11 | D36: 3941 | E36: 21 | F36: 3953 | K36: 0 | L36: 112
A37: 11 | B37: 4045 | C37: 22 | D37: 4056 | E37: 23 | F37: 4075 | K37: 0 | L37: 122
A38: 11 | B38: 4173 | C38: 22 | D38: 4186 | E38: 14 | F38: 4199 | K38: 0 | L38: 121
A39: 11 | B39: 4296 | C39: 11 | D39: 4301 | E39: 21 | F39: 4313 | K39: 0 | L39: 112
A40: 11 | B40: 4438 | C40: 22 | D40: 4448 | E40: 23 | F40: 4459 | K40: 0 | L40: 122
A41: 11 | B41: 4555 | C41: 11 | D41: 4560 | E41: 21 | F41: 4576 | K41: 0 | L41: 112
A42: 11 | B42: 4670 | C42: 11 | D42: 4675 | E42: 21 | F42: 4685 | K42: 0 | L42: 112
A43: 11 | B43: 4775 | C43: 11 | D43: 4779 | E43: 21 | F43: 4789 | K43: 0 | L43: 112
A44: 11 | B44: 4878 | C44: 22 | D44: 4887 | E44: 23 | F44: 4915 | K44: 0 | L44: 122
A45: 11 | B45: 5012 | C45: 22 | D45: 5033 | E45: 14 | F45: 5047 | K45: 0 | L45: 121
A46: 11 | B46: 5147 | C46: 22 | D46: 5157 | E46: 23 | F46: 5165 | K46: 0 | L46: 122
A47: 11 | B47: 5262 | C47: 11 | D47: 5272 | E47: 21 | F47: 5285 | K47: 0 | L47: 112
A48: 11 | B48: 5376 | C48: 11 | D48: 5386 | E48: 12 | F48: 5394 | K48: 0 | L48: 111
A49: 11 | B49: 5490 | C49: 22 | D49: 5500 | E49: 23 | F49: 5519 | K49: 0 | L49: 122
A50: 11 | B50: 5616 | C50: 11 | D50: 5621 | E50: 21 | F50: 5633 | K50: 0 | L50: 112
A51: 11 | B51: 5720 | C51: 11 | D51: 5730 | E51: 12 | F51: 5735 | K51: 0 | L51: 111
A52: 11 | B52: 5833 | C52: 11 | D52: 5840 | E52: 21 | F52: 5854 | K52: 0 | L52: 112
A53: 11 | B53: 5950 | C53: 11 | D53: 5955 | E53: 21 | F53: 5966 | K53: 0 | L53: 112
A54: 11 | B54: 6056 | C54: 11 | D54: 6060 | E54: 21 | F54: 6071 | K54: 0 | L54: 112
A55: 11 | B55: 6162 | C55: 11 | D55: 6193 | E55: 21 | F55: 6206 | K55: 0 | L55: 112
A56: 11 | B56: 6311 | C56: 11 | D56: 6317 | E56: 21 | F56: 6326 | K56: 0 | L56: 112
A57: 11 | B57: 6431 | C57: 11 | D57: 6436 | E57: 21 | F57: 6446 | K57: 0 | L57: 112
A58: 11 | B58: 6540 | C58: 11 | D58: 6545 | E58: 21 | F58: 6554 | K58: 0 | L58: 112
A59: 11 | B59: 6645 | C59: 22 | D59: 6663 | E59: 14 | F59: 6678 | K59: 0 | L59: 121
A60: 11 | B60: 6775 | C60: 11 | D60: 6780 | E60: 21 | F60: 6794 | K60: 0 | L60: 112
A61: 11 | B61: 6884 | C61: 11 | D61: 6890 | E61: 21 | F61: 6899 | K61: 0 | L61: 112
A62: 11 | B62: 6992 | C62: 11 | D62: 6999 | E62: 21 | F62: 7009 | K62: 0 | L62: 112
A63: 11 | B63: 7103 | C63: 22 | D63: 7113 | E63: 14 | F63: 7125 | K63: 0 | L63: 121
A64: 11 | B64: 7223 | C64: 11 | D64: 7228 | E64: 21 | F64: 7244 | K64: 0 | L64: 112
A65: 11 | B65: 7360 | C65: 22 | D65: 7370 | E65: 14 | F65: 7390 | K65: 0 | L65: 121
A66: 11 | B66: 7487 | C66: 11 | D66: 7492 | E66: 21 | F66: 7503 | K66: 0 | L66: 112
A67: 11 | B67: 7598 | C67: 11 | D67: 7607 | E67: 12 | F67: 7616 | K67: 0 | L67: 111
A68: 11 | B68: 7712 | C68: 11 | D68: 7716 | E68: 21 | F68: 7727 | K68: 0 | L68: 112
A69: 11 | B69: 7835 | C69: 11 | D69: 7840 | E69: 21 | F69: 7850 | K69: 0 | L69: 112
A70: 22 | B70: 7966 | C70: 24 | D70: 7973 | E70: 14 | F70: 8004 | K70: 0 | L70: 221
A71: 11 | B71: 8100 | C71: 11 | D71: 8106 | E71: 12 | F71: 8143 | K71: 0 | L71: 111
A72: 11 | B72: 8239 | C72: 22 | D72: 8252 | E72: 23 | F72: 8267 | K72: 0 | L72: 122
A73: 11 | B73: 8366 | C73: 11 | D73: 8371 | E73: 21 | F73: 8382 | K73: 0 | L73: 112
A74: 11 | B74: 8473 | C74: 11 | D74: 8480 | E74: 21 | F74: 8491 | K74: 0 | L74: 112
A75: 11 | B75: 8584 | C75: 11 | D75: 8588 | E75: 21 | F75: 8598 | K75: 0 | L75: 112
A76: 11 | B76: 8716 | C76: 11 | D76: 8722 | E76: 21 | F76: 8732 | K76: 0 | L76: 112
A77: 11 | B77: 8829 | C77: 11 | D77: 8834 | E77: 21 | F77: 8846 | K77: 0 | L77: 112
A78: 11 | B78: 8937 | C78: 11 | D78: 8941 | E78: 21 | F78: 8951 | K78: 0 | L78: 112
A79: 11 | B79: 9060 | C79: 22 | D79: 9073 | E79: 14 | F79: 9108 | K79: 0 | L79: 121
A80: 11 | B80: 9204 | C80: 11 | D80: 9206 | E80: 21 | F80: 9215 | K80: 0 | L80: 112
A81: 11 | B81: 9306 | C81: 11 | D81: 9311 | E81: 21 | F81: 9322 | K81: 0 | L81: 112
A82: 11 | B82: 9415 | C82: 11 | D82: 9422 | E82: 21 | F82: 9432 | K82: 0 | L82: 112
A83: 11 | B83: 9524 | C83: 11 | D83: 9529 | E83: 21 | F83: 9539 | K83: 0 | L83: 112
A84: 11 | B84: 9629 | C84: 11 | D84: 9634 | E84: 21 | F84: 9646 | K84: 0 | L84: 112
A85: 11 | B85: 9752 | C85: 11 | D85: 9757 | E85: 21 | F85: 9767 | K85: 0 | L85: 112
A86: 11 | B86: 9861 | C86: 11 | D86: 9865 | E86: 21 | F86: 9876 | K86: 1 | L86: 112

Sheet !2011-07-08_10h27m.Subject 53
A1: Report for:!2011-07-08_10h27m.Subject 53
A2: Date | B2: 2011-07-08 | F2: Group | G2: var phase 2
A3: Hen | B3: 53 | F3: Correct Sequence | G3: =Start!J2 -> 122 | P3: Total Sequences in Data | Q3: =4994-COUNTBLANK(L7:L5000) -> 83 | V3: Total Sequences in Block Data | W3: =COUNTA(L7:L20) -> 14 | AA3: Total Sequences in Block Data | AB3: =COUNTA(L21:L34) -> 14 | AF3: Total Sequences in Block Data | AG3: =COUNTA(L35:L47) -> 13 | AK3: Total Sequences in Block Data | AL3: =COUNTA(L48:L61) -> 14 | AP3: Total Sequences in Block Data | AQ3: =COUNTA(L62:L75) -> 14 | AU3: Total Sequences in Block Data | AV3: =COUNTA(L76:L89) -> 14
A4: Program | B4: one | P4: Total Sequences in Summary | Q4: =SUM(O7:O14) -> 83 | V4: Total Sequences in Block Summary | W4: =SUM(U7:U14) -> 14 | AA4: Total Sequences in Block Summary | AB4: =SUM(Z7:Z14) -> 14 | AF4: Total Sequences in Block Summary | AG4: =SUM(AE7:AE14) -> 13 | AK4: Total Sequences in Block Summary | AL4: =SUM(AJ7:AJ14) -> 14 | AP4: Total Sequences in Block Summary | AQ4: =SUM(AO7:AO14) -> 14 | AU4: Total Sequences in Block Summary | AV4: =SUM(AT7:AT14) -> 14
T5: Block 1 | Y5: Block 2 | AD5: Block 3 | AI5: Block 4 | AN5: Block 5 | AS5: Block 6
A6: Sequence Component 1 | B6: Time 1 | C6: Sequence Component 2 | D6: Time 2 | E6: Sequence Component 3 | F6: Time 3 | G6: Sequence Component 4 | H6: Time 4 | I6: Sequence Component 5 | J6: Time 5 | K6: Correct? 0=No 1=Yes | L6: Sequence | N6: Frequency | P6: Relative Frequency | Q6: Variability | T6: Frequency | V6: Relative Frequency | W6: Variability | Y6: Frequency | AA6: Relative Frequency | AB6: Variability | AD6: Frequency | AF6: Relative Frequency | AG6: Variability | AI6: Frequency | AK6: Relative Frequency | AL6: Variability | AN6: Frequency | AP6: Relative Frequency | AQ6: Variability | AS6: Frequency | AU6: Relative Frequency | AV6: Variability
A7: 11 | B7: 37 | C7: 22 | D7: 51 | E7: 23 | F7: 64 | K7: 0 | L7: 122 | N7: 111 | O7: =COUNTIF($L$7:$L$500,N7) -> 1 | P7: =O7/$Q$4 -> 0.01204819277 | Q7: =IF(P7=0,0,(P7*((LOG(P7))/LOG(2)))) -> -0.07680770399 | T7: =N7 -> 111 | U7: =COUNTIF(L7:L20,T7) -> 0 | V7: =U7/(W4-U10) -> 0 | W7: =IF(V7=0,0,(V7*((LOG(V7))/LOG(2)))) -> 0 | Y7: =N7 -> 111 | Z7: =COUNTIF(L21:L34,Y7) -> 0 | AA7: =Z7/(AB4-Z10) -> 0 | AB7: =IF(AA7=0,0,(AA7*((LOG(AA7))/LOG(2)))) -> 0 | AD7: =N7 -> 111 | AE7: =COUNTIF(L35:L47,AD7) -> 0 | AF7: =AE7/(AG4-AE10) -> 0 | AG7: =IF(AF7=0,0,(AF7*((LOG(AF7))/LOG(2)))) -> 0 | AI7: =N7 -> 111 | AJ7: =COUNTIF(L48:L61,AI7) -> 1 | AK7: =AJ7/(AL4-AJ10) -> 0.07692307692 | AL7: =IF(AK7=0,0,(AK7*((LOG(AK7))/LOG(2)))) -> -0.2846492091 | AN7: =N7 -> 111 | AO7: =COUNTIF(L62:L75,AN7) -> 0 | AP7: =AO7/(AQ4-AO10) -> 0 | AQ7: =IF(AP7=0,0,(AP7*((LOG(AP7))/LOG(2)))) -> 0 | AS7: =N7 -> 111 | AT7: =COUNTIF(L76:L89,AS7) -> 0 | AU7: =AT7/(AV4-AT10) -> 0 | AV7: =IF(AU7=0,0,(AU7*((LOG(AU7))/LOG(2)))) -> 0
A8: 11 | B8: 165 | C8: 22 | D8: 177 | E8: 23 | F8: 187 | K8: 0 | L8: 122 | N8: 112 | O8: =COUNTIF($L$7:$L$500,N8) -> 38 | P8: =O8/$Q$4 -> 0.4578313253 | Q8: =IF(P8=0,0,(P8*((LOG(P8))/LOG(2)))) -> -0.5160271431 | T8: =N8 -> 112 | U8: =COUNTIF(L7:L20,T8) -> 1 | V8: =U8/(W4-U10) -> 0.125 | W8: =IF(V8=0,0,(V8*((LOG(V8))/LOG(2)))) -> -0.375 | Y8: =N8 -> 112 | Z8: =COUNTIF(L21:L34,Y8) -> 3 | AA8: =Z8/(AB4-Z10) -> 0.3333333333 | AB8: =IF(AA8=0,0,(AA8*((LOG(AA8))/LOG(2)))) -> -0.5283208336 | AD8: =N8 -> 112 | AE8: =COUNTIF(L35:L47,AD8) -> 7 | AF8: =AE8/(AG4-AE10) -> 0.7777777778 | AG8: =IF(AF8=0,0,(AF8*((LOG(AF8))/LOG(2)))) -> -0.2819989506 | AI8: =N8 -> 112 | AJ8: =COUNTIF(L48:L61,AI8) -> 9 | AK8: =AJ8/(AL4-AJ10) -> 0.6923076923 | AL8: =IF(AK8=0,0,(AK8*((LOG(AK8))/LOG(2)))) -> -0.3672794193 | AN8: =N8 -> 112 | AO8: =COUNTIF(L62:L75,AN8) -> 8 | AP8: =AO8/(AQ4-AO10) -> 0.8 | AQ8: =IF(AP8=0,0,(AP8*((LOG(AP8))/LOG(2)))) -> -0.2575424759 | AS8: =N8 -> 112 | AT8: =COUNTIF(L76:L89,AS8) -> 10 | AU8: =AT8/(AV4-AT10) -> 0.7142857143 | AV8: =IF(AU8=0,0,(AU8*((LOG(AU8))/LOG(2)))) -> -0.346733448
A9: 11 | B9: 298 | C9: 22 | D9: 311 | E9: 23 | F9: 338 | K9: 0 | L9: 122 | N9: 121 | O9: =COUNTIF($L$7:$L$500,N9) -> 17 | P9: =O9/$Q$4 -> 0.2048192771 | Q9: =IF(P9=0,0,(P9*((LOG(P9))/LOG(2)))) -> -0.4685397835 | T9: =N9 -> 121 | U9: =COUNTIF(L7:L20,T9) -> 2 | V9: =U9/(W4-U10) -> 0.25 | W9: =IF(V9=0,0,(V9*((LOG(V9))/LOG(2)))) -> -0.5 | Y9: =N9 -> 121 | Z9: =COUNTIF(L21:L34,Y9) -> 5 | AA9: =Z9/(AB4-Z10) -> 0.5555555556 | AB9: =IF(AA9=0,0,(AA9*((LOG(AA9))/LOG(2)))) -> -0.4711093925 | AD9: =N9 -> 121 | AE9: =COUNTIF(L35:L47,AD9) -> 2 | AF9: =AE9/(AG4-AE10) -> 0.2222222222 | AG9: =IF(AF9=0,0,(AF9*((LOG(AF9))/LOG(2)))) -> -0.4822055559 | AI9: =N9 -> 121 | AJ9: =COUNTIF(L48:L61,AI9) -> 3 | AK9: =AJ9/(AL4-AJ10) -> 0.2307692308 | AL9: =IF(AK9=0,0,(AK9*((LOG(AK9))/LOG(2)))) -> -0.4881870502 | AN9: =N9 -> 121 | AO9: =COUNTIF(L62:L75,AN9) -> 2 | AP9: =AO9/(AQ4-AO10) -> 0.2 | AQ9: =IF(AP9=0,0,(AP9*((LOG(AP9))/LOG(2)))) -> -0.464385619 | AS9: =N9 -> 121 | AT9: =COUNTIF(L76:L89,AS9) -> 3 | AU9: =AT9/(AV4-AT10) -> 0.2142857143 | AV9: =IF(AU9=0,0,(AU9*((LOG(AU9))/LOG(2)))) -> -0.4762269474
A10: 22 | B10: 481 | C10: 24 | D10: 490 | E10: 23 | F10: 492 | K10: 0 | L10: 222 | N10: 122 | O10: =COUNTIF($L$7:$L$500,N10) -> 20 | P10: =O10/$Q$4 -> 0.2409638554 | Q10: =IF(P10=0,0,(P10*((LOG(P10))/LOG(2)))) -> -0.4947256232 | T10: =N10 -> 122 | U10: =COUNTIF(L7:L20,T10) -> 6 | Y10: =N10 -> 122 | Z10: =COUNTIF(L21:L34,Y10) -> 5 | AD10: =N10 -> 122 | AE10: =COUNTIF(L35:L47,AD10) -> 4 | AI10: =N10 -> 122 | AJ10: =COUNTIF(L48:L61,AI10) -> 1 | AN10: =N10 -> 122 | AO10: =COUNTIF(L62:L75,AN10) -> 4 | AS10: =N10 -> 122 | AT10: =COUNTIF(L76:L89,AS10) -> 0
A11: 11 | B11: 590 | C11: 22 | D11: 600 | E11: 23 | F11: 618 | K11: 0 | L11: 122 | N11: 211 | O11: =COUNTIF($L$7:$L$500,N11) -> 1 | P11: =O11/$Q$4 -> 0.01204819277 | Q11: =IF(P11=0,0,(P11*((LOG(P11))/LOG(2)))) -> -0.07680770399 | T11: =N11 -> 211 | U11: =COUNTIF(L7:L20,T11) -> 1 | V11: =U11/(W4-U10) -> 0.125 | W11: =IF(V11=0,0,(V11*((LOG(V11))/LOG(2)))) -> -0.375 | Y11: =N11 -> 211 | Z11: =COUNTIF(L21:L34,Y11) -> 0 | AA11: =Z11/(AB4-Z10) -> 0 | AB11: =IF(AA11=0,0,(AA11*((LOG(AA11))/LOG(2)))) -> 0 | AD11: =N11 -> 211 | AE11: =COUNTIF(L35:L47,AD11) -> 0 | AF11: =AE11/(AG4-AE10) -> 0 | AG11: =IF(AF11=0,0,(AF11*((LOG(AF11))/LOG(2)))) -> 0 | AI11: =N11 -> 211 | AJ11: =COUNTIF(L48:L61,AI11) -> 0 | AK11: =AJ11/(AL4-AJ10) -> 0 | AL11: =IF(AK11=0,0,(AK11*((LOG(AK11))/LOG(2)))) -> 0 | AN11: =N11 -> 211 | AO11: =COUNTIF(L62:L75,AN11) -> 0 | AP11: =AO11/(AQ4-AO10) -> 0 | AQ11: =IF(AP11=0,0,(AP11*((LOG(AP11))/LOG(2)))) -> 0 | AS11: =N11 -> 211 | AT11: =COUNTIF(L76:L89,AS11) -> 0 | AU11: =AT11/(AV4-AT10) -> 0 | AV11: =IF(AU11=0,0,(AU11*((LOG(AU11))/LOG(2)))) -> 0
A12: 11 | B12: 719 | C12: 22 | D12: 729 | E12: 14 | F12: 740 | K12: 0 | L12: 121 | N12: 212 | O12: =COUNTIF($L$7:$L$500,N12) -> 5 | P12: =O12/$Q$4 -> 0.06024096386 | Q12: =IF(P12=0,0,(P12*((LOG(P12))/LOG(2)))) -> -0.2441633335 | T12: =N12 -> 212 | U12: =COUNTIF(L7:L20,T12) -> 3 | V12: =U12/(W4-U10) -> 0.375 | W12: =IF(V12=0,0,(V12*((LOG(V12))/LOG(2)))) -> -0.5306390622 | Y12: =N12 -> 212 | Z12: =COUNTIF(L21:L34,Y12) -> 1 | AA12: =Z12/(AB4-Z10) -> 0.1111111111 | AB12: =IF(AA12=0,0,(AA12*((LOG(AA12))/LOG(2)))) -> -0.352213889 | AD12: =N12 -> 212 | AE12: =COUNTIF(L35:L47,AD12) -> 0 | AF12: =AE12/(AG4-AE10) -> 0 | AG12: =IF(AF12=0,0,(AF12*((LOG(AF12))/LOG(2)))) -> 0 | AI12: =N12 -> 212 | AJ12: =COUNTIF(L48:L61,AI12) -> 0 | AK12: =AJ12/(AL4-AJ10) -> 0 | AL12: =IF(AK12=0,0,(AK12*((LOG(AK12))/LOG(2)))) -> 0 | AN12: =N12 -> 212 | AO12: =COUNTIF(L62:L75,AN12) -> 0 | AP12: =AO12/(AQ4-AO10) -> 0 | AQ12: =IF(AP12=0,0,(AP12*((LOG(AP12))/LOG(2)))) -> 0 | AS12: =N12 -> 212 | AT12: =COUNTIF(L76:L89,AS12) -> 1 | AU12: =AT12/(AV4-AT10) -> 0.07142857143 | AV12: =IF(AU12=0,0,(AU12*((LOG(AU12))/LOG(2)))) -> -0.271953923
A13: 11 | B13: 839 | C13: 22 | D13: 850 | E13: 23 | F13: 882 | K13: 0 | L13: 122 | N13: 221 | O13: =COUNTIF($L$7:$L$500,N13) -> 0 | P13: =O13/$Q$4 -> 0 | Q13: =IF(P13=0,0,(P13*((LOG(P13))/LOG(2)))) -> 0 | T13: =N13 -> 221 | U13: =COUNTIF(L7:L20,T13) -> 0 | V13: =U13/(W4-U10) -> 0 | W13: =IF(V13=0,0,(V13*((LOG(V13))/LOG(2)))) -> 0 | Y13: =N13 -> 221 | Z13: =COUNTIF(L21:L34,Y13) -> 0 | AA13: =Z13/(AB4-Z10) -> 0 | AB13: =IF(AA13=0,0,(AA13*((LOG(AA13))/LOG(2)))) -> 0 | AD13: =N13 -> 221 | AE13: =COUNTIF(L35:L47,AD13) -> 0 | AF13: =AE13/(AG4-AE10) -> 0 | AG13: =IF(AF13=0,0,(AF13*((LOG(AF13))/LOG(2)))) -> 0 | AI13: =N13 -> 221 | AJ13: =COUNTIF(L48:L61,AI13) -> 0 | AK13: =AJ13/(AL4-AJ10) -> 0 | AL13: =IF(AK13=0,0,(AK13*((LOG(AK13))/LOG(2)))) -> 0 | AN13: =N13 -> 221 | AO13: =COUNTIF(L62:L75,AN13) -> 0 | AP13: =AO13/(AQ4-AO10) -> 0 | AQ13: =IF(AP13=0,0,(AP13*((LOG(AP13))/LOG(2)))) -> 0 | AS13: =N13 -> 221 | AT13: =COUNTIF(L76:L89,AS13) -> 0 | AU13: =AT13/(AV4-AT10) -> 0 | AV13: =IF(AU13=0,0,(AU13*((LOG(AU13))/LOG(2)))) -> 0
A14: 22 | B14: 999 | C14: 13 | D14: 1015 | E14: 23 | F14: 1027 | K14: 0 | L14: 212 | N14: 222 | O14: =COUNTIF($L$7:$L$500,N14) -> 1 | P14: =O14/$Q$4 -> 0.01204819277 | Q14: =IF(P14=0,0,(P14*((LOG(P14))/LOG(2)))) -> -0.07680770399 | T14: =N14 -> 222 | U14: =COUNTIF(L7:L20,T14) -> 1 | V14: =U14/(W4-U10) -> 0.125 | W14: =IF(V14=0,0,(V14*((LOG(V14))/LOG(2)))) -> -0.375 | Y14: =N14 -> 222 | Z14: =COUNTIF(L21:L34,Y14) -> 0 | AA14: =Z14/(AB4-Z10) -> 0 | AB14: =IF(AA14=0,0,(AA14*((LOG(AA14))/LOG(2)))) -> 0 | AD14: =N14 -> 222 | AE14: =COUNTIF(L35:L47,AD14) -> 0 | AF14: =AE14/(AG4-AE10) -> 0 | AG14: =IF(AF14=0,0,(AF14*((LOG(AF14))/LOG(2)))) -> 0 | AI14: =N14 -> 222 | AJ14: =COUNTIF(L48:L61,AI14) -> 0 | AK14: =AJ14/(AL4-AJ10) -> 0 | AL14: =IF(AK14=0,0,(AK14*((LOG(AK14))/LOG(2)))) -> 0 | AN14: =N14 -> 222 | AO14: =COUNTIF(L62:L75,AN14) -> 0 | AP14: =AO14/(AQ4-AO10) -> 0 | AQ14: =IF(AP14=0,0,(AP14*((LOG(AP14))/LOG(2)))) -> 0 | AS14: =N14 -> 222 | AT14: =COUNTIF(L76:L89,AS14) -> 0 | AU14: =AT14/(AV4-AT10) -> 0 | AV14: =IF(AU14=0,0,(AU14*((LOG(AU14))/LOG(2)))) -> 0
A15: 11 | B15: 1128 | C15: 11 | D15: 1160 | E15: 21 | F15: 1174 | K15: 0 | L15: 112 | P15: =SUM(P7:P14) -> 1 | Q15: =-SUM(Q7:Q14) -> 1.953878995 | V15: =SUM(V7:V14) -> 1 | W15: =-SUM(W7:W14) -> 2.155639062 | AA15: =SUM(AA7:AA14) -> 1 | AB15: =-SUM(AB7:AB14) -> 1.351644115 | AF15: =SUM(AF7:AF14) -> 1 | AG15: =-SUM(AG7:AG14) -> 0.7642045065 | AK15: =SUM(AK7:AK14) -> 1 | AL15: =-SUM(AL7:AL14) -> 1.140115679 | AP15: =SUM(AP7:AP14) -> 1 | AQ15: =-SUM(AQ7:AQ14) -> 0.7219280949 | AU15: =SUM(AU7:AU14) -> 1 | AV15: =-SUM(AV7:AV14) -> 1.094914318
A16: 11 | B16: 1307 | C16: 22 | D16: 1318 | E16: 14 | F16: 1342 | K16: 0 | L16: 121 | P16: U= | Q16: =Q15/(LOG(Q4)/LOG(2)) -> 0.3064889271 | V16: U1= | W16: =W15/(LOG(W4)/LOG(2)) -> 0.5661775974 | AA16: U2= | AB16: =AB15/(LOG(AB4)/LOG(2)) -> 0.3550086984 | AF16: U3= | AG16: =AG15/(LOG(AG4)/LOG(2)) -> 0.2065172154 | AK16: U4= | AL16: =AL15/(LOG(AL4)/LOG(2)) -> 0.2994508529 | AP16: U5= | AQ16: =AQ15/(LOG(AQ4)/LOG(2)) -> 0.1896140785 | AU16: U6= | AV16: =AV15/(LOG(AV4)/LOG(2)) -> 0.2875787366
A17: 22 | B17: 1491 | C17: 13 | D17: 1500 | E17: 23 | F17: 1514 | K17: 0 | L17: 212
A18: 11 | B18: 1616 | C18: 22 | D18: 1628 | E18: 23 | F18: 1652 | K18: 0 | L18: 122
A19: 22 | B19: 1773 | C19: 13 | D19: 1784 | E19: 14 | F19: 1785 | K19: 0 | L19: 211 | N19: Total Target Seq
A20: 22 | B20: 1932 | C20: 13 | D20: 1945 | E20: 23 | F20: 1959 | K20: 0 | L20: 212 | N20: =COUNTIF(L7:L89,G3) -> 20 | P20: 14 | Q20: 14 | R20: 13 | S20: 14 | T20: 14 | U20: 14
A21: 11 | B21: 2064 | C21: 11 | D21: 2082 | E21: 21 | F21: 2090 | K21: 0 | L21: 112 | P21: % of reinforcement given in 6 equal intervals based on number of trials
A22: 11 | B22: 2185 | C22: 11 | D22: 2201 | E22: 21 | F22: 2213 | K22: 0 | L22: 112 | P22: %_1 | Q22: %_2 | R22: %_3 | S22: %_4 | T22: %_5 | U22: %_6
A23: 11 | B23: 2316 | C23: 22 | D23: 2329 | E23: 14 | F23: 2342 | K23: 0 | L23: 121 | O23: target sequence | P23: =$G$3 -> 122 | Q23: =$G$3 -> 122 | R23: =$G$3 -> 122 | S23: =$G$3 -> 122 | T23: =$G$3 -> 122 | U23: =$G$3 -> 122
A24: 11 | B24: 2461 | C24: 22 | D24: 2473 | E24: 14 | F24: 2482 | K24: 0 | L24: 121 | O24: total reinforcement | P24: =U10 -> 6 | Q24: =Z10 -> 5 | R24: =AE10 -> 4 | S24: =AJ10 -> 1 | T24: =AO10 -> 4 | U24: =AT10 -> 0
A25: 11 | B25: 2600 | C25: 22 | D25: 2608 | E25: 23 | F25: 2614 | K25: 0 | L25: 122 | O25: % target
A26: 22 | B26: 2730 | C26: 13 | D26: 2742 | E26: 23 | F26: 2752 | K26: 0 | L26: 212 | O26: CCRF
A27: 11 | B27: 2853 | C27: 22 | D27: 2862 | E27: 14 | F27: 2876 | K27: 0 | L27: 121 | O27: % CCRf
A28: 11 | B28: 2978 | C28: 22 | D28: 2988 | E28: 14 | F28: 2999 | K28: 0 | L28: 121 | O28: average response rate | P28: =F20/P20 -> 139.9285714 | Q28: =(F34-F20)/Q20 -> 130.5714286 | R28: =(F47-F34)/R20 -> 123.4615385 | S28: =(F61-F47)/S20 -> 117.5 | T28: =(F75-F61)/T20 -> 123 | U28: =(F89-F75)/U20 -> 119.9285714
A29: 11 | B29: 3098 | C29: 11 | D29: 3107 | E29: 21 | F29: 3121 | K29: 0 | L29: 112
A30: 11 | B30: 3232 | C30: 22 | D30: 3241 | E30: 14 | F30: 3258 | K30: 0 | L30: 121
A31: 11 | B31: 3355 | C31: 22 | D31: 3379 | E31: 23 | F31: 3395 | K31: 0 | L31: 122
A32: 11 | B32: 3495 | C32: 22 | D32: 3506 | E32: 23 | F32: 3530 | K32: 0 | L32: 122
A33: 11 | B33: 3633 | C33: 22 | D33: 3643 | E33: 23 | F33: 3663 | K33: 0 | L33: 122
A34: 11 | B34: 3764 | C34: 22 | D34: 3773 | E34: 23 | F34: 3787 | K34: 0 | L34: 122
A35: 11 | B35: 3883 | C35: 11 | D35: 3886 | E35: 21 | F35: 3900 | K35: 0 | L35: 112
A36: 11 | B36: 4006 | C36: 22 | D36: 4017 | E36: 14 | F36: 4030 | K36: 0 | L36: 121
A37: 11 | B37: 4126 | C37: 11 | D37: 4128 | E37: 21 | F37: 4141 | K37: 0 | L37: 112
A38: 11 | B38: 4233 | C38: 11 | D38: 4258 | E38: 21 | F38: 4271 | K38: 0 | L38: 112
A39: 11 | B39: 4360 | C39: 11 | D39: 4375 | E39: 21 | F39: 4388 | K39: 0 | L39: 112
A40: 11 | B40: 4484 | C40: 11 | D40: 4494 | E40: 21 | F40: 4506 | K40: 0 | L40: 112
A41: 11 | B41: 4606 | C41: 22 | D41: 4618 | E41: 23 | F41: 4632 | K41: 0 | L41: 122
A42: 11 | B42: 4738 | C42: 22 | D42: 4748 | E42: 23 | F42: 4775 | K42: 0 | L42: 122
A43: 11 | B43: 4875 | C43: 22 | D43: 4885 | E43: 23 | F43: 4909 | K43: 0 | L43: 122
A44: 11 | B44: 5007 | C44: 22 | D44: 5022 | E44: 23 | F44: 5038 | K44: 0 | L44: 122
A45: 11 | B45: 5135 | C45: 11 | D45: 5142 | E45: 21 | F45: 5153 | K45: 0 | L45: 112
A46: 11 | B46: 5248 | C46: 22 | D46: 5257 | E46: 14 | F46: 5271 | K46: 0 | L46: 121
A47: 11 | B47: 5369 | C47: 11 | D47: 5377 | E47: 21 | F47: 5392 | K47: 0 | L47: 112
A48: 11 | B48: 5481 | C48: 11 | D48: 5492 | E48: 21 | F48: 5503 | K48: 0 | L48: 112
A49: 11 | B49: 5593 | C49: 11 | D49: 5599 | E49: 21 | F49: 5608 | K49: 0 | L49: 112
A50: 11 | B50: 5708 | C50: 11 | D50: 5712 | E50: 21 | F50: 5722 | K50: 0 | L50: 112
A51: 11 | B51: 5822 | C51: 22 | D51: 5832 | E51: 14 | F51: 5844 | K51: 0 | L51: 121
A52: 11 | B52: 5941 | C52: 11 | D52: 5946 | E52: 21 | F52: 5956 | K52: 0 | L52: 112
A53: 11 | B53: 6044 | C53: 11 | D53: 6046 | E53: 12 | F53: 6052 | K53: 0 | L53: 111
A54: 11 | B54: 6156 | C54: 11 | D54: 6165 | E54: 21 | F54: 6175 | K54: 0 | L54: 112
A55: 11 | B55: 6278 | C55: 22 | D55: 6291 | E55: 14 | F55: 6305 | K55: 0 | L55: 121
A56: 11 | B56: 6401 | C56: 22 | D56: 6418 | E56: 14 | F56: 6433 | K56: 0 | L56: 121
A57: 11 | B57: 6530 | C57: 11 | D57: 6531 | E57: 21 | F57: 6545 | K57: 0 | L57: 112
A58: 11 | B58: 6638 | C58: 11 | D58: 6645 | E58: 21 | F58: 6654 | K58: 0 | L58: 112
A59: 11 | B59: 6759 | C59: 22 | D59: 6779 | E59: 23 | F59: 6802 | K59: 0 | L59: 122
A60: 11 | B60: 6899 | C60: 11 | D60: 6904 | E60: 21 | F60: 6914 | K60: 0 | L60: 112
A61: 11 | B61: 7020 | C61: 11 | D61: 7024 | E61: 21 | F61: 7037 | K61: 0 | L61: 112
A62: 11 | B62: 7128 | C62: 11 | D62: 7133 | E62: 21 | F62: 7141 | K62: 0 | L62: 112
A63: 11 | B63: 7241 | C63: 11 | D63: 7254 | E63: 21 | F63: 7265 | K63: 0 | L63: 112
A64: 11 | B64: 7399 | C64: 22 | D64: 7414 | E64: 14 | F64: 7428 | K64: 0 | L64: 121
A65: 11 | B65: 7525 | C65: 11 | D65: 7526 | E65: 21 | F65: 7541 | K65: 0 | L65: 112
A66: 11 | B66: 7631 | C66: 11 | D66: 7639 | E66: 21 | F66: 7653 | K66: 0 | L66: 112
A67: 11 | B67: 7755 | C67: 11 | D67: 7762 | E67: 21 | F67: 7776 | K67: 0 | L67: 112
A68: 11 | B68: 7871 | C68: 11 | D68: 7877 | E68: 21 | F68: 7885 | K68: 0 | L68: 112
A69: 11 | B69: 7974 | C69: 22 | D69: 7986 | E69: 14 | F69: 8021 | K69: 0 | L69: 121
A70: 11 | B70: 8119 | C70: 11 | D70: 8131 | E70: 21 | F70: 8143 | K70: 0 | L70: 112
A71: 11 | B71: 8235 | C71: 22 | D71: 8248 | E71: 23 | F71: 8258 | K71: 0 | L71: 122
A72: 11 | B72: 8355 | C72: 22 | D72: 8371 | E72: 23 | F72: 8374 | K72: 0 | L72: 122
A73: 11 | B73: 8471 | C73: 22 | D73: 8486 | E73: 23 | F73: 8493 | K73: 0 | L73: 122
A74: 11 | B74: 8604 | C74: 11 | D74: 8628 | E74: 21 | F74: 8639 | K74: 0 | L74: 112
A75: 11 | B75: 8739 | C75: 22 | D75: 8749 | E75: 23 | F75: 8759 | K75: 0 | L75: 122
A76: 11 | B76: 8855 | C76: 11 | D76: 8862 | E76: 21 | F76: 8871 | K76: 0 | L76: 112
A77: 11 | B77: 8976 | C77: 11 | D77: 8981 | E77: 21 | F77: 8991 | K77: 0 | L77: 112
A78: 11 | B78: 9082 | C78: 11 | D78: 9094 | E78: 21 | F78: 9118 | K78: 0 | L78: 112
A79: 11 | B79: 9212 | C79: 11 | D79: 9222 | E79: 21 | F79: 9233 | K79: 0 | L79: 112
A80: 11 | B80: 9321 | C80: 11 | D80: 9327 | E80: 21 | F80: 9336 | K80: 0 | L80: 112
A81: 11 | B81: 9424 | C81: 22 | D81: 9437 | E81: 14 | F81: 9456 | K81: 0 | L81: 121
A82: 11 | B82: 9552 | C82: 22 | D82: 9564 | E82: 14 | F82: 9578 | K82: 0 | L82: 121
A83: 11 | B83: 9679 | C83: 22 | D83: 9704 | E83: 14 | F83: 9717 | K83: 0 | L83: 121
A84: 22 | B84: 9830 | C84: 13 | D84: 9847 | E84: 23 | F84: 9860 | K84: 0 | L84: 212
A85: 11 | B85: 9957 | C85: 11 | D85: 9959 | E85: 21 | F85: 9975 | K85: 0 | L85: 112
A86: 11 | B86: 10067 | C86: 11 | D86: 10077 | E86: 21 | F86: 10090 | K86: 0 | L86: 112
A87: 11 | B87: 10188 | C87: 11 | D87: 10197 | E87: 21 | F87: 10207 | K87: 0 | L87: 112
A88: 11 | B88: 10302 | C88: 11 | D88: 10308 | E88: 21 | F88: 10318 | K88: 0 | L88: 112
A89: 11 | B89: 10422 | C89: 11 | D89: 10428 | E89: 21 | F89: 10438 | K89: 1 | L89: 112

Sheet !2011-07-09_11h07m.Subject 53
A1: Report for:!2011-07-09_11h07m.Subject 53
A2: Date | B2: 2011-07-09 | F2: Group | G2: var phase 2
A3: Hen | B3: 53 | F3: Correct Sequence | G3: =Start!J2 -> 122 | P3: Total Sequences in Data | Q3: =4994-COUNTBLANK(L7:L5000) -> 73 | V3: Total Sequences in Block Data | W3: =COUNTA(L7:L18) -> 12 | AA3: Total Sequences in Block Data | AB3: =COUNTA(L19:L30) -> 12 | AF3: Total Sequences in Block Data | AG3: =COUNTA(L31:L43) -> 13 | AK3: Total Sequences in Block Data | AL3: =COUNTA(L44:L55) -> 12 | AP3: Total Sequences in Block Data | AQ3: =COUNTA(L56:L67) -> 12 | AU3: Total Sequences in Block Data | AV3: =COUNTA(L68:L79) -> 12
A4: Program | B4: one | P4: Total Sequences in Summary | Q4: =SUM(O7:O14) -> 73 | V4: Total Sequences in Block Summary | W4: =SUM(U7:U14) -> 12 | AA4: Total Sequences in Block Summary | AB4: =SUM(Z7:Z14) -> 12 | AF4: Total Sequences in Block Summary | AG4: =SUM(AE7:AE14) -> 13 | AK4: Total Sequences in Block Summary | AL4: =SUM(AJ7:AJ14) -> 12 | AP4: Total Sequences in Block Summary | AQ4: =SUM(AO7:AO14) -> 12 | AU4: Total Sequences in Block Summary | AV4: =SUM(AT7:AT14) -> 12
T5: Block 1 | Y5: Block 2 | AD5: Block 3 | AI5: Block 4 | AN5: Block 5 | AS5: Block 6
A6: Sequence Component 1 | B6: Time 1 | C6: Sequence Component 2 | D6: Time 2 | E6: Sequence Component 3 | F6: Time 3 | G6: Sequence Component 4 | H6: Time 4 | I6: Sequence Component 5 | J6: Time 5 | K6: Correct? 0=No 1=Yes | L6: Sequence | N6: Frequency | P6: Relative Frequency | Q6: Variability | T6: Frequency | V6: Relative Frequency | W6: Variability | Y6: Frequency | AA6: Relative Frequency | AB6: Variability | AD6: Frequency | AF6: Relative Frequency | AG6: Variability | AI6: Frequency | AK6: Relative Frequency | AL6: Variability | AN6: Frequency | AP6: Relative Frequency | AQ6: Variability | AS6: Frequency | AU6: Relative Frequency | AV6: Variability
A7: 11 | B7: 22 | C7: 22 | D7: 33 | E7: 14 | F7: 50 | K7: 0 | L7: 121 | N7: 111 | O7: =COUNTIF($L$7:$L$500,N7) -> 2 | P7: =O7/$Q$4 -> 0.02739726027 | Q7: =IF(P7=0,0,(P7*((LOG(P7))/LOG(2)))) -> -0.1421869742 | T7: =N7 -> 111 | U7: =COUNTIF(L7:L18,T7) -> 0 | V7: =U7/(W4-U10) -> 0 | W7: =IF(V7=0,0,(V7*((LOG(V7))/LOG(2)))) -> 0 | Y7: =N7 -> 111 | Z7: =COUNTIF(L19:L30,Y7) -> 0 | AA7: =Z7/(AB4-Z10) -> 0 | AB7: =IF(AA7=0,0,(AA7*((LOG(AA7))/LOG(2)))) -> 0 | AD7: =N7 -> 111 | AE7: =COUNTIF(L31:L43,AD7) -> 0 | AF7: =AE7/(AG4-AE10) -> 0 | AG7: =IF(AF7=0,0,(AF7*((LOG(AF7))/LOG(2)))) -> 0 | AI7: =N7 -> 111 | AJ7: =COUNTIF(L44:L55,AI7) -> 0 | AK7: =AJ7/(AL4-AJ10) -> 0 | AL7: =IF(AK7=0,0,(AK7*((LOG(AK7))/LOG(2)))) -> 0 | AN7: =N7 -> 111 | AO7: =COUNTIF(L56:L67,AN7) -> 0 | AP7: =AO7/(AQ4-AO10) -> 0 | AQ7: =IF(AP7=0,0,(AP7*((LOG(AP7))/LOG(2)))) -> 0 | AS7: =N7 -> 111 | AT7: =COUNTIF(L68:L79,AS7) -> 2 | AU7: =AT7/(AV4-AT10) -> 0.1666666667 | AV7: =IF(AU7=0,0,(AU7*((LOG(AU7))/LOG(2)))) -> -0.4308270835
A8: 22 | B8: 173 | C8: 24 | D8: 184 | E8: 14 | F8: 197 | K8: 0 | L8: 221 | N8: 112 | O8: =COUNTIF($L$7:$L$500,N8) -> 36 | P8: =O8/$Q$4 -> 0.4931506849 | Q8: =IF(P8=0,0,(P8*((LOG(P8))/LOG(2)))) -> -0.5029641653 | T8: =N8 -> 112 | U8: =COUNTIF(L7:L18,T8) -> 0 | V8: =U8/(W4-U10) -> 0 | W8: =IF(V8=0,0,(V8*((LOG(V8))/LOG(2)))) -> 0 | Y8: =N8 -> 112 | Z8: =COUNTIF(L19:L30,Y8) -> 3 | AA8: =Z8/(AB4-Z10) -> 0.2727272727 | AB8: =IF(AA8=0,0,(AA8*((LOG(AA8))/LOG(2)))) -> -0.5112188503 | AD8: =N8 -> 112 | AE8: =COUNTIF(L31:L43,AD8) -> 7 | AF8: =AE8/(AG4-AE10) -> 0.6363636364 | AG8: =IF(AF8=0,0,(AF8*((LOG(AF8))/LOG(2)))) -> -0.4149578978 | AI8: =N8 -> 112 | AJ8: =COUNTIF(L44:L55,AI8) -> 10 | AK8: =AJ8/(AL4-AJ10) -> 0.9090909091 | AL8: =IF(AK8=0,0,(AK8*((LOG(AK8))/LOG(2)))) -> -0.1250032034 | AN8: =N8 -> 112 | AO8: =COUNTIF(L56:L67,AN8) -> 6 | AP8: =AO8/(AQ4-AO10) -> 0.5 | AQ8: =IF(AP8=0,0,(AP8*((LOG(AP8))/LOG(2)))) -> -0.5 | AS8: =N8 -> 112 | AT8: =COUNTIF(L68:L79,AS8) -> 10 | AU8: =AT8/(AV4-AT10) -> 0.8333333333 | AV8: =IF(AU8=0,0,(AU8*((LOG(AU8))/LOG(2)))) -> -0.2191953382
A9: 22 | B9: 306 | C9: 13 | D9: 329 | E9: 23 | F9: 345 | K9: 0 | L9: 212 | N9: 121 | O9: =COUNTIF($L$7:$L$500,N9) -> 17 | P9: =O9/$Q$4 -> 0.2328767123 | Q9: =IF(P9=0,0,(P9*((LOG(P9))/LOG(2)))) -> -0.4895910849 | T9: =N9 -> 121 | U9: =COUNTIF(L7:L18,T9) -> 3 | V9: =U9/(W4-U10) -> 0.375 | W9: =IF(V9=0,0,(V9*((LOG(V9))/LOG(2)))) -> -0.5306390622 | Y9: =N9 -> 121 | Z9: =COUNTIF(L19:L30,Y9) -> 4 | AA9: =Z9/(AB4-Z10) -> 0.3636363636 | AB9: =IF(AA9=0,0,(AA9*((LOG(AA9))/LOG(2)))) -> -0.5307024068 | AD9: =N9 -> 121 | AE9: =COUNTIF(L31:L43,AD9) -> 4 | AF9: =AE9/(AG4-AE10) -> 0.3636363636 | AG9: =IF(AF9=0,0,(AF9*((LOG(AF9))/LOG(2)))) -> -0.5307024068 | AI9: =N9 -> 121 | AJ9: =COUNTIF(L44:L55,AI9) -> 1 | AK9: =AJ9/(AL4-AJ10) -> 0.09090909091 | AL9: =IF(AK9=0,0,(AK9*((LOG(AK9))/LOG(2)))) -> -0.3144937835 | AN9: =N9 -> 121 | AO9: =COUNTIF(L56:L67,AN9) -> 5 | AP9: =AO9/(AQ4-AO10) -> 0.4166666667 | AQ9: =IF(AP9=0,0,(AP9*((LOG(AP9))/LOG(2)))) -> -0.5262643358 | AS9: =N9 -> 121 | AT9: =COUNTIF(L68:L79,AS9) -> 0 | AU9: =AT9/(AV4-AT10) -> 0 | AV9: =IF(AU9=0,0,(AU9*((LOG(AU9))/LOG(2)))) -> 0
A10: 11 | B10: 456 | C10: 22 | D10: 466 | E10: 14 | F10: 478 | K10: 0 | L10: 121 | N10: 122 | O10: =COUNTIF($L$7:$L$500,N10) -> 8 | P10: =O10/$Q$4 -> 0.1095890411 | Q10: =IF(P10=0,0,(P10*((LOG(P10))/LOG(2)))) -> -0.3495698147 | T10: =N10 -> 122 | U10: =COUNTIF(L7:L18,T10) -> 4 | Y10: =N10 -> 122 | Z10: =COUNTIF(L19:L30,Y10) -> 1 | AD10: =N10 -> 122 | AE10: =COUNTIF(L31:L43,AD10) -> 2 | AI10: =N10 -> 122 | AJ10: =COUNTIF(L44:L55,AI10) -> 1 | AN10: =N10 -> 122 | AO10: =COUNTIF(L56:L67,AN10) -> 0 | AS10: =N10 -> 122 | AT10: =COUNTIF(L68:L79,AS10) -> 0
A11: 22 | B11: 610 | C11: 13 | D11: 624 | E11: 23 | F11: 637 | K11: 0 | L11: 212 | N11: 211 | O11: =COUNTIF($L$7:$L$500,N11) -> 0 | P11: =O11/$Q$4 -> 0 | Q11: =IF(P11=0,0,(P11*((LOG(P11))/LOG(2)))) -> 0 | T11: =N11 -> 211 | U11: =COUNTIF(L7:L18,T11) -> 0 | V11: =U11/(W4-U10) -> 0 | W11: =IF(V11=0,0,(V11*((LOG(V11))/LOG(2)))) -> 0 | Y11: =N11 -> 211 | Z11: =COUNTIF(L19:L30,Y11) -> 0 | AA11: =Z11/(AB4-Z10) -> 0 | AB11: =IF(AA11=0,0,(AA11*((LOG(AA11))/LOG(2)))) -> 0 | AD11: =N11 -> 211 | AE11: =COUNTIF(L31:L43,AD11) -> 0 | AF11: =AE11/(AG4-AE10) -> 0 | AG11: =IF(AF11=0,0,(AF11*((LOG(AF11))/LOG(2)))) -> 0 | AI11: =N11 -> 211 | AJ11: =COUNTIF(L44:L55,AI11) -> 0 | AK11: =AJ11/(AL4-AJ10) -> 0 | AL11: =IF(AK11=0,0,(AK11*((LOG(AK11))/LOG(2)))) -> 0 | AN11: =N11 -> 211 | AO11: =COUNTIF(L56:L67,AN11) -> 0 | AP11: =AO11/(AQ4-AO10) -> 0 | AQ11: =IF(AP11=0,0,(AP11*((LOG(AP11))/LOG(2)))) -> 0 | AS11: =N11 -> 211 | AT11: =COUNTIF(L68:L79,AS11) -> 0 | AU11: =AT11/(AV4-AT10) -> 0 | AV11: =IF(AU11=0,0,(AU11*((LOG(AU11))/LOG(2)))) -> 0
A12: 22 | B12: 758 | C12: 13 | D12: 769 | E12: 23 | F12: 783 | K12: 0 | L12: 212 | N12: 212 | O12: =COUNTIF($L$7:$L$500,N12) -> 5 | P12: =O12/$Q$4 -> 0.06849315068 | Q12: =IF(P12=0,0,(P12*((LOG(P12))/LOG(2)))) -> -0.2649244153 | T12: =N12 -> 212 | U12: =COUNTIF(L7:L18,T12) -> 3 | V12: =U12/(W4-U10) -> 0.375 | W12: =IF(V12=0,0,(V12*((LOG(V12))/LOG(2)))) -> -0.5306390622 | Y12: =N12 -> 212 | Z12: =COUNTIF(L19:L30,Y12) -> 1 | AA12: =Z12/(AB4-Z10) -> 0.09090909091 | AB12: =IF(AA12=0,0,(AA12*((LOG(AA12))/LOG(2)))) -> -0.3144937835 | AD12: =N12 -> 212 | AE12: =COUNTIF(L31:L43,AD12) -> 0 | AF12: =AE12/(AG4-AE10) -> 0 | AG12: =IF(AF12=0,0,(AF12*((LOG(AF12))/LOG(2)))) -> 0 | AI12: =N12 -> 212 | AJ12: =COUNTIF(L44:L55,AI12) -> 0 | AK12: =AJ12/(AL4-AJ10) -> 0 | AL12: =IF(AK12=0,0,(AK12*((LOG(AK12))/LOG(2)))) -> 0 | AN12: =N12 -> 212 | AO12: =COUNTIF(L56:L67,AN12) -> 1 | AP12: =AO12/(AQ4-AO10) -> 0.08333333333 | AQ12: =IF(AP12=0,0,(AP12*((LOG(AP12))/LOG(2)))) -> -0.2987468751 | AS12: =N12 -> 212 | AT12: =COUNTIF(L68:L79,AS12) -> 0 | AU12: =AT12/(AV4-AT10) -> 0 | AV12: =IF(AU12=0,0,(AU12*((LOG(AU12))/LOG(2)))) -> 0
A13: 11 | B13: 899 | C13: 22 | D13: 912 | E13: 23 | F13: 935 | K13: 0 | L13: 122 | N13: 221 | O13: =COUNTIF($L$7:$L$500,N13) -> 4 | P13: =O13/$Q$4 -> 0.05479452055 | Q13: =IF(P13=0,0,(P13*((LOG(P13))/LOG(2)))) -> -0.2295794279 | T13: =N13 -> 221 | U13: =COUNTIF(L7:L18,T13) -> 1 | V13: =U13/(W4-U10) -> 0.125 | W13: =IF(V13=0,0,(V13*((LOG(V13))/LOG(2)))) -> -0.375 | Y13: =N13 -> 221 | Z13: =COUNTIF(L19:L30,Y13) -> 3 | AA13: =Z13/(AB4-Z10) -> 0.2727272727 | AB13: =IF(AA13=0,0,(AA13*((LOG(AA13))/LOG(2)))) -> -0.5112188503 | AD13: =N13 -> 221 | AE13: =COUNTIF(L31:L43,AD13) -> 0 | AF13: =AE13/(AG4-AE10) -> 0 | AG13: =IF(AF13=0,0,(AF13*((LOG(AF13))/LOG(2)))) -> 0 | AI13: =N13 -> 221 | AJ13: =COUNTIF(L44:L55,AI13) -> 0 | AK13: =AJ13/(AL4-AJ10) -> 0 | AL13: =IF(AK13=0,0,(AK13*((LOG(AK13))/LOG(2)))) -> 0 | AN13: =N13 -> 221 | AO13: =COUNTIF(L56:L67,AN13) -> 0 | AP13: =AO13/(AQ4-AO10) -> 0 | AQ13: =IF(AP13=0,0,(AP13*((LOG(AP13))/LOG(2)))) -> 0 | AS13: =N13 -> 221 | AT13: =COUNTIF(L68:L79,AS13) -> 0 | AU13: =AT13/(AV4-AT10) -> 0 | AV13: =IF(AU13=0,0,(AU13*((LOG(AU13))/LOG(2)))) -> 0
A14: 11 | B14: 1034 | C14: 22 | D14: 1054 | E14: 23 | F14: 1079 | K14: 0 | L14: 122 | N14: 222 | O14: =COUNTIF($L$7:$L$500,N14) -> 1 | P14: =O14/$Q$4 -> 0.01369863014 | Q14: =IF(P14=0,0,(P14*((LOG(P14))/LOG(2)))) -> -0.08479211724 | T14: =N14 -> 222 | U14: =COUNTIF(L7:L18,T14) -> 1 | V14: =U14/(W4-U10) -> 0.125 | W14: =IF(V14=0,0,(V14*((LOG(V14))/LOG(2)))) -> -0.375 | Y14: =N14 -> 222 | Z14: =COUNTIF(L19:L30,Y14) -> 0 | AA14: =Z14/(AB4-Z10) -> 0 | AB14: =IF(AA14=0,0,(AA14*((LOG(AA14))/LOG(2)))) -> 0 | AD14: =N14 -> 222 | AE14: =COUNTIF(L31:L43,AD14) -> 0 | AF14: =AE14/(AG4-AE10) -> 0 | AG14: =IF(AF14=0,0,(AF14*((LOG(AF14))/LOG(2)))) -> 0 | AI14: =N14 -> 222 | AJ14: =COUNTIF(L44:L55,AI14) -> 0 | AK14: =AJ14/(AL4-AJ10) -> 0 | AL14: =IF(AK14=0,0,(AK14*((LOG(AK14))/LOG(2)))) -> 0 | AN14: =N14 -> 222 | AO14: =COUNTIF(L56:L67,AN14) -> 0 | AP14: =AO14/(AQ4-AO10) -> 0 | AQ14: =IF(AP14=0,0,(AP14*((LOG(AP14))/LOG(2)))) -> 0 | AS14: =N14 -> 222 | AT14: =COUNTIF(L68:L79,AS14) -> 0 | AU14: =AT14/(AV4-AT10) -> 0 | AV14: =IF(AU14=0,0,(AU14*((LOG(AU14))/LOG(2)))) -> 0
A15: 11 | B15: 1181 | C15: 22 | D15: 1195 | E15: 23 | F15: 1216 | K15: 0 | L15: 122 | P15: =SUM(P7:P14) -> 1 | Q15: =-SUM(Q7:Q14) -> 2.063608 | V15: =SUM(V7:V14) -> 1 | W15: =-SUM(W7:W14) -> 1.811278124 | AA15: =SUM(AA7:AA14) -> 1 | AB15: =-SUM(AB7:AB14) -> 1.867633891 | AF15: =SUM(AF7:AF14) -> 1 | AG15: =-SUM(AG7:AG14) -> 0.9456603046 | AK15: =SUM(AK7:AK14) -> 1 | AL15: =-SUM(AL7:AL14) -> 0.4394969869 | AP15: =SUM(AP7:AP14) -> 1 | AQ15: =-SUM(AQ7:AQ14) -> 1.325011211 | AU15: =SUM(AU7:AU14) -> 1 | AV15: =-SUM(AV7:AV14) -> 0.6500224216
A16: 11 | B16: 1317 | C16: 22 | D16: 1329 | E16: 14 | F16: 1338 | K16: 0 | L16: 121 | P16: U= | Q16: =Q15/(LOG(Q4)/LOG(2)) -> 0.333387155 | V16: U1= | W16: =W15/(LOG(W4)/LOG(2)) -> 0.5052432554 | AA16: U2= | AB16: =AB15/(LOG(AB4)/LOG(2)) -> 0.5209632989 | AF16: U3= | AG16: =AG15/(LOG(AG4)/LOG(2)) -> 0.2555534954 | AK16: U4= | AL16: =AL15/(LOG(AL4)/LOG(2)) -> 0.1225945841 | AP16: U5= | AQ16: =AQ15/(LOG(AQ4)/LOG(2)) -> 0.3696025302 | AU16: U6= | AV16: =AV15/(LOG(AV4)/LOG(2)) -> 0.181319169
A17: 11 | B17: 1443 | C17: 22 | D17: 1451 | E17: 23 | F17: 1457 | K17: 0 | L17: 122
A18: 22 | B18: 1582 | C18: 24 | D18: 1584 | E18: 23 | F18: 1592 | K18: 0 | L18: 222
A19: 22 | B19: 1703 | C19: 13 | D19: 1711 | E19: 23 | F19: 1722 | K19: 0 | L19: 212 | N19: Total Target Seq
A20: 11 | B20: 1823 | C20: 11 | D20: 1838 | E20: 21 | F20: 1850 | K20: 0 | L20: 112 | N20: =COUNTIF(L7:L79,G3) -> 8 | P20: 12 | Q20: 12 | R20: 13 | S20: 12 | T20: 12 | U20: 12
A21: 11 | B21: 1952 | C21: 22 | D21: 1962 | E21: 14 | F21: 1972 | K21: 0 | L21: 121 | P21: % of reinforcement given in 6 equal intervals based on number of trials
A22: 11 | B22: 2070 | C22: 22 | D22: 2084 | E22: 14 | F22: 2096 | K22: 0 | L22: 121 | P22: %_1 | Q22: %_2 | R22: %_3 | S22: %_4 | T22: %_5 | U22: %_6
A23: 22 | B23: 2234 | C23: 24 | D23: 2242 | E23: 14 | F23: 2255 | K23: 0 | L23: 221 | O23: target sequence | P23: =$G$3 -> 122 | Q23: =$G$3 -> 122 | R23: =$G$3 -> 122 | S23: =$G$3 -> 122 | T23: =$G$3 -> 122 | U23: =$G$3 -> 122
A24: 22 | B24: 2375 | C24: 24 | D24: 2377 | E24: 14 | F24: 2388 | K24: 0 | L24: 221 | O24: total reinforcement | P24: =U10 -> 4 | Q24: =Z10 -> 1 | R24: =AE10 -> 2 | S24: =AJ10 -> 1 | T24: =AO10 -> 0 | U24: =AT10 -> 0
A25: 22 | B25: 2500 | C25: 24 | D25: 2510 | E25: 14 | F25: 2524 | K25: 0 | L25: 221 | O25: % target
A26: 11 | B26: 2625 | C26: 11 | D26: 2643 | E26: 21 | F26: 2655 | K26: 0 | L26: 112 | O26: CCRF
A27: 11 | B27: 2777 | C27: 22 | D27: 2788 | E27: 14 | F27: 2801 | K27: 0 | L27: 121 | O27: % CCRf
A28: 11 | B28: 2902 | C28: 22 | D28: 2912 | E28: 23 | F28: 2914 | K28: 0 | L28: 122 | O28: average response rate | P28: =F18/P20 -> 132.6666667 | Q28: =(F30-F18)/Q20 -> 131.75 | R28: =(F43-F30)/R20 -> 120.0769231 | S28: =(F55-F43)/S20 -> 116.75 | T28: =(F67-F55)/T20 -> 129.25 | U28: =(F79-F67)/U20 -> 114.4166667
A29: 11 | B29: 3013 | C29: 22 | D29: 3024 | E29: 14 | F29: 3038 | K29: 0 | L29: 121
A30: 11 | B30: 3137 | C30: 11 | D30: 3150 | E30: 21 | F30: 3173 | K30: 0 | L30: 112
A31: 11 | B31: 3271 | C31: 11 | D31: 3288 | E31: 21 | F31: 3301 | K31: 0 | L31: 112
A32: 11 | B32: 3404 | C32: 11 | D32: 3420 | E32: 21 | F32: 3430 | K32: 0 | L32: 112
A33: 11 | B33: 3525 | C33: 11 | D33: 3541 | E33: 21 | F33: 3553 | K33: 0 | L33: 112
A34: 11 | B34: 3656 | C34: 11 | D34: 3666 | E34: 21 | F34: 3678 | K34: 0 | L34: 112
A35: 11 | B35: 3769 | C35: 22 | D35: 3779 | E35: 14 | F35: 3796 | K35: 0 | L35: 121
A36: 11 | B36: 3893 | C36: 22 | D36: 3905 | E36: 14 | F36: 3921 | K36: 0 | L36: 121
A37: 11 | B37: 4022 | C37: 11 | D37: 4023 | E37: 21 | F37: 4036 | K37: 0 | L37: 112
A38: 11 | B38: 4131 | C38: 11 | D38: 4139 | E38: 21 | F38: 4148 | K38: 0 | L38: 112
A39: 11 | B39: 4239 | C39: 11 | D39: 4244 | E39: 21 | F39: 4252 | K39: 0 | L39: 112
A40: 11 | B40: 4349 | C40: 22 | D40: 4364 | E40: 14 | F40: 4379 | K40: 0 | L40: 121
A41: 11 | B41: 4478 | C41: 22 | D41: 4487 | E41: 23 | F41: 4489 | K41: 0 | L41: 122
A42: 11 | B42: 4587 | C42: 22 | D42: 4597 | E42: 23 | F42: 4605 | K42: 0 | L42: 122
A43: 11 | B43: 4706 | C43: 22 | D43: 4722 | E43: 14 | F43: 4734 | K43: 0 | L43: 121
A44: 11 | B44: 4835 | C44: 11 | D44: 4876 | E44: 21 | F44: 4887 | K44: 0 | L44: 112
A45: 11 | B45: 4978 | C45: 11 | D45: 4988 | E45: 21 | F45: 4998 | K45: 0 | L45: 112
A46: 11 | B46: 5091 | C46: 11 | D46: 5102 | E46: 21 | F46: 5112 | K46: 0 | L46: 112
A47: 11 | B47: 5204 | C47: 11 | D47: 5212 | E47: 21 | F47: 5222 | K47: 0 | L47: 112
A48: 11 | B48: 5316 | C48: 11 | D48: 5323 | E48: 21 | F48: 5332 | K48: 0 | L48: 112
A49: 11 | B49: 5426 | C49: 11 | D49: 5433 | E49: 21 | F49: 5442 | K49: 0 | L49: 112
A50: 11 | B50: 5543 | C50: 22 | D50: 5554 | E50: 14 | F50: 5568 | K50: 0 | L50: 121
A51: 11 | B51: 5665 | C51: 11 | D51: 5674 | E51: 21 | F51: 5686 | K51: 0 | L51: 112
A52: 11 | B52: 5777 | C52: 22 | D52: 5787 | E52: 23 | F52: 5808 | K52: 0 | L52: 122
A53: 11 | B53: 5904 | C53: 11 | D53: 5909 | E53: 21 | F53: 5920 | K53: 0 | L53: 112
A54: 11 | B54: 6008 | C54: 11 | D54: 6016 | E54: 21 | F54: 6027 | K54: 0 | L54: 112
A55: 11 | B55: 6118 | C55: 11 | D55: 6126 | E55: 21 | F55: 6135 | K55: 0 | L55: 112
A56: 11 | B56: 6226 | C56: 11 | D56: 6234 | E56: 21 | F56: 6245 | K56: 0 | L56: 112
A57: 11 | B57: 6340 | C57: 11 | D57: 6347 | E57: 21 | F57: 6357 | K57: 0 | L57: 112
A58: 11 | B58: 6448 | C58: 11 | D58: 6455 | E58: 21 | F58: 6465 | K58: 0 | L58: 112
A59: 11 | B59: 6568 | C59: 22 | D59: 6579 | E59: 14 | F59: 6591 | K59: 0 | L59: 121
A60: 11 | B60: 6689 | C60: 22 | D60: 6703 | E60: 14 | F60: 6717 | K60: 0 | L60: 121
A61: 11 | B61: 6815 | C61: 22 | D61: 6841 | E61: 14 | F61: 6869 | K61: 0 | L61: 121
A62: 11 | B62: 6972 | C62: 22 | D62: 6985 | E62: 14 | F62: 6998 | K62: 0 | L62: 121
A63: 11 | B63: 7102 | C63: 11 | D63: 7113 | E63: 21 | F63: 7127 | K63: 0 | L63: 112
A64: 11 | B64: 7229 | C64: 22 | D64: 7243 | E64: 14 | F64: 7257 | K64: 0 | L64: 121
A65: 11 | B65: 7361 | C65: 11 | D65: 7385 | E65: 21 | F65: 7399 | K65: 0 | L65: 112
A66: 22 | B66: 7522 | C66: 13 | D66: 7544 | E66: 23 | F66: 7555 | K66: 0 | L66: 212
A67: 11 | B67: 7664 | C67: 11 | D67: 7675 | E67: 21 | F67: 7686 | K67: 0 | L67: 112
A68: 11 | B68: 7786 | C68: 11 | D68: 7799 | E68: 21 | F68: 7807 | K68: 0 | L68: 112
A69: 11 | B69: 7944 | C69: 11 | D69: 7956 | E69: 21 | F69: 7969 | K69: 0 | L69: 112
A70: 11 | B70: 8069 | C70: 11 | D70: 8082 | E70: 21 | F70: 8091 | K70: 0 | L70: 112
A71: 11 | B71: 8189 | C71: 11 | D71: 8194 | E71: 21 | F71: 8207 | K71: 0 | L71: 112
A72: 11 | B72: 8302 | C72: 11 | D72: 8309 | E72: 21 | F72: 8321 | K72: 0 | L72: 112
A73: 11 | B73: 8411 | C73: 11 | D73: 8417 | E73: 21 | F73: 8426 | K73: 0 | L73: 112
A74: 11 | B74: 8518 | C74: 11 | D74: 8528 | E74: 21 | F74: 8536 | K74: 0 | L74: 112
A75: 11 | B75: 8625 | C75: 11 | D75: 8630 | E75: 21 | F75: 8642 | K75: 0 | L75: 112
A76: 11 | B76: 8731 | C76: 11 | D76: 8733 | E76: 12 | F76: 8742 | K76: 0 | L76: 111
A77: 11 | B77: 8837 | C77: 11 | D77: 8842 | E77: 21 | F77: 8851 | K77: 0 | L77: 112
A78: 11 | B78: 8939 | C78: 11 | D78: 8944 | E78: 12 | F78: 8952 | K78: 0 | L78: 111
A79: 11 | B79: 9044 | C79: 11 | D79: 9049 | E79: 21 | F79: 9059 | K79: 1 | L79: 112

Sheet !2011-07-10_11h23m.Subject 53
A1: Report for:!2011-07-10_11h23m.Subject 53
A2: Date | B2: 2011-07-10 | F2: Group | G2: var phase 2
A3: Hen | B3: 53 | F3: Correct Sequence | G3: =Start!J2 -> 122 | P3: Total Sequences in Data | Q3: =4994-COUNTBLANK(L7:L5000) -> 86 | V3: Total Sequences in Block Data | W3: =COUNTA(L7:L20) -> 14 | AA3: Total Sequences in Block Data | AB3: =COUNTA(L21:L35) -> 15 | AF3: Total Sequences in Block Data | AG3: =COUNTA(L36:L49) -> 14 | AK3: Total Sequences in Block Data | AL3: =COUNTA(L50:L63) -> 14 | AP3: Total Sequences in Block Data | AQ3: =COUNTA(L64:L78) -> 15 | AU3: Total Sequences in Block Data | AV3: =COUNTA(L79:L92) -> 14
A4: Program | B4: one | P4: Total Sequences in Summary | Q4: =SUM(O7:O14) -> 86 | V4: Total Sequences in Block Summary | W4: =SUM(U7:U14) -> 14 | AA4: Total Sequences in Block Summary | AB4: =SUM(Z7:Z14) -> 15 | AF4: Total Sequences in Block Summary | AG4: =SUM(AE7:AE14) -> 14 | AK4: Total Sequences in Block Summary | AL4: =SUM(AJ7:AJ14) -> 14 | AP4: Total Sequences in Block Summary | AQ4: =SUM(AO7:AO14) -> 15 | AU4: Total Sequences in Block Summary | AV4: =SUM(AT7:AT14) -> 14
T5: Block 1 | Y5: Block 2 | AD5: Block 3 | AI5: Block 4 | AN5: Block 5 | AS5: Block 6
